Workbook

Sheet Fitness Space Calcs (hidden)
A1: small/extra small
B2: Navy (.5k) | C2: Army (1k) | D2: MC (.5k) | E2: AF (1k)
A3: stretch | B3: 100 | C3: 100 | D3: 100 | E3: =4*F3 -> 200 | F3: 50 | G3: (min 2 ppl + 1 person/every 50 users)
A4: cardio | B4: =10*F4 -> 500 | C4: =11*F4 -> 550 | D4: =8*F4 -> 400 | E4: =50*F4 -> 2500 | F4: 50
A5: select | B5: =15*F5 -> 750 | C5: =16*F5 -> 800 | D5: =(6*0.5)*F5 -> 150 | E5: =38*F5 -> 1900 | F5: 50
A6: free | B6: =12*F6 -> 780 | C6: =15*F6 -> 975 | D6: =(6*0.5)*F6 -> 195 | E6: =32*F6 -> 2080 | F6: 65
B8: =SUM(B3:B7) -> 2130 | C8: =SUM(C3:C7) -> 2425 | D8: =SUM(D3:D7) -> 845 | E8: =SUM(E3:E7) -> 6680 | G8: =0.25*E8 -> 1670
A10: current | B10: 1000 | C10: 2325 | D10: 1000 | E10: 6900
B12: 37 ppl | C12: 42 ppl | D12: 14 ppl | E12: 120 ppl
A15: medium
B16: Navy (3-7k) | C16: Army (3-6k) | D16: MC (3-7k) | E16: AF (1-5k)
A17: stretch | B17: =3*F17 -> 150 | C17: =5*F17 -> 250 | D17: =5*F17 -> 250 | E17: =5*F17 -> 250 | F17: 50
A18: cardio | B18: =30*F18 -> 1500 | C18: =51*F18 -> 2550 | D18: =75*F18 -> 3750 | E18: =65*F18 -> 3250 | F18: 50
A19: select | B19: =15*F19 -> 750 | C19: =30*F19 -> 1500 | D19: =(60*0.5)*F19 -> 1500 | E19: =47*F19 -> 2350 | F19: 50
A20: free | B20: =24*F20 -> 1560 | C20: =50*F20 -> 3250 | D20: =(60*0.5)*F20 -> 1950 | E20: =35*F20 -> 2275 | F20: 65
B22: =SUM(B17:B21) -> 3960 | C22: =SUM(C17:C21) -> 7550 | D22: =SUM(D17:D21) -> 7450 | E22: =SUM(E17:E21) -> 8125
A24: current | B24: 2500 | C24: 7300 | D24: 6750 | E24: 6900
B26: 67 ppl | C26: 131 ppl | D26: 135 ppl | E26: 147 ppl

Sheet size classes (hidden)
A1: Army | C1: Populations | E1: Spreadsheet (2nd tab)
A2: ex small | C2: 251-1,000
A3: small | C3: 1,001-3,000
A4: medium | C4: 3,001-6,000
A5: large | C5: 6,001-10,000
A6: ex large | C6: 10,001-15,000
A7: +5000
A9: Navy | E9: Stds Metrics (equip counts)
A10: ex small | C10: <500
A11: small | C11: 501-3,000
A12: medium | C12: 3,001-7,000
A13: large | C13: 7,001-14,000
A14: ex large | C14: 14,001-30,000
A15: jumbo | C15: >30,000
A17: AF | E17: Design guide
A18: small | C18: <1,000
A19: medium | C19: 1,001-5,000
A20: large | C20: 5,001-6,000
A21: +1000
A24: MC * | E24: P-80 and MC formula
A25: ex small | C25: <500
A26: small | C26: 501-3,000
A27: medium | C27: 3,001-7,000
A28: large | C28: 7,001-14,000
A29: ex large | C29: 14,001-30,000
A30: jumbo | C30: >30,000
A31: * fitness area sized on actual population

Sheet Components and Space Standards (hidden)
A1: 0.0929 | B1: Space Allocation Standard | F1: Notes
A2: Functional Component | B2: m2 | C2: ft.2 | D2: Standard | E2: Description
A3: Fitness Spaces
A4: Lobby/Reception
A5: Entry Lobby | B5: =$A$1*C5 -> 9.29 | C5: 100 | D5: Vestibule/Lobby Module(s) (for 2-3 ppl) | E5: Vesibule and/or space for 2 to 3 ppl to queue | F5: between bldg entrance and control
A6: Control Counter | B6: 11.6125 | C6: 125 | D6: Counter Module(s) | E6: Space for counter, space behind, space in front | F6: Includes minor retail items
A7: Equipment issue storage | B7: 16.2575 | C7: 175 | D7: Storage Module(s) | E7: Equipment storage at/behind gear issue | F7: 2 units min. for Navy. Others get 1 unit in smallest
A8: Vending | B8: 1.858 | C8: 20 | D8: Vending Machine(s) | E8: per vending machine | F8: 2 for small
A9: Waiting/Display | B9: 8.361 | C9: 90 | D9: Seating/Display Module(s) (for 4 ppl) | E9: Space for seating for 4 ppl and display area | F9: Waiting area adjacent to lobby and in front of control. Grows in units of 90
A10: Spectator peak-time circulation | B10: 27.87 | C10: =(3*200)*0.5 -> 300 | D10: Circulation Module(s) | E10: Per one-side bleachers - driven by gym size | F10: Optional, 300 sf for 1 set bleachers, Additional circulation space for peak gym loads
A11: Public restrooms/phones | B11: 0 | D11: Public Restroom(s) | E11: Option - Driven by gym size | F11: 1 (uni), 1/1, ?/?, 4/6 (limit option to those below the facility size) Largest gym size drives largest bathroom. AF limited to top three options.
A12: Gymnasium
A13: Basketball/volleyball Court | B13: 826.0668 | C13: =(10+94+10)*(10+50+10+8) -> 8892 | D13: One-court/200-seat Module(s) | E13: NCAA Court + 10' safety + 200 seats (one side) | F13: Need both elements if indoor track is required.
A14: Two Court Module | B14: =$A$1*C14 -> 1630.9524 | C14: 17556 | D14: Two-court/200-seat Module(s) | E14: Two courts + 10' safety, 16' between cts, + 200 seats
A15: Arena-style Two-Court Module | B15: =$A$1*C15 -> 1708.6168 | C15: 18392 | D15: Arena-style Two-Court Module(s) | E15: Provides space for arena-style seating for center, longitudinal ct.
A16: Additional Spectator seating | B16: 84.70622 | C16: =(8+1.7)*94 -> 911.8 | D16: Additional 200-seat Module(s) | E16: Four rows of seats (one ea. side) = 200 ppl.
A17: Basic storage/support | B17: 65.03 | C17: 700 | D17: Storage Module(s) | E17: Roughly 8% of base gym area
A18: Additional court storage | B18: 32.515 | C18: 350 | D18: Additional storage module(s) | E18: Storage space per additional court
A19: Unit PT/Group Exercise
A20: Partitionable Room(s) | B20: 4.645 | C20: =50 -> 50 | D20: people at 4.6 m2 (50 ft.2)/person | E20: 116.1 m2 (1,250 ft.2) (25 ppl) minimum size | F20: 1250 = min. Navy, AF, MC / 2500 = min Army
A21: Storage/support | B21: 0.4645 | C21: =C20*0.1 -> 5 | D21: 10% of partitionable room area | E21: 11.6 m2 (125 ft.2) minimum (10% of room area)
A22: Fitness Spaces
A23: Stretching | B23: 4.645 | C23: 50 | D23: people at 4.6 m2 (50 ft.2)/person | E23: 50 sf per person - min. 2 ppl | F23: See Fitness Space sheet and exist. docs for these numbers
A24: Cardiovascular Equipment | B24: 4.645 | C24: 50 | D24: items at 4.6 m2 (50 ft.2)/item | E24: 50 sf per station
A25: Selectorized (machine) weights | B25: 4.645 | C25: 50 | D25: items at 4.6 m2 (50 ft.2)/item | E25: 50 sf per station
A26: Free/Plate-loaded weights | B26: 6.0385 | C26: 65 | D26: stations at 6.0 m2 (65 ft.2)/stations | E26: 65 sf per station
A27: Finess Program Manager's Office | B27: 11.6125 | C27: 125 | D27: Office | E27: Private office that may include fitness testing equipment
A28: Fitness Assessment Room | B28: 11.6125 | C28: 125 | D28: Office(s) | E28: 1 piece fitness equip for testing, computer desk, chairs, stretching
A29: Structured Activities
A30: Structured Activity Space | B30: 74.32 | C30: 800 | D30: Flexible space Module(s) | E30: Based on size of a single racquetball court | F30: equip. based
A31: Racquetball Courts | B31: 74.32 | C31: 800 | D31: Racquetball Court(s) | E31: Single court size. Minimum of two courts
A32: Auxiliary Gym (MC-only) | B32: =$A$1*C32 -> 826.0668 | C32: =(10+94+10)*(10+50+10+8) -> 8892 | D32: One-court/200-seat Module(s) | E32: NCAA Court + 10' safety + 200 seats (one side) | F32: MC-only
A33: HITT Center (MC-only) | B33: =$A$1*C33 -> 185.8 | C33: 2000 | D33: 2000 or 4000 ft2 | F33: MC-only
A34: Spectator/officiating (MC Option) | B34: 18.58 | C34: =(5*20)+(5*20) -> 200 | D34: Spectator/officiating Module(s) | E34: Two rows of 10 seats for one ct. Max of two cts (400 sf)
A35: Structured activity storage | B35: 7.432 | C35: =C30*0.1 -> 80 | D35: 10% of Structured Activity Space | E35: Based on Structured activity space (10% of room area)
A36: Locker Rooms | F36: Apply male/female split on occupant load, then calculate individual male and female locker areas from the split number.
A37: Men's Locker Room
A38: Locker/changing area | B38: 0.7432 | C38: 8 | D38: Lockers | E38: Per slot (2 double lockers or 1 single locker) | F38: Ratios: 1 to 1 (all full), 66% (1 full per 2 dbls - or 3 ppl / 2 slots), 50% (all double lockers)
A39: Shower/drying area | B39: 2.787 | C39: =((2+3+3)*3.5)+2 -> 30 | D39: Showers | E39: Per shower & integral drying area at 22 lockers/shower
A40: Toilet area | B40: 4.1805 | C40: 45 | D40: Water closets/lavatory modules | E40: Per wc and lav. at 30 lockers per wc/lav | F40: Will confirm that 30 lockers per wc/lav is the correct formula
A41: Women's Locker Room
A42: Locker/changing area | B42: 0.7432 | C42: 8 | D42: Lockers | E42: Per slot (2 double lockers or 1 single locker)
A43: Shower/drying area | B43: 2.787 | C43: =((2+3+3)*3.5)+2 -> 30 | D43: Showers | E43: Per shower & integral drying area at 22 lockers/shower
A44: Toilet area | B44: 4.1805 | C44: 45 | D44: Water closets/lavatory modules | E44: per wc and lav. at 20 lockers per wc/lav | F44: Will confirm that 20 lockers per wc/lav is the correct formula
A45: Sauna, cool-down area | D45: M/F (2) Saunas/cool-down area | E45: small = 6 ppl, med = 8-9, lg = 12 ppl (+ cool down space)
A46: Steam Room, cool-down area | D46: M/F (2) Steam Rooms/cool-down area | E46: small = 6-7 ppl, med = 8-9, lg = 12-14 (+ cool down space)
A47: Hot Tub | D47: Unisex Hot Tub | E47: small = 5 ppl, med = 8, lg = 12-14 ppl
A48: Support Areas
A49: Laundry | B49: 18.58 | C49: 200 | D49: Laundry Room | E49: Per one-washer/two-dryer room | F49: One washer, two dryers, commercial equip, folding table, sink, storage shelves, laundry carts, and opt. ice machine.
A50: Equipment repair and receiving | D50: Repair/receiving Room | E50: Fixed receiving area + variable repair (10% of Fitness) | F50: 10% of total Fitness (Army) / 250 sf (AF) (=(15*10)+(0.1*fitness)) =(0.05*fitness)
A51: Storage | D51: Storage Room | E51: Variable lockable storage room (5% of fitness)
A52: Additional Programmatic Storage | D52: sf Additional Storage | E52: To be filled-in by programmer and justified based on item stored.
A53: Janitor's Closet(s) | B53: =$A$1*C53 -> 3.716 | C53: 40 | D53: 40 SF/closet | E53: Per Janitor's Closet | F53: 2 for X small & small, 3 for Medium, and 4 for Lg X Lg & Jumbo
A54: Health Promotion Spaces - Marine Corps Only (Required or Optional)
A55: Lobby/Reception | B55: =$A$1*C55 -> 27.87 | C55: 300 | D55: Lobby/Reception Module(s) | E55: per area | F55: From AF
A56: Director's Office | B56: 11.148 | C56: 120 | D56: Office | E56: per office | F56: AF office area = 400 sf total
A57: Program Managers' Offices | B57: 9.29 | C57: 100 | D57: Office(s) | E57: per office
A58: Support Staff Workstations | B58: 5.9456 | C58: 64 | D58: Workstation(s) | E58: per workstation
A59: Classrooms/Training rooms | B59: 58.527 | C59: 630 | D59: Classroom/Training Module(s) | E59: per room | F59: From AF
A60: Resource Room/Computer Lab | B60: 23.225 | C60: 250 | D60: Resource/Computer Lab Module(s) | E60: per room | F60: From AF - combines comp lab with resource library
A61: Storage/support | B61: 7.432 | C61: 80 | D61: Storage/support Module(s) | E61: per area
A62: Demonstration Kitchen (MC-only) | B62: 46.45 | C62: 500 | D62: Kitchen Module(s) | E62: per kitchen | F62: From AF
A63: Ergometry and Fitness Testing * | B63: 7.432 | C63: 80 | D63: Testing Cubicle(s) | E63: per testing cubicles | F63: From AF - cubicles go in an enclosed room (need circulation beteen cubicles--doesn't seem to be accounted for in AF criteria?)
A64: Wellness Assessment * | B64: 13.935 | C64: 150 | D64: Assessment Room(s) | E64: per room | F64: From AF
A65: Administrative Spaces (required or optional)
A66: Director's Office | B66: =$A$1*C66 -> 11.148 | C66: 120 | D66: Office | E66: per office | F66: req.
A67: Program Managers' Offices | B67: 9.29 | C67: 100 | D67: Office(s) | E67: per office | F67: optional (req. AF)
A68: Support Staff Workstations | B68: 5.9456 | C68: 64 | D68: Workstation(s) | E68: per office | F68: optional (req. AF)
A69: Copy/file/work/break Room | B69: 7.432 | C69: 80 | D69: Workroom Module(s) | E69: per room | F69: req.
A70: Classroom/Training Room | B70: 69.675 | C70: =30*25 -> 750 | D70: 25-person Module at 750 SF | E70: 1,500 SF Med/Lge & 2,250 SF for Xtra Lge/Jumbo | F70: Req. Program space
A71: Classroom/Training Storage | B71: 5.574 | C71: 60 | D71: Storage Module(s) | E71: per 25-person Training Room
A72: Optional or Service-specific Program Spaces
A73: * Service-specific space.
A74: 1 If contract service, verify area with contractor.
A75: Indoor Track
A76: Indoor Track | D76: need to include corners
A77: 1/14th-mile Indoor Track | B77: =$A$1*C77 -> 310.0073 | C77: 3337 | D77: 1/14th-mile, 2-lane Indoor Track | E77: ="1/14th-mile, 2-lane Indoor Track ("&H77&" linear ft.)" -> 1/14th-mile, 2-lane Indoor Track (754 linear ft.) | F77: (smallest gym option, Army and Navy only) | H77: =ROUND(0.07143*5280*2,0) -> 754
A78: 1/12th-mile Indoor Track | B78: 523.027 | C78: 5630 | D78: 1/12th-mile, 3-lane Indoor Track | E78: 1/12th-mile, 3-lane Indoor Track (1284 linear ft.) | H78: =ROUND(0.081*5280*3,0)+1 -> 1284
A79: 1/11th-mile Indoor Track | B79: =$A$1*C79 -> 556.7497 | C79: 5993 | D79: 1/11th-mile, 3-lane Indoor Track | E79: ="1/11th-mile, 3-lane Indoor Track ("&H79&" linear ft.)" -> 1/11th-mile, 3-lane Indoor Track (1440 linear ft.) | H79: =ROUND(0.09091*5280*3,0) -> 1440
A80: 1/8th-mile Indoor Track | B80: 989.1063 | C80: 10647 | D80: 1/8th-mile, 4-lane Indoor Track | E80: ="1/8th-mile, 4-lane Indoor Track ("&H80&" linear ft.)" -> 1/8th-mile, 4-lane Indoor Track (2640 linear ft.) | H80: =ROUND(0.125*5280*4,0) -> 2640
A81: Indoor track lobby | B81: 13.3776 | C81: =8*18 -> 144 | D81: Indoor track lobby(ies) | E81: Access point to lobby from stair/elevator
A82: Additional Group Exercise Room | B82: 116.125 | C82: =25*50 -> 1250 | D82: =A82 -> Additional Group Exercise Room | E82: per room | F82: Optional catch-up space
A83: Massage Room | B83: 11.148 | C83: 120 | D83: Massage Room(s) | E83: per room
A84: Physical Therapy Training | B84: 11.6125 | C84: 125 | D84: Physical Therapy Training Room(s) | E84: per room | F84: similar to fitness assement
A85: Expanded Retail 1 | B85: 9.29 | C85: 100 | D85: Expanded Retail Module(s) | E85: per area | F85: dry good, sports equip, clothes, etc. Usually contractor and sep from control
A86: Expanded Juice Bar 1 | B86: 13.935 | C86: 150 | D86: Expanded Juice Bar Module(s) | E86: per area | F86: Additional food/beverage counter. Usually contractor and sep from control
A87: Expanded Juice Bar Seating | B87: 13.935 | C87: 150 | D87: Two-table seating Module(s) | E87: Two 4-top tables and seating area
A88: Family Changing Room | B88: 10.219 | C88: 110 | D88: Family Changing Room(s) | E88: per shower, wc, lav, changing, and locker | F88: Indiv. locker area for parent & child (grows by adding showers and changing stalls plus lockers)
A89: Convertible Locker Space | B89: 69.675 | C89: 750 | D89: Add'l male or female space | E89: 750 sf | F89: Optional MC-only space. Large and larger facilities only
A90: Female DV Locker Room * | B90: 23.225 | C90: 250 | D90: Female DV Locker Room | E90: 250, 500, 750
A91: Child Play Area/Parent Child Area * | B91: 74.32 | C91: 800 | D91: Parent/child Module(s) | E91: 400 sf play area (at 35 sf/child), 400 sf equip (50 sf/equip) | F91: Also 1200, 1600 (all kinds equip)
A92: HAWC Demonstration Kitchen | B92: 46.45 | C92: 500 | D92: Kitchen Module(s) | E92: per kitchen | F92: From AF
A93: HAWC Relaxation Room * | B93: 9.29 | C93: 100 | D93: Relaxation Room(s) | E93: per room | F93: From AF
A94: Site Spaces
A95: Staff Parking | B95: =$A$1*C95 -> 41.805 | C95: 450 | D95: Parking Spaces | E95: per space (including circulation)
A96: Loading dock | B96: 8.361 | C96: =(18*5) -> 90 | D96: Loading Dock | E96: Per single-truck dock
A97: Service Drive/trash | B97: 69.675 | C97: 750 | D97: Service Drive Module | E97: per area
A98: Customer Parking | B98: 41.805 | C98: 450 | D98: Parking Spaces | E98: per space (including circulation)
A99: Bicycle Rack Area | B99: 14.864 | C99: 160 | D99: 10-bike Rack(s) | E99: per 10-bike Rack
A100: Patio | B100: 2.3225 | C100: 25 | D100: Patio Module(s) | E100: per patio
A101: * Service-specific space.
A102: 1 If contract service, verify area with contractor.

Sheet Army (hidden)
A1: Col. A - D refer to "Components & Space Standards" Sheet. | B1: Space Allocation Standard | F1: Extra Small | I1: Small | L1: Medium | O1: Large | R1: Extra Large | U1: Army Increment for each add'l 5000 | X1: Notes
A2: Functional Component | B2: m2 | C2: ft.2 | D2: Standard | E2: Description | F2: No. | G2: m2 | H2: ft.2 | I2: No. | J2: m2 | K2: ft.2 | L2: No. | M2: m2 | N2: ft.2 | O2: No. | P2: m2 | Q2: ft.2 | R2: No. | S2: m2 | T2: ft.2 | U2: No. | V2: m2 | W2: ft.2
A3: ='Components and Space Standards'!A3:E3 -> Fitness Spaces
A4: ='Components and Space Standards'!A4:E4 -> Lobby/Reception
A5: ='Components and Space Standards'!A5:E5 -> Entry Lobby | B5: ='Components and Space Standards'!B5:F5 -> 9.29 | C5: ='Components and Space Standards'!C5:G5 -> 100 | D5: ='Components and Space Standards'!D5:G5 -> Vestibule/Lobby Module(s) (for 2-3 ppl) | E5: ='Components and Space Standards'!E5:H5 -> Vesibule and/or space for 2 to 3 ppl to queue | F5: 1 | G5: =$B5*F5 -> 9.29 | H5: =F5*$C5 -> 100 | I5: 2 | J5: =$B5*I5 -> 18.58 | K5: =I5*$C5 -> 200 | L5: 3 | M5: =$B5*L5 -> 27.87 | N5: =L5*$C5 -> 300 | O5: 4 | P5: =$B5*O5 -> 37.16 | Q5: =O5*$C5 -> 400 | R5: 5 | S5: =$B5*R5 -> 46.45 | T5: =R5*$C5 -> 500 | U5: 1 | V5: =$B5*U5 -> 9.29 | W5: =U5*$C5 -> 100 | X5: between bldg entrance and control
A6: ='Components and Space Standards'!A6:E6 -> Control Counter | B6: ='Components and Space Standards'!B6:F6 -> 11.6125 | C6: ='Components and Space Standards'!C6:G6 -> 125 | D6: ='Components and Space Standards'!D6:G6 -> Counter Module(s) | E6: ='Components and Space Standards'!E6:H6 -> Space for counter, space behind, space in front | F6: 1 | G6: =$B6*F6 -> 11.6125 | H6: =F6*$C6 -> 125 | I6: 2 | J6: =$B6*I6 -> 23.225 | K6: =I6*$C6 -> 250 | L6: 3 | M6: =$B6*L6 -> 34.8375 | N6: =L6*$C6 -> 375 | O6: 4 | P6: =$B6*O6 -> 46.45 | Q6: =O6*$C6 -> 500 | R6: 5 | S6: =$B6*R6 -> 58.0625 | T6: =R6*$C6 -> 625 | U6: 1 | V6: 11.6125 | W6: 125 | X6: Includes minor retail items
A7: ='Components and Space Standards'!A7:E7 -> Equipment issue storage | B7: ='Components and Space Standards'!B7:F7 -> 16.2575 | C7: ='Components and Space Standards'!C7:G7 -> 175 | D7: ='Components and Space Standards'!D7:G7 -> Storage Module(s) | E7: ='Components and Space Standards'!E7:H7 -> Equipment storage at/behind gear issue | F7: 1 | G7: =$B7*F7 -> 16.2575 | H7: =F7*$C7 -> 175 | I7: 2 | J7: =$B7*I7 -> 32.515 | K7: =I7*$C7 -> 350 | L7: 3 | M7: =$B7*L7 -> 48.7725 | N7: =L7*$C7 -> 525 | O7: 4 | P7: =$B7*O7 -> 65.03 | Q7: =O7*$C7 -> 700 | R7: 5 | S7: =$B7*R7 -> 81.2875 | T7: =R7*$C7 -> 875 | U7: 1 | V7: 16.2575 | W7: 175 | X7: 2 units min. for Navy. Others get 1 unit in smallest
A8: ='Components and Space Standards'!A8:E8 -> Vending | B8: ='Components and Space Standards'!B8:F8 -> 1.858 | C8: ='Components and Space Standards'!C8:G8 -> 20 | D8: ='Components and Space Standards'!D8:G8 -> Vending Machine(s) | E8: ='Components and Space Standards'!E8:H8 -> per vending machine | F8: 2 | G8: =$B8*F8 -> 3.716 | H8: =F8*$C8 -> 40 | I8: 3 | J8: =$B8*I8 -> 5.574 | K8: =I8*$C8 -> 60 | L8: 4 | M8: =$B8*L8 -> 7.432 | N8: =L8*$C8 -> 80 | O8: 6 | P8: =$B8*O8 -> 11.148 | Q8: =O8*$C8 -> 120 | R8: 7 | S8: =$B8*R8 -> 13.006 | T8: =R8*$C8 -> 140 | U8: 1 | V8: 1.858 | W8: 20 | X8: 2 for small
A9: ='Components and Space Standards'!A9:E9 -> Waiting/Display | B9: ='Components and Space Standards'!B9:F9 -> 8.361 | C9: ='Components and Space Standards'!C9:G9 -> 90 | D9: ='Components and Space Standards'!D9:G9 -> Seating/Display Module(s) (for 4 ppl) | E9: ='Components and Space Standards'!E9:H9 -> Space for seating for 4 ppl and display area | F9: 1 | G9: =$B9*F9 -> 8.361 | H9: =F9*$C9 -> 90 | I9: 2 | J9: =$B9*I9 -> 16.722 | K9: =I9*$C9 -> 180 | L9: 4 | M9: =$B9*L9 -> 33.444 | N9: =L9*$C9 -> 360 | O9: 6 | P9: =$B9*O9 -> 50.166 | Q9: =O9*$C9 -> 540 | R9: 7 | S9: =$B9*R9 -> 58.527 | T9: =R9*$C9 -> 630 | U9: 1 | V9: 8.361 | W9: 90 | X9: Waiting area adjacent to lobby and in front of control. Grows in units of 90
A10: ='Components and Space Standards'!A10:E10 -> Spectator peak-time circulation | B10: ='Components and Space Standards'!B10:F10 -> 27.87 | C10: ='Components and Space Standards'!C10:G10 -> 300 | D10: ='Components and Space Standards'!D10:G10 -> Circulation Module(s) | E10: ='Components and Space Standards'!E10:H10 -> Per one-side bleachers - driven by gym size | U10: 0 | V10: 0 | W10: 0 | X10: Optional, 300 sf for 1 set bleachers, Additional circulation space for peak gym loads
A11: ='Components and Space Standards'!A11:E11 -> Public restrooms/phones | B11: ='Components and Space Standards'!B11:F11 -> 0 | C11: ='Components and Space Standards'!C11:G11 -> 0 | D11: ='Components and Space Standards'!D11:G11 -> Public Restroom(s) | E11: ='Components and Space Standards'!E11:H11 -> Option - Driven by gym size | X11: 1 (uni), 1/1, ?/?, 4/6 (limit option to those below the facility size) Largest gym size drives largest bathroom. AF limited to top three options.
A12: ='Components and Space Standards'!A12:E12 -> Gymnasium
A13: ='Components and Space Standards'!A13:E13 -> Basketball/volleyball Court | B13: ='Components and Space Standards'!B13:F13 -> 826.0668 | C13: ='Components and Space Standards'!C13:G13 -> 8892 | D13: ='Components and Space Standards'!D13:G13 -> One-court/200-seat Module(s) | E13: ='Components and Space Standards'!E13:H13 -> NCAA Court + 10' safety + 200 seats (one side) | F13: 1 | G13: =$B13*F13 -> 826.0668 | H13: =F13*$C13 -> 8892 | J13: =$B13*I13 -> 0 | K13: =I13*$C13 -> 0 | L13: 1 | M13: =$B13*L13 -> 826.0668 | N13: =L13*$C13 -> 8892 | P13: =$B13*O13 -> 0 | Q13: =O13*$C13 -> 0 | R13: 1 | S13: =$B13*R13 -> 826.0668 | T13: =R13*$C13 -> 8892 | U13: 1 | V13: =$B13*U13 -> 826.0668 | W13: =U13*$C13 -> 8892 | X13: Need both elements if indoor track is required.
A14: ='Components and Space Standards'!A14:E14 -> Two Court Module | B14: ='Components and Space Standards'!B14:F14 -> 1630.9524 | C14: ='Components and Space Standards'!C14:G14 -> 17556 | D14: ='Components and Space Standards'!D14:G14 -> Two-court/200-seat Module(s) | E14: ='Components and Space Standards'!E14:H14 -> Two courts + 10' safety, 16' between cts, + 200 seats | G14: 0 | H14: 0 | J14: 0 | K14: 0 | M14: 0 | N14: 0 | O14: 1 | P14: 1630.9524 | Q14: 17556 | R14: 1 | S14: 1630.9524 | T14: 17556 | V14: 0 | W14: 0
A15: ='Components and Space Standards'!A15:E15 -> Arena-style Two-Court Module | B15: ='Components and Space Standards'!B15:F15 -> 1708.6168 | C15: ='Components and Space Standards'!C15:G15 -> 18392 | D15: ='Components and Space Standards'!D15:G15 -> Arena-style Two-Court Module(s) | E15: ='Components and Space Standards'!E15:H15 -> Provides space for arena-style seating for center, longitudinal ct. | G15: 0 | H15: 0 | I15: 1 | J15: 1708.6168 | K15: 18392 | L15: 1 | M15: 1708.6168 | N15: 18392 | O15: 1 | P15: 1708.6168 | Q15: 18392 | R15: 1 | S15: 1708.6168 | T15: 18392 | V15: 0 | W15: 0
A16: ='Components and Space Standards'!A16:E16 -> Additional Spectator seating | B16: ='Components and Space Standards'!B16:F16 -> 84.70622 | C16: ='Components and Space Standards'!C16:G16 -> 911.8 | D16: ='Components and Space Standards'!D16:G16 -> Additional 200-seat Module(s) | E16: ='Components and Space Standards'!E16:H16 -> Four rows of seats (one ea. side) = 200 ppl. | F16: 1 | G16: 84.70622 | H16: 911.8 | J16: 0 | K16: 0 | M16: 0 | N16: 0 | P16: 0 | Q16: 0 | S16: 0 | T16: 0 | V16: 0 | W16: 0
A17: ='Components and Space Standards'!A17:E17 -> Basic storage/support | B17: ='Components and Space Standards'!B17:F17 -> 65.03 | C17: ='Components and Space Standards'!C17:G17 -> 700 | D17: ='Components and Space Standards'!D17:G17 -> Storage Module(s) | E17: ='Components and Space Standards'!E17:H17 -> Roughly 8% of base gym area | F17: 1 | G17: 65.03 | H17: 700 | I17: 1 | J17: 65.03 | K17: 700 | L17: 1 | M17: 65.03 | N17: 700 | O17: 1 | P17: 65.03 | Q17: 700 | R17: 1 | S17: 65.03 | T17: 700 | V17: 0 | W17: 0
A18: ='Components and Space Standards'!A18:E18 -> Additional court storage | B18: ='Components and Space Standards'!B18:F18 -> 32.515 | C18: ='Components and Space Standards'!C18:G18 -> 350 | D18: ='Components and Space Standards'!D18:G18 -> Additional storage module(s) | E18: ='Components and Space Standards'!E18:H18 -> Storage space per additional court | G18: 0 | H18: 0 | I18: 1 | J18: 32.515 | K18: 350 | L18: 2 | M18: 65.03 | N18: 700 | O18: 2 | P18: 65.03 | Q18: 700 | R18: 3 | S18: 97.545 | T18: 1050 | U18: 1 | V18: 32.515 | W18: 350
A19: ='Components and Space Standards'!A19:E19 -> Unit PT/Group Exercise
A20: ='Components and Space Standards'!A20:E20 -> Partitionable Room(s) | B20: ='Components and Space Standards'!B20:F20 -> 4.645 | C20: ='Components and Space Standards'!C20:G20 -> 50 | D20: ='Components and Space Standards'!D20:G20 -> people at 4.6 m2 (50 ft.2)/person | E20: ='Components and Space Standards'!E20:H20 -> 116.1 m2 (1,250 ft.2) (25 ppl) minimum size | F20: 44 | G20: =$B20*F20 -> 204.38 | H20: =F20*$C20 -> 2200 | I20: 58 | J20: =$B20*I20 -> 269.41 | K20: =I20*$C20 -> 2900 | L20: 91 | M20: =$B20*L20 -> 422.695 | N20: =L20*$C20 -> 4550 | O20: 140 | P20: =$B20*O20 -> 650.3 | Q20: =O20*$C20 -> 7000 | R20: 210 | S20: =$B20*R20 -> 975.45 | T20: =R20*$C20 -> 10500 | U20: 70 | V20: =$B20*U20 -> 325.15 | W20: =U20*$C20 -> 3500 | X20: 1250 = min. Navy, AF, MC / 2500 = min Army
A21: ='Components and Space Standards'!A21:E21 -> Storage/support | B21: ='Components and Space Standards'!B21:F21 -> 0.4645 | C21: ='Components and Space Standards'!C21:G21 -> 5 | D21: ='Components and Space Standards'!D21:G21 -> 10% of partitionable room area | E21: ='Components and Space Standards'!E21:H21 -> 11.6 m2 (125 ft.2) minimum (10% of room area) | F21: 44 | G21: =$B21*F21 -> 20.438 | H21: =F21*$C21 -> 220 | I21: 58 | J21: =$B21*I21 -> 26.941 | K21: =I21*$C21 -> 290 | L21: 91 | M21: =$B21*L21 -> 42.2695 | N21: =L21*$C21 -> 455 | O21: 140 | P21: =$B21*O21 -> 65.03 | Q21: =O21*$C21 -> 700 | R21: 210 | S21: =$B21*R21 -> 97.545 | T21: =R21*$C21 -> 1050 | U21: 70 | V21: =$B21*U21 -> 32.515 | W21: =U21*$C21 -> 350
A22: ='Components and Space Standards'!A22:E22 -> Fitness Spaces
A23: ='Components and Space Standards'!A23:E23 -> Stretching | B23: ='Components and Space Standards'!B23:F23 -> 4.645 | C23: ='Components and Space Standards'!C23:G23 -> 50 | D23: ='Components and Space Standards'!D23:G23 -> people at 4.6 m2 (50 ft.2)/person | E23: ='Components and Space Standards'!E23:H23 -> 50 sf per person - min. 2 ppl | F23: 2 | G23: =$B23*F23 -> 9.29 | H23: =F23*$C23 -> 100 | I23: 3 | J23: =$B23*I23 -> 13.935 | K23: =I23*$C23 -> 150 | L23: 4 | M23: =$B23*L23 -> 18.58 | N23: =L23*$C23 -> 200 | O23: 5 | P23: =$B23*O23 -> 23.225 | Q23: =O23*$C23 -> 250 | R23: 6 | S23: =$B23*R23 -> 27.87 | T23: =R23*$C23 -> 300 | U23: 1 | V23: =$B23*U23 -> 4.645 | W23: =U23*$C23 -> 50 | X23: See Fitness Space sheet and exist. docs for these numbers
A24: ='Components and Space Standards'!A24:E24 -> Cardiovascular Equipment | B24: ='Components and Space Standards'!B24:F24 -> 4.645 | C24: ='Components and Space Standards'!C24:G24 -> 50 | D24: ='Components and Space Standards'!D24:G24 -> items at 4.6 m2 (50 ft.2)/item | E24: ='Components and Space Standards'!E24:H24 -> 50 sf per station | F24: 11 | G24: 51.095 | H24: 550 | I24: 27 | J24: 125.415 | K24: 1350 | L24: 51 | M24: 236.895 | N24: 2550 | O24: 80 | P24: 371.6 | Q24: 4000 | R24: 120 | S24: 557.4 | T24: 6000 | U24: 40 | V24: 185.8 | W24: 2000
A25: ='Components and Space Standards'!A25:E25 -> Selectorized (machine) weights | B25: ='Components and Space Standards'!B25:F25 -> 4.645 | C25: ='Components and Space Standards'!C25:G25 -> 50 | D25: ='Components and Space Standards'!D25:G25 -> items at 4.6 m2 (50 ft.2)/item | E25: ='Components and Space Standards'!E25:H25 -> 50 sf per station | F25: 16 | G25: 74.32 | H25: 800 | I25: 27 | J25: 125.415 | K25: 1350 | L25: 33 | M25: 153.285 | N25: 1650 | O25: 46 | P25: 213.67 | Q25: 2300 | R25: 66 | S25: 306.57 | T25: 3300 | U25: 20 | V25: 92.9 | W25: 1000
A26: ='Components and Space Standards'!A26:E26 -> Free/Plate-loaded weights | B26: ='Components and Space Standards'!B26:F26 -> 6.0385 | C26: ='Components and Space Standards'!C26:G26 -> 65 | D26: ='Components and Space Standards'!D26:G26 -> stations at 6.0 m2 (65 ft.2)/stations | E26: ='Components and Space Standards'!E26:H26 -> 65 sf per station | F26: 15 | G26: 90.5775 | H26: 975 | I26: 29 | J26: 175.1165 | K26: 1885 | L26: 47 | M26: 283.8095 | N26: 3055 | O26: 80 | P26: 483.08 | Q26: 5200 | R26: 123 | S26: 742.7355 | T26: 7995 | U26: 43 | V26: 259.6555 | W26: 2795
A27: ='Components and Space Standards'!A27:E27 -> Finess Program Manager's Office | B27: ='Components and Space Standards'!B27:F27 -> 11.6125 | C27: ='Components and Space Standards'!C27:G27 -> 125 | D27: ='Components and Space Standards'!D27:G27 -> Office | E27: ='Components and Space Standards'!E27:H27 -> Private office that may include fitness testing equipment | F27: 1 | G27: 11.6125 | H27: 125 | I27: 1 | J27: 11.6125 | K27: 125 | L27: 1 | M27: 11.6125 | N27: 125 | O27: 1 | P27: 11.6125 | Q27: 125 | R27: 2 | S27: 23.225 | T27: 250 | U27: 0.5 | V27: 5.80625 | W27: 62.5
A28: ='Components and Space Standards'!A28:E28 -> Fitness Assessment Room | B28: ='Components and Space Standards'!B28:F28 -> 11.6125 | C28: ='Components and Space Standards'!C28:G28 -> 125 | D28: ='Components and Space Standards'!D28:G28 -> Office(s) | E28: ='Components and Space Standards'!E28:H28 -> 1 piece fitness equip for testing, computer desk, chairs, stretching | G28: 0 | H28: 0 | I28: 1 | J28: 11.6125 | K28: 125 | L28: 2 | M28: 23.225 | N28: 250 | O28: 3 | P28: 34.8375 | Q28: 375 | R28: 3 | S28: 34.8375 | T28: 375 | U28: 0.5 | V28: 5.80625 | W28: 62.5
A29: ='Components and Space Standards'!A29:E29 -> Structured Activities
A30: ='Components and Space Standards'!A30:E30 -> Structured Activity Space | B30: ='Components and Space Standards'!B30:F30 -> 74.32 | C30: ='Components and Space Standards'!C30:G30 -> 800 | D30: ='Components and Space Standards'!D30:G30 -> Flexible space Module(s) | E30: ='Components and Space Standards'!E30:H30 -> Based on size of a single racquetball court | F30: 1.5 | G30: =$B30*F30 -> 111.48 | H30: =F30*$C30 -> 1200 | I30: 1.5 | J30: =$B30*I30 -> 111.48 | K30: =I30*$C30 -> 1200 | L30: 3 | M30: =$B30*L30 -> 222.96 | N30: =L30*$C30 -> 2400 | O30: 3 | P30: =$B30*O30 -> 222.96 | Q30: =O30*$C30 -> 2400 | R30: 4.5 | S30: =$B30*R30 -> 334.44 | T30: =R30*$C30 -> 3600 | U30: 1.5 | V30: =$B30*U30 -> 111.48 | W30: =U30*$C30 -> 1200 | X30: equip. based
A31: ='Components and Space Standards'!A31:E31 -> Racquetball Courts | B31: ='Components and Space Standards'!B31:F31 -> 74.32 | C31: ='Components and Space Standards'!C31:G31 -> 800 | D31: ='Components and Space Standards'!D31:G31 -> Racquetball Court(s) | E31: ='Components and Space Standards'!E31:H31 -> Single court size. Minimum of two courts | F31: 1 | G31: =$B31*F31 -> 74.32 | H31: =F31*$C31 -> 800 | I31: 1 | J31: =$B31*I31 -> 74.32 | K31: =I31*$C31 -> 800 | L31: 1 | M31: =$B31*L31 -> 74.32 | N31: =L31*$C31 -> 800 | O31: 2 | P31: =$B31*O31 -> 148.64 | Q31: =O31*$C31 -> 1600 | R31: 3 | S31: =$B31*R31 -> 222.96 | T31: =R31*$C31 -> 2400 | U31: 1 | V31: =$B31*U31 -> 74.32 | W31: =U31*$C31 -> 800
A32: ='Components and Space Standards'!A34:E34 -> Spectator/officiating (MC Option) | B32: ='Components and Space Standards'!B34:F34 -> 18.58 | C32: ='Components and Space Standards'!C34:G34 -> 200 | D32: ='Components and Space Standards'!D34:G34 -> Spectator/officiating Module(s) | E32: ='Components and Space Standards'!E34:H34 -> Two rows of 10 seats for one ct. Max of two cts (400 sf) | F32: 0 | G32: =$B32*F32 -> 0 | H32: =F32*$C32 -> 0 | I32: 0 | J32: =$B32*I32 -> 0 | K32: =I32*$C32 -> 0 | L32: 2 | M32: =$B32*L32 -> 37.16 | N32: =L32*$C32 -> 400 | O32: 2 | P32: =$B32*O32 -> 37.16 | Q32: =O32*$C32 -> 400 | R32: 2 | S32: =$B32*R32 -> 37.16 | T32: =R32*$C32 -> 400 | U32: 0 | V32: =$B32*U32 -> 0 | W32: =U32*$C32 -> 0
A33: ='Components and Space Standards'!A35:E35 -> Structured activity storage | B33: ='Components and Space Standards'!B35:F35 -> 7.432 | C33: ='Components and Space Standards'!C35:G35 -> 80 | D33: ='Components and Space Standards'!D35:G35 -> 10% of Structured Activity Space | E33: ='Components and Space Standards'!E35:H35 -> Based on Structured activity space (10% of room area)
A34: ='Components and Space Standards'!A36:E36 -> Locker Rooms | X34: Apply male/female split on occupant load, then calculate individual male and female locker areas from the split number.
A35: ='Components and Space Standards'!A37:E37 -> Men's Locker Room | B35: ='Components and Space Standards'!B37:F37 -> 0 | C35: ='Components and Space Standards'!C37:G37 -> 0 | D35: ='Components and Space Standards'!D37:G37 -> 0 | E35: ='Components and Space Standards'!E37:H37 -> 0 | G35: =$B35*F35 -> 0 | H35: =F35*$C35 -> 0 | J35: =$B35*I35 -> 0 | K35: =I35*$C35 -> 0 | M35: =$B35*L35 -> 0 | N35: =L35*$C35 -> 0 | P35: =$B35*O35 -> 0 | Q35: =O35*$C35 -> 0 | S35: =$B35*R35 -> 0 | T35: =R35*$C35 -> 0 | V35: =$B35*U35 -> 0 | W35: =U35*$C35 -> 0
A36: ='Components and Space Standards'!A38:E38 -> Locker/changing area | B36: ='Components and Space Standards'!B38:F38 -> 0.7432 | C36: ='Components and Space Standards'!C38:G38 -> 8 | D36: ='Components and Space Standards'!D38:G38 -> Lockers | E36: ='Components and Space Standards'!E38:H38 -> Per slot (2 double lockers or 1 single locker) | G36: 0 | H36: 0 | J36: 0 | K36: 0 | M36: 0 | N36: 0 | P36: 0 | Q36: 0 | S36: 0 | T36: 0 | V36: 0 | W36: 0 | X36: Ratios: 1 to 1 (all full), 66% (1 full per 2 dbls - or 3 ppl / 2 slots), 50% (all double lockers) - Environmental adjust factor -----
A37: ='Components and Space Standards'!A39:E39 -> Shower/drying area | B37: ='Components and Space Standards'!B39:F39 -> 2.787 | C37: ='Components and Space Standards'!C39:G39 -> 30 | D37: ='Components and Space Standards'!D39:G39 -> Showers | E37: ='Components and Space Standards'!E39:H39 -> Per shower & integral drying area at 22 lockers/shower | G37: 0 | H37: 0 | J37: 0 | K37: 0 | M37: 0 | N37: 0 | P37: 0 | Q37: 0 | S37: 0 | T37: 0 | V37: 0 | W37: 0
A38: ='Components and Space Standards'!A40:E40 -> Toilet area | B38: ='Components and Space Standards'!B40:F40 -> 4.1805 | C38: ='Components and Space Standards'!C40:G40 -> 45 | D38: ='Components and Space Standards'!D40:G40 -> Water closets/lavatory modules | E38: ='Components and Space Standards'!E40:H40 -> Per wc and lav. at 30 lockers per wc/lav | G38: 0 | H38: 0 | J38: 0 | K38: 0 | M38: 0 | N38: 0 | P38: 0 | Q38: 0 | S38: 0 | T38: 0 | V38: 0 | W38: 0 | X38: Will confirm that 30 lockers per wc/lav is the correct formula
A39: ='Components and Space Standards'!A41:E41 -> Women's Locker Room | B39: ='Components and Space Standards'!B41:F41 -> 0 | C39: ='Components and Space Standards'!C41:G41 -> 0 | D39: ='Components and Space Standards'!D41:G41 -> 0 | E39: ='Components and Space Standards'!E41:H41 -> 0 | G39: 0 | H39: 0 | J39: 0 | K39: 0 | M39: 0 | N39: 0 | P39: 0 | Q39: 0 | S39: 0 | T39: 0 | V39: 0 | W39: 0
A40: ='Components and Space Standards'!A42:E42 -> Locker/changing area | B40: ='Components and Space Standards'!B42:F42 -> 0.7432 | C40: ='Components and Space Standards'!C42:G42 -> 8 | D40: ='Components and Space Standards'!D42:G42 -> Lockers | E40: ='Components and Space Standards'!E42:H42 -> Per slot (2 double lockers or 1 single locker) | G40: 0 | H40: 0 | J40: 0 | K40: 0 | M40: 0 | N40: 0 | P40: 0 | Q40: 0 | S40: 0 | T40: 0 | V40: 0 | W40: 0
A41: ='Components and Space Standards'!A43:E43 -> Shower/drying area | B41: ='Components and Space Standards'!B43:F43 -> 2.787 | C41: ='Components and Space Standards'!C43:G43 -> 30 | D41: ='Components and Space Standards'!D43:G43 -> Showers | E41: ='Components and Space Standards'!E43:H43 -> Per shower & integral drying area at 22 lockers/shower | G41: 0 | H41: 0 | J41: 0 | K41: 0 | M41: 0 | N41: 0 | P41: 0 | Q41: 0 | S41: 0 | T41: 0 | V41: 0 | W41: 0
A42: ='Components and Space Standards'!A44:E44 -> Toilet area | B42: ='Components and Space Standards'!B44:F44 -> 4.1805 | C42: ='Components and Space Standards'!C44:G44 -> 45 | D42: ='Components and Space Standards'!D44:G44 -> Water closets/lavatory modules | E42: ='Components and Space Standards'!E44:H44 -> per wc and lav. at 20 lockers per wc/lav | G42: 0 | H42: 0 | J42: 0 | K42: 0 | M42: 0 | N42: 0 | P42: 0 | Q42: 0 | S42: 0 | T42: 0 | V42: 0 | W42: 0 | X42: Will confirm that 20 lockers per wc/lav is the correct formula
A43: ='Components and Space Standards'!A45:E45 -> Sauna, cool-down area | B43: ='Components and Space Standards'!B45:F45 -> 0 | C43: ='Components and Space Standards'!C45:G45 -> 0 | D43: ='Components and Space Standards'!D45:G45 -> M/F (2) Saunas/cool-down area | E43: ='Components and Space Standards'!E45:H45 -> small = 6 ppl, med = 8-9, lg = 12 ppl (+ cool down space) | F43: Small | I43: Small | L43: Medium | O43: Large | R43: Large | U43: Small
A44: ='Components and Space Standards'!A46:E46 -> Steam Room, cool-down area | B44: ='Components and Space Standards'!B46:F46 -> 0 | C44: ='Components and Space Standards'!C46:G46 -> 0 | D44: ='Components and Space Standards'!D46:G46 -> M/F (2) Steam Rooms/cool-down area | E44: ='Components and Space Standards'!E46:H46 -> small = 6-7 ppl, med = 8-9, lg = 12-14 (+ cool down space) | U44: 0
A45: ='Components and Space Standards'!A47:E47 -> Hot Tub | B45: ='Components and Space Standards'!B47:F47 -> 0 | C45: ='Components and Space Standards'!C47:G47 -> 0 | D45: ='Components and Space Standards'!D47:G47 -> Unisex Hot Tub | E45: ='Components and Space Standards'!E47:H47 -> small = 5 ppl, med = 8, lg = 12-14 ppl | U45: 0
A46: ='Components and Space Standards'!A48:E48 -> Support Areas
A47: ='Components and Space Standards'!A49:E49 -> Laundry | B47: ='Components and Space Standards'!B49:F49 -> 18.58 | C47: ='Components and Space Standards'!C49:G49 -> 200 | D47: ='Components and Space Standards'!D49:G49 -> Laundry Room | E47: ='Components and Space Standards'!E49:H49 -> Per one-washer/two-dryer room | F47: 1/2 machine combo | I47: 1/2 machine combo | L47: 2/4 machine combo | O47: 3/6 machine combo | R47: 4/8 machine combo | U47: 1/1 | X47: One washer, two dryers, commercial equip, folding table, sink, storage shelves, laundry carts, and opt. ice machine.
A48: ='Components and Space Standards'!A50:E50 -> Equipment repair and receiving | B48: ='Components and Space Standards'!B50:F50 -> 0 | C48: ='Components and Space Standards'!C50 -> 0 | D48: ='Components and Space Standards'!D50:G50 -> Repair/receiving Room | E48: ='Components and Space Standards'!E50:H50 -> Fixed receiving area + variable repair (10% of Fitness) | U48: 1 | X48: 10% of total Fitness (Army) / 250 sf (AF)
A49: ='Components and Space Standards'!A51:E51 -> Storage | B49: ='Components and Space Standards'!B51:F51 -> 0 | C49: ='Components and Space Standards'!C51 -> 0 | D49: ='Components and Space Standards'!D51:G51 -> Storage Room | E49: ='Components and Space Standards'!E51:H51 -> Variable lockable storage room (5% of fitness)
A50: ='Components and Space Standards'!A52:E52 -> Additional Programmatic Storage | B50: ='Components and Space Standards'!B52:F52 -> 0 | C50: ='Components and Space Standards'!C52 -> 0 | D50: ='Components and Space Standards'!D52:G52 -> sf Additional Storage | E50: ='Components and Space Standards'!E52:H52 -> To be filled-in by programmer and justified based on item stored. | H50: 100 | K50: 200 | N50: 300 | Q50: 400 | T50: 500 | W50: 100
A51: ='Components and Space Standards'!A54:E54 -> Health Promotion Spaces - Marine Corps Only (Required or Optional) | B51: ='Components and Space Standards'!B54:F54 -> 0 | C51: ='Components and Space Standards'!C54:G54 -> 0 | E51: ='Components and Space Standards'!E54:H54 -> 0
A52: ='Components and Space Standards'!A55:E55 -> Lobby/Reception | B52: ='Components and Space Standards'!B55:F55 -> 27.87 | C52: ='Components and Space Standards'!C55:G55 -> 300 | D52: ='Components and Space Standards'!D55:G55 -> Lobby/Reception Module(s) | E52: ='Components and Space Standards'!E55:H55 -> per area | F52: 0 | G52: =$B52*F52 -> 0 | H52: =F52*$C52 -> 0 | I52: 0 | J52: =$B52*I52 -> 0 | K52: =I52*$C52 -> 0 | L52: 0 | M52: =$B52*L52 -> 0 | N52: =L52*$C52 -> 0 | O52: 0 | P52: =$B52*O52 -> 0 | Q52: =O52*$C52 -> 0 | R52: 0 | S52: =$B52*R52 -> 0 | T52: =R52*$C52 -> 0 | U52: 0 | V52: =$B52*U52 -> 0 | W52: =U52*$C52 -> 0 | X52: From AF
A53: ='Components and Space Standards'!A56:E56 -> Director's Office | B53: ='Components and Space Standards'!B56:F56 -> 11.148 | C53: ='Components and Space Standards'!C56:G56 -> 120 | D53: ='Components and Space Standards'!D56:G56 -> Office | E53: ='Components and Space Standards'!E56:H56 -> per office | F53: 0 | G53: 0 | H53: 0 | I53: 0 | J53: 0 | K53: 0 | L53: 0 | M53: 0 | N53: 0 | O53: 0 | P53: 0 | Q53: 0 | R53: 0 | S53: 0 | T53: 0 | U53: 0 | V53: 0 | W53: 0 | X53: AF office area = 400 sf total
A54: ='Components and Space Standards'!A57:E57 -> Program Managers' Offices | B54: ='Components and Space Standards'!B57:F57 -> 9.29 | C54: ='Components and Space Standards'!C57:G57 -> 100 | D54: ='Components and Space Standards'!D57:G57 -> Office(s) | E54: ='Components and Space Standards'!E57:H57 -> per office | F54: 0 | G54: 0 | H54: 0 | I54: 0 | J54: 0 | K54: 0 | L54: 0 | M54: 0 | N54: 0 | O54: 0 | P54: 0 | Q54: 0 | R54: 0 | S54: 0 | T54: 0 | U54: 0 | V54: 0 | W54: 0
A55: ='Components and Space Standards'!A58:E58 -> Support Staff Workstations | B55: ='Components and Space Standards'!B58:F58 -> 5.9456 | C55: ='Components and Space Standards'!C58:G58 -> 64 | D55: ='Components and Space Standards'!D58:G58 -> Workstation(s) | E55: ='Components and Space Standards'!E58:H58 -> per workstation | F55: 0 | G55: 0 | H55: 0 | I55: 0 | J55: 0 | K55: 0 | L55: 0 | M55: 0 | N55: 0 | O55: 0 | P55: 0 | Q55: 0 | R55: 0 | S55: 0 | T55: 0 | U55: 0 | V55: 0 | W55: 0
A56: ='Components and Space Standards'!A59:E59 -> Classrooms/Training rooms | B56: ='Components and Space Standards'!B59:F59 -> 58.527 | C56: ='Components and Space Standards'!C59:G59 -> 630 | D56: ='Components and Space Standards'!D59:G59 -> Classroom/Training Module(s) | E56: ='Components and Space Standards'!E59:H59 -> per room | F56: 0 | G56: 0 | H56: 0 | I56: 0 | J56: 0 | K56: 0 | L56: 0 | M56: 0 | N56: 0 | O56: 0 | P56: 0 | Q56: 0 | R56: 0 | S56: 0 | T56: 0 | U56: 0 | V56: 0 | W56: 0 | X56: From AF
A57: ='Components and Space Standards'!A60:E60 -> Resource Room/Computer Lab | B57: ='Components and Space Standards'!B60:F60 -> 23.225 | C57: ='Components and Space Standards'!C60:G60 -> 250 | D57: ='Components and Space Standards'!D60:G60 -> Resource/Computer Lab Module(s) | E57: ='Components and Space Standards'!E60:H60 -> per room | F57: 0 | G57: 0 | H57: 0 | I57: 0 | J57: 0 | K57: 0 | L57: 0 | M57: 0 | N57: 0 | O57: 0 | P57: 0 | Q57: 0 | R57: 0 | S57: 0 | T57: 0 | U57: 0 | V57: 0 | W57: 0 | X57: From AF - combines comp lab with resource library
A58: ='Components and Space Standards'!A61:E61 -> Storage/support | B58: ='Components and Space Standards'!B61:F61 -> 7.432 | C58: ='Components and Space Standards'!C61:G61 -> 80 | D58: ='Components and Space Standards'!D61:G61 -> Storage/support Module(s) | E58: ='Components and Space Standards'!E61:H61 -> per area | F58: 0 | G58: 0 | H58: 0 | I58: 0 | J58: 0 | K58: 0 | L58: 0 | M58: 0 | N58: 0 | O58: 0 | P58: 0 | Q58: 0 | R58: 0 | S58: 0 | T58: 0 | U58: 0 | V58: 0 | W58: 0
A59: ='Components and Space Standards'!A63:E63 -> Ergometry and Fitness Testing * | B59: ='Components and Space Standards'!B63:F63 -> 7.432 | C59: ='Components and Space Standards'!C63:G63 -> 80 | D59: ='Components and Space Standards'!D63:G63 -> Testing Cubicle(s) | E59: ='Components and Space Standards'!E63:H63 -> per testing cubicles | F59: 0 | G59: 0 | H59: 0 | I59: 0 | J59: 0 | K59: 0 | L59: 0 | M59: 0 | N59: 0 | O59: 0 | P59: 0 | Q59: 0 | R59: 0 | S59: 0 | T59: 0 | U59: 0 | V59: 0 | W59: 0 | X59: From AF - cubicles go in an enclosed room (need circulation beteen cubicles--doesn't seem to be accounted for in AF criteria?)
A60: ='Components and Space Standards'!A64:E64 -> Wellness Assessment * | B60: ='Components and Space Standards'!B64:F64 -> 13.935 | C60: ='Components and Space Standards'!C64:G64 -> 150 | D60: ='Components and Space Standards'!D64:G64 -> Assessment Room(s) | E60: ='Components and Space Standards'!E64:H64 -> per room | F60: 0 | G60: 0 | H60: 0 | I60: 0 | J60: 0 | K60: 0 | L60: 0 | M60: 0 | N60: 0 | O60: 0 | P60: 0 | Q60: 0 | R60: 0 | S60: 0 | T60: 0 | U60: 0 | V60: 0 | W60: 0 | X60: From AF
A61: ='Components and Space Standards'!A65:E65 -> Administrative Spaces (required or optional) | B61: ='Components and Space Standards'!B65:F65 -> 0 | C61: ='Components and Space Standards'!C65:G65 -> 0 | E61: ='Components and Space Standards'!E65:H65 -> 0
A62: ='Components and Space Standards'!A66:E66 -> Director's Office | B62: ='Components and Space Standards'!B66:F66 -> 11.148 | C62: ='Components and Space Standards'!C66:G66 -> 120 | D62: ='Components and Space Standards'!D66:G66 -> Office | E62: ='Components and Space Standards'!E66:H66 -> per office | F62: 1 | G62: =$B62*F62 -> 11.148 | H62: =F62*$C62 -> 120 | I62: 1 | J62: =$B62*I62 -> 11.148 | K62: =I62*$C62 -> 120 | L62: 1 | M62: =$B62*L62 -> 11.148 | N62: =L62*$C62 -> 120 | O62: 1 | P62: =$B62*O62 -> 11.148 | Q62: =O62*$C62 -> 120 | R62: 1 | S62: =$B62*R62 -> 11.148 | T62: =R62*$C62 -> 120 | V62: =$B62*U62 -> 0 | W62: =U62*$C62 -> 0 | X62: req.
A63: ='Components and Space Standards'!A67:E67 -> Program Managers' Offices | B63: ='Components and Space Standards'!B67:F67 -> 9.29 | C63: ='Components and Space Standards'!C67:G67 -> 100 | D63: ='Components and Space Standards'!D67:G67 -> Office(s) | E63: ='Components and Space Standards'!E67:H67 -> per office | F63: 0 | G63: 0 | H63: 0 | I63: 1 | J63: 9.29 | K63: 100 | L63: 1 | M63: 9.29 | N63: 100 | O63: 1 | P63: 9.29 | Q63: 100 | R63: 1 | S63: 9.29 | T63: 100 | V63: 0 | W63: 0 | X63: optional (req. AF)
A64: ='Components and Space Standards'!A68:E68 -> Support Staff Workstations | B64: ='Components and Space Standards'!B68:F68 -> 5.9456 | C64: ='Components and Space Standards'!C68:G68 -> 64 | D64: ='Components and Space Standards'!D68:G68 -> Workstation(s) | E64: ='Components and Space Standards'!E68:H68 -> per office | F64: 3 | G64: 17.8368 | H64: 192 | I64: 4 | J64: 23.7824 | K64: 256 | L64: 6 | M64: 35.6736 | N64: 384 | O64: 8 | P64: 47.5648 | Q64: 512 | R64: 9 | S64: 53.5104 | T64: 576 | U64: 1 | V64: 5.9456 | W64: 64 | X64: optional (req. AF)
A65: ='Components and Space Standards'!A69:E69 -> Copy/file/work/break Room | B65: ='Components and Space Standards'!B69:F69 -> 7.432 | C65: ='Components and Space Standards'!C69:G69 -> 80 | D65: ='Components and Space Standards'!D69:G69 -> Workroom Module(s) | E65: ='Components and Space Standards'!E69:H69 -> per room | F65: 2 | G65: 14.864 | H65: 160 | I65: 3 | J65: 22.296 | K65: 240 | L65: 2 | M65: 14.864 | N65: 160 | O65: 2 | P65: 14.864 | Q65: 160 | R65: 2 | S65: 14.864 | T65: 160 | V65: 0 | W65: 0 | X65: req.
A66: ='Components and Space Standards'!A70:E70 -> Classroom/Training Room | B66: ='Components and Space Standards'!B70:F70 -> 69.675 | C66: ='Components and Space Standards'!C70:G70 -> 750 | D66: ='Components and Space Standards'!D70:G70 -> 25-person Module at 750 SF | E66: ='Components and Space Standards'!E70:H70 -> 1,500 SF Med/Lge & 2,250 SF for Xtra Lge/Jumbo | F66: 0 | G66: 0 | H66: 0 | I66: 0 | J66: 0 | K66: 0 | L66: 1 | M66: 69.675 | N66: 750 | O66: 1 | P66: 69.675 | Q66: 750 | R66: 1 | S66: 69.675 | T66: 750 | V66: 0 | W66: 0 | X66: Req. Program space
A67: ='Components and Space Standards'!A71:E71 -> Classroom/Training Storage | B67: ='Components and Space Standards'!B71:F71 -> 5.574 | C67: ='Components and Space Standards'!C71:G71 -> 60 | D67: ='Components and Space Standards'!D71:G71 -> Storage Module(s) | E67: ='Components and Space Standards'!E71:H71 -> per 25-person Training Room | F67: 0 | G67: 0 | H67: 0 | I67: 0 | J67: 0 | K67: 0 | L67: 1 | M67: 5.574 | N67: 60 | O67: 1 | P67: 5.574 | Q67: 60 | R67: 1 | S67: 5.574 | T67: 60 | V67: 0 | W67: 0
A68: ='Components and Space Standards'!A72:E72 -> Optional or Service-specific Program Spaces | B68: ='Components and Space Standards'!B72:F72 -> 0 | C68: ='Components and Space Standards'!C72:G72 -> 0 | E68: ='Components and Space Standards'!E72:H72 -> 0
A69: ='Components and Space Standards'!A75:E75 -> Indoor Track
A70: ='Components and Space Standards'!A76:E76 -> Indoor Track
A71: ='Components and Space Standards'!A77:E77 -> 1/14th-mile Indoor Track | B71: ='Components and Space Standards'!B77:F77 -> 310.0073 | C71: ='Components and Space Standards'!C77:G77 -> 3337 | D71: ='Components and Space Standards'!D77:G77 -> 1/14th-mile, 2-lane Indoor Track | E71: ='Components and Space Standards'!E77:H77 -> 1/14th-mile, 2-lane Indoor Track (754 linear ft.) | F71: 1 | G71: =$B71*F71 -> 310.0073 | H71: =F71*$C71 -> 3337 | J71: =$B71*I71 -> 0 | K71: =I71*$C71 -> 0 | M71: =$B71*L71 -> 0 | N71: =L71*$C71 -> 0 | P71: =$B71*O71 -> 0 | Q71: =O71*$C71 -> 0 | S71: =$B71*R71 -> 0 | T71: =R71*$C71 -> 0 | V71: =$B71*U71 -> 0 | W71: =U71*$C71 -> 0 | X71: (smallest gym option, Army and Navy only)
A72: ='Components and Space Standards'!A78:E78 -> 1/12th-mile Indoor Track | B72: ='Components and Space Standards'!B78:F78 -> 523.027 | C72: ='Components and Space Standards'!C78:G78 -> 5630 | D72: ='Components and Space Standards'!D78:G78 -> 1/12th-mile, 3-lane Indoor Track | E72: ='Components and Space Standards'!E78:H78 -> 1/12th-mile, 3-lane Indoor Track (1284 linear ft.) | G72: 0 | H72: =F72*$C72 -> 0 | I72: 1 | J72: 523.027 | K72: =I72*$C72 -> 5630 | M72: 0 | N72: =L72*$C72 -> 0 | P72: 0 | Q72: =O72*$C72 -> 0 | S72: 0 | T72: =R72*$C72 -> 0 | V72: 0 | W72: =U72*$C72 -> 0
A73: ='Components and Space Standards'!A79:E79 -> 1/11th-mile Indoor Track | B73: ='Components and Space Standards'!B79:F79 -> 556.7497 | C73: ='Components and Space Standards'!C79:G79 -> 5993 | D73: ='Components and Space Standards'!D79:G79 -> 1/11th-mile, 3-lane Indoor Track | E73: ='Components and Space Standards'!E79:H79 -> 1/11th-mile, 3-lane Indoor Track (1440 linear ft.) | G73: 0 | H73: 0 | J73: 0 | K73: 0 | L73: 1 | M73: 556.7497 | N73: 5993 | O73: 1 | P73: 556.7497 | Q73: 5993 | R73: 1 | S73: 556.7497 | T73: 5993 | V73: 0 | W73: 0
A74: ='Components and Space Standards'!A80:E80 -> 1/8th-mile Indoor Track | B74: ='Components and Space Standards'!B80:F80 -> 989.1063 | C74: ='Components and Space Standards'!C80:G80 -> 10647 | D74: ='Components and Space Standards'!D80:G80 -> 1/8th-mile, 4-lane Indoor Track | E74: ='Components and Space Standards'!E80:H80 -> 1/8th-mile, 4-lane Indoor Track (2640 linear ft.) | G74: 0 | H74: 0 | J74: 0 | K74: 0 | M74: 0 | N74: 0 | P74: 0 | Q74: 0 | S74: 0 | T74: 0 | V74: 0 | W74: 0
A75: ='Components and Space Standards'!A81:E81 -> Indoor track lobby | B75: ='Components and Space Standards'!B81:F81 -> 13.3776 | C75: ='Components and Space Standards'!C81:G81 -> 144 | D75: ='Components and Space Standards'!D81:G81 -> Indoor track lobby(ies) | E75: ='Components and Space Standards'!E81:H81 -> Access point to lobby from stair/elevator | F75: 1 | G75: 13.3776 | H75: 144 | I75: 1.5 | J75: 20.0664 | K75: 216 | L75: 1.5 | M75: 20.0664 | N75: 216 | O75: 1.5 | P75: 20.0664 | Q75: 216 | R75: 1.5 | S75: 20.0664 | T75: 216 | V75: 0 | W75: 0
A76: ='Components and Space Standards'!A82:E82 -> Additional Group Exercise Room | B76: ='Components and Space Standards'!B82:F82 -> 116.125 | C76: ='Components and Space Standards'!C82:G82 -> 1250 | D76: ='Components and Space Standards'!D82:G82 -> Additional Group Exercise Room | E76: ='Components and Space Standards'!E82:H82 -> per room | G76: 0 | H76: 0 | J76: 0 | K76: 0 | M76: 0 | N76: 0 | P76: 0 | Q76: 0 | S76: 0 | T76: 0 | V76: 0 | W76: 0 | X76: Optional catch-up space
A77: ='Components and Space Standards'!A83:E83 -> Massage Room | B77: ='Components and Space Standards'!B83:F83 -> 11.148 | C77: ='Components and Space Standards'!C83:G83 -> 120 | D77: ='Components and Space Standards'!D83:G83 -> Massage Room(s) | E77: ='Components and Space Standards'!E83:H83 -> per room | G77: 0 | H77: 0 | J77: 0 | K77: 0 | M77: 0 | N77: 0 | P77: 0 | Q77: 0 | S77: 0 | T77: 0 | V77: 0 | W77: 0
A78: ='Components and Space Standards'!A84:E84 -> Physical Therapy Training | B78: ='Components and Space Standards'!B84:F84 -> 11.6125 | C78: ='Components and Space Standards'!C84:G84 -> 125 | D78: ='Components and Space Standards'!D84:G84 -> Physical Therapy Training Room(s) | E78: ='Components and Space Standards'!E84:H84 -> per room | G78: 0 | H78: 0 | J78: 0 | K78: 0 | M78: 0 | N78: 0 | P78: 0 | Q78: 0 | S78: 0 | T78: 0 | V78: 0 | W78: 0 | X78: similar to fitness assement
A79: ='Components and Space Standards'!A85:E85 -> Expanded Retail 1 | B79: ='Components and Space Standards'!B85:F85 -> 9.29 | C79: ='Components and Space Standards'!C85:G85 -> 100 | D79: ='Components and Space Standards'!D85:G85 -> Expanded Retail Module(s) | E79: ='Components and Space Standards'!E85:H85 -> per area | G79: 0 | H79: 0 | J79: 0 | K79: 0 | M79: 0 | N79: 0 | P79: 0 | Q79: 0 | S79: 0 | T79: 0 | V79: 0 | W79: 0 | X79: dry good, sports equip, clothes, etc. Usually contractor and sep from control
A80: ='Components and Space Standards'!A86:E86 -> Expanded Juice Bar 1 | B80: ='Components and Space Standards'!B86:F86 -> 13.935 | C80: ='Components and Space Standards'!C86:G86 -> 150 | D80: ='Components and Space Standards'!D86:G86 -> Expanded Juice Bar Module(s) | E80: ='Components and Space Standards'!E86:H86 -> per area | G80: 0 | H80: 0 | J80: 0 | K80: 0 | M80: 0 | N80: 0 | P80: 0 | Q80: 0 | S80: 0 | T80: 0 | V80: 0 | W80: 0 | X80: Additional food/beverage counter. Usually contractor and sep from control
A81: ='Components and Space Standards'!A87:E87 -> Expanded Juice Bar Seating | B81: ='Components and Space Standards'!B87:F87 -> 13.935 | C81: ='Components and Space Standards'!C87:G87 -> 150 | D81: ='Components and Space Standards'!D87:G87 -> Two-table seating Module(s) | E81: ='Components and Space Standards'!E87:H87 -> Two 4-top tables and seating area | G81: 0 | H81: 0 | J81: 0 | K81: 0 | M81: 0 | N81: 0 | P81: 0 | Q81: 0 | S81: 0 | T81: 0 | V81: 0 | W81: 0
A82: ='Components and Space Standards'!A88:E88 -> Family Changing Room | B82: ='Components and Space Standards'!B88:F88 -> 10.219 | C82: ='Components and Space Standards'!C88:G88 -> 110 | D82: ='Components and Space Standards'!D88:G88 -> Family Changing Room(s) | E82: ='Components and Space Standards'!E88:H88 -> per shower, wc, lav, changing, and locker | G82: 0 | H82: 0 | J82: 0 | K82: 0 | M82: 0 | N82: 0 | P82: 0 | Q82: 0 | S82: 0 | T82: 0 | V82: 0 | W82: 0 | X82: Indiv. locker area for parent & child (grows by adding showers and changing stalls plus lockers)
A83: ='Components and Space Standards'!A89:E89 -> Convertible Locker Space | B83: ='Components and Space Standards'!B89:F89 -> 69.675 | C83: ='Components and Space Standards'!C89:G89 -> 750 | D83: ='Components and Space Standards'!D89:G89 -> Add'l male or female space | E83: ='Components and Space Standards'!E89:H89 -> 750 sf | G83: 0 | H83: 0 | J83: 0 | K83: 0 | M83: 0 | N83: 0 | P83: 0 | Q83: 0 | S83: 0 | T83: 0 | V83: 0 | W83: 0 | X83: AF-only option. Calculate how many people this accomodates
A84: ='Components and Space Standards'!A90:E90 -> Female DV Locker Room * | B84: ='Components and Space Standards'!B90:F90 -> 23.225 | C84: ='Components and Space Standards'!C90:G90 -> 250 | D84: ='Components and Space Standards'!D90:G90 -> Female DV Locker Room | E84: ='Components and Space Standards'!E90:H90 -> 250, 500, 750 | G84: 0 | H84: 0 | J84: 0 | K84: 0 | M84: 0 | N84: 0 | P84: 0 | Q84: 0 | S84: 0 | T84: 0 | V84: 0 | W84: 0
A85: ='Components and Space Standards'!A91:E91 -> Child Play Area/Parent Child Area * | B85: ='Components and Space Standards'!B91:F91 -> 74.32 | C85: ='Components and Space Standards'!C91:G91 -> 800 | D85: ='Components and Space Standards'!D91:G91 -> Parent/child Module(s) | E85: ='Components and Space Standards'!E91:H91 -> 400 sf play area (at 35 sf/child), 400 sf equip (50 sf/equip) | G85: 0 | H85: 0 | J85: 0 | K85: 0 | M85: 0 | N85: 0 | P85: 0 | Q85: 0 | S85: 0 | T85: 0 | V85: 0 | W85: 0
A86: ='Components and Space Standards'!A92:E92 -> HAWC Demonstration Kitchen | B86: ='Components and Space Standards'!B92:F92 -> 46.45 | C86: ='Components and Space Standards'!C92:G92 -> 500 | D86: ='Components and Space Standards'!D92:G92 -> Kitchen Module(s) | E86: ='Components and Space Standards'!E92:H92 -> per kitchen | G86: 0 | H86: 0 | J86: 0 | K86: 0 | M86: 0 | N86: 0 | P86: 0 | Q86: 0 | S86: 0 | T86: 0 | V86: 0 | W86: 0 | X86: From AF
A87: ='Components and Space Standards'!A93:E93 -> HAWC Relaxation Room * | B87: ='Components and Space Standards'!B93:F93 -> 9.29 | C87: ='Components and Space Standards'!C93:G93 -> 100 | D87: ='Components and Space Standards'!D93:G93 -> Relaxation Room(s) | E87: ='Components and Space Standards'!E93:H93 -> per room | G87: 0 | H87: 0 | J87: 0 | K87: 0 | M87: 0 | N87: 0 | P87: 0 | Q87: 0 | S87: 0 | T87: 0 | V87: 0 | W87: 0 | X87: From AF
A88: ='Components and Space Standards'!A94:E94 -> Site Spaces
A89: ='Components and Space Standards'!A95:E95 -> Staff Parking | B89: ='Components and Space Standards'!B95:F95 -> 41.805 | C89: ='Components and Space Standards'!C95:G95 -> 450 | D89: ='Components and Space Standards'!D95:G95 -> Parking Spaces | E89: ='Components and Space Standards'!E95:H95 -> per space (including circulation) | F89: 6 | G89: =F89*B89 -> 250.83 | H89: =F89*C89 -> 2700 | I89: 6 | J89: =$B89*I89 -> 250.83 | K89: =I89*$C89 -> 2700 | L89: 6 | M89: =$B89*L89 -> 250.83 | N89: =L89*$C89 -> 2700 | O89: 6 | P89: =$B89*O89 -> 250.83 | Q89: =O89*$C89 -> 2700 | R89: 10 | S89: =$B89*R89 -> 418.05 | T89: =R89*$C89 -> 4500 | V89: =$B89*U89 -> 0 | W89: =U89*$C89 -> 0
A90: ='Components and Space Standards'!A96:E96 -> Loading dock | B90: ='Components and Space Standards'!B96:F96 -> 8.361 | C90: ='Components and Space Standards'!C96:G96 -> 90 | D90: ='Components and Space Standards'!D96:G96 -> Loading Dock | E90: ='Components and Space Standards'!E96:H96 -> Per single-truck dock | F90: 1 | G90: 8.361 | H90: 90 | I90: 1 | J90: 8.361 | K90: 90 | L90: 1 | M90: 8.361 | N90: 90 | O90: 1 | P90: 8.361 | Q90: 90 | R90: 2 | S90: 16.722 | T90: 180 | V90: 0 | W90: 0
A91: ='Components and Space Standards'!A97:E97 -> Service Drive/trash | B91: ='Components and Space Standards'!B97:F97 -> 69.675 | C91: ='Components and Space Standards'!C97:G97 -> 750 | D91: ='Components and Space Standards'!D97:G97 -> Service Drive Module | E91: ='Components and Space Standards'!E97:H97 -> per area | F91: 1 | G91: 69.675 | H91: 750 | I91: 1 | J91: 69.675 | K91: 750 | L91: 1 | M91: 69.675 | N91: 750 | O91: 1 | P91: 69.675 | Q91: 750 | R91: 2 | S91: 139.35 | T91: 1500 | V91: 0 | W91: 0
A92: ='Components and Space Standards'!A98:E98 -> Customer Parking | B92: ='Components and Space Standards'!B98:F98 -> 41.805 | C92: ='Components and Space Standards'!C98:G98 -> 450 | D92: ='Components and Space Standards'!D98:G98 -> Parking Spaces | E92: ='Components and Space Standards'!E98:H98 -> per space (including circulation) | F92: 92 | G92: 3846.06 | H92: 41400 | I92: 147 | J92: 6145.335 | K92: 66150 | L92: 215 | M92: 8988.075 | N92: 96750 | O92: 298 | P92: 12457.89 | Q92: 134100 | R92: 400 | S92: 16722 | T92: 180000 | V92: 0 | W92: 0
A93: ='Components and Space Standards'!A99:E99 -> Bicycle Rack Area | B93: ='Components and Space Standards'!B99:F99 -> 14.864 | C93: ='Components and Space Standards'!C99:G99 -> 160 | D93: ='Components and Space Standards'!D99:G99 -> 10-bike Rack(s) | E93: ='Components and Space Standards'!E99:H99 -> per 10-bike Rack | F93: 1 | G93: 14.864 | H93: 160 | I93: 2 | J93: 29.728 | K93: 320 | L93: 3 | M93: 44.592 | N93: 480 | O93: 5 | P93: 74.32 | Q93: 800 | R93: 7 | S93: 104.048 | T93: 1120 | V93: 0 | W93: 0
A94: ='Components and Space Standards'!A100:E100 -> Patio | B94: ='Components and Space Standards'!B100:F100 -> 2.3225 | C94: ='Components and Space Standards'!C100:G100 -> 25 | D94: ='Components and Space Standards'!D100:G100 -> Patio Module(s) | E94: ='Components and Space Standards'!E100:H100 -> per patio | G94: 0 | H94: 0 | J94: 0 | K94: 0 | M94: 0 | N94: 0 | P94: 0 | Q94: 0 | S94: 0 | T94: 0 | V94: 0 | W94: 0
A95: ='Components and Space Standards'!A101:E101 -> * Service-specific space.
A96: ='Components and Space Standards'!A102:E102 -> 1 If contract service, verify area with contractor.

Sheet Navy (hidden)
A1: Col. A - D refer to "Components & Space Standards" Sheet. | B1: Space Allocation Standard | F1: Extra Small | I1: Small | L1: Medium | O1: Large | R1: Extra Large | U1: Jumbo | X1: Notes
A2: Functional Component | B2: m2 | C2: ft.2 | D2: Standard | E2: Description | F2: No. | G2: m2 | H2: ft.2 | I2: No. | J2: m2 | K2: ft.2 | L2: No. | M2: m2 | N2: ft.2 | O2: No. | P2: m2 | Q2: ft.2 | R2: No. | S2: m2 | T2: ft.2 | U2: No. | V2: m2 | W2: ft.2
A3: ='Components and Space Standards'!A3:E3 -> Fitness Spaces
A4: ='Components and Space Standards'!A4:E4 -> Lobby/Reception
A5: ='Components and Space Standards'!A5:E5 -> Entry Lobby | B5: ='Components and Space Standards'!B5:F5 -> 9.29 | C5: ='Components and Space Standards'!C5:G5 -> 100 | D5: ='Components and Space Standards'!D5:G5 -> Vestibule/Lobby Module(s) (for 2-3 ppl) | E5: ='Components and Space Standards'!E5:H5 -> Vesibule and/or space for 2 to 3 ppl to queue | F5: 1 | G5: =$B5*F5 -> 9.29 | H5: =F5*$C5 -> 100 | I5: 2 | J5: =$B5*I5 -> 18.58 | K5: =I5*$C5 -> 200 | L5: 3 | M5: =$B5*L5 -> 27.87 | N5: =L5*$C5 -> 300 | O5: 4 | P5: =$B5*O5 -> 37.16 | Q5: =O5*$C5 -> 400 | R5: 5 | S5: =$B5*R5 -> 46.45 | T5: =R5*$C5 -> 500 | U5: 6 | V5: =$B5*U5 -> 55.74 | W5: =U5*$C5 -> 600 | X5: between bldg entrance and control
A6: ='Components and Space Standards'!A6:E6 -> Control Counter | B6: ='Components and Space Standards'!B6:F6 -> 11.6125 | C6: ='Components and Space Standards'!C6:G6 -> 125 | D6: ='Components and Space Standards'!D6:G6 -> Counter Module(s) | E6: ='Components and Space Standards'!E6:H6 -> Space for counter, space behind, space in front | F6: 1 | G6: =$B6*F6 -> 11.6125 | H6: =F6*$C6 -> 125 | I6: 1 | J6: =$B6*I6 -> 11.6125 | K6: =I6*$C6 -> 125 | L6: 2 | M6: =$B6*L6 -> 23.225 | N6: =L6*$C6 -> 250 | O6: 3 | P6: =$B6*O6 -> 34.8375 | Q6: =O6*$C6 -> 375 | R6: 4 | S6: =$B6*R6 -> 46.45 | T6: =R6*$C6 -> 500 | U6: 4 | V6: =$B6*U6 -> 46.45 | W6: =U6*$C6 -> 500 | X6: Includes minor retail items
A7: ='Components and Space Standards'!A7:E7 -> Equipment issue storage | B7: ='Components and Space Standards'!B7:F7 -> 16.2575 | C7: ='Components and Space Standards'!C7:G7 -> 175 | D7: ='Components and Space Standards'!D7:G7 -> Storage Module(s) | E7: ='Components and Space Standards'!E7:H7 -> Equipment storage at/behind gear issue | F7: 2 | G7: =$B7*F7 -> 32.515 | H7: =F7*$C7 -> 350 | I7: 2 | J7: =$B7*I7 -> 32.515 | K7: =I7*$C7 -> 350 | L7: 2 | M7: =$B7*L7 -> 32.515 | N7: =L7*$C7 -> 350 | O7: 3 | P7: =$B7*O7 -> 48.7725 | Q7: =O7*$C7 -> 525 | R7: 3 | S7: =$B7*R7 -> 48.7725 | T7: =R7*$C7 -> 525 | U7: 4 | V7: =$B7*U7 -> 65.03 | W7: =U7*$C7 -> 700 | X7: 2 units min. for Navy. Others get 1 unit in smallest
A8: ='Components and Space Standards'!A8:E8 -> Vending | B8: ='Components and Space Standards'!B8:F8 -> 1.858 | C8: ='Components and Space Standards'!C8:G8 -> 20 | D8: ='Components and Space Standards'!D8:G8 -> Vending Machine(s) | E8: ='Components and Space Standards'!E8:H8 -> per vending machine | F8: 1 | G8: =$B8*F8 -> 1.858 | H8: =F8*$C8 -> 20 | I8: 1 | J8: =$B8*I8 -> 1.858 | K8: =I8*$C8 -> 20 | L8: 1 | M8: =$B8*L8 -> 1.858 | N8: =L8*$C8 -> 20 | O8: 1 | P8: =$B8*O8 -> 1.858 | Q8: =O8*$C8 -> 20 | R8: 1 | S8: =$B8*R8 -> 1.858 | T8: =R8*$C8 -> 20 | U8: 1 | V8: =$B8*U8 -> 1.858 | W8: =U8*$C8 -> 20 | X8: 2 for small
A9: ='Components and Space Standards'!A9:E9 -> Waiting/Display | B9: ='Components and Space Standards'!B9:F9 -> 8.361 | C9: ='Components and Space Standards'!C9:G9 -> 90 | D9: ='Components and Space Standards'!D9:G9 -> Seating/Display Module(s) (for 4 ppl) | E9: ='Components and Space Standards'!E9:H9 -> Space for seating for 4 ppl and display area | F9: 1 | G9: =$B9*F9 -> 8.361 | H9: =F9*$C9 -> 90 | I9: 2 | J9: =$B9*I9 -> 16.722 | K9: =I9*$C9 -> 180 | L9: 2 | M9: =$B9*L9 -> 16.722 | N9: =L9*$C9 -> 180 | O9: 4 | P9: =$B9*O9 -> 33.444 | Q9: =O9*$C9 -> 360 | R9: 5 | S9: =$B9*R9 -> 41.805 | T9: =R9*$C9 -> 450 | U9: 5 | V9: =$B9*U9 -> 41.805 | W9: =U9*$C9 -> 450 | X9: Waiting area adjacent to lobby and in front of control. Grows in units of 90
A10: ='Components and Space Standards'!A10:E10 -> Spectator peak-time circulation | B10: ='Components and Space Standards'!B10:F10 -> 27.87 | C10: ='Components and Space Standards'!C10:G10 -> 300 | D10: ='Components and Space Standards'!D10:G10 -> Circulation Module(s) | E10: ='Components and Space Standards'!E10:H10 -> Per one-side bleachers - driven by gym size | X10: Optional, 300 sf for 1 set bleachers, Additional circulation space for peak gym loads
A11: ='Components and Space Standards'!A11:E11 -> Public restrooms/phones | B11: ='Components and Space Standards'!B11:F11 -> 0 | C11: ='Components and Space Standards'!C11:G11 -> 0 | D11: ='Components and Space Standards'!D11:G11 -> Public Restroom(s) | E11: ='Components and Space Standards'!E11:H11 -> Option - Driven by gym size | X11: 1 (uni), 1/1, ?/?, 4/6 (limit option to those below the facility size) Largest gym size drives largest bathroom. AF limited to top three options.
A12: ='Components and Space Standards'!A12:E12 -> Gymnasium
A13: ='Components and Space Standards'!A13:E13 -> Basketball/volleyball Court | B13: ='Components and Space Standards'!B13:F13 -> 826.0668 | C13: ='Components and Space Standards'!C13:G13 -> 8892 | D13: ='Components and Space Standards'!D13:G13 -> One-court/200-seat Module(s) | E13: ='Components and Space Standards'!E13:H13 -> NCAA Court + 10' safety + 200 seats (one side) | F13: 1 | G13: =$B13*F13 -> 826.0668 | H13: =F13*$C13 -> 8892 | I13: 1 | J13: =$B13*I13 -> 826.0668 | K13: =I13*$C13 -> 8892 | L13: 0 | M13: =$B13*L13 -> 0 | N13: =L13*$C13 -> 0 | O13: 1 | P13: =$B13*O13 -> 826.0668 | Q13: =O13*$C13 -> 8892 | R13: 0 | S13: =$B13*R13 -> 0 | T13: =R13*$C13 -> 0 | U13: 0 | V13: =$B13*U13 -> 0 | W13: =U13*$C13 -> 0 | X13: Need both elements if indoor track is required.
A14: ='Components and Space Standards'!A14:E14 -> Two Court Module | B14: ='Components and Space Standards'!B14:F14 -> 1630.9524 | C14: ='Components and Space Standards'!C14:G14 -> 17556 | D14: ='Components and Space Standards'!D14:G14 -> Two-court/200-seat Module(s) | E14: ='Components and Space Standards'!E14:H14 -> Two courts + 10' safety, 16' between cts, + 200 seats | F14: 0 | G14: 0 | H14: =F14*$C14 -> 0 | I14: 0 | J14: 0 | K14: =I14*$C14 -> 0 | L14: 1 | M14: 1630.9524 | N14: =L14*$C14 -> 17556 | O14: 1 | P14: 1630.9524 | Q14: =O14*$C14 -> 17556 | R14: 2 | S14: 3261.9048 | T14: =R14*$C14 -> 35112 | U14: 3 | V14: 4892.8572 | W14: 52668
A15: ='Components and Space Standards'!A15:E15 -> Arena-style Two-Court Module | B15: ='Components and Space Standards'!B15:F15 -> 1708.6168 | C15: ='Components and Space Standards'!C15:G15 -> 18392 | D15: ='Components and Space Standards'!D15:G15 -> Arena-style Two-Court Module(s) | E15: ='Components and Space Standards'!E15:H15 -> Provides space for arena-style seating for center, longitudinal ct. | F15: 0 | G15: 0 | H15: =F15*$C15 -> 0 | I15: 0 | J15: 0 | K15: =I15*$C15 -> 0 | L15: 0 | M15: 0 | N15: =L15*$C15 -> 0 | O15: 0 | P15: 0 | Q15: =O15*$C15 -> 0 | R15: 0 | S15: 0 | T15: =R15*$C15 -> 0 | U15: 0 | V15: 0 | W15: 0
A16: ='Components and Space Standards'!A16:E16 -> Additional Spectator seating | B16: ='Components and Space Standards'!B16:F16 -> 84.70622 | C16: ='Components and Space Standards'!C16:G16 -> 911.8 | D16: ='Components and Space Standards'!D16:G16 -> Additional 200-seat Module(s) | E16: ='Components and Space Standards'!E16:H16 -> Four rows of seats (one ea. side) = 200 ppl. | F16: 0 | G16: 0 | H16: =F16*$C16 -> 0 | I16: 0 | J16: 0 | K16: 0 | L16: 0 | M16: 0 | N16: 0 | O16: 0 | P16: 0 | Q16: 0 | R16: 0 | S16: 0 | T16: 0 | U16: 0 | V16: 0 | W16: 0
A17: ='Components and Space Standards'!A17:E17 -> Basic storage/support | B17: ='Components and Space Standards'!B17:F17 -> 65.03 | C17: ='Components and Space Standards'!C17:G17 -> 700 | D17: ='Components and Space Standards'!D17:G17 -> Storage Module(s) | E17: ='Components and Space Standards'!E17:H17 -> Roughly 8% of base gym area | F17: 0 | G17: 0 | H17: 0 | I17: 1 | J17: 65.03 | K17: 700 | L17: 2 | M17: 130.06 | N17: 1400 | O17: 3 | P17: 195.09 | Q17: 2100 | R17: 4 | S17: 260.12 | T17: 2800 | U17: 5 | V17: 325.15 | W17: 3500
A18: ='Components and Space Standards'!A18:E18 -> Additional court storage | B18: ='Components and Space Standards'!B18:F18 -> 32.515 | C18: ='Components and Space Standards'!C18:G18 -> 350 | D18: ='Components and Space Standards'!D18:G18 -> Additional storage module(s) | E18: ='Components and Space Standards'!E18:H18 -> Storage space per additional court | F18: 0 | G18: 0 | H18: 0 | I18: 0 | J18: 0 | K18: 0 | L18: 0 | M18: 0 | N18: 0 | O18: 0 | P18: 0 | Q18: 0 | R18: 0 | S18: 0 | T18: 0 | U18: 0 | V18: 0 | W18: 0
A19: ='Components and Space Standards'!A19:E19 -> Unit PT/Group Exercise
A20: ='Components and Space Standards'!A20:E20 -> Partitionable Room(s) | B20: ='Components and Space Standards'!B20:F20 -> 4.645 | C20: ='Components and Space Standards'!C20:G20 -> 50 | D20: ='Components and Space Standards'!D20:G20 -> people at 4.6 m2 (50 ft.2)/person | E20: ='Components and Space Standards'!E20:H20 -> 116.1 m2 (1,250 ft.2) (25 ppl) minimum size | F20: 0 | G20: 0 | H20: =F20*$C20 -> 0 | I20: 25 | J20: 116.125 | K20: =I20*$C20 -> 1250 | L20: 25 | M20: 116.125 | N20: =L20*$C20 -> 1250 | O20: 50 | P20: 232.25 | Q20: =O20*$C20 -> 2500 | R20: 50 | S20: 232.25 | T20: =R20*$C20 -> 2500 | U20: 75 | V20: 348.375 | W20: =U20*$C20 -> 3750 | X20: 1250 = min. Navy, AF, MC / 2500 = min Army
A21: ='Components and Space Standards'!A21:E21 -> Storage/support | B21: ='Components and Space Standards'!B21:F21 -> 0.4645 | C21: ='Components and Space Standards'!C21:G21 -> 5 | D21: ='Components and Space Standards'!D21:G21 -> 10% of partitionable room area | E21: ='Components and Space Standards'!E21:H21 -> 11.6 m2 (125 ft.2) minimum (10% of room area) | F21: =F20 -> 0 | G21: 0 | H21: =F21*$C21 -> 0 | I21: =I20 -> 25 | J21: 11.6125 | K21: =I21*$C21 -> 125 | L21: =L20 -> 25 | M21: 11.6125 | N21: =L21*$C21 -> 125 | O21: =O20 -> 50 | P21: 23.225 | Q21: =O21*$C21 -> 250 | R21: =R20 -> 50 | S21: 23.225 | T21: =R21*$C21 -> 250 | U21: 75 | V21: 34.8375 | W21: =U21*$C21 -> 375
A22: ='Components and Space Standards'!A22:E22 -> Fitness Spaces
A23: ='Components and Space Standards'!A23:E23 -> Stretching | B23: ='Components and Space Standards'!B23:F23 -> 4.645 | C23: ='Components and Space Standards'!C23:G23 -> 50 | D23: ='Components and Space Standards'!D23:G23 -> people at 4.6 m2 (50 ft.2)/person | E23: ='Components and Space Standards'!E23:H23 -> 50 sf per person - min. 2 ppl | F23: 3 | G23: =$B23*F23 -> 13.935 | H23: =F23*$C23 -> 150 | I23: 3 | J23: =$B23*I23 -> 13.935 | K23: =I23*$C23 -> 150 | L23: 6 | M23: =$B23*L23 -> 27.87 | N23: =L23*$C23 -> 300 | O23: 8 | P23: =$B23*O23 -> 37.16 | Q23: =O23*$C23 -> 400 | R23: 12 | S23: =$B23*R23 -> 55.74 | T23: =R23*$C23 -> 600 | U23: 12 | V23: =$B23*U23 -> 55.74 | W23: =U23*$C23 -> 600 | X23: See Fitness Space sheet and exist. docs for these numbers
A24: ='Components and Space Standards'!A24:E24 -> Cardiovascular Equipment | B24: ='Components and Space Standards'!B24:F24 -> 4.645 | C24: ='Components and Space Standards'!C24:G24 -> 50 | D24: ='Components and Space Standards'!D24:G24 -> items at 4.6 m2 (50 ft.2)/item | E24: ='Components and Space Standards'!E24:H24 -> 50 sf per station | F24: 20 | G24: =$B24*F24 -> 92.9 | H24: =F24*$C24 -> 1000 | I24: 35 | J24: =$B24*I24 -> 162.575 | K24: =I24*$C24 -> 1750 | L24: 64 | M24: =$B24*L24 -> 297.28 | N24: =L24*$C24 -> 3200 | O24: 80 | P24: =$B24*O24 -> 371.6 | Q24: =O24*$C24 -> 4000 | R24: 125 | S24: =$B24*R24 -> 580.625 | T24: =R24*$C24 -> 6250 | U24: 150 | V24: =$B24*U24 -> 696.75 | W24: =U24*$C24 -> 7500
A25: ='Components and Space Standards'!A25:E25 -> Selectorized (machine) weights | B25: ='Components and Space Standards'!B25:F25 -> 4.645 | C25: ='Components and Space Standards'!C25:G25 -> 50 | D25: ='Components and Space Standards'!D25:G25 -> items at 4.6 m2 (50 ft.2)/item | E25: ='Components and Space Standards'!E25:H25 -> 50 sf per station | F25: 10 | G25: =$B25*F25 -> 46.45 | H25: =F25*$C25 -> 500 | I25: 18 | J25: =$B25*I25 -> 83.61 | K25: =I25*$C25 -> 900 | L25: 18 | M25: =$B25*L25 -> 83.61 | N25: =L25*$C25 -> 900 | O25: 36 | P25: =$B25*O25 -> 167.22 | Q25: =O25*$C25 -> 1800 | R25: 36 | S25: =$B25*R25 -> 167.22 | T25: =R25*$C25 -> 1800 | U25: 54 | V25: =$B25*U25 -> 250.83 | W25: =U25*$C25 -> 2700
A26: ='Components and Space Standards'!A26:E26 -> Free/Plate-loaded weights | B26: ='Components and Space Standards'!B26:F26 -> 6.0385 | C26: ='Components and Space Standards'!C26:G26 -> 65 | D26: ='Components and Space Standards'!D26:G26 -> stations at 6.0 m2 (65 ft.2)/stations | E26: ='Components and Space Standards'!E26:H26 -> 65 sf per station | F26: 15 | G26: =$B26*F26 -> 90.5775 | H26: =F26*$C26 -> 975 | I26: 15 | J26: =$B26*I26 -> 90.5775 | K26: =I26*$C26 -> 975 | L26: 30 | M26: =$B26*L26 -> 181.155 | N26: =L26*$C26 -> 1950 | O26: 30 | P26: =$B26*O26 -> 181.155 | Q26: =O26*$C26 -> 1950 | R26: 45 | S26: =$B26*R26 -> 271.7325 | T26: =R26*$C26 -> 2925 | U26: 45 | V26: =$B26*U26 -> 271.7325 | W26: =U26*$C26 -> 2925
A27: ='Components and Space Standards'!A27:E27 -> Finess Program Manager's Office | B27: ='Components and Space Standards'!B27:F27 -> 11.6125 | C27: ='Components and Space Standards'!C27:G27 -> 125 | D27: ='Components and Space Standards'!D27:G27 -> Office | E27: ='Components and Space Standards'!E27:H27 -> Private office that may include fitness testing equipment
A28: ='Components and Space Standards'!A28:E28 -> Fitness Assessment Room | B28: ='Components and Space Standards'!B28:F28 -> 11.6125 | C28: ='Components and Space Standards'!C28:G28 -> 125 | D28: ='Components and Space Standards'!D28:G28 -> Office(s) | E28: ='Components and Space Standards'!E28:H28 -> 1 piece fitness equip for testing, computer desk, chairs, stretching | F28: 1 | G28: =$B28*F28 -> 11.6125 | H28: =F28*$C28 -> 125 | I28: 1 | J28: =$B28*I28 -> 11.6125 | K28: =I28*$C28 -> 125 | L28: 1 | M28: =$B28*L28 -> 11.6125 | N28: =L28*$C28 -> 125 | O28: 1 | P28: =$B28*O28 -> 11.6125 | Q28: =O28*$C28 -> 125 | R28: 1 | S28: =$B28*R28 -> 11.6125 | T28: =R28*$C28 -> 125 | U28: 1 | V28: =$B28*U28 -> 11.6125 | W28: =U28*$C28 -> 125
A29: ='Components and Space Standards'!A29:E29 -> Structured Activities
A30: ='Components and Space Standards'!A30:E30 -> Structured Activity Space | B30: ='Components and Space Standards'!B30:F30 -> 74.32 | C30: ='Components and Space Standards'!C30:G30 -> 800 | D30: ='Components and Space Standards'!D30:G30 -> Flexible space Module(s) | E30: ='Components and Space Standards'!E30:H30 -> Based on size of a single racquetball court | F30: 1 | G30: =$B30*F30 -> 74.32 | H30: =F30*$C30 -> 800 | I30: 2 | J30: =$B30*I30 -> 148.64 | K30: =I30*$C30 -> 1600 | L30: 2 | M30: =$B30*L30 -> 148.64 | N30: =L30*$C30 -> 1600 | O30: 3 | P30: =$B30*O30 -> 222.96 | Q30: =O30*$C30 -> 2400 | R30: 3 | S30: =$B30*R30 -> 222.96 | T30: =R30*$C30 -> 2400 | U30: 3 | V30: =$B30*U30 -> 222.96 | W30: =U30*$C30 -> 2400 | X30: equip. based
A31: ='Components and Space Standards'!A31:E31 -> Racquetball Courts | B31: ='Components and Space Standards'!B31:F31 -> 74.32 | C31: ='Components and Space Standards'!C31:G31 -> 800 | D31: ='Components and Space Standards'!D31:G31 -> Racquetball Court(s) | E31: ='Components and Space Standards'!E31:H31 -> Single court size. Minimum of two courts | F31: 1 | G31: =$B31*F31 -> 74.32 | H31: =F31*$C31 -> 800 | I31: 2 | J31: =$B31*I31 -> 148.64 | K31: =I31*$C31 -> 1600 | L31: 4 | M31: =$B31*L31 -> 297.28 | N31: =L31*$C31 -> 3200 | O31: 4 | P31: =$B31*O31 -> 297.28 | Q31: =O31*$C31 -> 3200 | R31: 6 | S31: =$B31*R31 -> 445.92 | T31: =R31*$C31 -> 4800 | U31: 8 | V31: =$B31*U31 -> 594.56 | W31: =U31*$C31 -> 6400
A32: ='Components and Space Standards'!A34:E34 -> Spectator/officiating (MC Option) | B32: ='Components and Space Standards'!B34:F34 -> 18.58 | C32: ='Components and Space Standards'!C34:G34 -> 200 | D32: ='Components and Space Standards'!D34:G34 -> Spectator/officiating Module(s) | E32: ='Components and Space Standards'!E34:H34 -> Two rows of 10 seats for one ct. Max of two cts (400 sf) | F32: 0 | G32: =$B32*F32 -> 0 | H32: =F32*$C32 -> 0 | I32: 0 | J32: =$B32*I32 -> 0 | K32: =I32*$C32 -> 0 | L32: 0 | M32: =$B32*L32 -> 0 | N32: =L32*$C32 -> 0 | O32: 0 | P32: =$B32*O32 -> 0 | Q32: =O32*$C32 -> 0 | R32: 0 | S32: =$B32*R32 -> 0 | T32: =R32*$C32 -> 0 | U32: 0 | V32: =$B32*U32 -> 0 | W32: =U32*$C32 -> 0
A33: ='Components and Space Standards'!A35:E35 -> Structured activity storage | B33: ='Components and Space Standards'!B35:F35 -> 7.432 | C33: ='Components and Space Standards'!C35:G35 -> 80 | D33: ='Components and Space Standards'!D35:G35 -> 10% of Structured Activity Space | E33: ='Components and Space Standards'!E35:H35 -> Based on Structured activity space (10% of room area)
A34: ='Components and Space Standards'!A36:E36 -> Locker Rooms | X34: Apply male/female split on occupant load, then calculate individual male and female locker areas from the split number.
A35: ='Components and Space Standards'!A37:E37 -> Men's Locker Room | B35: ='Components and Space Standards'!B37:F37 -> 0 | C35: ='Components and Space Standards'!C37:G37 -> 0 | D35: ='Components and Space Standards'!D37:G37 -> 0 | E35: ='Components and Space Standards'!E37:H37 -> 0 | G35: =$B35*F35 -> 0 | H35: =F35*$C35 -> 0 | J35: =$B35*I35 -> 0 | K35: =I35*$C35 -> 0 | M35: =$B35*L35 -> 0 | N35: =L35*$C35 -> 0 | P35: =$B35*O35 -> 0 | Q35: =O35*$C35 -> 0 | S35: =$B35*R35 -> 0 | T35: =R35*$C35 -> 0 | V35: =$B35*U35 -> 0 | W35: =U35*$C35 -> 0
A36: ='Components and Space Standards'!A38:E38 -> Locker/changing area | B36: ='Components and Space Standards'!B38:F38 -> 0.7432 | C36: ='Components and Space Standards'!C38:G38 -> 8 | D36: ='Components and Space Standards'!D38:G38 -> Lockers | E36: ='Components and Space Standards'!E38:H38 -> Per slot (2 double lockers or 1 single locker) | G36: 0 | H36: 0 | J36: 0 | K36: 0 | M36: 0 | N36: 0 | P36: 0 | Q36: 0 | S36: 0 | T36: 0 | V36: 0 | W36: 0 | X36: Ratios: 1 to 1 (all full), 66% (1 full per 2 dbls - or 3 ppl / 2 slots), 50% (all double lockers) - Environmental adjust factor -----
A37: ='Components and Space Standards'!A39:E39 -> Shower/drying area | B37: ='Components and Space Standards'!B39:F39 -> 2.787 | C37: ='Components and Space Standards'!C39:G39 -> 30 | D37: ='Components and Space Standards'!D39:G39 -> Showers | E37: ='Components and Space Standards'!E39:H39 -> Per shower & integral drying area at 22 lockers/shower | G37: 0 | H37: 0 | J37: 0 | K37: 0 | M37: 0 | N37: 0 | P37: 0 | Q37: 0 | S37: 0 | T37: 0 | V37: 0 | W37: 0
A38: ='Components and Space Standards'!A40:E40 -> Toilet area | B38: ='Components and Space Standards'!B40:F40 -> 4.1805 | C38: ='Components and Space Standards'!C40:G40 -> 45 | D38: ='Components and Space Standards'!D40:G40 -> Water closets/lavatory modules | E38: ='Components and Space Standards'!E40:H40 -> Per wc and lav. at 30 lockers per wc/lav | G38: 0 | H38: 0 | J38: 0 | K38: 0 | M38: 0 | N38: 0 | P38: 0 | Q38: 0 | S38: 0 | T38: 0 | V38: 0 | W38: 0 | X38: Will confirm that 30 lockers per wc/lav is the correct formula
A39: ='Components and Space Standards'!A41:E41 -> Women's Locker Room | B39: ='Components and Space Standards'!B41:F41 -> 0 | C39: ='Components and Space Standards'!C41:G41 -> 0 | D39: ='Components and Space Standards'!D41:G41 -> 0 | E39: ='Components and Space Standards'!E41:H41 -> 0 | G39: 0 | H39: 0 | J39: 0 | K39: 0 | M39: 0 | N39: 0 | P39: 0 | Q39: 0 | S39: 0 | T39: 0 | V39: 0 | W39: 0
A40: ='Components and Space Standards'!A42:E42 -> Locker/changing area | B40: ='Components and Space Standards'!B42:F42 -> 0.7432 | C40: ='Components and Space Standards'!C42:G42 -> 8 | D40: ='Components and Space Standards'!D42:G42 -> Lockers | E40: ='Components and Space Standards'!E42:H42 -> Per slot (2 double lockers or 1 single locker) | G40: 0 | H40: 0 | J40: 0 | K40: 0 | M40: 0 | N40: 0 | P40: 0 | Q40: 0 | S40: 0 | T40: 0 | V40: 0 | W40: 0
A41: ='Components and Space Standards'!A43:E43 -> Shower/drying area | B41: ='Components and Space Standards'!B43:F43 -> 2.787 | C41: ='Components and Space Standards'!C43:G43 -> 30 | D41: ='Components and Space Standards'!D43:G43 -> Showers | E41: ='Components and Space Standards'!E43:H43 -> Per shower & integral drying area at 22 lockers/shower | G41: 0 | H41: 0 | J41: 0 | K41: 0 | M41: 0 | N41: 0 | P41: 0 | Q41: 0 | S41: 0 | T41: 0 | V41: 0 | W41: 0
A42: ='Components and Space Standards'!A44:E44 -> Toilet area | B42: ='Components and Space Standards'!B44:F44 -> 4.1805 | C42: ='Components and Space Standards'!C44:G44 -> 45 | D42: ='Components and Space Standards'!D44:G44 -> Water closets/lavatory modules | E42: ='Components and Space Standards'!E44:H44 -> per wc and lav. at 20 lockers per wc/lav | G42: 0 | H42: 0 | J42: 0 | K42: 0 | M42: 0 | N42: 0 | P42: 0 | Q42: 0 | S42: 0 | T42: 0 | V42: 0 | W42: 0 | X42: Will confirm that 20 lockers per wc/lav is the correct formula
A43: ='Components and Space Standards'!A45:E45 -> Sauna, cool-down area | B43: ='Components and Space Standards'!B45:F45 -> 0 | C43: ='Components and Space Standards'!C45:G45 -> 0 | D43: ='Components and Space Standards'!D45:G45 -> M/F (2) Saunas/cool-down area | E43: ='Components and Space Standards'!E45:H45 -> small = 6 ppl, med = 8-9, lg = 12 ppl (+ cool down space) | I43: Small | L43: Medium | O43: Large | R43: Large | U43: Large | X43: Not included in Navy facilities
A44: ='Components and Space Standards'!A46:E46 -> Steam Room, cool-down area | B44: ='Components and Space Standards'!B46:F46 -> 0 | C44: ='Components and Space Standards'!C46:G46 -> 0 | D44: ='Components and Space Standards'!D46:G46 -> M/F (2) Steam Rooms/cool-down area | E44: ='Components and Space Standards'!E46:H46 -> small = 6-7 ppl, med = 8-9, lg = 12-14 (+ cool down space) | I44: Small | L44: Medium | O44: Large | R44: Large | U44: Large | X44: Not included in Navy facilities
A45: ='Components and Space Standards'!A47:E47 -> Hot Tub | B45: ='Components and Space Standards'!B47:F47 -> 0 | C45: ='Components and Space Standards'!C47:G47 -> 0 | D45: ='Components and Space Standards'!D47:G47 -> Unisex Hot Tub | E45: ='Components and Space Standards'!E47:H47 -> small = 5 ppl, med = 8, lg = 12-14 ppl | I45: Small | L45: Medium | O45: Large | R45: Large | U45: Large | X45: Not included in Navy facilities
A46: ='Components and Space Standards'!A48:E48 -> Support Areas
A47: ='Components and Space Standards'!A49:E49 -> Laundry | B47: ='Components and Space Standards'!B49:F49 -> 18.58 | C47: ='Components and Space Standards'!C49:G49 -> 200 | D47: ='Components and Space Standards'!D49:G49 -> Laundry Room | E47: ='Components and Space Standards'!E49:H49 -> Per one-washer/two-dryer room | F47: 1/2 machine combo | I47: 1/2 machine combo | L47: 2/4 machine combo | O47: 3/6 machine combo | R47: 4/8 machine combo | U47: 5/10 machine combo | X47: One washer, two dryers, commercial equip, folding table, sink, storage shelves, laundry carts, and opt. ice machine.
A48: ='Components and Space Standards'!A50:E50 -> Equipment repair and receiving | B48: ='Components and Space Standards'!B50:F50 -> 0 | C48: ='Components and Space Standards'!C50 -> 0 | D48: ='Components and Space Standards'!D50:G50 -> Repair/receiving Room | E48: ='Components and Space Standards'!E50:H50 -> Fixed receiving area + variable repair (10% of Fitness) | X48: 10% of total Fitness (Army) / 250 sf (AF)
A49: ='Components and Space Standards'!A51:E51 -> Storage | B49: ='Components and Space Standards'!B51:F51 -> 0 | C49: ='Components and Space Standards'!C51 -> 0 | D49: ='Components and Space Standards'!D51:G51 -> Storage Room | E49: ='Components and Space Standards'!E51:H51 -> Variable lockable storage room (5% of fitness)
A50: ='Components and Space Standards'!A52:E52 -> Additional Programmatic Storage | B50: ='Components and Space Standards'!B52:F52 -> 0 | C50: ='Components and Space Standards'!C52 -> 0 | D50: ='Components and Space Standards'!D52:G52 -> sf Additional Storage | E50: ='Components and Space Standards'!E52:H52 -> To be filled-in by programmer and justified based on item stored.
A51: ='Components and Space Standards'!A53:E53 -> Janitor's Closet(s) | B51: ='Components and Space Standards'!B53:F53 -> 3.716 | C51: ='Components and Space Standards'!C53 -> 40 | D51: ='Components and Space Standards'!D53:G53 -> 40 SF/closet | E51: ='Components and Space Standards'!E53:H53 -> Per Janitor's Closet | F51: 2 | G51: =$B51*F51 -> 7.432 | H51: =F51*$C51 -> 80 | I51: 2 | J51: =$B51*I51 -> 7.432 | K51: =I51*$C51 -> 80 | L51: 3 | M51: =$B51*L51 -> 11.148 | N51: =L51*$C51 -> 120 | O51: 4 | P51: =$B51*O51 -> 14.864 | Q51: =O51*$C51 -> 160 | R51: 4 | S51: =$B51*R51 -> 14.864 | T51: =R51*$C51 -> 160 | U51: 4 | V51: =$B51*U51 -> 14.864 | W51: =U51*$C51 -> 160
A52: ='Components and Space Standards'!A54:E54 -> Health Promotion Spaces - Marine Corps Only (Required or Optional) | B52: ='Components and Space Standards'!B54:F54 -> 0 | C52: ='Components and Space Standards'!C54:G54 -> 0 | E52: ='Components and Space Standards'!E54:H54 -> 0
A53: ='Components and Space Standards'!A55:E55 -> Lobby/Reception | B53: ='Components and Space Standards'!B55:F55 -> 27.87 | C53: ='Components and Space Standards'!C55:G55 -> 300 | D53: ='Components and Space Standards'!D55:G55 -> Lobby/Reception Module(s) | E53: ='Components and Space Standards'!E55:H55 -> per area | F53: 0 | G53: =$B53*F53 -> 0 | H53: =F53*$C53 -> 0 | I53: 0 | J53: =$B53*I53 -> 0 | K53: =I53*$C53 -> 0 | L53: 0 | M53: =$B53*L53 -> 0 | N53: =L53*$C53 -> 0 | O53: 0 | P53: =$B53*O53 -> 0 | Q53: =O53*$C53 -> 0 | R53: 0 | S53: =$B53*R53 -> 0 | T53: =R53*$C53 -> 0 | U53: 0 | V53: =$B53*U53 -> 0 | W53: =U53*$C53 -> 0 | X53: From AF
A54: ='Components and Space Standards'!A56:E56 -> Director's Office | B54: ='Components and Space Standards'!B56:F56 -> 11.148 | C54: ='Components and Space Standards'!C56:G56 -> 120 | D54: ='Components and Space Standards'!D56:G56 -> Office | E54: ='Components and Space Standards'!E56:H56 -> per office | F54: 0 | G54: 0 | H54: 0 | I54: 0 | J54: 0 | K54: 0 | L54: 0 | M54: 0 | N54: 0 | O54: 0 | P54: 0 | Q54: 0 | R54: 0 | S54: 0 | T54: 0 | U54: 0 | V54: 0 | W54: 0 | X54: AF office area = 400 sf total
A55: ='Components and Space Standards'!A57:E57 -> Program Managers' Offices | B55: ='Components and Space Standards'!B57:F57 -> 9.29 | C55: ='Components and Space Standards'!C57:G57 -> 100 | D55: ='Components and Space Standards'!D57:G57 -> Office(s) | E55: ='Components and Space Standards'!E57:H57 -> per office | F55: 0 | G55: 0 | H55: 0 | I55: 0 | J55: 0 | K55: 0 | L55: 0 | M55: 0 | N55: 0 | O55: 0 | P55: 0 | Q55: 0 | R55: 0 | S55: 0 | T55: 0 | U55: 0 | V55: 0 | W55: 0
A56: ='Components and Space Standards'!A58:E58 -> Support Staff Workstations | B56: ='Components and Space Standards'!B58:F58 -> 5.9456 | C56: ='Components and Space Standards'!C58:G58 -> 64 | D56: ='Components and Space Standards'!D58:G58 -> Workstation(s) | E56: ='Components and Space Standards'!E58:H58 -> per workstation | F56: 0 | G56: 0 | H56: 0 | I56: 0 | J56: 0 | K56: 0 | L56: 0 | M56: 0 | N56: 0 | O56: 0 | P56: 0 | Q56: 0 | R56: 0 | S56: 0 | T56: 0 | U56: 0 | V56: 0 | W56: 0
A57: ='Components and Space Standards'!A59:E59 -> Classrooms/Training rooms | B57: ='Components and Space Standards'!B59:F59 -> 58.527 | C57: ='Components and Space Standards'!C59:G59 -> 630 | D57: ='Components and Space Standards'!D59:G59 -> Classroom/Training Module(s) | E57: ='Components and Space Standards'!E59:H59 -> per room | F57: 0 | G57: 0 | H57: 0 | I57: 0 | J57: 0 | K57: 0 | L57: 0 | M57: 0 | N57: 0 | O57: 0 | P57: 0 | Q57: 0 | R57: 0 | S57: 0 | T57: 0 | U57: 0 | V57: 0 | W57: 0 | X57: From AF
A58: ='Components and Space Standards'!A60:E60 -> Resource Room/Computer Lab | B58: ='Components and Space Standards'!B60:F60 -> 23.225 | C58: ='Components and Space Standards'!C60:G60 -> 250 | D58: ='Components and Space Standards'!D60:G60 -> Resource/Computer Lab Module(s) | E58: ='Components and Space Standards'!E60:H60 -> per room | F58: 0 | G58: 0 | H58: 0 | I58: 0 | J58: 0 | K58: 0 | L58: 0 | M58: 0 | N58: 0 | O58: 0 | P58: 0 | Q58: 0 | R58: 0 | S58: 0 | T58: 0 | U58: 0 | V58: 0 | W58: 0 | X58: From AF - combines comp lab with resource library
A59: ='Components and Space Standards'!A61:E61 -> Storage/support | B59: ='Components and Space Standards'!B61:F61 -> 7.432 | C59: ='Components and Space Standards'!C61:G61 -> 80 | D59: ='Components and Space Standards'!D61:G61 -> Storage/support Module(s) | E59: ='Components and Space Standards'!E61:H61 -> per area | F59: 0 | G59: 0 | H59: 0 | I59: 0 | J59: 0 | K59: 0 | L59: 0 | M59: 0 | N59: 0 | O59: 0 | P59: 0 | Q59: 0 | R59: 0 | S59: 0 | T59: 0 | U59: 0 | V59: 0 | W59: 0
A60: ='Components and Space Standards'!A63:E63 -> Ergometry and Fitness Testing * | B60: ='Components and Space Standards'!B63:F63 -> 7.432 | C60: ='Components and Space Standards'!C63:G63 -> 80 | D60: ='Components and Space Standards'!D63:G63 -> Testing Cubicle(s) | E60: ='Components and Space Standards'!E63:H63 -> per testing cubicles | F60: 0 | G60: 0 | H60: 0 | I60: 0 | J60: 0 | K60: 0 | L60: 0 | M60: 0 | N60: 0 | O60: 0 | P60: 0 | Q60: 0 | R60: 0 | S60: 0 | T60: 0 | U60: 0 | V60: 0 | W60: 0 | X60: From AF - cubicles go in an enclosed room (need circulation beteen cubicles--doesn't seem to be accounted for in AF criteria?)
A61: ='Components and Space Standards'!A64:E64 -> Wellness Assessment * | B61: ='Components and Space Standards'!B64:F64 -> 13.935 | C61: ='Components and Space Standards'!C64:G64 -> 150 | D61: ='Components and Space Standards'!D64:G64 -> Assessment Room(s) | E61: ='Components and Space Standards'!E64:H64 -> per room | F61: 0 | G61: 0 | H61: 0 | I61: 0 | J61: 0 | K61: 0 | L61: 0 | M61: 0 | N61: 0 | O61: 0 | P61: 0 | Q61: 0 | R61: 0 | S61: 0 | T61: 0 | U61: 0 | V61: 0 | W61: 0 | X61: From AF
A62: ='Components and Space Standards'!A65:E65 -> Administrative Spaces (required or optional) | B62: ='Components and Space Standards'!B65:F65 -> 0 | C62: ='Components and Space Standards'!C65:G65 -> 0 | E62: ='Components and Space Standards'!E65:H65 -> 0
A63: ='Components and Space Standards'!A66:E66 -> Director's Office | B63: ='Components and Space Standards'!B66:F66 -> 11.148 | C63: ='Components and Space Standards'!C66:G66 -> 120 | D63: ='Components and Space Standards'!D66:G66 -> Office | E63: ='Components and Space Standards'!E66:H66 -> per office | F63: 1 | G63: =$B63*F63 -> 11.148 | H63: =F63*$C63 -> 120 | I63: 1 | J63: =$B63*I63 -> 11.148 | K63: =I63*$C63 -> 120 | L63: 1 | M63: =$B63*L63 -> 11.148 | N63: =L63*$C63 -> 120 | O63: 1 | P63: =$B63*O63 -> 11.148 | Q63: =O63*$C63 -> 120 | R63: 1 | S63: =$B63*R63 -> 11.148 | T63: =R63*$C63 -> 120 | U63: 1 | V63: =$B63*U63 -> 11.148 | W63: =U63*$C63 -> 120 | X63: req.
A64: ='Components and Space Standards'!A67:E67 -> Program Managers' Offices | B64: ='Components and Space Standards'!B67:F67 -> 9.29 | C64: ='Components and Space Standards'!C67:G67 -> 100 | D64: ='Components and Space Standards'!D67:G67 -> Office(s) | E64: ='Components and Space Standards'!E67:H67 -> per office | F64: 1 | G64: 9.29 | H64: 100 | I64: 1 | J64: 9.29 | K64: 100 | L64: 1 | M64: 9.29 | N64: 100 | O64: 1 | P64: 9.29 | Q64: 100 | R64: 1 | S64: 9.29 | T64: 100 | U64: 1 | V64: 9.29 | W64: 100 | X64: optional (req. AF)
A65: ='Components and Space Standards'!A68:E68 -> Support Staff Workstations | B65: ='Components and Space Standards'!B68:F68 -> 5.9456 | C65: ='Components and Space Standards'!C68:G68 -> 64 | D65: ='Components and Space Standards'!D68:G68 -> Workstation(s) | E65: ='Components and Space Standards'!E68:H68 -> per office | F65: 0 | G65: 0 | H65: 0 | I65: 1 | J65: 5.9456 | K65: 64 | L65: 2 | M65: 11.8912 | N65: 128 | O65: 3 | P65: 17.8368 | Q65: 192 | R65: 4 | S65: 23.7824 | T65: 256 | U65: 5 | V65: 29.728 | W65: 320 | X65: optional (req. AF)
A66: ='Components and Space Standards'!A69:E69 -> Copy/file/work/break Room | B66: ='Components and Space Standards'!B69:F69 -> 7.432 | C66: ='Components and Space Standards'!C69:G69 -> 80 | D66: ='Components and Space Standards'!D69:G69 -> Workroom Module(s) | E66: ='Components and Space Standards'!E69:H69 -> per room | F66: 1 | G66: 7.432 | H66: 80 | I66: 1 | J66: 7.432 | K66: 80 | L66: 2 | M66: 14.864 | N66: 160 | O66: 2 | P66: 14.864 | Q66: 160 | R66: 2 | S66: 14.864 | T66: 160 | U66: 3 | V66: 22.296 | W66: 240 | X66: req.
A67: ='Components and Space Standards'!A70:E70 -> Classroom/Training Room | B67: ='Components and Space Standards'!B70:F70 -> 69.675 | C67: ='Components and Space Standards'!C70:G70 -> 750 | D67: ='Components and Space Standards'!D70:G70 -> 25-person Module at 750 SF | E67: ='Components and Space Standards'!E70:H70 -> 1,500 SF Med/Lge & 2,250 SF for Xtra Lge/Jumbo | F67: 1 | G67: 69.675 | H67: 750 | I67: 1 | J67: 69.675 | K67: 750 | L67: 2 | M67: 139.35 | N67: 1500 | O67: 2 | P67: 139.35 | Q67: 1500 | R67: 3 | S67: 209.025 | T67: 2250 | U67: 3 | V67: 209.025 | W67: 2250 | X67: Req. Program space
A68: ='Components and Space Standards'!A71:E71 -> Classroom/Training Storage | B68: ='Components and Space Standards'!B71:F71 -> 5.574 | C68: ='Components and Space Standards'!C71:G71 -> 60 | D68: ='Components and Space Standards'!D71:G71 -> Storage Module(s) | E68: ='Components and Space Standards'!E71:H71 -> per 25-person Training Room | F68: 1 | G68: 5.574 | H68: 60 | I68: 1 | J68: 5.574 | K68: 60 | L68: 2 | M68: 11.148 | N68: 120 | O68: 2 | P68: 11.148 | Q68: 120 | R68: 3 | S68: 16.722 | T68: 180 | U68: 3 | V68: 16.722 | W68: 180
A69: ='Components and Space Standards'!A72:E72 -> Optional or Service-specific Program Spaces | B69: ='Components and Space Standards'!B72:F72 -> 0 | C69: ='Components and Space Standards'!C72:G72 -> 0 | E69: ='Components and Space Standards'!E72:H72 -> 0
A70: ='Components and Space Standards'!A75:E75 -> Indoor Track
A71: ='Components and Space Standards'!A76:E76 -> Indoor Track
A72: ='Components and Space Standards'!A77:E77 -> 1/14th-mile Indoor Track | B72: ='Components and Space Standards'!B77:F77 -> 310.0073 | C72: ='Components and Space Standards'!C77:G77 -> 3337 | D72: ='Components and Space Standards'!D77:G77 -> 1/14th-mile, 2-lane Indoor Track | E72: ='Components and Space Standards'!E77:H77 -> 1/14th-mile, 2-lane Indoor Track (754 linear ft.) | F72: 0 | G72: =$B72*F72 -> 0 | H72: =F72*$C72 -> 0 | I72: 0 | J72: =$B72*I72 -> 0 | K72: =I72*$C72 -> 0 | L72: 0 | M72: =$B72*L72 -> 0 | N72: =L72*$C72 -> 0 | P72: =$B72*O72 -> 0 | Q72: =O72*$C72 -> 0 | R72: 0 | S72: =$B72*R72 -> 0 | T72: =R72*$C72 -> 0 | V72: =$B72*U72 -> 0 | W72: =U72*$C72 -> 0 | X72: (smallest gym option, Army and Navy only)
A73: ='Components and Space Standards'!A78:E78 -> 1/12th-mile Indoor Track | B73: ='Components and Space Standards'!B78:F78 -> 523.027 | C73: ='Components and Space Standards'!C78:G78 -> 5630 | D73: ='Components and Space Standards'!D78:G78 -> 1/12th-mile, 3-lane Indoor Track | E73: ='Components and Space Standards'!E78:H78 -> 1/12th-mile, 3-lane Indoor Track (1284 linear ft.)
A74: ='Components and Space Standards'!A79:E79 -> 1/11th-mile Indoor Track | B74: ='Components and Space Standards'!B79:F79 -> 556.7497 | C74: ='Components and Space Standards'!C79:G79 -> 5993 | D74: ='Components and Space Standards'!D79:G79 -> 1/11th-mile, 3-lane Indoor Track | E74: ='Components and Space Standards'!E79:H79 -> 1/11th-mile, 3-lane Indoor Track (1440 linear ft.) | F74: 0 | G74: 0 | H74: 0 | I74: 0 | J74: 0 | K74: 0 | L74: 0 | M74: 0 | N74: 0 | O74: 0 | P74: 0 | Q74: 0 | R74: 0 | S74: 0 | T74: 0 | V74: 0 | W74: 0
A75: ='Components and Space Standards'!A80:E80 -> 1/8th-mile Indoor Track | B75: ='Components and Space Standards'!B80:F80 -> 989.1063 | C75: ='Components and Space Standards'!C80:G80 -> 10647 | D75: ='Components and Space Standards'!D80:G80 -> 1/8th-mile, 4-lane Indoor Track | E75: ='Components and Space Standards'!E80:H80 -> 1/8th-mile, 4-lane Indoor Track (2640 linear ft.) | F75: 0 | G75: 0 | H75: 0 | I75: 0 | J75: 0 | K75: 0 | L75: 0 | M75: 0 | N75: 0 | O75: 0 | P75: 0 | Q75: 0 | R75: 0 | S75: 0 | T75: 0 | U75: 0 | V75: 0 | W75: 0
A76: ='Components and Space Standards'!A81:E81 -> Indoor track lobby | B76: ='Components and Space Standards'!B81:F81 -> 13.3776 | C76: ='Components and Space Standards'!C81:G81 -> 144 | D76: ='Components and Space Standards'!D81:G81 -> Indoor track lobby(ies) | E76: ='Components and Space Standards'!E81:H81 -> Access point to lobby from stair/elevator | F76: 1 | G76: 13.3776 | H76: 144 | I76: 2 | J76: 26.7552 | K76: 288 | L76: 2 | M76: 26.7552 | N76: 288 | O76: 2 | P76: 26.7552 | Q76: 288 | R76: 2 | S76: 26.7552 | T76: 288 | U76: 2 | V76: 26.7552 | W76: 288
A77: ='Components and Space Standards'!A82:E82 -> Additional Group Exercise Room | B77: ='Components and Space Standards'!B82:F82 -> 116.125 | C77: ='Components and Space Standards'!C82:G82 -> 1250 | D77: ='Components and Space Standards'!D82:G82 -> Additional Group Exercise Room | E77: ='Components and Space Standards'!E82:H82 -> per room | F77: 0 | G77: 0 | H77: 0 | I77: 0 | J77: 0 | K77: 0 | L77: 0 | M77: 0 | N77: 0 | O77: 0 | P77: 0 | Q77: 0 | R77: 0 | S77: 0 | T77: 0 | V77: 0 | W77: 0 | X77: Optional catch-up space
A78: ='Components and Space Standards'!A83:E83 -> Massage Room | B78: ='Components and Space Standards'!B83:F83 -> 11.148 | C78: ='Components and Space Standards'!C83:G83 -> 120 | D78: ='Components and Space Standards'!D83:G83 -> Massage Room(s) | E78: ='Components and Space Standards'!E83:H83 -> per room | F78: 0 | G78: 0 | H78: 0 | I78: 0 | J78: 0 | K78: 0 | L78: 0 | M78: 0 | N78: 0 | O78: 0 | P78: 0 | Q78: 0 | R78: 0 | S78: 0 | T78: 0 | V78: 0 | W78: 0
A79: ='Components and Space Standards'!A84:E84 -> Physical Therapy Training | B79: ='Components and Space Standards'!B84:F84 -> 11.6125 | C79: ='Components and Space Standards'!C84:G84 -> 125 | D79: ='Components and Space Standards'!D84:G84 -> Physical Therapy Training Room(s) | E79: ='Components and Space Standards'!E84:H84 -> per room | F79: 0 | G79: 0 | H79: 0 | I79: 0 | J79: 0 | K79: 0 | L79: 0 | M79: 0 | N79: 0 | O79: 0 | P79: 0 | Q79: 0 | R79: 0 | S79: 0 | T79: 0 | V79: 0 | W79: 0 | X79: similar to fitness assement
A80: ='Components and Space Standards'!A85:E85 -> Expanded Retail 1 | B80: ='Components and Space Standards'!B85:F85 -> 9.29 | C80: ='Components and Space Standards'!C85:G85 -> 100 | D80: ='Components and Space Standards'!D85:G85 -> Expanded Retail Module(s) | E80: ='Components and Space Standards'!E85:H85 -> per area | F80: 0 | G80: 0 | H80: 0 | I80: 0 | J80: 0 | K80: 0 | L80: 0 | M80: 0 | N80: 0 | O80: 0 | P80: 0 | Q80: 0 | R80: 0 | S80: 0 | T80: 0 | V80: 0 | W80: 0 | X80: dry good, sports equip, clothes, etc. Usually contractor and sep from control
A81: ='Components and Space Standards'!A86:E86 -> Expanded Juice Bar 1 | B81: ='Components and Space Standards'!B86:F86 -> 13.935 | C81: ='Components and Space Standards'!C86:G86 -> 150 | D81: ='Components and Space Standards'!D86:G86 -> Expanded Juice Bar Module(s) | E81: ='Components and Space Standards'!E86:H86 -> per area | F81: 0 | G81: 0 | H81: 0 | I81: 0 | J81: 0 | K81: 0 | L81: 0 | M81: 0 | N81: 0 | O81: 0 | P81: 0 | Q81: 0 | R81: 0 | S81: 0 | T81: 0 | V81: 0 | W81: 0 | X81: Additional food/beverage counter. Usually contractor and sep from control
A82: ='Components and Space Standards'!A87:E87 -> Expanded Juice Bar Seating | B82: ='Components and Space Standards'!B87:F87 -> 13.935 | C82: ='Components and Space Standards'!C87:G87 -> 150 | D82: ='Components and Space Standards'!D87:G87 -> Two-table seating Module(s) | E82: ='Components and Space Standards'!E87:H87 -> Two 4-top tables and seating area | F82: 0 | G82: 0 | H82: 0 | I82: 0 | J82: 0 | K82: 0 | L82: 0 | M82: 0 | N82: 0 | O82: 0 | P82: 0 | Q82: 0 | R82: 0 | S82: 0 | T82: 0 | V82: 0 | W82: 0
A83: ='Components and Space Standards'!A88:E88 -> Family Changing Room | B83: ='Components and Space Standards'!B88:F88 -> 10.219 | C83: ='Components and Space Standards'!C88:G88 -> 110 | D83: ='Components and Space Standards'!D88:G88 -> Family Changing Room(s) | E83: ='Components and Space Standards'!E88:H88 -> per shower, wc, lav, changing, and locker | F83: 1 | G83: 10.219 | H83: 110 | I83: 2 | J83: 20.438 | K83: 220 | L83: 3 | M83: 30.657 | N83: 330 | O83: 4 | P83: 40.876 | Q83: 440 | R83: 5 | S83: 51.095 | T83: 550 | U83: 5 | V83: 51.095 | W83: 550 | X83: Indiv. locker area for parent & child (grows by adding showers and changing stalls plus lockers)
A84: ='Components and Space Standards'!A89:E89 -> Convertible Locker Space | B84: ='Components and Space Standards'!B89:F89 -> 69.675 | C84: ='Components and Space Standards'!C89:G89 -> 750 | D84: ='Components and Space Standards'!D89:G89 -> Add'l male or female space | E84: ='Components and Space Standards'!E89:H89 -> 750 sf | F84: 0 | G84: 0 | H84: 0 | I84: 0 | J84: 0 | K84: 0 | L84: 0 | M84: 0 | N84: 0 | O84: 0 | P84: 0 | Q84: 0 | R84: 0 | S84: 0 | T84: 0 | V84: 0 | W84: 0 | X84: AF-only option. Calculate how many people this accomodates
A85: ='Components and Space Standards'!A90:E90 -> Female DV Locker Room * | B85: ='Components and Space Standards'!B90:F90 -> 23.225 | C85: ='Components and Space Standards'!C90:G90 -> 250 | D85: ='Components and Space Standards'!D90:G90 -> Female DV Locker Room | E85: ='Components and Space Standards'!E90:H90 -> 250, 500, 750 | F85: 0 | G85: 0 | H85: 0 | I85: 0 | J85: 0 | K85: 0 | L85: 0 | M85: 0 | N85: 0 | O85: 0 | P85: 0 | Q85: 0 | R85: 0 | S85: 0 | T85: 0 | V85: 0 | W85: 0
A86: ='Components and Space Standards'!A91:E91 -> Child Play Area/Parent Child Area * | B86: ='Components and Space Standards'!B91:F91 -> 74.32 | C86: ='Components and Space Standards'!C91:G91 -> 800 | D86: ='Components and Space Standards'!D91:G91 -> Parent/child Module(s) | E86: ='Components and Space Standards'!E91:H91 -> 400 sf play area (at 35 sf/child), 400 sf equip (50 sf/equip) | F86: 1 | G86: 74.32 | H86: 800 | I86: 1 | J86: 74.32 | K86: 800 | L86: 1 | M86: 74.32 | N86: 800 | O86: 1 | P86: 74.32 | Q86: 800 | R86: 1 | S86: 74.32 | T86: 800 | U86: 1 | V86: 74.32 | W86: 800
A87: ='Components and Space Standards'!A92:E92 -> HAWC Demonstration Kitchen | B87: ='Components and Space Standards'!B92:F92 -> 46.45 | C87: ='Components and Space Standards'!C92:G92 -> 500 | D87: ='Components and Space Standards'!D92:G92 -> Kitchen Module(s) | E87: ='Components and Space Standards'!E92:H92 -> per kitchen | F87: 0 | G87: 0 | H87: 0 | I87: 0 | J87: 0 | K87: 0 | L87: 0 | M87: 0 | N87: 0 | O87: 0 | P87: 0 | Q87: 0 | R87: 0 | S87: 0 | T87: 0 | V87: 0 | W87: 0 | X87: From AF
A88: ='Components and Space Standards'!A93:E93 -> HAWC Relaxation Room * | B88: ='Components and Space Standards'!B93:F93 -> 9.29 | C88: ='Components and Space Standards'!C93:G93 -> 100 | D88: ='Components and Space Standards'!D93:G93 -> Relaxation Room(s) | E88: ='Components and Space Standards'!E93:H93 -> per room | F88: 0 | G88: 0 | H88: 0 | I88: 0 | J88: 0 | K88: 0 | L88: 0 | M88: 0 | N88: 0 | O88: 0 | P88: 0 | Q88: 0 | R88: 0 | S88: 0 | T88: 0 | V88: 0 | W88: 0 | X88: From AF
A89: ='Components and Space Standards'!A94:E94 -> Site Spaces
A90: ='Components and Space Standards'!A95:E95 -> Staff Parking | B90: ='Components and Space Standards'!B95:F95 -> 41.805 | C90: ='Components and Space Standards'!C95:G95 -> 450 | D90: ='Components and Space Standards'!D95:G95 -> Parking Spaces | E90: ='Components and Space Standards'!E95:H95 -> per space (including circulation) | F90: 6 | G90: =F90*B90 -> 250.83 | H90: =F90*C90 -> 2700 | I90: 6 | J90: =$B90*I90 -> 250.83 | K90: =I90*$C90 -> 2700 | L90: 6 | M90: =$B90*L90 -> 250.83 | N90: =L90*$C90 -> 2700 | O90: 6 | P90: =$B90*O90 -> 250.83 | Q90: =O90*$C90 -> 2700 | R90: 10 | S90: =$B90*R90 -> 418.05 | T90: =R90*$C90 -> 4500 | U90: 15 | V90: =$B90*U90 -> 627.075 | W90: =U90*$C90 -> 6750
A91: ='Components and Space Standards'!A96:E96 -> Loading dock | B91: ='Components and Space Standards'!B96:F96 -> 8.361 | C91: ='Components and Space Standards'!C96:G96 -> 90 | D91: ='Components and Space Standards'!D96:G96 -> Loading Dock | E91: ='Components and Space Standards'!E96:H96 -> Per single-truck dock | F91: 1 | G91: 8.361 | H91: 90 | I91: 1 | J91: 8.361 | K91: 90 | L91: 1 | M91: 8.361 | N91: 90 | O91: 1 | P91: 8.361 | Q91: 90 | R91: 1 | S91: 8.361 | T91: 90 | U91: 1 | V91: 8.361 | W91: 90
A92: ='Components and Space Standards'!A97:E97 -> Service Drive/trash | B92: ='Components and Space Standards'!B97:F97 -> 69.675 | C92: ='Components and Space Standards'!C97:G97 -> 750 | D92: ='Components and Space Standards'!D97:G97 -> Service Drive Module | E92: ='Components and Space Standards'!E97:H97 -> per area | F92: 1 | G92: 69.675 | H92: 750 | I92: 1 | J92: 69.675 | K92: 750 | L92: 1 | M92: 69.675 | N92: 750 | O92: 1 | P92: 69.675 | Q92: 750 | R92: 1 | S92: 69.675 | T92: 750 | U92: 1 | V92: 69.675 | W92: 750
A93: ='Components and Space Standards'!A98:E98 -> Customer Parking | B93: ='Components and Space Standards'!B98:F98 -> 41.805 | C93: ='Components and Space Standards'!C98:G98 -> 450 | D93: ='Components and Space Standards'!D98:G98 -> Parking Spaces | E93: ='Components and Space Standards'!E98:H98 -> per space (including circulation) | F93: 92 | G93: 3846.06 | H93: 41400 | I93: 147 | J93: 6145.335 | K93: 66150 | L93: 215 | M93: 8988.075 | N93: 96750 | O93: 298 | P93: 12457.89 | Q93: 134100 | R93: 400 | S93: 16722 | T93: 180000 | U93: 500 | V93: 20902.5 | W93: 225000
A94: ='Components and Space Standards'!A99:E99 -> Bicycle Rack Area | B94: ='Components and Space Standards'!B99:F99 -> 14.864 | C94: ='Components and Space Standards'!C99:G99 -> 160 | D94: ='Components and Space Standards'!D99:G99 -> 10-bike Rack(s) | E94: ='Components and Space Standards'!E99:H99 -> per 10-bike Rack | F94: 1 | G94: 14.864 | H94: 160 | I94: 1 | J94: 14.864 | K94: 160 | L94: 1 | M94: 14.864 | N94: 160 | O94: 1 | P94: 14.864 | Q94: 160 | R94: 2 | S94: 29.728 | T94: 320 | U94: 2 | V94: 29.728 | W94: 320
A95: ='Components and Space Standards'!A100:E100 -> Patio | B95: ='Components and Space Standards'!B100:F100 -> 2.3225 | C95: ='Components and Space Standards'!C100:G100 -> 25 | D95: ='Components and Space Standards'!D100:G100 -> Patio Module(s) | E95: ='Components and Space Standards'!E100:H100 -> per patio | F95: 0 | G95: 0 | H95: 0 | I95: 0 | J95: 0 | K95: 0 | L95: 0 | M95: 0 | N95: 0 | O95: 0 | P95: 0 | Q95: 0 | R95: 0 | S95: 0 | T95: 0 | U95: 0 | V95: 0 | W95: 0
A96: ='Components and Space Standards'!A101:E101 -> * Service-specific space.
A97: ='Components and Space Standards'!A102:E102 -> 1 If contract service, verify area with contractor.

Sheet AF (hidden)
A1: Col. A - D refer to "Components & Space Standards" Sheet. | B1: Space Allocation Standard | F1: Small | I1: Medium | L1: Large | O1: Each Additional 1K | R1: Notes
A2: Functional Component | B2: m2 | C2: ft.2 | D2: Standard | E2: Description | F2: No. | G2: m2 | H2: ft.2 | I2: No. | J2: m2 | K2: ft.2 | L2: No. | M2: m2 | N2: ft.2 | O2: No. | P2: m2 | Q2: ft.2
A3: ='Components and Space Standards'!A3:E3 -> Fitness Spaces
A4: ='Components and Space Standards'!A4 -> Lobby/Reception
A5: ='Components and Space Standards'!A5 -> Entry Lobby | B5: ='Components and Space Standards'!B5 -> 9.29 | C5: ='Components and Space Standards'!C5 -> 100 | D5: ='Components and Space Standards'!D5 -> Vestibule/Lobby Module(s) (for 2-3 ppl) | E5: ='Components and Space Standards'!E5 -> Vesibule and/or space for 2 to 3 ppl to queue | F5: 1 | G5: =$B5*F5 -> 9.29 | H5: =F5*$C5 -> 100 | I5: 2 | J5: =$B5*I5 -> 18.58 | K5: =I5*$C5 -> 200 | L5: 3 | M5: =$B5*L5 -> 27.87 | N5: =L5*$C5 -> 300 | P5: =$B5*O5 -> 0 | Q5: =O5*$C5 -> 0 | R5: between bldg entrance and control
A6: ='Components and Space Standards'!A6 -> Control Counter | B6: ='Components and Space Standards'!B6 -> 11.6125 | C6: ='Components and Space Standards'!C6 -> 125 | D6: ='Components and Space Standards'!D6 -> Counter Module(s) | E6: ='Components and Space Standards'!E6 -> Space for counter, space behind, space in front | F6: 2 | G6: 23.225 | H6: =F6*$C6 -> 250 | J6: =$B6*I6 -> 0 | K6: =I6*$C6 -> 0 | L6: 2 | M6: =$B6*L6 -> 23.225 | N6: =L6*$C6 -> 250 | P6: =$B6*O6 -> 0 | Q6: =O6*$C6 -> 0 | R6: Includes minor retail items
A7: ='Components and Space Standards'!A7 -> Equipment issue storage | B7: ='Components and Space Standards'!B7 -> 16.2575 | C7: ='Components and Space Standards'!C7 -> 175 | D7: ='Components and Space Standards'!D7 -> Storage Module(s) | E7: ='Components and Space Standards'!E7 -> Equipment storage at/behind gear issue | F7: 1 | G7: 16.2575 | H7: =F7*$C7 -> 175 | J7: =$B7*I7 -> 0 | K7: =I7*$C7 -> 0 | L7: 1 | M7: =$B7*L7 -> 16.2575 | N7: =L7*$C7 -> 175 | P7: =$B7*O7 -> 0 | Q7: =O7*$C7 -> 0 | R7: 2 units min. for Navy. Others get 1 unit in smallest
A8: ='Components and Space Standards'!A8 -> Vending | B8: ='Components and Space Standards'!B8 -> 1.858 | C8: ='Components and Space Standards'!C8 -> 20 | D8: ='Components and Space Standards'!D8 -> Vending Machine(s) | E8: ='Components and Space Standards'!E8 -> per vending machine | F8: 2 | G8: 3.716 | H8: =F8*$C8 -> 40 | J8: =$B8*I8 -> 0 | K8: =I8*$C8 -> 0 | L8: 4 | M8: =$B8*L8 -> 7.432 | N8: =L8*$C8 -> 80 | P8: =$B8*O8 -> 0 | Q8: =O8*$C8 -> 0 | R8: 2 for small
A9: ='Components and Space Standards'!A9 -> Waiting/Display | B9: ='Components and Space Standards'!B9 -> 8.361 | C9: ='Components and Space Standards'!C9 -> 90 | D9: ='Components and Space Standards'!D9 -> Seating/Display Module(s) (for 4 ppl) | E9: ='Components and Space Standards'!E9 -> Space for seating for 4 ppl and display area | F9: 6 | G9: 50.166 | H9: =F9*$C9 -> 540 | J9: =$B9*I9 -> 0 | K9: =I9*$C9 -> 0 | L9: 12 | M9: =$B9*L9 -> 100.332 | N9: =L9*$C9 -> 1080 | P9: =$B9*O9 -> 0 | Q9: =O9*$C9 -> 0 | R9: Waiting area adjacent to lobby and in front of control. Grows in units of 90
A10: ='Components and Space Standards'!A10 -> Spectator peak-time circulation | B10: ='Components and Space Standards'!B10 -> 27.87 | C10: ='Components and Space Standards'!C10 -> 300 | D10: ='Components and Space Standards'!D10 -> Circulation Module(s) | E10: ='Components and Space Standards'!E10 -> Per one-side bleachers - driven by gym size | F10: 0 | G10: 0 | R10: Optional, 300 sf for 1 set bleachers, Additional circulation space for peak gym loads
A11: ='Components and Space Standards'!A11 -> Public restrooms/phones | B11: ='Components and Space Standards'!B11 -> 0 | C11: ='Components and Space Standards'!C11 -> 0 | D11: ='Components and Space Standards'!D11 -> Public Restroom(s) | E11: ='Components and Space Standards'!E11 -> Option - Driven by gym size | G11: 0 | R11: 1 (uni), 1/1, ?/?, 4/6 (limit option to those below the facility size) Largest gym size drives largest bathroom. AF limited to top three options.
A12: ='Components and Space Standards'!A12 -> Gymnasium
A13: ='Components and Space Standards'!A13 -> Basketball/volleyball Court | B13: ='Components and Space Standards'!B13 -> 826.0668 | C13: ='Components and Space Standards'!C13 -> 8892 | D13: ='Components and Space Standards'!D13 -> One-court/200-seat Module(s) | E13: ='Components and Space Standards'!E13 -> NCAA Court + 10' safety + 200 seats (one side) | F13: 1 | G13: =$B13*F13 -> 826.0668 | H13: =F13*$C13 -> 8892 | I13: 0 | J13: =$B13*I13 -> 0 | K13: =I13*$C13 -> 0 | L13: 0 | M13: =$B13*L13 -> 0 | N13: =L13*$C13 -> 0 | P13: =$B13*O13 -> 0 | Q13: =O13*$C13 -> 0 | R13: Need both elements if indoor track is required.
A14: ='Components and Space Standards'!A14 -> Two Court Module | B14: ='Components and Space Standards'!B14 -> 1630.9524 | C14: ='Components and Space Standards'!C14 -> 17556 | D14: ='Components and Space Standards'!D14 -> Two-court/200-seat Module(s) | E14: ='Components and Space Standards'!E14 -> Two courts + 10' safety, 16' between cts, + 200 seats | G14: 0 | H14: =F14*$C14 -> 0 | I14: 1 | J14: 1630.9524 | K14: =I14*$C14 -> 17556 | L14: 1 | M14: 1630.9524 | N14: =L14*$C14 -> 17556 | P14: 0 | Q14: =O14*$C14 -> 0
A15: ='Components and Space Standards'!A15 -> Arena-style Two-Court Module | B15: ='Components and Space Standards'!B15 -> 1708.6168 | C15: ='Components and Space Standards'!C15 -> 18392 | D15: ='Components and Space Standards'!D15 -> Arena-style Two-Court Module(s) | E15: ='Components and Space Standards'!E15 -> Provides space for arena-style seating for center, longitudinal ct. | G15: 0 | H15: =F15*$C15 -> 0 | J15: 0 | K15: =I15*$C15 -> 0 | M15: 0 | N15: =L15*$C15 -> 0 | P15: 0 | Q15: =O15*$C15 -> 0
A16: ='Components and Space Standards'!A16 -> Additional Spectator seating | B16: ='Components and Space Standards'!B16 -> 84.70622 | C16: ='Components and Space Standards'!C16 -> 911.8 | D16: ='Components and Space Standards'!D16 -> Additional 200-seat Module(s) | E16: ='Components and Space Standards'!E16 -> Four rows of seats (one ea. side) = 200 ppl. | F16: 1 | G16: 84.70622 | H16: 911.8 | J16: 0 | K16: 0 | L16: 1 | M16: 84.70622 | N16: 911.8 | P16: 0 | Q16: 0
A17: ='Components and Space Standards'!A17 -> Basic storage/support | B17: ='Components and Space Standards'!B17 -> 65.03 | C17: ='Components and Space Standards'!C17 -> 700 | D17: ='Components and Space Standards'!D17 -> Storage Module(s) | E17: ='Components and Space Standards'!E17 -> Roughly 8% of base gym area | F17: 1 | G17: 65.03 | H17: 700 | J17: 0 | K17: 0 | L17: =2-1 -> 1 | M17: 65.03 | N17: 700 | P17: 0 | Q17: 0
A18: ='Components and Space Standards'!A18 -> Additional court storage | B18: ='Components and Space Standards'!B18 -> 32.515 | C18: ='Components and Space Standards'!C18 -> 350 | D18: ='Components and Space Standards'!D18 -> Additional storage module(s) | E18: ='Components and Space Standards'!E18 -> Storage space per additional court | G18: 0 | H18: 0 | J18: 0 | K18: 0 | L18: =0+1 -> 1 | M18: 32.515 | N18: 350 | P18: 0 | Q18: 0
A19: ='Components and Space Standards'!A19 -> Unit PT/Group Exercise
A20: ='Components and Space Standards'!A20 -> Partitionable Room(s) | B20: ='Components and Space Standards'!B20 -> 4.645 | C20: ='Components and Space Standards'!C20 -> 50 | D20: ='Components and Space Standards'!D20 -> people at 4.6 m2 (50 ft.2)/person | E20: ='Components and Space Standards'!E20 -> 116.1 m2 (1,250 ft.2) (25 ppl) minimum size | F20: 205 | G20: =$B20*F20 -> 952.225 | H20: =F20*$C20 -> 10250 | I20: 300 | J20: =$B20*I20 -> 1393.5 | K20: =I20*$C20 -> 15000 | L20: 400 | M20: =$B20*L20 -> 1858 | N20: =L20*$C20 -> 20000 | P20: =$B20*O20 -> 0 | Q20: =O20*$C20 -> 0 | R20: 1250 = min. Navy, AF, MC / 2500 = min Army
A21: ='Components and Space Standards'!A21 -> Storage/support | B21: ='Components and Space Standards'!B21 -> 0.4645 | C21: ='Components and Space Standards'!C21 -> 5 | D21: ='Components and Space Standards'!D21 -> 10% of partitionable room area | E21: ='Components and Space Standards'!E21 -> 11.6 m2 (125 ft.2) minimum (10% of room area) | F21: =F20 -> 205 | G21: =$B21*F21 -> 95.2225 | H21: =F21*$C21 -> 1025 | I21: =I20 -> 300 | J21: =$B21*I21 -> 139.35 | K21: =I21*$C21 -> 1500 | L21: =L20 -> 400 | M21: =$B21*L21 -> 185.8 | N21: =L21*$C21 -> 2000 | P21: =$B21*O21 -> 0 | Q21: =O21*$C21 -> 0
A22: ='Components and Space Standards'!A22 -> Fitness Spaces
A23: ='Components and Space Standards'!A23 -> Stretching | B23: ='Components and Space Standards'!B23 -> 4.645 | C23: ='Components and Space Standards'!C23 -> 50 | D23: ='Components and Space Standards'!D23 -> people at 4.6 m2 (50 ft.2)/person | E23: ='Components and Space Standards'!E23 -> 50 sf per person - min. 2 ppl | F23: 2 | G23: =$B23*F23 -> 9.29 | H23: =F23*$C23 -> 100 | J23: =$B23*I23 -> 0 | K23: =I23*$C23 -> 0 | L23: 7 | M23: =$B23*L23 -> 32.515 | N23: =L23*$C23 -> 350 | P23: =$B23*O23 -> 0 | Q23: =O23*$C23 -> 0 | R23: See Fitness Space sheet and exist. docs for these numbers
A24: ='Components and Space Standards'!A24 -> Cardiovascular Equipment | B24: ='Components and Space Standards'!B24 -> 4.645 | C24: ='Components and Space Standards'!C24 -> 50 | D24: ='Components and Space Standards'!D24 -> items at 4.6 m2 (50 ft.2)/item | E24: ='Components and Space Standards'!E24 -> 50 sf per station | F24: 10 | G24: =$B24*F24 -> 46.45 | H24: =F24*$C24 -> 500 | J24: =$B24*I24 -> 0 | K24: =I24*$C24 -> 0 | L24: 50 | M24: =$B24*L24 -> 232.25 | N24: =L24*$C24 -> 2500 | P24: =$B24*O24 -> 0 | Q24: =O24*$C24 -> 0
A25: ='Components and Space Standards'!A25 -> Selectorized (machine) weights | B25: ='Components and Space Standards'!B25 -> 4.645 | C25: ='Components and Space Standards'!C25 -> 50 | D25: ='Components and Space Standards'!D25 -> items at 4.6 m2 (50 ft.2)/item | E25: ='Components and Space Standards'!E25 -> 50 sf per station | F25: 17 | G25: =$B25*F25 -> 78.965 | H25: =F25*$C25 -> 850 | J25: =$B25*I25 -> 0 | K25: =I25*$C25 -> 0 | L25: 45 | M25: =$B25*L25 -> 209.025 | N25: =L25*$C25 -> 2250 | P25: =$B25*O25 -> 0 | Q25: =O25*$C25 -> 0
A26: ='Components and Space Standards'!A26 -> Free/Plate-loaded weights | B26: ='Components and Space Standards'!B26 -> 6.0385 | C26: ='Components and Space Standards'!C26 -> 65 | D26: ='Components and Space Standards'!D26 -> stations at 6.0 m2 (65 ft.2)/stations | E26: ='Components and Space Standards'!E26 -> 65 sf per station | F26: 17 | G26: =$B26*F26 -> 102.6545 | H26: =F26*$C26 -> 1105 | J26: =$B26*I26 -> 0 | K26: =I26*$C26 -> 0 | L26: 34 | M26: =$B26*L26 -> 205.309 | N26: =L26*$C26 -> 2210 | P26: =$B26*O26 -> 0 | Q26: =O26*$C26 -> 0
A27: ='Components and Space Standards'!A27 -> Finess Program Manager's Office | B27: ='Components and Space Standards'!B27 -> 11.6125 | C27: ='Components and Space Standards'!C27 -> 125 | D27: ='Components and Space Standards'!D27 -> Office | E27: ='Components and Space Standards'!E27 -> Private office that may include fitness testing equipment
A28: ='Components and Space Standards'!A28 -> Fitness Assessment Room | B28: ='Components and Space Standards'!B28 -> 11.6125 | C28: ='Components and Space Standards'!C28 -> 125 | D28: ='Components and Space Standards'!D28 -> Office(s) | E28: ='Components and Space Standards'!E28 -> 1 piece fitness equip for testing, computer desk, chairs, stretching | F28: 1 | G28: =$B28*F28 -> 11.6125 | H28: =F28*$C28 -> 125 | J28: =$B28*I28 -> 0 | K28: =I28*$C28 -> 0 | L28: 1 | M28: =$B28*L28 -> 11.6125 | N28: =L28*$C28 -> 125 | P28: =$B28*O28 -> 0 | Q28: =O28*$C28 -> 0
A29: ='Components and Space Standards'!A29 -> Structured Activities
A30: ='Components and Space Standards'!A30 -> Structured Activity Space | B30: ='Components and Space Standards'!B30 -> 74.32 | C30: ='Components and Space Standards'!C30 -> 800 | D30: ='Components and Space Standards'!D30 -> Flexible space Module(s) | E30: ='Components and Space Standards'!E30 -> Based on size of a single racquetball court | F30: 1 | G30: =$B30*F30 -> 74.32 | H30: =F30*$C30 -> 800 | J30: =$B30*I30 -> 0 | K30: =I30*$C30 -> 0 | L30: 2 | M30: =$B30*L30 -> 148.64 | N30: =L30*$C30 -> 1600 | P30: =$B30*O30 -> 0 | Q30: =O30*$C30 -> 0 | R30: equip. based
A31: ='Components and Space Standards'!A31 -> Racquetball Courts | B31: ='Components and Space Standards'!B31 -> 74.32 | C31: ='Components and Space Standards'!C31 -> 800 | D31: ='Components and Space Standards'!D31 -> Racquetball Court(s) | E31: ='Components and Space Standards'!E31 -> Single court size. Minimum of two courts | F31: 2 | G31: =$B31*F31 -> 148.64 | H31: =F31*$C31 -> 1600 | J31: =$B31*I31 -> 0 | K31: =I31*$C31 -> 0 | L31: 4 | M31: =$B31*L31 -> 297.28 | N31: =L31*$C31 -> 3200 | P31: =$B31*O31 -> 0 | Q31: =O31*$C31 -> 0
A32: ='Components and Space Standards'!A34 -> Spectator/officiating (MC Option) | B32: ='Components and Space Standards'!B34 -> 18.58 | C32: ='Components and Space Standards'!C34 -> 200 | D32: ='Components and Space Standards'!D34 -> Spectator/officiating Module(s) | E32: ='Components and Space Standards'!E34 -> Two rows of 10 seats for one ct. Max of two cts (400 sf) | F32: 1 | G32: =$B32*F32 -> 18.58 | H32: =F32*$C32 -> 200 | J32: =$B32*I32 -> 0 | K32: =I32*$C32 -> 0 | L32: 2 | M32: =$B32*L32 -> 37.16 | N32: =L32*$C32 -> 400 | P32: =$B32*O32 -> 0 | Q32: =O32*$C32 -> 0
A33: ='Components and Space Standards'!A35 -> Structured activity storage | B33: ='Components and Space Standards'!B35 -> 7.432 | C33: ='Components and Space Standards'!C35 -> 80 | D33: ='Components and Space Standards'!D35 -> 10% of Structured Activity Space | E33: ='Components and Space Standards'!E35 -> Based on Structured activity space (10% of room area)
A34: ='Components and Space Standards'!A36 -> Locker Rooms | R34: Apply male/female split on occupant load, then calculate individual male and female locker areas from the split number.
A35: ='Components and Space Standards'!A37 -> Men's Locker Room | B35: ='Components and Space Standards'!B37 -> 0 | C35: ='Components and Space Standards'!C37 -> 0 | D35: ='Components and Space Standards'!D37 -> 0 | E35: ='Components and Space Standards'!E37 -> 0 | G35: =$B35*F35 -> 0 | H35: =F35*$C35 -> 0 | J35: =$B35*I35 -> 0 | K35: =I35*$C35 -> 0 | M35: =$B35*L35 -> 0 | N35: =L35*$C35 -> 0 | P35: =$B35*O35 -> 0 | Q35: =O35*$C35 -> 0
A36: ='Components and Space Standards'!A38 -> Locker/changing area | B36: ='Components and Space Standards'!B38 -> 0.7432 | C36: ='Components and Space Standards'!C38 -> 8 | D36: ='Components and Space Standards'!D38 -> Lockers | E36: ='Components and Space Standards'!E38 -> Per slot (2 double lockers or 1 single locker) | F36: 175 | G36: 130.06 | H36: 1400 | J36: 0 | K36: 0 | L36: 382 | M36: 283.9024 | N36: 3056 | P36: 0 | Q36: 0 | R36: Ratios: 1 to 1 (all full), 66% (1 full per 2 dbls - or 3 ppl / 2 slots), 50% (all double lockers) - Environmental adjust factor -----
A37: ='Components and Space Standards'!A39 -> Shower/drying area | B37: ='Components and Space Standards'!B39 -> 2.787 | C37: ='Components and Space Standards'!C39 -> 30 | D37: ='Components and Space Standards'!D39 -> Showers | E37: ='Components and Space Standards'!E39 -> Per shower & integral drying area at 22 lockers/shower | F37: 9 | G37: 25.083 | H37: 270 | J37: 0 | K37: 0 | L37: 19 | M37: 52.953 | N37: 570 | P37: 0 | Q37: 0
A38: ='Components and Space Standards'!A40 -> Toilet area | B38: ='Components and Space Standards'!B40 -> 4.1805 | C38: ='Components and Space Standards'!C40 -> 45 | D38: ='Components and Space Standards'!D40 -> Water closets/lavatory modules | E38: ='Components and Space Standards'!E40 -> Per wc and lav. at 30 lockers per wc/lav | F38: 6 | G38: 25.083 | H38: 270 | J38: 0 | K38: 0 | L38: 13 | M38: 54.3465 | N38: 585 | P38: 0 | Q38: 0 | R38: Will confirm that 30 lockers per wc/lav is the correct formula
A39: ='Components and Space Standards'!A41 -> Women's Locker Room | B39: ='Components and Space Standards'!B41 -> 0 | C39: ='Components and Space Standards'!C41 -> 0 | D39: ='Components and Space Standards'!D41 -> 0 | E39: ='Components and Space Standards'!E41 -> 0 | G39: 0 | H39: 0 | J39: 0 | K39: 0 | M39: 0 | N39: 0 | P39: 0 | Q39: 0
A40: ='Components and Space Standards'!A42 -> Locker/changing area | B40: ='Components and Space Standards'!B42 -> 0.7432 | C40: ='Components and Space Standards'!C42 -> 8 | D40: ='Components and Space Standards'!D42 -> Lockers | E40: ='Components and Space Standards'!E42 -> Per slot (2 double lockers or 1 single locker) | F40: 143 | G40: 106.2776 | H40: 1144 | J40: 0 | K40: 0 | L40: 313 | M40: 232.6216 | N40: 2504 | P40: 0 | Q40: 0
A41: ='Components and Space Standards'!A43 -> Shower/drying area | B41: ='Components and Space Standards'!B43 -> 2.787 | C41: ='Components and Space Standards'!C43 -> 30 | D41: ='Components and Space Standards'!D43 -> Showers | E41: ='Components and Space Standards'!E43 -> Per shower & integral drying area at 22 lockers/shower | F41: 7 | G41: 19.509 | H41: 210 | J41: 0 | K41: 0 | L41: 16 | M41: 44.592 | N41: 480 | P41: 0 | Q41: 0
A42: ='Components and Space Standards'!A44 -> Toilet area | B42: ='Components and Space Standards'!B44 -> 4.1805 | C42: ='Components and Space Standards'!C44 -> 45 | D42: ='Components and Space Standards'!D44 -> Water closets/lavatory modules | E42: ='Components and Space Standards'!E44 -> per wc and lav. at 20 lockers per wc/lav | F42: 5 | G42: 20.9025 | H42: 225 | J42: 0 | K42: 0 | L42: 10 | M42: 41.805 | N42: 450 | P42: 0 | Q42: 0 | R42: Will confirm that 20 lockers per wc/lav is the correct formula
A43: ='Components and Space Standards'!A45 -> Sauna, cool-down area | B43: ='Components and Space Standards'!B45 -> 0 | C43: ='Components and Space Standards'!C45 -> 0 | D43: ='Components and Space Standards'!D45 -> M/F (2) Saunas/cool-down area | E43: ='Components and Space Standards'!E45 -> small = 6 ppl, med = 8-9, lg = 12 ppl (+ cool down space)
A44: ='Components and Space Standards'!A46 -> Steam Room, cool-down area | B44: ='Components and Space Standards'!B46 -> 0 | C44: ='Components and Space Standards'!C46 -> 0 | D44: ='Components and Space Standards'!D46 -> M/F (2) Steam Rooms/cool-down area | E44: ='Components and Space Standards'!E46 -> small = 6-7 ppl, med = 8-9, lg = 12-14 (+ cool down space)
A45: ='Components and Space Standards'!A47 -> Hot Tub | B45: ='Components and Space Standards'!B47 -> 0 | C45: ='Components and Space Standards'!C47 -> 0 | D45: ='Components and Space Standards'!D47 -> Unisex Hot Tub | E45: ='Components and Space Standards'!E47 -> small = 5 ppl, med = 8, lg = 12-14 ppl
A46: ='Components and Space Standards'!A48 -> Support Areas
A47: ='Components and Space Standards'!A49 -> Laundry | B47: ='Components and Space Standards'!B49 -> 18.58 | C47: ='Components and Space Standards'!C49 -> 200 | D47: ='Components and Space Standards'!D49 -> Laundry Room | E47: ='Components and Space Standards'!E49 -> Per one-washer/two-dryer room | F47: 1 | I47: 2 | L47: 3 | R47: One washer, two dryers, commercial equip, folding table, sink, storage shelves, laundry carts, and opt. ice machine.
A48: ='Components and Space Standards'!A50 -> Equipment repair and receiving | B48: ='Components and Space Standards'!B50 -> 0 | C48: ='Components and Space Standards'!C50 -> 0 | D48: ='Components and Space Standards'!D50 -> Repair/receiving Room | E48: ='Components and Space Standards'!E50 -> Fixed receiving area + variable repair (10% of Fitness) | R48: 10% of total Fitness (Army) / 250 sf (AF)
A49: ='Components and Space Standards'!A51 -> Storage | B49: ='Components and Space Standards'!B51 -> 0 | C49: ='Components and Space Standards'!C51 -> 0 | D49: ='Components and Space Standards'!D51 -> Storage Room | E49: ='Components and Space Standards'!E51 -> Variable lockable storage room (5% of fitness)
A50: ='Components and Space Standards'!A52 -> Additional Programmatic Storage | B50: ='Components and Space Standards'!B52 -> 0 | C50: ='Components and Space Standards'!C52 -> 0 | D50: ='Components and Space Standards'!D52 -> sf Additional Storage | E50: ='Components and Space Standards'!E52 -> To be filled-in by programmer and justified based on item stored.
A51: ='Components and Space Standards'!A54:E54 -> Health Promotion Spaces - Marine Corps Only (Required or Optional)
A52: ='Components and Space Standards'!A55 -> Lobby/Reception | B52: ='Components and Space Standards'!B55 -> 27.87 | C52: ='Components and Space Standards'!C55 -> 300 | D52: ='Components and Space Standards'!D55 -> Lobby/Reception Module(s) | E52: ='Components and Space Standards'!E55 -> per area | F52: 1 | G52: =$B52*F52 -> 27.87 | H52: =F52*$C52 -> 300 | I52: 1 | J52: =$B52*I52 -> 27.87 | K52: =I52*$C52 -> 300 | L52: 1 | M52: =$B52*L52 -> 27.87 | N52: =L52*$C52 -> 300 | P52: =$B52*O52 -> 0 | Q52: =O52*$C52 -> 0 | R52: From AF
A53: ='Components and Space Standards'!A56 -> Director's Office | B53: ='Components and Space Standards'!B56 -> 11.148 | C53: ='Components and Space Standards'!C56 -> 120 | D53: ='Components and Space Standards'!D56 -> Office | E53: ='Components and Space Standards'!E56 -> per office | F53: 1 | G53: 11.148 | H53: 120 | I53: 1 | J53: 11.148 | K53: 120 | L53: 1 | M53: 11.148 | N53: 120 | P53: 0 | Q53: 0 | R53: AF office area = 400 sf total
A54: ='Components and Space Standards'!A57 -> Program Managers' Offices | B54: ='Components and Space Standards'!B57 -> 9.29 | C54: ='Components and Space Standards'!C57 -> 100 | D54: ='Components and Space Standards'!D57 -> Office(s) | E54: ='Components and Space Standards'!E57 -> per office | F54: 3 | G54: 27.87 | H54: 300 | I54: 4 | J54: 37.16 | K54: 400 | L54: 6 | M54: 55.74 | N54: 600 | P54: 0 | Q54: 0
A55: ='Components and Space Standards'!A58 -> Support Staff Workstations | B55: ='Components and Space Standards'!B58 -> 5.9456 | C55: ='Components and Space Standards'!C58 -> 64 | D55: ='Components and Space Standards'!D58 -> Workstation(s) | E55: ='Components and Space Standards'!E58 -> per workstation | F55: 1 | G55: 5.9456 | H55: 64 | I55: 1 | J55: 5.9456 | K55: 64 | L55: 1 | M55: 5.9456 | N55: 64 | P55: 0 | Q55: 0
A56: ='Components and Space Standards'!A59 -> Classrooms/Training rooms | B56: ='Components and Space Standards'!B59 -> 58.527 | C56: ='Components and Space Standards'!C59 -> 630 | D56: ='Components and Space Standards'!D59 -> Classroom/Training Module(s) | E56: ='Components and Space Standards'!E59 -> per room | F56: 4 | G56: 234.108 | H56: 2520 | I56: 4 | J56: 234.108 | K56: 2520 | L56: 4 | M56: 234.108 | N56: 2520 | P56: 0 | Q56: 0 | R56: From AF
A57: ='Components and Space Standards'!A60 -> Resource Room/Computer Lab | B57: ='Components and Space Standards'!B60 -> 23.225 | C57: ='Components and Space Standards'!C60 -> 250 | D57: ='Components and Space Standards'!D60 -> Resource/Computer Lab Module(s) | E57: ='Components and Space Standards'!E60 -> per room | F57: 0 | G57: 0 | H57: 0 | I57: 0 | J57: 0 | K57: 0 | L57: 0 | M57: 0 | N57: 0 | P57: 0 | Q57: 0 | R57: From AF - combines comp lab with resource library
A58: ='Components and Space Standards'!A61 -> Storage/support | B58: ='Components and Space Standards'!B61 -> 7.432 | C58: ='Components and Space Standards'!C61 -> 80 | D58: ='Components and Space Standards'!D61 -> Storage/support Module(s) | E58: ='Components and Space Standards'!E61 -> per area | F58: 1 | G58: 7.432 | H58: 80 | I58: 1 | J58: 7.432 | K58: 80 | L58: 2 | M58: 14.864 | N58: 160 | P58: 0 | Q58: 0
A59: ='Components and Space Standards'!A63 -> Ergometry and Fitness Testing * | B59: ='Components and Space Standards'!B63 -> 7.432 | C59: ='Components and Space Standards'!C63 -> 80 | D59: ='Components and Space Standards'!D63 -> Testing Cubicle(s) | E59: ='Components and Space Standards'!E63 -> per testing cubicles | F59: 1 | G59: 7.432 | H59: 80 | I59: 2 | J59: 14.864 | K59: 160 | L59: 4 | M59: 29.728 | N59: 320 | P59: 0 | Q59: 0 | R59: From AF - cubicles go in an enclosed room (need circulation beteen cubicles--doesn't seem to be accounted for in AF criteria?)
A60: ='Components and Space Standards'!A64 -> Wellness Assessment * | B60: ='Components and Space Standards'!B64 -> 13.935 | C60: ='Components and Space Standards'!C64 -> 150 | D60: ='Components and Space Standards'!D64 -> Assessment Room(s) | E60: ='Components and Space Standards'!E64 -> per room | F60: 1 | G60: 13.935 | H60: 150 | I60: 1 | J60: 13.935 | K60: 150 | L60: 1 | M60: 13.935 | N60: 150 | P60: 0 | Q60: 0 | R60: From AF
A61: ='Components and Space Standards'!A65:E65 -> Administrative Spaces (required or optional)
A62: ='Components and Space Standards'!A66 -> Director's Office | B62: ='Components and Space Standards'!B66 -> 11.148 | C62: ='Components and Space Standards'!C66 -> 120 | D62: ='Components and Space Standards'!D66 -> Office | E62: ='Components and Space Standards'!E66 -> per office | F62: 1 | G62: =$B62*F62 -> 11.148 | H62: =F62*$C62 -> 120 | I62: 1 | J62: =$B62*I62 -> 11.148 | K62: =I62*$C62 -> 120 | L62: 1 | M62: =$B62*L62 -> 11.148 | N62: =L62*$C62 -> 120 | P62: =$B62*O62 -> 0 | Q62: =O62*$C62 -> 0 | R62: req.
A63: ='Components and Space Standards'!A67 -> Program Managers' Offices | B63: ='Components and Space Standards'!B67 -> 9.29 | C63: ='Components and Space Standards'!C67 -> 100 | D63: ='Components and Space Standards'!D67 -> Office(s) | E63: ='Components and Space Standards'!E67 -> per office | F63: 3 | G63: 27.87 | H63: 300 | I63: 3 | J63: 27.87 | K63: 300 | L63: 3 | M63: 27.87 | N63: 300 | P63: 0 | Q63: 0 | R63: optional (req. AF)
A64: ='Components and Space Standards'!A68 -> Support Staff Workstations | B64: ='Components and Space Standards'!B68 -> 5.9456 | C64: ='Components and Space Standards'!C68 -> 64 | D64: ='Components and Space Standards'!D68 -> Workstation(s) | E64: ='Components and Space Standards'!E68 -> per office | F64: 4 | G64: 23.7824 | H64: 256 | I64: 5 | J64: 29.728 | K64: 320 | L64: 7 | M64: 41.6192 | N64: 448 | P64: 0 | Q64: 0 | R64: optional (req. AF)
A65: ='Components and Space Standards'!A69 -> Copy/file/work/break Room | B65: ='Components and Space Standards'!B69 -> 7.432 | C65: ='Components and Space Standards'!C69 -> 80 | D65: ='Components and Space Standards'!D69 -> Workroom Module(s) | E65: ='Components and Space Standards'!E69 -> per room | F65: 1 | G65: 7.432 | H65: 80 | I65: 1 | J65: 7.432 | K65: 80 | L65: 1 | M65: 7.432 | N65: 80 | P65: 0 | Q65: 0 | R65: req.
A66: ='Components and Space Standards'!A70 -> Classroom/Training Room | B66: ='Components and Space Standards'!B70 -> 69.675 | C66: ='Components and Space Standards'!C70 -> 750 | D66: ='Components and Space Standards'!D70 -> 25-person Module at 750 SF | E66: ='Components and Space Standards'!E70 -> 1,500 SF Med/Lge & 2,250 SF for Xtra Lge/Jumbo | F66: 1.6 | G66: 111.48 | H66: 1200 | I66: 1.7 | J66: 118.4475 | K66: 1275 | L66: 1.8 | M66: 125.415 | N66: 1350 | P66: 0 | Q66: 0 | R66: Req. Program space
A67: ='Components and Space Standards'!A71 -> Classroom/Training Storage | B67: ='Components and Space Standards'!B71 -> 5.574 | C67: ='Components and Space Standards'!C71 -> 60 | D67: ='Components and Space Standards'!D71 -> Storage Module(s) | E67: ='Components and Space Standards'!E71 -> per 25-person Training Room | F67: 2 | G67: 11.148 | H67: 120 | I67: 3 | J67: 16.722 | K67: 180 | L67: 4 | M67: 22.296 | N67: 240 | P67: 0 | Q67: 0
A68: ='Components and Space Standards'!A72:E72 -> Optional or Service-specific Program Spaces
A69: ='Components and Space Standards'!A75 -> Indoor Track
A70: ='Components and Space Standards'!A76 -> Indoor Track
A71: ='Components and Space Standards'!A77 -> 1/14th-mile Indoor Track | B71: ='Components and Space Standards'!B77 -> 310.0073 | C71: ='Components and Space Standards'!C77 -> 3337 | D71: ='Components and Space Standards'!D77 -> 1/14th-mile, 2-lane Indoor Track | E71: ='Components and Space Standards'!E77 -> 1/14th-mile, 2-lane Indoor Track (754 linear ft.) | G71: =$B71*F71 -> 0 | H71: =F71*$C71 -> 0 | J71: =$B71*I71 -> 0 | K71: =I71*$C71 -> 0 | M71: =$B71*L71 -> 0 | N71: =L71*$C71 -> 0 | P71: =$B71*O71 -> 0 | Q71: =O71*$C71 -> 0 | R71: (smallest gym option, Army and Navy only)
A72: ='Components and Space Standards'!A79 -> 1/11th-mile Indoor Track | B72: ='Components and Space Standards'!B79 -> 556.7497 | C72: ='Components and Space Standards'!C79 -> 5993 | D72: ='Components and Space Standards'!D79 -> 1/11th-mile, 3-lane Indoor Track | E72: ='Components and Space Standards'!E79 -> 1/11th-mile, 3-lane Indoor Track (1440 linear ft.) | G72: 0 | H72: 0 | J72: 0 | K72: 0 | M72: 0 | N72: 0 | P72: 0 | Q72: 0
A73: ='Components and Space Standards'!A80 -> 1/8th-mile Indoor Track | B73: ='Components and Space Standards'!B80 -> 989.1063 | C73: ='Components and Space Standards'!C80 -> 10647 | D73: ='Components and Space Standards'!D80 -> 1/8th-mile, 4-lane Indoor Track | E73: ='Components and Space Standards'!E80 -> 1/8th-mile, 4-lane Indoor Track (2640 linear ft.) | F73: 1 | G73: 989.1063 | H73: 10647 | I73: 1 | J73: 989.1063 | K73: 10647 | L73: 1 | M73: 989.1063 | N73: 10647 | P73: 0 | Q73: 0
A74: ='Components and Space Standards'!A81 -> Indoor track lobby | B74: ='Components and Space Standards'!B81 -> 13.3776 | C74: ='Components and Space Standards'!C81 -> 144 | D74: ='Components and Space Standards'!D81 -> Indoor track lobby(ies) | E74: ='Components and Space Standards'!E81 -> Access point to lobby from stair/elevator | F74: 1 | G74: 13.3776 | H74: 144 | I74: 1 | J74: 13.3776 | K74: 144 | L74: 1 | M74: 13.3776 | N74: 144 | P74: 0 | Q74: 0
A75: ='Components and Space Standards'!A82 -> Additional Group Exercise Room | B75: ='Components and Space Standards'!B82 -> 116.125 | C75: ='Components and Space Standards'!C82 -> 1250 | D75: ='Components and Space Standards'!D82 -> Additional Group Exercise Room | E75: ='Components and Space Standards'!E82 -> per room | G75: 0 | H75: 0 | J75: 0 | K75: 0 | M75: 0 | N75: 0 | P75: 0 | Q75: 0 | R75: Optional catch-up space
A76: ='Components and Space Standards'!A83 -> Massage Room | B76: ='Components and Space Standards'!B83 -> 11.148 | C76: ='Components and Space Standards'!C83 -> 120 | D76: ='Components and Space Standards'!D83 -> Massage Room(s) | E76: ='Components and Space Standards'!E83 -> per room | G76: 0 | H76: 0 | J76: 0 | K76: 0 | M76: 0 | N76: 0 | P76: 0 | Q76: 0
A77: ='Components and Space Standards'!A84 -> Physical Therapy Training | B77: ='Components and Space Standards'!B84 -> 11.6125 | C77: ='Components and Space Standards'!C84 -> 125 | D77: ='Components and Space Standards'!D84 -> Physical Therapy Training Room(s) | E77: ='Components and Space Standards'!E84 -> per room | G77: 0 | H77: 0 | J77: 0 | K77: 0 | M77: 0 | N77: 0 | P77: 0 | Q77: 0 | R77: similar to fitness assement
A78: ='Components and Space Standards'!A85 -> Expanded Retail 1 | B78: ='Components and Space Standards'!B85 -> 9.29 | C78: ='Components and Space Standards'!C85 -> 100 | D78: ='Components and Space Standards'!D85 -> Expanded Retail Module(s) | E78: ='Components and Space Standards'!E85 -> per area | G78: 0 | H78: 0 | J78: 0 | K78: 0 | M78: 0 | N78: 0 | P78: 0 | Q78: 0 | R78: dry good, sports equip, clothes, etc. Usually contractor and sep from control
A79: ='Components and Space Standards'!A86 -> Expanded Juice Bar 1 | B79: ='Components and Space Standards'!B86 -> 13.935 | C79: ='Components and Space Standards'!C86 -> 150 | D79: ='Components and Space Standards'!D86 -> Expanded Juice Bar Module(s) | E79: ='Components and Space Standards'!E86 -> per area | G79: 0 | H79: 0 | J79: 0 | K79: 0 | M79: 0 | N79: 0 | P79: 0 | Q79: 0 | R79: Additional food/beverage counter. Usually contractor and sep from control
A80: ='Components and Space Standards'!A87 -> Expanded Juice Bar Seating | B80: ='Components and Space Standards'!B87 -> 13.935 | C80: ='Components and Space Standards'!C87 -> 150 | D80: ='Components and Space Standards'!D87 -> Two-table seating Module(s) | E80: ='Components and Space Standards'!E87 -> Two 4-top tables and seating area | G80: 0 | H80: 0 | J80: 0 | K80: 0 | M80: 0 | N80: 0 | P80: 0 | Q80: 0
A81: ='Components and Space Standards'!A88 -> Family Changing Room | B81: ='Components and Space Standards'!B88 -> 10.219 | C81: ='Components and Space Standards'!C88 -> 110 | D81: ='Components and Space Standards'!D88 -> Family Changing Room(s) | E81: ='Components and Space Standards'!E88 -> per shower, wc, lav, changing, and locker | G81: 0 | H81: 0 | J81: 0 | K81: 0 | M81: 0 | N81: 0 | P81: 0 | Q81: 0 | R81: Indiv. locker area for parent & child (grows by adding showers and changing stalls plus lockers)
A82: ='Components and Space Standards'!A89 -> Convertible Locker Space | B82: ='Components and Space Standards'!B89 -> 69.675 | C82: ='Components and Space Standards'!C89 -> 750 | D82: ='Components and Space Standards'!D89 -> Add'l male or female space | E82: ='Components and Space Standards'!E89 -> 750 sf | F82: 1 | G82: 69.675 | H82: 750 | J82: 0 | K82: 0 | L82: 1.5 | M82: 104.5125 | N82: 1125 | P82: 0 | Q82: 0 | R82: AF-only option. Calculate how many people this accomodates
A83: ='Components and Space Standards'!A90 -> Female DV Locker Room * | B83: ='Components and Space Standards'!B90 -> 23.225 | C83: ='Components and Space Standards'!C90 -> 250 | D83: ='Components and Space Standards'!D90 -> Female DV Locker Room | E83: ='Components and Space Standards'!E90 -> 250, 500, 750 | F83: 1 | G83: 23.225 | H83: 250 | J83: 0 | K83: 0 | L83: 2 | M83: 46.45 | N83: 500 | P83: 0 | Q83: 0
A84: ='Components and Space Standards'!A91 -> Child Play Area/Parent Child Area * | B84: ='Components and Space Standards'!B91 -> 74.32 | C84: ='Components and Space Standards'!C91 -> 800 | D84: ='Components and Space Standards'!D91 -> Parent/child Module(s) | E84: ='Components and Space Standards'!E91 -> 400 sf play area (at 35 sf/child), 400 sf equip (50 sf/equip) | G84: 0 | H84: 0 | J84: 0 | K84: 0 | M84: 0 | N84: 0 | P84: 0 | Q84: 0
A85: ='Components and Space Standards'!A92 -> HAWC Demonstration Kitchen | B85: ='Components and Space Standards'!B92 -> 46.45 | C85: ='Components and Space Standards'!C92 -> 500 | D85: ='Components and Space Standards'!D92 -> Kitchen Module(s) | E85: ='Components and Space Standards'!E92 -> per kitchen | G85: 0 | H85: 0 | J85: 0 | K85: 0 | M85: 0 | N85: 0 | P85: 0 | Q85: 0 | R85: From AF
A86: ='Components and Space Standards'!A93 -> HAWC Relaxation Room * | B86: ='Components and Space Standards'!B93 -> 9.29 | C86: ='Components and Space Standards'!C93 -> 100 | D86: ='Components and Space Standards'!D93 -> Relaxation Room(s) | E86: ='Components and Space Standards'!E93 -> per room | G86: 0 | H86: 0 | J86: 0 | K86: 0 | M86: 0 | N86: 0 | P86: 0 | Q86: 0 | R86: From AF
A87: ='Components and Space Standards'!A94:E94 -> Site Spaces
A88: ='Components and Space Standards'!A95 -> Staff Parking | B88: ='Components and Space Standards'!B95 -> 41.805 | C88: ='Components and Space Standards'!C95 -> 450 | D88: ='Components and Space Standards'!D95 -> Parking Spaces | E88: ='Components and Space Standards'!E95 -> per space (including circulation) | G88: =F88*B88 -> 0 | H88: =F88*C88 -> 0 | J88: =$B88*I88 -> 0 | K88: =I88*$C88 -> 0 | M88: =$B88*L88 -> 0 | N88: =L88*$C88 -> 0 | P88: =$B88*O88 -> 0 | Q88: =O88*$C88 -> 0
A89: ='Components and Space Standards'!A96 -> Loading dock | B89: ='Components and Space Standards'!B96 -> 8.361 | C89: ='Components and Space Standards'!C96 -> 90 | D89: ='Components and Space Standards'!D96 -> Loading Dock | E89: ='Components and Space Standards'!E96 -> Per single-truck dock | G89: 0 | H89: 0 | J89: 0 | K89: 0 | M89: 0 | N89: 0 | P89: 0 | Q89: 0
A90: ='Components and Space Standards'!A97 -> Service Drive/trash | B90: ='Components and Space Standards'!B97 -> 69.675 | C90: ='Components and Space Standards'!C97 -> 750 | D90: ='Components and Space Standards'!D97 -> Service Drive Module | E90: ='Components and Space Standards'!E97 -> per area | G90: 0 | H90: 0 | J90: 0 | K90: 0 | M90: 0 | N90: 0 | P90: 0 | Q90: 0
A91: ='Components and Space Standards'!A98 -> Customer Parking | B91: ='Components and Space Standards'!B98 -> 41.805 | C91: ='Components and Space Standards'!C98 -> 450 | D91: ='Components and Space Standards'!D98 -> Parking Spaces | E91: ='Components and Space Standards'!E98 -> per space (including circulation) | G91: 0 | H91: 0 | J91: 0 | K91: 0 | M91: 0 | N91: 0 | P91: 0 | Q91: 0
A92: ='Components and Space Standards'!A99 -> Bicycle Rack Area | B92: ='Components and Space Standards'!B99 -> 14.864 | C92: ='Components and Space Standards'!C99 -> 160 | D92: ='Components and Space Standards'!D99 -> 10-bike Rack(s) | E92: ='Components and Space Standards'!E99 -> per 10-bike Rack | G92: 0 | H92: 0 | J92: 0 | K92: 0 | M92: 0 | N92: 0 | P92: 0 | Q92: 0
A93: ='Components and Space Standards'!A100 -> Patio | B93: ='Components and Space Standards'!B100 -> 2.3225 | C93: ='Components and Space Standards'!C100 -> 25 | D93: ='Components and Space Standards'!D100 -> Patio Module(s) | E93: ='Components and Space Standards'!E100 -> per patio | G93: 0 | H93: 0 | J93: 0 | K93: 0 | M93: 0 | N93: 0 | P93: 0 | Q93: 0
A94: ='Components and Space Standards'!A101 -> * Service-specific space.
A95: ='Components and Space Standards'!A102 -> 1 If contract service, verify area with contractor.

Sheet MC (hidden)
A1: Col. A - D refer to "Components & Space Standards" Sheet. | B1: Space Allocation Standard | F1: Extra Small | I1: Small | L1: Medium | O1: Large | R1: Extra Large | U1: Notes
A2: Functional Component | B2: m2 | C2: ft.2 | D2: Standard | E2: Description | F2: No. | G2: m2 | H2: ft.2 | I2: No. | J2: m2 | K2: ft.2 | L2: No. | M2: m2 | N2: ft.2 | O2: No. | P2: m2 | Q2: ft.2 | R2: No. | S2: m2 | T2: ft.2
A3: ='Components and Space Standards'!A3:E3 -> Fitness Spaces
A4: ='Components and Space Standards'!A4 -> Lobby/Reception
A5: ='Components and Space Standards'!A5 -> Entry Lobby | B5: ='Components and Space Standards'!B5 -> 9.29 | C5: ='Components and Space Standards'!C5 -> 100 | D5: ='Components and Space Standards'!D5 -> Vestibule/Lobby Module(s) (for 2-3 ppl) | E5: ='Components and Space Standards'!E5 -> Vesibule and/or space for 2 to 3 ppl to queue | F5: 1 | G5: =$B5*F5 -> 9.29 | H5: =F5*$C5 -> 100 | I5: 2 | J5: =$B5*I5 -> 18.58 | K5: =I5*$C5 -> 200 | L5: 3 | M5: =$B5*L5 -> 27.87 | N5: =L5*$C5 -> 300 | O5: 4 | P5: =$B5*O5 -> 37.16 | Q5: =O5*$C5 -> 400 | S5: =$B5*R5 -> 0 | T5: =R5*$C5 -> 0 | U5: between bldg entrance and control
A6: ='Components and Space Standards'!A6 -> Control Counter | B6: ='Components and Space Standards'!B6 -> 11.6125 | C6: ='Components and Space Standards'!C6 -> 125 | D6: ='Components and Space Standards'!D6 -> Counter Module(s) | E6: ='Components and Space Standards'!E6 -> Space for counter, space behind, space in front | F6: 1 | G6: =$B6*F6 -> 11.6125 | H6: =F6*$C6 -> 125 | I6: 2 | J6: =$B6*I6 -> 23.225 | K6: =I6*$C6 -> 250 | L6: 3 | M6: =$B6*L6 -> 34.8375 | N6: =L6*$C6 -> 375 | O6: 4 | P6: =$B6*O6 -> 46.45 | Q6: =O6*$C6 -> 500 | S6: =$B6*R6 -> 0 | T6: =R6*$C6 -> 0 | U6: Includes minor retail items
A7: ='Components and Space Standards'!A7 -> Equipment issue storage | B7: ='Components and Space Standards'!B7 -> 16.2575 | C7: ='Components and Space Standards'!C7 -> 175 | D7: ='Components and Space Standards'!D7 -> Storage Module(s) | E7: ='Components and Space Standards'!E7 -> Equipment storage at/behind gear issue | F7: 1 | G7: =$B7*F7 -> 16.2575 | H7: =F7*$C7 -> 175 | I7: 2 | J7: =$B7*I7 -> 32.515 | K7: =I7*$C7 -> 350 | L7: 3 | M7: =$B7*L7 -> 48.7725 | N7: =L7*$C7 -> 525 | O7: 4 | P7: =$B7*O7 -> 65.03 | Q7: =O7*$C7 -> 700 | S7: =$B7*R7 -> 0 | T7: =R7*$C7 -> 0 | U7: 2 units min. for Navy. Others get 1 unit in smallest
A8: ='Components and Space Standards'!A8 -> Vending | B8: ='Components and Space Standards'!B8 -> 1.858 | C8: ='Components and Space Standards'!C8 -> 20 | D8: ='Components and Space Standards'!D8 -> Vending Machine(s) | E8: ='Components and Space Standards'!E8 -> per vending machine | F8: 2 | G8: =$B8*F8 -> 3.716 | H8: =F8*$C8 -> 40 | I8: 2 | J8: =$B8*I8 -> 3.716 | K8: =I8*$C8 -> 40 | L8: 4 | M8: =$B8*L8 -> 7.432 | N8: =L8*$C8 -> 80 | O8: 6 | P8: =$B8*O8 -> 11.148 | Q8: =O8*$C8 -> 120 | S8: =$B8*R8 -> 0 | T8: =R8*$C8 -> 0 | U8: 2 for small
A9: ='Components and Space Standards'!A9 -> Waiting/Display | B9: ='Components and Space Standards'!B9 -> 8.361 | C9: ='Components and Space Standards'!C9 -> 90 | D9: ='Components and Space Standards'!D9 -> Seating/Display Module(s) (for 4 ppl) | E9: ='Components and Space Standards'!E9 -> Space for seating for 4 ppl and display area | F9: 1 | G9: =$B9*F9 -> 8.361 | H9: =F9*$C9 -> 90 | I9: 2 | J9: =$B9*I9 -> 16.722 | K9: =I9*$C9 -> 180 | L9: 4 | M9: =$B9*L9 -> 33.444 | N9: =L9*$C9 -> 360 | O9: 6 | P9: =$B9*O9 -> 50.166 | Q9: =O9*$C9 -> 540 | S9: =$B9*R9 -> 0 | T9: =R9*$C9 -> 0 | U9: Waiting area adjacent to lobby and in front of control. Grows in units of 90
A10: ='Components and Space Standards'!A10 -> Spectator peak-time circulation | B10: ='Components and Space Standards'!B10 -> 27.87 | C10: ='Components and Space Standards'!C10 -> 300 | D10: ='Components and Space Standards'!D10 -> Circulation Module(s) | E10: ='Components and Space Standards'!E10 -> Per one-side bleachers - driven by gym size | U10: Optional, 300 sf for 1 set bleachers, Additional circulation space for peak gym loads
A11: ='Components and Space Standards'!A11 -> Public restrooms/phones | B11: ='Components and Space Standards'!B11 -> 0 | C11: ='Components and Space Standards'!C11 -> 0 | D11: ='Components and Space Standards'!D11 -> Public Restroom(s) | E11: ='Components and Space Standards'!E11 -> Option - Driven by gym size | O11: 3 | U11: 1 (uni), 1/1, ?/?, 4/6 (limit option to those below the facility size) Largest gym size drives largest bathroom. AF limited to top three options.
A12: ='Components and Space Standards'!A12 -> Gymnasium
A13: ='Components and Space Standards'!A13 -> Basketball/volleyball Court | B13: ='Components and Space Standards'!B13 -> 826.0668 | C13: ='Components and Space Standards'!C13 -> 8892 | D13: ='Components and Space Standards'!D13 -> One-court/200-seat Module(s) | E13: ='Components and Space Standards'!E13 -> NCAA Court + 10' safety + 200 seats (one side) | G13: =$B13*F13 -> 0 | H13: =F13*$C13 -> 0 | J13: =$B13*I13 -> 0 | K13: =I13*$C13 -> 0 | M13: =$B13*L13 -> 0 | N13: =L13*$C13 -> 0 | P13: =$B13*O13 -> 0 | Q13: =O13*$C13 -> 0 | S13: =$B13*R13 -> 0 | T13: =R13*$C13 -> 0 | U13: Need both elements if indoor track is required.
A14: ='Components and Space Standards'!A14 -> Two Court Module | B14: ='Components and Space Standards'!B14 -> 1630.9524 | C14: ='Components and Space Standards'!C14 -> 17556 | D14: ='Components and Space Standards'!D14 -> Two-court/200-seat Module(s) | E14: ='Components and Space Standards'!E14 -> Two courts + 10' safety, 16' between cts, + 200 seats | G14: 0 | H14: 0 | J14: 0 | K14: 0 | M14: 0 | N14: 0 | P14: 0 | Q14: 0 | S14: 0 | T14: 0
A15: ='Components and Space Standards'!A15 -> Arena-style Two-Court Module | B15: ='Components and Space Standards'!B15 -> 1708.6168 | C15: ='Components and Space Standards'!C15 -> 18392 | D15: ='Components and Space Standards'!D15 -> Arena-style Two-Court Module(s) | E15: ='Components and Space Standards'!E15 -> Provides space for arena-style seating for center, longitudinal ct. | G15: 0 | H15: 0 | J15: 0 | K15: 0 | M15: 0 | N15: 0 | P15: 0 | Q15: 0 | S15: 0 | T15: 0
A16: ='Components and Space Standards'!A16 -> Additional Spectator seating | B16: ='Components and Space Standards'!B16 -> 84.70622 | C16: ='Components and Space Standards'!C16 -> 911.8 | D16: ='Components and Space Standards'!D16 -> Additional 200-seat Module(s) | E16: ='Components and Space Standards'!E16 -> Four rows of seats (one ea. side) = 200 ppl. | G16: 0 | H16: 0 | J16: 0 | K16: 0 | M16: 0 | N16: 0 | P16: 0 | Q16: 0 | S16: 0 | T16: 0
A17: ='Components and Space Standards'!A17 -> Basic storage/support | B17: ='Components and Space Standards'!B17 -> 65.03 | C17: ='Components and Space Standards'!C17 -> 700 | D17: ='Components and Space Standards'!D17 -> Storage Module(s) | E17: ='Components and Space Standards'!E17 -> Roughly 8% of base gym area | G17: 0 | H17: 0 | J17: 0 | K17: 0 | M17: 0 | N17: 0 | P17: 0 | Q17: 0 | S17: 0 | T17: 0
A18: ='Components and Space Standards'!A18 -> Additional court storage | B18: ='Components and Space Standards'!B18 -> 32.515 | C18: ='Components and Space Standards'!C18 -> 350 | D18: ='Components and Space Standards'!D18 -> Additional storage module(s) | E18: ='Components and Space Standards'!E18 -> Storage space per additional court | G18: 0 | H18: 0 | J18: 0 | K18: 0 | M18: 0 | N18: 0 | P18: 0 | Q18: 0 | S18: 0 | T18: 0
A19: ='Components and Space Standards'!A19 -> Unit PT/Group Exercise
A20: ='Components and Space Standards'!A20 -> Partitionable Room(s) | B20: ='Components and Space Standards'!B20 -> 4.645 | C20: ='Components and Space Standards'!C20 -> 50 | D20: ='Components and Space Standards'!D20 -> people at 4.6 m2 (50 ft.2)/person | E20: ='Components and Space Standards'!E20 -> 116.1 m2 (1,250 ft.2) (25 ppl) minimum size | F20: 44 | G20: =$B20*F20 -> 204.38 | H20: =F20*$C20 -> 2200 | I20: 58 | J20: =$B20*I20 -> 269.41 | K20: =I20*$C20 -> 2900 | L20: 91 | M20: =$B20*L20 -> 422.695 | N20: =L20*$C20 -> 4550 | O20: 140 | P20: =$B20*O20 -> 650.3 | Q20: =O20*$C20 -> 7000 | R20: 150 | S20: =$B20*R20 -> 696.75 | T20: =R20*$C20 -> 7500 | U20: 1250 = min. Navy, AF, MC / 2500 = min Army
A21: ='Components and Space Standards'!A21 -> Storage/support | B21: ='Components and Space Standards'!B21 -> 0.4645 | C21: ='Components and Space Standards'!C21 -> 5 | D21: ='Components and Space Standards'!D21 -> 10% of partitionable room area | E21: ='Components and Space Standards'!E21 -> 11.6 m2 (125 ft.2) minimum (10% of room area) | F21: =F20 -> 44 | G21: =$B21*F21 -> 20.438 | H21: =F21*$C21 -> 220 | I21: =I20 -> 58 | J21: =$B21*I21 -> 26.941 | K21: =I21*$C21 -> 290 | L21: =L20 -> 91 | M21: =$B21*L21 -> 42.2695 | N21: =L21*$C21 -> 455 | O21: =O20 -> 140 | P21: =$B21*O21 -> 65.03 | Q21: =O21*$C21 -> 700 | R21: =R20 -> 150 | S21: =$B21*R21 -> 69.675 | T21: =R21*$C21 -> 750
A22: ='Components and Space Standards'!A22 -> Fitness Spaces
A23: ='Components and Space Standards'!A23 -> Stretching | B23: ='Components and Space Standards'!B23 -> 4.645 | C23: ='Components and Space Standards'!C23 -> 50 | D23: ='Components and Space Standards'!D23 -> people at 4.6 m2 (50 ft.2)/person | E23: ='Components and Space Standards'!E23 -> 50 sf per person - min. 2 ppl | F23: 2 | G23: =$B23*F23 -> 9.29 | H23: =F23*$C23 -> 100 | I23: 3 | J23: =$B23*I23 -> 13.935 | K23: =I23*$C23 -> 150 | L23: 4 | M23: =$B23*L23 -> 18.58 | N23: =L23*$C23 -> 200 | O23: 5 | P23: =$B23*O23 -> 23.225 | Q23: =O23*$C23 -> 250 | S23: =$B23*R23 -> 0 | T23: =R23*$C23 -> 0 | U23: See Fitness Space sheet and exist. docs for these numbers
A24: ='Components and Space Standards'!A24 -> Cardiovascular Equipment | B24: ='Components and Space Standards'!B24 -> 4.645 | C24: ='Components and Space Standards'!C24 -> 50 | D24: ='Components and Space Standards'!D24 -> items at 4.6 m2 (50 ft.2)/item | E24: ='Components and Space Standards'!E24 -> 50 sf per station | F24: 11 | G24: 51.095 | H24: 550 | I24: 27 | J24: 125.415 | K24: 1350 | M24: 0 | N24: 0 | P24: 0 | Q24: 0 | S24: 0 | T24: 0
A25: ='Components and Space Standards'!A25 -> Selectorized (machine) weights | B25: ='Components and Space Standards'!B25 -> 4.645 | C25: ='Components and Space Standards'!C25 -> 50 | D25: ='Components and Space Standards'!D25 -> items at 4.6 m2 (50 ft.2)/item | E25: ='Components and Space Standards'!E25 -> 50 sf per station | F25: 16 | G25: 74.32 | H25: 800 | I25: 27 | J25: 125.415 | K25: 1350 | M25: 0 | N25: 0 | P25: 0 | Q25: 0 | S25: 0 | T25: 0
A26: ='Components and Space Standards'!A26 -> Free/Plate-loaded weights | B26: ='Components and Space Standards'!B26 -> 6.0385 | C26: ='Components and Space Standards'!C26 -> 65 | D26: ='Components and Space Standards'!D26 -> stations at 6.0 m2 (65 ft.2)/stations | E26: ='Components and Space Standards'!E26 -> 65 sf per station | F26: 15 | G26: 90.5775 | H26: 975 | I26: 29 | J26: 175.1165 | K26: 1885 | M26: 0 | N26: 0 | P26: 0 | Q26: 0 | S26: 0 | T26: 0
A27: ='Components and Space Standards'!A27 -> Finess Program Manager's Office | B27: ='Components and Space Standards'!B27 -> 11.6125 | C27: ='Components and Space Standards'!C27 -> 125 | D27: ='Components and Space Standards'!D27 -> Office | E27: ='Components and Space Standards'!E27 -> Private office that may include fitness testing equipment | G27: 0 | H27: 0 | J27: 0 | K27: 0 | M27: 0 | N27: 0 | P27: 0 | Q27: 0 | S27: 0 | T27: 0
A28: ='Components and Space Standards'!A28 -> Fitness Assessment Room | B28: ='Components and Space Standards'!B28 -> 11.6125 | C28: ='Components and Space Standards'!C28 -> 125 | D28: ='Components and Space Standards'!D28 -> Office(s) | E28: ='Components and Space Standards'!E28 -> 1 piece fitness equip for testing, computer desk, chairs, stretching | F28: 1 | G28: 11.6125 | H28: 125 | I28: 1 | J28: 11.6125 | K28: 125 | L28: 1 | M28: 11.6125 | N28: 125 | O28: 1 | P28: 11.6125 | Q28: 125 | R28: 1 | S28: 11.6125 | T28: 125
A29: ='Components and Space Standards'!A29 -> Structured Activities
A30: ='Components and Space Standards'!A30 -> Structured Activity Space | B30: ='Components and Space Standards'!B30 -> 74.32 | C30: ='Components and Space Standards'!C30 -> 800 | D30: ='Components and Space Standards'!D30 -> Flexible space Module(s) | E30: ='Components and Space Standards'!E30 -> Based on size of a single racquetball court | F30: 1.5 | G30: =$B30*F30 -> 111.48 | H30: =F30*$C30 -> 1200 | I30: 1.5 | J30: =$B30*I30 -> 111.48 | K30: =I30*$C30 -> 1200 | L30: 3 | M30: =$B30*L30 -> 222.96 | N30: =L30*$C30 -> 2400 | O30: 3 | P30: =$B30*O30 -> 222.96 | Q30: =O30*$C30 -> 2400 | S30: =$B30*R30 -> 0 | T30: =R30*$C30 -> 0 | U30: equip. based
A31: ='Components and Space Standards'!A31 -> Racquetball Courts | B31: ='Components and Space Standards'!B31 -> 74.32 | C31: ='Components and Space Standards'!C31 -> 800 | D31: ='Components and Space Standards'!D31 -> Racquetball Court(s) | E31: ='Components and Space Standards'!E31 -> Single court size. Minimum of two courts | F31: 1 | G31: =$B31*F31 -> 74.32 | H31: =F31*$C31 -> 800 | I31: 2 | J31: =$B31*I31 -> 148.64 | K31: =I31*$C31 -> 1600 | L31: 4 | M31: =$B31*L31 -> 297.28 | N31: =L31*$C31 -> 3200 | O31: 4 | P31: =$B31*O31 -> 297.28 | Q31: =O31*$C31 -> 3200 | S31: =$B31*R31 -> 0 | T31: =R31*$C31 -> 0
A32: ='Components and Space Standards'!A34 -> Spectator/officiating (MC Option) | B32: ='Components and Space Standards'!B34 -> 18.58 | C32: ='Components and Space Standards'!C34 -> 200 | D32: ='Components and Space Standards'!D34 -> Spectator/officiating Module(s) | E32: ='Components and Space Standards'!E34 -> Two rows of 10 seats for one ct. Max of two cts (400 sf) | G32: =$B32*F32 -> 0 | H32: =F32*$C32 -> 0 | J32: =$B32*I32 -> 0 | K32: =I32*$C32 -> 0 | M32: =$B32*L32 -> 0 | N32: =L32*$C32 -> 0 | P32: =$B32*O32 -> 0 | Q32: =O32*$C32 -> 0 | S32: =$B32*R32 -> 0 | T32: =R32*$C32 -> 0
A33: ='Components and Space Standards'!A35 -> Structured activity storage | B33: ='Components and Space Standards'!B35 -> 7.432 | C33: ='Components and Space Standards'!C35 -> 80 | D33: ='Components and Space Standards'!D35 -> 10% of Structured Activity Space | E33: ='Components and Space Standards'!E35 -> Based on Structured activity space (10% of room area)
A34: ='Components and Space Standards'!A36 -> Locker Rooms | U34: Apply male/female split on occupant load, then calculate individual male and female locker areas from the split number.
A35: ='Components and Space Standards'!A37 -> Men's Locker Room | B35: ='Components and Space Standards'!B37 -> 0 | C35: ='Components and Space Standards'!C37 -> 0 | D35: ='Components and Space Standards'!D37 -> 0 | E35: ='Components and Space Standards'!E37 -> 0 | G35: =$B35*F35 -> 0 | H35: =F35*$C35 -> 0 | J35: =$B35*I35 -> 0 | K35: =I35*$C35 -> 0 | M35: =$B35*L35 -> 0 | N35: =L35*$C35 -> 0 | P35: =$B35*O35 -> 0 | Q35: =O35*$C35 -> 0 | S35: =$B35*R35 -> 0 | T35: =R35*$C35 -> 0
A36: ='Components and Space Standards'!A38 -> Locker/changing area | B36: ='Components and Space Standards'!B38 -> 0.7432 | C36: ='Components and Space Standards'!C38 -> 8 | D36: ='Components and Space Standards'!D38 -> Lockers | E36: ='Components and Space Standards'!E38 -> Per slot (2 double lockers or 1 single locker) | G36: 0 | H36: 0 | J36: 0 | K36: 0 | M36: 0 | N36: 0 | P36: 0 | Q36: 0 | S36: 0 | T36: 0 | U36: Ratios: 1 to 1 (all full), 66% (1 full per 2 dbls - or 3 ppl / 2 slots), 50% (all double lockers) - Environmental adjust factor -----
A37: ='Components and Space Standards'!A39 -> Shower/drying area | B37: ='Components and Space Standards'!B39 -> 2.787 | C37: ='Components and Space Standards'!C39 -> 30 | D37: ='Components and Space Standards'!D39 -> Showers | E37: ='Components and Space Standards'!E39 -> Per shower & integral drying area at 22 lockers/shower | G37: 0 | H37: 0 | J37: 0 | K37: 0 | M37: 0 | N37: 0 | P37: 0 | Q37: 0 | S37: 0 | T37: 0
A38: ='Components and Space Standards'!A40 -> Toilet area | B38: ='Components and Space Standards'!B40 -> 4.1805 | C38: ='Components and Space Standards'!C40 -> 45 | D38: ='Components and Space Standards'!D40 -> Water closets/lavatory modules | E38: ='Components and Space Standards'!E40 -> Per wc and lav. at 30 lockers per wc/lav | G38: 0 | H38: 0 | J38: 0 | K38: 0 | M38: 0 | N38: 0 | P38: 0 | Q38: 0 | S38: 0 | T38: 0 | U38: Will confirm that 30 lockers per wc/lav is the correct formula
A39: ='Components and Space Standards'!A41 -> Women's Locker Room | B39: ='Components and Space Standards'!B41 -> 0 | C39: ='Components and Space Standards'!C41 -> 0 | D39: ='Components and Space Standards'!D41 -> 0 | E39: ='Components and Space Standards'!E41 -> 0 | G39: 0 | H39: 0 | J39: 0 | K39: 0 | M39: 0 | N39: 0 | P39: 0 | Q39: 0 | S39: 0 | T39: 0
A40: ='Components and Space Standards'!A42 -> Locker/changing area | B40: ='Components and Space Standards'!B42 -> 0.7432 | C40: ='Components and Space Standards'!C42 -> 8 | D40: ='Components and Space Standards'!D42 -> Lockers | E40: ='Components and Space Standards'!E42 -> Per slot (2 double lockers or 1 single locker) | G40: 0 | H40: 0 | J40: 0 | K40: 0 | M40: 0 | N40: 0 | P40: 0 | Q40: 0 | S40: 0 | T40: 0
A41: ='Components and Space Standards'!A43 -> Shower/drying area | B41: ='Components and Space Standards'!B43 -> 2.787 | C41: ='Components and Space Standards'!C43 -> 30 | D41: ='Components and Space Standards'!D43 -> Showers | E41: ='Components and Space Standards'!E43 -> Per shower & integral drying area at 22 lockers/shower | G41: 0 | H41: 0 | J41: 0 | K41: 0 | M41: 0 | N41: 0 | P41: 0 | Q41: 0 | S41: 0 | T41: 0
A42: ='Components and Space Standards'!A44 -> Toilet area | B42: ='Components and Space Standards'!B44 -> 4.1805 | C42: ='Components and Space Standards'!C44 -> 45 | D42: ='Components and Space Standards'!D44 -> Water closets/lavatory modules | E42: ='Components and Space Standards'!E44 -> per wc and lav. at 20 lockers per wc/lav | G42: 0 | H42: 0 | J42: 0 | K42: 0 | M42: 0 | N42: 0 | P42: 0 | Q42: 0 | S42: 0 | T42: 0 | U42: Will confirm that 20 lockers per wc/lav is the correct formula
A43: ='Components and Space Standards'!A45 -> Sauna, cool-down area | B43: ='Components and Space Standards'!B45 -> 0 | C43: ='Components and Space Standards'!C45 -> 0 | D43: ='Components and Space Standards'!D45 -> M/F (2) Saunas/cool-down area | E43: ='Components and Space Standards'!E45 -> small = 6 ppl, med = 8-9, lg = 12 ppl (+ cool down space) | U43: Optional in MC facilities
A44: ='Components and Space Standards'!A46 -> Steam Room, cool-down area | B44: ='Components and Space Standards'!B46 -> 0 | C44: ='Components and Space Standards'!C46 -> 0 | D44: ='Components and Space Standards'!D46 -> M/F (2) Steam Rooms/cool-down area | E44: ='Components and Space Standards'!E46 -> small = 6-7 ppl, med = 8-9, lg = 12-14 (+ cool down space) | U44: Not included in MC facilities
A45: ='Components and Space Standards'!A47 -> Hot Tub | B45: ='Components and Space Standards'!B47 -> 0 | C45: ='Components and Space Standards'!C47 -> 0 | D45: ='Components and Space Standards'!D47 -> Unisex Hot Tub | E45: ='Components and Space Standards'!E47 -> small = 5 ppl, med = 8, lg = 12-14 ppl | U45: Not included in MC facilities
A46: ='Components and Space Standards'!A48 -> Support Areas
A47: ='Components and Space Standards'!A49 -> Laundry | B47: ='Components and Space Standards'!B49 -> 18.58 | C47: ='Components and Space Standards'!C49 -> 200 | D47: ='Components and Space Standards'!D49 -> Laundry Room | E47: ='Components and Space Standards'!E49 -> Per one-washer/two-dryer room | I47: 3 | L47: 4 | U47: One washer, two dryers, commercial equip, folding table, sink, storage shelves, laundry carts, and opt. ice machine.
A48: ='Components and Space Standards'!A50 -> Equipment repair and receiving | B48: ='Components and Space Standards'!B50 -> 0 | C48: ='Components and Space Standards'!C50 -> 0 | D48: ='Components and Space Standards'!D50 -> Repair/receiving Room | E48: ='Components and Space Standards'!E50 -> Fixed receiving area + variable repair (10% of Fitness) | U48: 10% of total Fitness (Army) / 250 sf (AF)
A49: ='Components and Space Standards'!A51 -> Storage | B49: ='Components and Space Standards'!B51 -> 0 | C49: ='Components and Space Standards'!C51 -> 0 | D49: ='Components and Space Standards'!D51 -> Storage Room | E49: ='Components and Space Standards'!E51 -> Variable lockable storage room (5% of fitness)
A50: ='Components and Space Standards'!A52 -> Additional Programmatic Storage | B50: ='Components and Space Standards'!B52 -> 0 | C50: ='Components and Space Standards'!C52 -> 0 | D50: ='Components and Space Standards'!D52 -> sf Additional Storage | E50: ='Components and Space Standards'!E52 -> To be filled-in by programmer and justified based on item stored.
A51: ='Components and Space Standards'!A53:E53 -> Janitor's Closet(s) | B51: ='Components and Space Standards'!B53:F53 -> 3.716 | C51: ='Components and Space Standards'!C53 -> 40 | D51: ='Components and Space Standards'!D53:G53 -> 40 SF/closet | E51: ='Components and Space Standards'!E53:H53 -> Per Janitor's Closet | F51: 2 | G51: =$B51*F51 -> 7.432 | H51: =F51*$C51 -> 80 | I51: 2 | J51: =$B51*I51 -> 7.432 | K51: =I51*$C51 -> 80 | L51: 3 | M51: =$B51*L51 -> 11.148 | N51: =L51*$C51 -> 120 | O51: 4 | P51: =$B51*O51 -> 14.864 | Q51: =O51*$C51 -> 160 | R51: 4 | S51: =$B51*R51 -> 14.864 | T51: =R51*$C51 -> 160 | U51: 4 | V51: =$B51*U51 -> 14.864 | W51: =U51*$C51 -> 160
A52: ='Components and Space Standards'!A54 -> Health Promotion Spaces - Marine Corps Only (Required or Optional) | B52: ='Components and Space Standards'!B54 -> 0 | C52: ='Components and Space Standards'!C54 -> 0 | D52: ='Components and Space Standards'!D54 -> 0 | E52: ='Components and Space Standards'!E54 -> 0
A53: ='Components and Space Standards'!A55 -> Lobby/Reception | B53: ='Components and Space Standards'!B55 -> 27.87 | C53: ='Components and Space Standards'!C55 -> 300 | D53: ='Components and Space Standards'!D55 -> Lobby/Reception Module(s) | E53: ='Components and Space Standards'!E55 -> per area | G53: =$B53*F53 -> 0 | H53: =F53*$C53 -> 0 | J53: =$B53*I53 -> 0 | K53: =I53*$C53 -> 0 | M53: =$B53*L53 -> 0 | N53: =L53*$C53 -> 0 | P53: =$B53*O53 -> 0 | Q53: =O53*$C53 -> 0 | S53: =$B53*R53 -> 0 | T53: =R53*$C53 -> 0 | U53: From AF
A54: ='Components and Space Standards'!A56 -> Director's Office | B54: ='Components and Space Standards'!B56 -> 11.148 | C54: ='Components and Space Standards'!C56 -> 120 | D54: ='Components and Space Standards'!D56 -> Office | E54: ='Components and Space Standards'!E56 -> per office | G54: 0 | H54: 0 | J54: 0 | K54: 0 | M54: 0 | N54: 0 | P54: 0 | Q54: 0 | S54: 0 | T54: 0 | U54: AF office area = 400 sf total
A55: ='Components and Space Standards'!A57 -> Program Managers' Offices | B55: ='Components and Space Standards'!B57 -> 9.29 | C55: ='Components and Space Standards'!C57 -> 100 | D55: ='Components and Space Standards'!D57 -> Office(s) | E55: ='Components and Space Standards'!E57 -> per office | G55: 0 | H55: 0 | I55: 1 | J55: 9.29 | K55: 100 | L55: 1 | M55: 9.29 | N55: 100 | O55: 1 | P55: 9.29 | Q55: 100 | S55: 0 | T55: 0
A56: ='Components and Space Standards'!A58 -> Support Staff Workstations | B56: ='Components and Space Standards'!B58 -> 5.9456 | C56: ='Components and Space Standards'!C58 -> 64 | D56: ='Components and Space Standards'!D58 -> Workstation(s) | E56: ='Components and Space Standards'!E58 -> per workstation | G56: 0 | H56: 0 | I56: 1 | J56: 5.9456 | K56: 64 | L56: 1 | M56: 5.9456 | N56: 64 | O56: 1 | P56: 5.9456 | Q56: 64 | S56: 0 | T56: 0
A57: ='Components and Space Standards'!A59 -> Classrooms/Training rooms | B57: ='Components and Space Standards'!B59 -> 58.527 | C57: ='Components and Space Standards'!C59 -> 630 | D57: ='Components and Space Standards'!D59 -> Classroom/Training Module(s) | E57: ='Components and Space Standards'!E59 -> per room | F57: 1 | G57: 58.527 | H57: 630 | I57: 1 | J57: 58.527 | K57: 630 | L57: 1 | M57: 58.527 | N57: 630 | O57: 2 | P57: 117.054 | Q57: 1260 | S57: 0 | T57: 0 | U57: From AF
A58: ='Components and Space Standards'!A60 -> Resource Room/Computer Lab | B58: ='Components and Space Standards'!B60 -> 23.225 | C58: ='Components and Space Standards'!C60 -> 250 | D58: ='Components and Space Standards'!D60 -> Resource/Computer Lab Module(s) | E58: ='Components and Space Standards'!E60 -> per room | G58: 0 | H58: 0 | I58: 1 | J58: 23.225 | K58: 250 | L58: 1 | M58: 23.225 | N58: 250 | O58: 1 | P58: 23.225 | Q58: 250 | S58: 0 | T58: 0 | U58: From AF - combines comp lab with resource library
A59: ='Components and Space Standards'!A61 -> Storage/support | B59: ='Components and Space Standards'!B61 -> 7.432 | C59: ='Components and Space Standards'!C61 -> 80 | D59: ='Components and Space Standards'!D61 -> Storage/support Module(s) | E59: ='Components and Space Standards'!E61 -> per area | G59: 0 | H59: 0 | I59: 1 | J59: 7.432 | K59: 80 | L59: 1 | M59: 7.432 | N59: 80 | O59: 1 | P59: 7.432 | Q59: 80 | S59: 0 | T59: 0
A60: ='Components and Space Standards'!A63 -> Ergometry and Fitness Testing * | B60: ='Components and Space Standards'!B63 -> 7.432 | C60: ='Components and Space Standards'!C63 -> 80 | D60: ='Components and Space Standards'!D63 -> Testing Cubicle(s) | E60: ='Components and Space Standards'!E63 -> per testing cubicles | F60: 1 | G60: 7.432 | H60: 80 | I60: 2 | J60: 14.864 | K60: 160 | L60: 2 | M60: 14.864 | N60: 160 | O60: 3 | P60: 22.296 | Q60: 240 | S60: 0 | T60: 0 | U60: From AF - cubicles go in an enclosed room (need circulation beteen cubicles--doesn't seem to be accounted for in AF criteria?)
A61: ='Components and Space Standards'!A64 -> Wellness Assessment * | B61: ='Components and Space Standards'!B64 -> 13.935 | C61: ='Components and Space Standards'!C64 -> 150 | D61: ='Components and Space Standards'!D64 -> Assessment Room(s) | E61: ='Components and Space Standards'!E64 -> per room | G61: 0 | H61: 0 | J61: 0 | K61: 0 | M61: 0 | N61: 0 | P61: 0 | Q61: 0 | S61: 0 | T61: 0 | U61: From AF
A62: ='Components and Space Standards'!A65 -> Administrative Spaces (required or optional) | B62: ='Components and Space Standards'!B65 -> 0 | C62: ='Components and Space Standards'!C65 -> 0 | D62: ='Components and Space Standards'!D65 -> 0 | E62: ='Components and Space Standards'!E65 -> 0
A63: ='Components and Space Standards'!A66 -> Director's Office | B63: ='Components and Space Standards'!B66 -> 11.148 | C63: ='Components and Space Standards'!C66 -> 120 | D63: ='Components and Space Standards'!D66 -> Office | E63: ='Components and Space Standards'!E66 -> per office | F63: 1 | G63: 0 | H63: =F63*$C63 -> 120 | I63: 1 | J63: =$B63*I63 -> 11.148 | K63: =I63*$C63 -> 120 | L63: 1 | M63: =$B63*L63 -> 11.148 | N63: =L63*$C63 -> 120 | O63: 1 | P63: =$B63*O63 -> 11.148 | Q63: =O63*$C63 -> 120 | S63: =$B63*R63 -> 0 | T63: =R63*$C63 -> 0 | U63: req.
A64: ='Components and Space Standards'!A67 -> Program Managers' Offices | B64: ='Components and Space Standards'!B67 -> 9.29 | C64: ='Components and Space Standards'!C67 -> 100 | D64: ='Components and Space Standards'!D67 -> Office(s) | E64: ='Components and Space Standards'!E67 -> per office | F64: 1 | G64: =$B64*F64 -> 9.29 | H64: 100 | I64: 2 | J64: 18.58 | K64: 200 | L64: 2 | M64: 18.58 | N64: 200 | O64: 2 | P64: 18.58 | Q64: 200 | S64: 0 | T64: 0 | U64: optional (req. AF)
A65: ='Components and Space Standards'!A68 -> Support Staff Workstations | B65: ='Components and Space Standards'!B68 -> 5.9456 | C65: ='Components and Space Standards'!C68 -> 64 | D65: ='Components and Space Standards'!D68 -> Workstation(s) | E65: ='Components and Space Standards'!E68 -> per office | F65: 3 | G65: =$B65*F65 -> 17.8368 | H65: 192 | I65: 4 | J65: 23.7824 | K65: 256 | L65: 6 | M65: 35.6736 | N65: 384 | O65: 8 | P65: 47.5648 | Q65: 512 | S65: 0 | T65: 0 | U65: optional (req. AF)
A66: ='Components and Space Standards'!A69 -> Copy/file/work/break Room | B66: ='Components and Space Standards'!B69 -> 7.432 | C66: ='Components and Space Standards'!C69 -> 80 | D66: ='Components and Space Standards'!D69 -> Workroom Module(s) | E66: ='Components and Space Standards'!E69 -> per room | F66: 1 | G66: =$B66*F66 -> 7.432 | H66: 80 | I66: 1 | J66: 7.432 | K66: 80 | L66: 2 | M66: 14.864 | N66: 160 | O66: 2 | P66: 14.864 | Q66: 160 | S66: 0 | T66: 0 | U66: req.
A67: ='Components and Space Standards'!A70 -> Classroom/Training Room | B67: ='Components and Space Standards'!B70 -> 69.675 | C67: ='Components and Space Standards'!C70 -> 750 | D67: ='Components and Space Standards'!D70 -> 25-person Module at 750 SF | E67: ='Components and Space Standards'!E70 -> 1,500 SF Med/Lge & 2,250 SF for Xtra Lge/Jumbo | F67: 1 | G67: =$B67*F67 -> 69.675 | H67: 750 | I67: 1 | J67: 69.675 | K67: 750 | L67: 2 | M67: 139.35 | N67: 1500 | O67: 2 | P67: 139.35 | Q67: 1500 | R67: 3 | S67: 209.025 | T67: 2250 | U67: Req. Program space
A68: ='Components and Space Standards'!A71 -> Classroom/Training Storage | B68: ='Components and Space Standards'!B71 -> 5.574 | C68: ='Components and Space Standards'!C71 -> 60 | D68: ='Components and Space Standards'!D71 -> Storage Module(s) | E68: ='Components and Space Standards'!E71 -> per 25-person Training Room | F68: 1 | G68: =$B68*F68 -> 5.574 | H68: 60 | I68: 1 | J68: 5.574 | K68: 60 | L68: 2 | M68: 11.148 | N68: 120 | O68: 2 | P68: 11.148 | Q68: 120 | R68: 3 | S68: 16.722 | T68: 180
A69: ='Components and Space Standards'!A72 -> Optional or Service-specific Program Spaces | B69: ='Components and Space Standards'!B72 -> 0 | C69: ='Components and Space Standards'!C72 -> 0 | D69: ='Components and Space Standards'!D72 -> 0 | E69: ='Components and Space Standards'!E72 -> 0
A70: ='Components and Space Standards'!A75 -> Indoor Track
A71: ='Components and Space Standards'!A76 -> Indoor Track
A72: ='Components and Space Standards'!A77 -> 1/14th-mile Indoor Track | B72: ='Components and Space Standards'!B77 -> 310.0073 | C72: ='Components and Space Standards'!C77 -> 3337 | D72: ='Components and Space Standards'!D77 -> 1/14th-mile, 2-lane Indoor Track | E72: ='Components and Space Standards'!E77 -> 1/14th-mile, 2-lane Indoor Track (754 linear ft.) | G72: =$B72*F72 -> 0 | H72: =F72*$C72 -> 0 | J72: =$B72*I72 -> 0 | K72: =I72*$C72 -> 0 | M72: =$B72*L72 -> 0 | N72: =L72*$C72 -> 0 | P72: =$B72*O72 -> 0 | Q72: =O72*$C72 -> 0 | S72: =$B72*R72 -> 0 | T72: =R72*$C72 -> 0 | U72: (smallest gym option, Army and Navy only)
A73: ='Components and Space Standards'!A78 -> 1/12th-mile Indoor Track | B73: ='Components and Space Standards'!B78 -> 523.027 | C73: ='Components and Space Standards'!C78 -> 5630 | D73: ='Components and Space Standards'!D78 -> 1/12th-mile, 3-lane Indoor Track | E73: ='Components and Space Standards'!E78 -> 1/12th-mile, 3-lane Indoor Track (1284 linear ft.)
A74: ='Components and Space Standards'!A79 -> 1/11th-mile Indoor Track | B74: ='Components and Space Standards'!B79 -> 556.7497 | C74: ='Components and Space Standards'!C79 -> 5993 | D74: ='Components and Space Standards'!D79 -> 1/11th-mile, 3-lane Indoor Track | E74: ='Components and Space Standards'!E79 -> 1/11th-mile, 3-lane Indoor Track (1440 linear ft.) | G74: 0 | H74: 0 | J74: 0 | K74: 0 | M74: 0 | N74: 0 | P74: 0 | Q74: 0 | S74: 0 | T74: 0
A75: ='Components and Space Standards'!A80 -> 1/8th-mile Indoor Track | B75: ='Components and Space Standards'!B80 -> 989.1063 | C75: ='Components and Space Standards'!C80 -> 10647 | D75: ='Components and Space Standards'!D80 -> 1/8th-mile, 4-lane Indoor Track | E75: ='Components and Space Standards'!E80 -> 1/8th-mile, 4-lane Indoor Track (2640 linear ft.) | G75: 0 | H75: 0 | J75: 0 | K75: 0 | M75: 0 | N75: 0 | P75: 0 | Q75: 0 | S75: 0 | T75: 0
A76: ='Components and Space Standards'!A81 -> Indoor track lobby | B76: ='Components and Space Standards'!B81 -> 13.3776 | C76: ='Components and Space Standards'!C81 -> 144 | D76: ='Components and Space Standards'!D81 -> Indoor track lobby(ies) | E76: ='Components and Space Standards'!E81 -> Access point to lobby from stair/elevator | F76: 1 | G76: 13.3776 | H76: 144 | I76: 1.5 | J76: 20.0664 | K76: 216 | L76: 1.5 | M76: 20.0664 | N76: 216 | O76: 1.5 | P76: 20.0664 | Q76: 216 | R76: 1.5 | S76: 20.0664 | T76: 216
A77: ='Components and Space Standards'!A82 -> Additional Group Exercise Room | B77: ='Components and Space Standards'!B82 -> 116.125 | C77: ='Components and Space Standards'!C82 -> 1250 | D77: ='Components and Space Standards'!D82 -> Additional Group Exercise Room | E77: ='Components and Space Standards'!E82 -> per room | G77: 0 | H77: 0 | J77: 0 | K77: 0 | M77: 0 | N77: 0 | P77: 0 | Q77: 0 | S77: 0 | T77: 0 | U77: Optional catch-up space
A78: ='Components and Space Standards'!A83 -> Massage Room | B78: ='Components and Space Standards'!B83 -> 11.148 | C78: ='Components and Space Standards'!C83 -> 120 | D78: ='Components and Space Standards'!D83 -> Massage Room(s) | E78: ='Components and Space Standards'!E83 -> per room | G78: 0 | H78: 0 | J78: 0 | K78: 0 | M78: 0 | N78: 0 | P78: 0 | Q78: 0 | S78: 0 | T78: 0
A79: ='Components and Space Standards'!A84 -> Physical Therapy Training | B79: ='Components and Space Standards'!B84 -> 11.6125 | C79: ='Components and Space Standards'!C84 -> 125 | D79: ='Components and Space Standards'!D84 -> Physical Therapy Training Room(s) | E79: ='Components and Space Standards'!E84 -> per room | G79: 0 | H79: 0 | J79: 0 | K79: 0 | M79: 0 | N79: 0 | P79: 0 | Q79: 0 | S79: 0 | T79: 0 | U79: similar to fitness assement
A80: ='Components and Space Standards'!A85 -> Expanded Retail 1 | B80: ='Components and Space Standards'!B85 -> 9.29 | C80: ='Components and Space Standards'!C85 -> 100 | D80: ='Components and Space Standards'!D85 -> Expanded Retail Module(s) | E80: ='Components and Space Standards'!E85 -> per area | G80: 0 | H80: 0 | J80: 0 | K80: 0 | M80: 0 | N80: 0 | P80: 0 | Q80: 0 | S80: 0 | T80: 0 | U80: dry good, sports equip, clothes, etc. Usually contractor and sep from control
A81: ='Components and Space Standards'!A86 -> Expanded Juice Bar 1 | B81: ='Components and Space Standards'!B86 -> 13.935 | C81: ='Components and Space Standards'!C86 -> 150 | D81: ='Components and Space Standards'!D86 -> Expanded Juice Bar Module(s) | E81: ='Components and Space Standards'!E86 -> per area | G81: 0 | H81: 0 | J81: 0 | K81: 0 | M81: 0 | N81: 0 | P81: 0 | Q81: 0 | S81: 0 | T81: 0 | U81: Additional food/beverage counter. Usually contractor and sep from control
A82: ='Components and Space Standards'!A87 -> Expanded Juice Bar Seating | B82: ='Components and Space Standards'!B87 -> 13.935 | C82: ='Components and Space Standards'!C87 -> 150 | D82: ='Components and Space Standards'!D87 -> Two-table seating Module(s) | E82: ='Components and Space Standards'!E87 -> Two 4-top tables and seating area | G82: 0 | H82: 0 | J82: 0 | K82: 0 | M82: 0 | N82: 0 | P82: 0 | Q82: 0 | S82: 0 | T82: 0
A83: ='Components and Space Standards'!A88 -> Family Changing Room | B83: ='Components and Space Standards'!B88 -> 10.219 | C83: ='Components and Space Standards'!C88 -> 110 | D83: ='Components and Space Standards'!D88 -> Family Changing Room(s) | E83: ='Components and Space Standards'!E88 -> per shower, wc, lav, changing, and locker | F83: 1 | G83: 10.219 | H83: 110 | I83: 2 | J83: 20.438 | K83: 220 | L83: 3 | M83: 30.657 | N83: 330 | O83: 4 | P83: 40.876 | Q83: 440 | R83: 5 | S83: 51.095 | T83: 550 | U83: Indiv. locker area for parent & child (grows by adding showers and changing stalls plus lockers)
A84: ='Components and Space Standards'!A89 -> Convertible Locker Space | B84: ='Components and Space Standards'!B89 -> 69.675 | C84: ='Components and Space Standards'!C89 -> 750 | D84: ='Components and Space Standards'!D89 -> Add'l male or female space | E84: ='Components and Space Standards'!E89 -> 750 sf | F84: 0 | G84: 0 | H84: 0 | I84: 0 | J84: 0 | K84: 0 | L84: 0 | M84: 0 | N84: 0 | O84: 1 | P84: 69.675 | Q84: 750 | R84: 1 | S84: 69.675 | T84: 750 | U84: AF-only option. Calculate how many people this accomodates
A85: ='Components and Space Standards'!A90 -> Female DV Locker Room * | B85: ='Components and Space Standards'!B90 -> 23.225 | C85: ='Components and Space Standards'!C90 -> 250 | D85: ='Components and Space Standards'!D90 -> Female DV Locker Room | E85: ='Components and Space Standards'!E90 -> 250, 500, 750 | G85: 0 | H85: 0 | J85: 0 | K85: 0 | M85: 0 | N85: 0 | P85: 0 | Q85: 0 | S85: 0 | T85: 0
A86: ='Components and Space Standards'!A91 -> Child Play Area/Parent Child Area * | B86: ='Components and Space Standards'!B91 -> 74.32 | C86: ='Components and Space Standards'!C91 -> 800 | D86: ='Components and Space Standards'!D91 -> Parent/child Module(s) | E86: ='Components and Space Standards'!E91 -> 400 sf play area (at 35 sf/child), 400 sf equip (50 sf/equip) | F86: 0.5 | G86: 37.16 | H86: 400 | I86: 0.5 | J86: 37.16 | K86: 400 | L86: 0.5 | M86: 37.16 | N86: 400 | O86: 0.5 | P86: 37.16 | Q86: 400 | S86: 0 | T86: 0
A87: ='Components and Space Standards'!A92 -> HAWC Demonstration Kitchen | B87: ='Components and Space Standards'!B92 -> 46.45 | C87: ='Components and Space Standards'!C92 -> 500 | D87: ='Components and Space Standards'!D92 -> Kitchen Module(s) | E87: ='Components and Space Standards'!E92 -> per kitchen | G87: 0 | H87: 0 | J87: 0 | K87: 0 | M87: 1 | N87: 0 | O87: 1 | P87: 46.45 | Q87: 500 | S87: 0 | T87: 0 | U87: From AF
A88: ='Components and Space Standards'!A93 -> HAWC Relaxation Room * | B88: ='Components and Space Standards'!B93 -> 9.29 | C88: ='Components and Space Standards'!C93 -> 100 | D88: ='Components and Space Standards'!D93 -> Relaxation Room(s) | E88: ='Components and Space Standards'!E93 -> per room | G88: 0 | H88: 0 | J88: 0 | K88: 0 | M88: =$B88*L88 -> 0 | N88: 0 | P88: 0 | Q88: 0 | S88: 0 | T88: 0 | U88: From AF
A89: ='Components and Space Standards'!A94 -> Site Spaces
A90: ='Components and Space Standards'!A95 -> Staff Parking | B90: ='Components and Space Standards'!B95 -> 41.805 | C90: ='Components and Space Standards'!C95 -> 450 | D90: ='Components and Space Standards'!D95 -> Parking Spaces | E90: ='Components and Space Standards'!E95 -> per space (including circulation) | F90: 8 | G90: =F90*B90 -> 334.44 | H90: =F90*C90 -> 3600 | I90: 9 | J90: =$B90*I90 -> 376.245 | K90: =I90*$C90 -> 4050 | L90: 10 | M90: =$B90*L90 -> 418.05 | N90: =L90*$C90 -> 4500 | O90: 12 | P90: =$B90*O90 -> 501.66 | Q90: =O90*$C90 -> 5400 | S90: =$B90*R90 -> 0 | T90: =R90*$C90 -> 0
A91: ='Components and Space Standards'!A96 -> Loading dock | B91: ='Components and Space Standards'!B96 -> 8.361 | C91: ='Components and Space Standards'!C96 -> 90 | D91: ='Components and Space Standards'!D96 -> Loading Dock | E91: ='Components and Space Standards'!E96 -> Per single-truck dock | F91: 1 | G91: 8.361 | H91: 90 | I91: 1 | J91: 8.361 | K91: 90 | L91: 1 | M91: 8.361 | N91: 90 | O91: 1 | P91: 8.361 | Q91: 90 | S91: 0 | T91: 0
A92: ='Components and Space Standards'!A97 -> Service Drive/trash | B92: ='Components and Space Standards'!B97 -> 69.675 | C92: ='Components and Space Standards'!C97 -> 750 | D92: ='Components and Space Standards'!D97 -> Service Drive Module | E92: ='Components and Space Standards'!E97 -> per area | F92: 1 | G92: 69.675 | H92: 750 | I92: 1 | J92: 69.675 | K92: 750 | L92: 1 | M92: 69.675 | N92: 750 | O92: 1 | P92: 69.675 | Q92: 750 | S92: 0 | T92: 0
A93: ='Components and Space Standards'!A98 -> Customer Parking | B93: ='Components and Space Standards'!B98 -> 41.805 | C93: ='Components and Space Standards'!C98 -> 450 | D93: ='Components and Space Standards'!D98 -> Parking Spaces | E93: ='Components and Space Standards'!E98 -> per space (including circulation) | F93: 40 | G93: 1672.2 | H93: 18000 | I93: 80 | J93: 3344.4 | K93: 36000 | L93: 120 | M93: 5016.6 | N93: 54000 | O93: 160 | P93: 6688.8 | Q93: 72000 | S93: 0 | T93: 0
A94: ='Components and Space Standards'!A99 -> Bicycle Rack Area | B94: ='Components and Space Standards'!B99 -> 14.864 | C94: ='Components and Space Standards'!C99 -> 160 | D94: ='Components and Space Standards'!D99 -> 10-bike Rack(s) | E94: ='Components and Space Standards'!E99 -> per 10-bike Rack | F94: 1 | G94: 14.864 | H94: 160 | I94: 2 | J94: 29.728 | K94: 320 | L94: 2 | M94: 29.728 | N94: 320 | O94: 3 | P94: 44.592 | Q94: 480 | S94: 0 | T94: 0
A95: ='Components and Space Standards'!A100 -> Patio | B95: ='Components and Space Standards'!B100 -> 2.3225 | C95: ='Components and Space Standards'!C100 -> 25 | D95: ='Components and Space Standards'!D100 -> Patio Module(s) | E95: ='Components and Space Standards'!E100 -> per patio | G95: 0 | H95: 0 | J95: 0 | K95: 0 | M95: 0 | N95: 0 | P95: 0 | Q95: 0 | S95: 0 | T95: 0
A96: ='Components and Space Standards'!A101 -> * Service-specific space.
A97: ='Components and Space Standards'!A102 -> 1 If contract service, verify area with contractor.

Sheet Interactive Worksheet
A1: FOR MOST MONITORS (1024x768) VIEW AT 100%. | C1: ENTER PROJECT NAME AND INFORMATION: | W1: Notes/ Comments
J2: < Shaded cells in J can indicate if there is data in that row that may be hidden. If so, shows the appropriate column letter.
A3: =IF(E1=0,"Project Name and Information Here",E1) -> Project Name and Information Here | K3: Controls | M3: Additional Controls & Service Exceptions | W3: All: The "Click Here to Reset Sheet" will clear all the entries in preparation for a new program.
A5: =IF(D5=0,"1. Select Service Branch:","Service Branch") -> 1. Select Service Branch:
K6: Navy
A8: =IF(D5=0,,IF(SUM(L9:L14)=1,"Size of Facility:","2. Select size of facility:")) -> 0 | D8: =IF(D5=0,,"Check box next to appropriate facility size.") -> 0 | K8: Marine Corps
B9: =IF(D5=0,,IF(D5=K5,"Army size options are to the right. Check box next to the appropriate size. Refer to UFC Section 2.1 for population criteria.",IF(D5=K6,"Navy size options are to the right. Check box next to appropriate size. Refer to UFC Section 2.1 for population criteria.",IF(D5=K7,"Air Force facilities are sized using a separate Service-specific spreadsheet that may be found at http://www-p.afsv.af.mil/FC/DesignGuides.htm. Refer to UFC Section 2.1 for more information.",IF(D5=K8,"Marine Corps size options are to the right. Check box next to appropriate size. Also enter actual total Installation population size in the space provided. Refer to UFC Section 2.1 for reference to population criteria.",))))) -> 0 | D9: =IF($D$5=0,,IF($D$5=$K$5,"Extra Small",IF($D$5=$K$6,"Extra Small",IF($D$5=$K$7,,IF($D$5=$K$8,"Extra Small",))))) -> 0 | E9: =IF($D$5=0,,IF($D$5=$K$5,"For populations of "&'size classes'!C2,IF($D$5=$K$6,"For populations of "&'size classes'!C10,IF($D$5='Interactive Worksheet'!$K$7,,IF($D$5='Interactive Worksheet'!$K$8,"For populations of "&'size classes'!C25,))))) -> 0 | K9: FALSE | L9: =IF(K9=TRUE,1,0) -> 0 | M9: =D9 -> 0 | N9: 0
D10: =IF($D$5=0,,IF($D$5=$K$5,"Small",IF($D$5=$K$6,"Small",IF($D$5=$K$7,,IF($D$5=$K$8,"Small",))))) -> 0 | E10: =IF($D$5=0,,IF($D$5=$K$5,"For populations of "&'size classes'!C3,IF($D$5=$K$6,"For populations of "&'size classes'!C11,IF($D$5='Interactive Worksheet'!$K$7,,IF($D$5='Interactive Worksheet'!$K$8,"For populations of "&'size classes'!C26,))))) -> 0 | K10: FALSE | L10: 0 | M10: 0 | N10: 0
D11: =IF($D$5=0,,IF($D$5=$K$5,"Medium",IF($D$5=$K$6,"Medium",IF($D$5=$K$7,,IF($D$5=$K$8,"Medium",))))) -> 0 | E11: =IF($D$5=0,,IF($D$5=$K$5,"For populations of "&'size classes'!C4,IF($D$5=$K$6,"For populations of "&'size classes'!C12,IF($D$5='Interactive Worksheet'!$K$7,,IF($D$5='Interactive Worksheet'!$K$8,"For populations of "&'size classes'!C27,))))) -> 0 | K11: FALSE | L11: 0 | M11: 0 | N11: 0
D12: =IF($D$5=0,,IF($D$5=$K$5,"Large",IF($D$5=$K$6,"Large",IF($D$5=$K$7,,IF($D$5=$K$8,"Large",))))) -> 0 | E12: =IF($D$5=0,,IF($D$5=$K$5,"For populations of "&'size classes'!C5,IF($D$5=$K$6,"For populations of "&'size classes'!C13,IF($D$5='Interactive Worksheet'!$K$7,,IF($D$5='Interactive Worksheet'!$K$8,"For populations of "&'size classes'!C28,))))) -> 0 | K12: FALSE | L12: 0 | M12: 0 | N12: 0
D13: =IF($D$5=0,,IF($D$5=$K$5,"Extra Large",IF($D$5=$K$6,"Extra Large",IF($D$5=$K$7,,IF($D$5=$K$8,"Extra Large",))))) -> 0 | E13: =IF($D$5=0,,IF($D$5=$K$5,"For populations of "&'size classes'!C6,IF($D$5=$K$6,"For populations of "&'size classes'!C14,IF($D$5='Interactive Worksheet'!$K$7,,IF($D$5='Interactive Worksheet'!$K$8,"For populations of "&'size classes'!C29,))))) -> 0 | K13: FALSE | L13: 0 | M13: 0 | N13: 0
D14: =IF($D$5=0,,IF($D$5=$K$5,,IF($D$5=$K$6,,IF($D$5=$K$7,,IF($D$5=$K$8,"Jumbo",))))) -> 0 | E14: =IF($D$5=0,,IF($D$5='Interactive Worksheet'!$K$8,"For populations of "&'size classes'!C30,)) -> 0 | K14: FALSE | L14: 0 | M14: =IF(D5=K6,"Jumbo",D14) -> 0 | N14: =IF(D5=K6, "For populations of >30,000",E14) -> 0
D15: =IF($D$5=0,,IF(AND($D$5=$K$5,K13=TRUE),"Additional",IF($D$5=$K$6,"Jumbo",IF($D$5=$K$7,"Additional",IF($D$5=$K$8,,))))) -> 0 | E15: =IF(D5=0,,IF(AND($D$5=$K$5,K13=TRUE),"Enter additional population over 15,000",IF(D5=K6,"For populations over 30,000, enter 1 here:",))) -> 0 | H15: =IF(AND($D$5=$K$5,$G$15>0),"( = "&(M17*5000)&")",IF(AND($D$5=$K$7,$G$15>0),"( = "&Q17&")",0)) -> 0 | J15: =IF(G15<>0,"G",) -> 0 | K15: =IF(SUM(L9:L14)>1,"ERROR: Only select one facility size. ",0) -> 0 | L15: =IF(K15<>0,1,0) -> 0 | M15: Army | O15: Navy | Q15: AF | S15: MC | U15: Locker
B16: =IF(AND($D$5=$K$8,SUM(L9:L14)=0),"Check box AND enter total Installation population in space provided",0) -> 0 | D16: =IF(D5=0,,IF(AND(D5=K8,AND(K13<>TRUE,K14<>TRUE)),"Enter actual total population:",IF(AND(D5=K8,OR(K13=TRUE,K14=TRUE)),"For Extra Large or Jumbo populations program multiple, smaller facilities.",))) -> 0 | J16: =IF(G16<>0,"G",) -> 0 | K16: =IF(AND(D5=K6,SUM(L9:L13)=1,O18>0)," ERROR: Only select one facility size. If 'Jumbo,' uncheck other boxes. ",0) -> 0 | L16: =IF(K16<>0,1,0) -> 0
E17: =IF(AND(D5=K8,OR(K13=TRUE,K14=TRUE)),"Contact HQMC MRS/MRD for more information.",) -> 0 | K17: =IF(D5=K5,IF(AND(K13=FALSE,G15>0)," ERROR: Must select 'Extra Large' size before adding additional population. ",),IF(D5=K7,IF(AND(K12=FALSE,G15>0)," ERROR: Must select 'Large' size before adding additional population. ",0),0)) -> 0 | L17: =IF(K17<>0,1,0) -> 0 | M17: =ROUNDUP((G15/5000),0) -> 0 | N17: =15000+G15 -> 15000 | O17: =D15 -> 0 | P17: ="For populations of "&'size classes'!C15 -> For populations of >30,000 | Q17: =ROUNDUP(G15,-3) -> 0 | R17: =6000+G15 -> 6000 | S17: =IF($K$9=TRUE,1,IF($K$10=TRUE,501,IF($K$11=TRUE,3001,IF($K$12=TRUE,7001,IF($K$13=TRUE,14001,))))) -> 0 | T17: =IF($K$9=TRUE,500,IF($K$10=TRUE,3000,IF($K$11=TRUE,7000,IF($K$12=TRUE,14000,IF($K$13=TRUE,30000,))))) -> 0
A18: =""&K15&""&K16&""&K17&""&K18 -> 0000 | K18: =IF(AND($D$5=$K$8,B16=0,$G$16<>0,OR($G$16<$S$17,$G$16>$T$17))," ERROR: Total population entered does not correspond to facility size selected. Total population should be between "&$S$17&" and "&$T$17,0) -> 0 | L18: =IF(K18<>0,1,0) -> 0 | N18: =15000+(M17*5000) -> 15000 | O18: =G15 -> 0 | R18: =6000+Q17 -> 6000
M20: Army formulas contain an element to capture quantities and space for the additional 5K population modules. | O20: Navy formulas contain an element to capture quantities and space for the Jumbo size.
A21: =IF(D5=0,,"Based on data entered above, facility size basis is:") -> 0 | D21: =IF(AND(D5=K6,O18>0),O17,VLOOKUP(TRUE,K9:M13,3,FALSE)) ->  | E21: =IF(AND(D5=K6,O18>0),P17,VLOOKUP(TRUE,K9:P13,4,FALSE)) ->  | K21: =ISERROR(D21) -> TRUE
D22: =IF($D$5=0,,IF(AND($D$5=$K$5,$G$15>0),"Additional population entered:",IF(AND($D$5=$K$5,K13=TRUE),"No additional population has been entered.",0))) -> 0
D23: =IF($D$5=0,,IF(AND($D$5=$K$5,$G$15>0),"Total Installation population is "&N17,IF($D$5=$K$8,"Total Installation population is ",))) -> 0
D24: =IF($D$5=0,,IF(AND($D$5=$K$5,$G$15>0),"Facility will be sized based on population of",)) -> 0 | G24: =IF($D$5=0,,IF(AND($D$5=$K$5,$G$15>0),N18,0)) -> 0
A26: =IF(D5=0,,IF(AND(D5<>0,SUM(L9:L14)=1,D26=0),"3. Confirm facility size basis is correct (yes or no):","Facility Size Confirmed:")) -> 0 | E26: =IF(D5=0,,IF(K26="No","Must check box next to appropriate size before indicating 'Yes.'",IF(K26="No ","Resolve error message(s) above before indicating 'Yes.'",IF(K26="No ","Must check size box AND enter total Installation population in space provided before indicating 'Yes.'",)))) -> 0 | J26: =IF(D26<>0,"D",) -> 0 | K26: =IF(D5=K7,"No",IF(AND(D5<>K6,SUM(L9:L13)<1),"No",IF(AND(D5=K6,SUM(L9:L13)<1,O18<1),"No",IF(SUM(L15:L18)>0,"No ",IF(B16<>0,"No ","Yes"))))) -> No
K27: No
A30: =IF(D5=0,,IF(OR(D26<>"Yes",D26=0,K26<>"Yes"),"Must confirm facility size basis is correct (Yes) above before proceeding. If facility size basis is not correct, or if 'Yes' is not an option, adjust the figures accordingly. Refer to UFC Section 2-1 and its referenced documents for more information.","Many of the spaces below are determined by the size and/or population criteria confirmed above. Where appropriate or necessary, modify each space or select the appropriate options to determine the total net facility size.")) -> 0
A33: =IF(OR(D26<>"Yes",D26=0,K26<>"Yes"),,'Components and Space Standards'!A3) -> 0 | E33: Default quantities | G33: m2 | H33: ft.2 | K33: 0.0929
A34: =IF(OR($D$26<>"Yes",$D$26=0,$K$26<>"Yes"),,'Components and Space Standards'!A4) -> 0 | M34: Units | N34: SF | O34: Units | P34: SF | Q34: Units | R34: SF | S34: Units | T34: SF | U34: Lockers
A35: =IF(OR($D$26<>"Yes",$D$26=0,$K$26<>"Yes"),,'Components and Space Standards'!A5) -> 0 | E35: =IF(OR($D$26<>"Yes",$D$26=0,$K$26<>"Yes"),,IF($D$5=$K$5,M35&" "&'Components and Space Standards'!D5&".",IF($D$5=$K$6,O35&" "&'Components and Space Standards'!D5&".",IF($D$5=$K$7,Q35&" "&'Components and Space Standards'!D5&".",IF($D$5=$K$8,S35&" "&'Components and Space Standards'!D5&".",))))) -> 0 | G35: =ROUND(H35*$K$33,2) -> 0 | H35: =IF(OR($D$26<>"Yes",$D$26=0,$K$26<>"Yes"),,IF($D$5=$K$5,N35,IF($D$5=$K$6,P35,IF($D$5=$K$7,R35,IF($D$5=$K$8,T35,))))) -> 0 | K35: =IF(H43=0,"Requires gym","Yes") -> Requires gym | M35: =IF($D35<>0,$D35,IF($D$21=$M$9,Army!$F5,IF($D$21=$M$10,Army!$I5,IF($D$21='Interactive Worksheet'!$M$11,Army!$L5,IF($D$21='Interactive Worksheet'!$M$12,Army!$O5,IF($D$21='Interactive Worksheet'!$M$13,IF($M$17=0,Army!$R5,($M$17*Army!U5)+Army!R5))))))) ->  | N35: =IF($D35<>0,$D35*'Components and Space Standards'!$C5,IF($D$21=$M$9,Army!$H5,IF($D$21=$M$10,Army!$K5,IF($D$21='Interactive Worksheet'!$M$11,Army!$N5,IF($D$21='Interactive Worksheet'!$M$12,Army!$Q5,IF($D$21='Interactive Worksheet'!$M$13,IF($M$17=0,Army!$T5,($M$17*Army!W5)+Army!T5))))))) ->  | O35: =IF($D$35<>0,$D$35,IF($D$21=$M$9,Navy!F5,IF($D$21=$M$10,Navy!I5,IF($D$21='Interactive Worksheet'!$M$11,Navy!L5,IF($D$21='Interactive Worksheet'!$M$12,Navy!O5,IF($D$21='Interactive Worksheet'!$M$13,Navy!R5,IF($O$18>0,Navy!U5,))))))) ->  | P35: =IF($D$35<>0,$D$35*'Components and Space Standards'!C5,IF($D$21=$M$9,Navy!H5,IF($D$21=$M$10,Navy!K5,IF($D$21='Interactive Worksheet'!$M$11,Navy!N5,IF($D$21='Interactive Worksheet'!$M$12,Navy!Q5,IF($D$21='Interactive Worksheet'!$M$13,Navy!T5,IF($O$18>0,Navy!W5,))))))) ->  | Q35: =IF(D35<>0,D35,IF($D$21=$M$10,AF!F5,IF($D$21=$M$11,AF!I5,IF($D$21='Interactive Worksheet'!$M$12,AF!L5,)))) ->  | R35: =IF(D35<>0,D35*'Components and Space Standards'!C5,IF($D$21=$M$10,AF!H5,IF($D$21=$M$11,AF!K5,IF($D$21='Interactive Worksheet'!$M$12,AF!N5,)))) ->  | S35: =IF($D35<>0,$D35,IF($D$21=$M$9,MC!F5,IF($D$21=$M$10,MC!I5,IF($D$21='Interactive Worksheet'!$M$11,MC!L5,IF($D$21='Interactive Worksheet'!$M$12,MC!O5,IF($D$21='Interactive Worksheet'!$M$13,MC!R5,)))))) ->  | T35: =IF($D35<>0,$D35*'Components and Space Standards'!C5,IF($D$21=$M$9,MC!H5,IF($D$21=$M$10,MC!K5,IF($D$21='Interactive Worksheet'!$M$11,MC!N5,IF($D$21='Interactive Worksheet'!$M$12,MC!Q5,IF($D$21='Interactive Worksheet'!$M$13,MC!T5,)))))) -> 
A36: =IF(OR($D$26<>"Yes",$D$26=0,$K$26<>"Yes"),,'Components and Space Standards'!A6) -> 0 | E36: =IF(OR($D$26<>"Yes",$D$26=0,$K$26<>"Yes"),,IF($D$5=$K$5,M36&" "&'Components and Space Standards'!D6&".",IF($D$5=$K$6,O36&" "&'Components and Space Standards'!D6&".",IF($D$5=$K$7,Q36&" "&'Components and Space Standards'!D6&".",IF($D$5=$K$8,S36&" "&'Components and Space Standards'!D6&".",))))) -> 0 | G36: =ROUND(H36*$K$33,2) -> 0 | H36: =IF(OR($D$26<>"Yes",$D$26=0,$K$26<>"Yes"),,IF($D$5=$K$5,N36,IF($D$5=$K$6,P36,IF($D$5=$K$7,R36,IF($D$5=$K$8,T36,))))) -> 0 | K36: No | M36: =IF($D36<>0,$D36,IF($D$21=$M$9,Army!$F6,IF($D$21=$M$10,Army!$I6,IF($D$21='Interactive Worksheet'!$M$11,Army!$L6,IF($D$21='Interactive Worksheet'!$M$12,Army!$O6,IF($D$21='Interactive Worksheet'!$M$13,IF($M$17=0,Army!$R6,($M$17*Army!U6)+Army!R6))))))) ->  | N36: =IF($D36<>0,$D36*'Components and Space Standards'!$C6,IF($D$21=$M$9,Army!$H6,IF($D$21=$M$10,Army!$K6,IF($D$21='Interactive Worksheet'!$M$11,Army!$N6,IF($D$21='Interactive Worksheet'!$M$12,Army!$Q6,IF($D$21='Interactive Worksheet'!$M$13,IF($M$17=0,Army!$T6,($M$17*Army!W6)+Army!T6))))))) ->  | O36: =IF($D$35<>0,$D$35,IF($D$21=$M$9,Navy!F6,IF($D$21=$M$10,Navy!I6,IF($D$21='Interactive Worksheet'!$M$11,Navy!L6,IF($D$21='Interactive Worksheet'!$M$12,Navy!O6,IF($D$21='Interactive Worksheet'!$M$13,Navy!R6,IF($O$18>0,Navy!U6,))))))) ->  | P36: =IF($D$35<>0,$D$35*'Components and Space Standards'!C6,IF($D$21=$M$9,Navy!H6,IF($D$21=$M$10,Navy!K6,IF($D$21='Interactive Worksheet'!$M$11,Navy!N6,IF($D$21='Interactive Worksheet'!$M$12,Navy!Q6,IF($D$21='Interactive Worksheet'!$M$13,Navy!T6,IF($O$18>0,Navy!W6,))))))) ->  | Q36: =IF(D36<>0,D36,IF($D$21=$M$10,AF!F6,IF($D$21=$M$11,AF!I6,IF($D$21='Interactive Worksheet'!$M$12,AF!L6,)))) ->  | R36: =IF(D36<>0,D36*'Components and Space Standards'!C6,IF($D$21=$M$10,AF!H6,IF($D$21=$M$11,AF!K6,IF($D$21='Interactive Worksheet'!$M$12,AF!N6,)))) ->  | S36: =IF($D36<>0,$D36,IF($D$21=$M$9,MC!F6,IF($D$21=$M$10,MC!I6,IF($D$21='Interactive Worksheet'!$M$11,MC!L6,IF($D$21='Interactive Worksheet'!$M$12,MC!O6,IF($D$21='Interactive Worksheet'!$M$13,MC!R6,)))))) ->  | T36: =IF($D36<>0,$D36*'Components and Space Standards'!C6,IF($D$21=$M$9,MC!H6,IF($D$21=$M$10,MC!K6,IF($D$21='Interactive Worksheet'!$M$11,MC!N6,IF($D$21='Interactive Worksheet'!$M$12,MC!Q6,IF($D$21='Interactive Worksheet'!$M$13,MC!T6,)))))) ->  | U36: 2
A37: =IF(OR($D$26<>"Yes",$D$26=0,$K$26<>"Yes"),,'Components and Space Standards'!A7) -> 0 | E37: =IF(OR($D$26<>"Yes",$D$26=0,$K$26<>"Yes"),,IF($D$5=$K$5,M37&" "&'Components and Space Standards'!D7&".",IF($D$5=$K$6,O37&" "&'Components and Space Standards'!D7&".",IF($D$5=$K$7,Q37&" "&'Components and Space Standards'!D7&".",IF($D$5=$K$8,S37&" "&'Components and Space Standards'!D7&".",))))) -> 0 | G37: 0 | H37: 0 | M37: =IF($D37<>0,$D37,IF($D$21=$M$9,Army!$F7,IF($D$21=$M$10,Army!$I7,IF($D$21='Interactive Worksheet'!$M$11,Army!$L7,IF($D$21='Interactive Worksheet'!$M$12,Army!$O7,IF($D$21='Interactive Worksheet'!$M$13,IF($M$17=0,Army!$R7,($M$17*Army!U7)+Army!R7))))))) ->  | N37: =IF($D37<>0,$D37*'Components and Space Standards'!$C7,IF($D$21=$M$9,Army!$H7,IF($D$21=$M$10,Army!$K7,IF($D$21='Interactive Worksheet'!$M$11,Army!$N7,IF($D$21='Interactive Worksheet'!$M$12,Army!$Q7,IF($D$21='Interactive Worksheet'!$M$13,IF($M$17=0,Army!$T7,($M$17*Army!W7)+Army!T7))))))) ->  | O37: =IF($D$35<>0,$D$35,IF($D$21=$M$9,Navy!F7,IF($D$21=$M$10,Navy!I7,IF($D$21='Interactive Worksheet'!$M$11,Navy!L7,IF($D$21='Interactive Worksheet'!$M$12,Navy!O7,IF($D$21='Interactive Worksheet'!$M$13,Navy!R7,IF($O$18>0,Navy!U7,))))))) ->  | P37: =IF($D$35<>0,$D$35*'Components and Space Standards'!C7,IF($D$21=$M$9,Navy!H7,IF($D$21=$M$10,Navy!K7,IF($D$21='Interactive Worksheet'!$M$11,Navy!N7,IF($D$21='Interactive Worksheet'!$M$12,Navy!Q7,IF($D$21='Interactive Worksheet'!$M$13,Navy!T7,IF($O$18>0,Navy!W7,))))))) ->  | Q37: =IF(D37<>0,D37,IF($D$21=$M$10,AF!F7,IF($D$21=$M$11,AF!I7,IF($D$21='Interactive Worksheet'!$M$12,AF!L7,)))) ->  | R37: =IF(D37<>0,D37*'Components and Space Standards'!C7,IF($D$21=$M$10,AF!H7,IF($D$21=$M$11,AF!K7,IF($D$21='Interactive Worksheet'!$M$12,AF!N7,)))) ->  | S37: =IF($D37<>0,$D37,IF($D$21=$M$9,MC!F7,IF($D$21=$M$10,MC!I7,IF($D$21='Interactive Worksheet'!$M$11,MC!L7,IF($D$21='Interactive Worksheet'!$M$12,MC!O7,IF($D$21='Interactive Worksheet'!$M$13,MC!R7,)))))) ->  | T37: =IF($D37<>0,$D37*'Components and Space Standards'!C7,IF($D$21=$M$9,MC!H7,IF($D$21=$M$10,MC!K7,IF($D$21='Interactive Worksheet'!$M$11,MC!N7,IF($D$21='Interactive Worksheet'!$M$12,MC!Q7,IF($D$21='Interactive Worksheet'!$M$13,MC!T7,)))))) -> 
A38: =IF(OR($D$26<>"Yes",$D$26=0,$K$26<>"Yes"),,'Components and Space Standards'!A8) -> 0 | E38: =IF(OR($D$26<>"Yes",$D$26=0,$K$26<>"Yes"),,IF($D$5=$K$5,M38&" "&'Components and Space Standards'!D8&".",IF($D$5=$K$6,O38&" "&'Components and Space Standards'!D8&".",IF($D$5=$K$7,Q38&" "&'Components and Space Standards'!D8&".",IF($D$5=$K$8,S38&" "&'Components and Space Standards'!D8&".",))))) -> 0 | G38: 0 | H38: 0 | K38: ="1 unisex" -> 1 unisex | M38: =IF($D38<>0,$D38,IF($D$21=$M$9,Army!$F8,IF($D$21=$M$10,Army!$I8,IF($D$21='Interactive Worksheet'!$M$11,Army!$L8,IF($D$21='Interactive Worksheet'!$M$12,Army!$O8,IF($D$21='Interactive Worksheet'!$M$13,IF($M$17=0,Army!$R8,($M$17*Army!U8)+Army!R8))))))) ->  | N38: =IF($D38<>0,$D38*'Components and Space Standards'!$C8,IF($D$21=$M$9,Army!$H8,IF($D$21=$M$10,Army!$K8,IF($D$21='Interactive Worksheet'!$M$11,Army!$N8,IF($D$21='Interactive Worksheet'!$M$12,Army!$Q8,IF($D$21='Interactive Worksheet'!$M$13,IF($M$17=0,Army!$T8,($M$17*Army!W8)+Army!T8))))))) ->  | O38: =IF($D$35<>0,$D$35,IF($D$21=$M$9,Navy!F8,IF($D$21=$M$10,Navy!I8,IF($D$21='Interactive Worksheet'!$M$11,Navy!L8,IF($D$21='Interactive Worksheet'!$M$12,Navy!O8,IF($D$21='Interactive Worksheet'!$M$13,Navy!R8,IF($O$18>0,Navy!U8,))))))) ->  | P38: =IF($D$35<>0,$D$35*'Components and Space Standards'!C8,IF($D$21=$M$9,Navy!H8,IF($D$21=$M$10,Navy!K8,IF($D$21='Interactive Worksheet'!$M$11,Navy!N8,IF($D$21='Interactive Worksheet'!$M$12,Navy!Q8,IF($D$21='Interactive Worksheet'!$M$13,Navy!T8,IF($O$18>0,Navy!W8,))))))) ->  | Q38: =IF(D38<>0,D38,IF($D$21=$M$10,AF!F8,IF($D$21=$M$11,AF!I8,IF($D$21='Interactive Worksheet'!$M$12,AF!L8,)))) ->  | R38: =IF(D38<>0,D38*'Components and Space Standards'!C8,IF($D$21=$M$10,AF!H8,IF($D$21=$M$11,AF!K8,IF($D$21='Interactive Worksheet'!$M$12,AF!N8,)))) ->  | S38: =IF($D38<>0,$D38,IF($D$21=$M$9,MC!F8,IF($D$21=$M$10,MC!I8,IF($D$21='Interactive Worksheet'!$M$11,MC!L8,IF($D$21='Interactive Worksheet'!$M$12,MC!O8,IF($D$21='Interactive Worksheet'!$M$13,MC!R8,)))))) ->  | T38: =IF($D38<>0,$D38*'Components and Space Standards'!C8,IF($D$21=$M$9,MC!H8,IF($D$21=$M$10,MC!K8,IF($D$21='Interactive Worksheet'!$M$11,MC!N8,IF($D$21='Interactive Worksheet'!$M$12,MC!Q8,IF($D$21='Interactive Worksheet'!$M$13,MC!T8,)))))) -> 
A39: =IF(OR($D$26<>"Yes",$D$26=0,$K$26<>"Yes"),,'Components and Space Standards'!A9) -> 0 | E39: =IF(OR($D$26<>"Yes",$D$26=0,$K$26<>"Yes"),,IF($D$5=$K$5,M39&" "&'Components and Space Standards'!D9&".",IF($D$5=$K$6,O39&" "&'Components and Space Standards'!D9&".",IF($D$5=$K$7,Q39&" "&'Components and Space Standards'!D9&".",IF($D$5=$K$8,S39&" "&'Components and Space Standards'!D9&".",))))) -> 0 | G39: 0 | H39: =IF(OR($D$26<>"Yes",$D$26=0,$K$26<>"Yes"),,IF($D$5=$K$5,N39,IF($D$5=$K$6,P39,IF($D$5=$K$7,R39,IF($D$5=$K$8,T39,))))) -> 0 | K39: =IF(OR((K50+L50)>200,(AND(D5=K5,N17>15000))),"1 male/ 1 female",0) -> 0 | M39: =IF($D39<>0,$D39,IF($D$21=$M$9,Army!$F9,IF($D$21=$M$10,Army!$I9,IF($D$21='Interactive Worksheet'!$M$11,Army!$L9,IF($D$21='Interactive Worksheet'!$M$12,Army!$O9,IF($D$21='Interactive Worksheet'!$M$13,IF($M$17=0,Army!$R9,($M$17*Army!U9)+Army!R9))))))) ->  | N39: =IF($D39<>0,$D39*'Components and Space Standards'!$C9,IF($D$21=$M$9,Army!$H9,IF($D$21=$M$10,Army!$K9,IF($D$21='Interactive Worksheet'!$M$11,Army!$N9,IF($D$21='Interactive Worksheet'!$M$12,Army!$Q9,IF($D$21='Interactive Worksheet'!$M$13,IF($M$17=0,Army!$T9,($M$17*Army!W9)+Army!T9))))))) ->  | O39: =IF($D$35<>0,$D$35,IF($D$21=$M$9,Navy!F9,IF($D$21=$M$10,Navy!I9,IF($D$21='Interactive Worksheet'!$M$11,Navy!L9,IF($D$21='Interactive Worksheet'!$M$12,Navy!O9,IF($D$21='Interactive Worksheet'!$M$13,Navy!R9,IF($O$18>0,Navy!U9,))))))) ->  | P39: =IF($D$35<>0,$D$35*'Components and Space Standards'!C9,IF($D$21=$M$9,Navy!H9,IF($D$21=$M$10,Navy!K9,IF($D$21='Interactive Worksheet'!$M$11,Navy!N9,IF($D$21='Interactive Worksheet'!$M$12,Navy!Q9,IF($D$21='Interactive Worksheet'!$M$13,Navy!T9,IF($O$18>0,Navy!W9,))))))) ->  | Q39: =IF(D39<>0,D39,IF($D$21=$M$10,AF!F9,IF($D$21=$M$11,AF!I9,IF($D$21='Interactive Worksheet'!$M$12,AF!L9,)))) ->  | R39: =IF(D39<>0,D39*'Components and Space Standards'!C9,IF($D$21=$M$10,AF!H9,IF($D$21=$M$11,AF!K9,IF($D$21='Interactive Worksheet'!$M$12,AF!N9,)))) ->  | S39: =IF($D39<>0,$D39,IF($D$21=$M$9,MC!F9,IF($D$21=$M$10,MC!I9,IF($D$21='Interactive Worksheet'!$M$11,MC!L9,IF($D$21='Interactive Worksheet'!$M$12,MC!O9,IF($D$21='Interactive Worksheet'!$M$13,MC!R9,)))))) ->  | T39: =IF($D39<>0,$D39*'Components and Space Standards'!C9,IF($D$21=$M$9,MC!H9,IF($D$21=$M$10,MC!K9,IF($D$21='Interactive Worksheet'!$M$11,MC!N9,IF($D$21='Interactive Worksheet'!$M$12,MC!Q9,IF($D$21='Interactive Worksheet'!$M$13,MC!T9,)))))) -> 
A40: =IF(OR($D$26<>"Yes",$D$26=0,$K$26<>"Yes"),,'Components and Space Standards'!A10) -> 0 | C40: =IF(OR($D$26<>"Yes",$D$26=0,$K$26<>"Yes"),,"For this option, select yes or no:") -> 0 | E40: =IF(OR($D$26<>"Yes",$D$26=0,$K$26<>"Yes"),,IF($D$5=$K$5,M40&" "&'Components and Space Standards'!D10&".",IF($D$5=$K$6,O40&" "&'Components and Space Standards'!D10&".",IF($D$5=$K$7,Q40&" "&'Components and Space Standards'!D10&".",IF($D$5=$K$8,S40&" "&'Components and Space Standards'!D10&".",))))) -> 0 | G40: 0 | H40: =IF(OR($D$26<>"Yes",$D$26=0,$K$26<>"Yes"),,IF($D$5=$K$5,N40,IF($D$5=$K$6,P40,IF($D$5=$K$7,R40,IF($D$5=$K$8,T40,))))) -> 0 | J40: =IF(D40<>0,"D",) -> 0 | K40: =IF(OR((K50+L50)>400,(AND(D5=K5,N17>15000))),"2 male/ 3 female",0) -> 0 | M40: =IF($D$40=$K$35,($K$50+$L$50)/200,0) -> 0 | N40: =IF($D$40=$K$35,M$40*'Components and Space Standards'!$C$10,0) -> 0 | O40: =IF($D$40=$K$35,($K$50+$L$50)/200,0) -> 0 | P40: =IF($D$40=$K$35,O$40*'Components and Space Standards'!$C$10,0) -> 0 | Q40: =IF($D$40=$K$35,($K$50+$L$50)/200,0) -> 0 | R40: =IF($D$40=$K$35,Q$40*'Components and Space Standards'!$C$10,0) -> 0 | S40: =IF($D$40=$K$35,($K$50+$L$50)/200,0) -> 0 | T40: =IF($D$40=$K$35,S$40*'Components and Space Standards'!$C$10,0) -> 0 | W40: Select "Yes" to get 300 sf for every 200 gym seats. Need to have a gym.
A41: =IF(OR($D$26<>"Yes",$D$26=0,$K$26<>"Yes"),,'Components and Space Standards'!A11) -> 0 | C41: =IF(OR($D$26<>"Yes",$D$26=0,$K$26<>"Yes"),,"For this option, select size of restroom:") -> 0 | E41: =IF(OR($D$26<>"Yes",$D$26=0,$K$26<>"Yes"),,IF($D$5=$K$5,M41&" "&'Components and Space Standards'!D11&".",IF($D$5=$K$6,O41&" "&'Components and Space Standards'!D11&".",IF($D$5=$K$7,Q41&" "&'Components and Space Standards'!D11&".",IF($D$5=$K$8,S41&" "&'Components and Space Standards'!D11&".",))))) -> 0 | G41: 0 | H41: 0 | J41: =IF(D41<>0,"D",) -> 0 | K41: =IF(OR((K50+L50)>600,(AND(D5=K5,N17>15000))),"4 male/ 6 female",0) -> 0 | M41: =$D$41 -> 0 | N41: =IF($D$41=0,0,IF($D$41=$K$38,48,IF($D$41=$K$39,(48+48),IF($D$41=$K$40,((45*2)+(45*3)),IF($D$41=$K$41,((45*4)+(45*6)),0))))) -> 0 | O41: =$D$41 -> 0 | P41: =IF($D$41=0,0,IF($D$41=$K$38,48,IF($D$41=$K$39,(48+48),IF($D$41=$K$40,((45*2)+(45*3)),IF($D$41=$K$41,((45*4)+(45*6)),0))))) -> 0 | Q41: =$D$41 -> 0 | R41: =IF($D$41=0,0,IF($D$41=$K$38,48,IF($D$41=$K$39,(48+48),IF($D$41=$K$40,((45*2)+(45*3)),IF($D$41=$K$41,((45*4)+(45*6)),0))))) -> 0 | S41: =$D$41 -> 0 | T41: =IF($D$41=0,0,IF($D$41=$K$38,48,IF($D$41=$K$39,(48+48),IF($D$41=$K$40,((45*2)+(45*3)),IF($D$41=$K$41,((45*4)+(45*6)),0))))) -> 0 | W41: This option is tied to the number of potential spectators. The more gym seats you have, the larger the bathroom option you can choose.
A42: =IF(OR($D$26<>"Yes",$D$26=0,$K$26<>"Yes"),,'Components and Space Standards'!A12) -> 0 | E42: Default quantities | G42: m2 | H42: ft.2 | K42: Rows 45 - 48 are hidden and contain the default data for the two-court and arena-style court options (47&48) and the non-default data for the Arena-style (45) and 4-court option (46--unused). If the default is altered, the yellow cells become active. The grey cell formulas have been modified to accommodate the non-default, yellow options--do not copy to other rows. | U42: =S45*20 -> 0
A43: =IF(OR($D$26<>"Yes",$D$26=0,$K$26<>"Yes"),,'Components and Space Standards'!A13) -> 0 | C43: =IF(OR($D$26<>"Yes",$D$26=0,$K$26<>"Yes"),,"Select size:") -> 0 | E43: =IF(AND($D$43<>0,D5=K8),$Q$44,IF(AND(D5=K5,N17>15000),"For populations over 30K, use the Army Quantity Questionnaire (see UFC 2-1.1) to determine gym needs on an Installation-wide basis.",IF(H43='Components and Space Standards'!C13,L43,IF(H43='Components and Space Standards'!C14,L48,IF(H43='Components and Space Standards'!C15,L49,IF(H43=('Components and Space Standards'!C13+'Components and Space Standards'!C15),L43&" and "&L49,IF(H43=('Components and Space Standards'!C14+'Components and Space Standards'!C15),L48&" and "&L49,IF(H43=('Components and Space Standards'!C13+'Components and Space Standards'!C14+'Components and Space Standards'!C15),Q45,Q45)))))))) -> 0 | G43: =ROUND(H43*$K$33,2) -> 0 | H43: =IF(AND(D5=K8,$D$43<>0),$R$44,IF(AND(D5=K5,N17>15000),0,(K43+K48+K49))) -> 0 | J43: =IF(D43<>0,"D",) -> 0 | K43: =IF(OR($D$26<>"Yes",$D$26=0,$K$26<>"Yes"),,IF($D$5=$K$5,N43,IF($D$5=$K$6,P43,IF($D$5=$K$7,R43,IF($D$5=$K$8,T43,))))) -> 0 | L43: =IF(OR($D$26<>"Yes",$D$26=0,$K$26<>"Yes"),,IF($D$5=$K$5,$M43&" "&'Components and Space Standards'!$D13&".",IF($D$5=$K$6,$O43&" "&'Components and Space Standards'!$D13&".",IF($D$5=$K$7,$Q43&" "&'Components and Space Standards'!$D13&".",IF($D$5=$K$8,$S43&" "&'Components and Space Standards'!$D13&".",))))) -> 0 | M43: =IF($D$21=$M$9,Army!$F13,IF($D$21=$M$10,Army!$I13,IF($D$21='Interactive Worksheet'!$M$11,Army!$L13,IF($D$21='Interactive Worksheet'!$M$12,Army!$O13,IF($D$21='Interactive Worksheet'!$M$13,Army!$R13,))))) ->  | N43: =IF($D$21=$M$9,Army!$H13,IF($D$21=$M$10,Army!$K13,IF($D$21='Interactive Worksheet'!$M$11,Army!$N13,IF($D$21='Interactive Worksheet'!$M$12,Army!$Q13,IF($D$21='Interactive Worksheet'!$M$13,Army!$T13,))))) ->  | O43: =IF($D$21=$M$9,Navy!$F13,IF($D$21=$M$10,Navy!$I13,IF($D$21='Interactive Worksheet'!$M$11,Navy!$L13,IF($D$21='Interactive Worksheet'!$M$12,Navy!$O13,IF($D$21='Interactive Worksheet'!$M$13,Navy!$R13,IF($O$18>0,Navy!U13,)))))) ->  | P43: =IF($D$21=$M$9,Navy!$H13,IF($D$21=$M$10,Navy!$K13,IF($D$21=$M$11,Navy!$N13,IF($D$21=$M$12,Navy!$Q13,IF($D$21=$M$13,Navy!$T13,IF($O$18>0,Navy!W13,)))))) ->  | Q43: =IF(D43<>0,"See E45",IF($D$21=$M$10,AF!F13,IF($D$21=$M$11,AF!I13,IF($D$21='Interactive Worksheet'!$M$12,AF!L13,)))) ->  | R43: =IF($D$43<>0,"See E45",IF($D$21=$M$10,AF!H13,IF($D$21=$M$11,AF!K13,IF($D$21=$M$12,AF!N13,)))) ->  | W43: See UFC Section B-1 for a complete description of the court modules.
A44: =IF(OR($D$26<>"Yes",$D$26=0,$K$26<>"Yes"),,"Select the Basketball/volleyball Court size. The selected size will be described to the right.") -> 0 | K44: One Court | L44: ="1 "&'Components and Space Standards'!D13 -> 1 One-court/200-seat Module(s) | P44: ='Components and Space Standards'!C13 -> 8892 | Q44: =IF($D$43=K44,L44,IF(D43=K45,L45,IF(D43=K46,L46,IF(D43=K47,L47,)))) -> 0 | R44: =IF($D$43=K44,P44,IF(D43=K45,P45,IF(D43=K46,P46,IF(D43=K47,P47,)))) -> 0
K45: Two Courts | L45: ="1 "&'Components and Space Standards'!D14 -> 1 Two-court/200-seat Module(s) | P45: ='Components and Space Standards'!C14 -> 17556 | Q45: =IF(H43=('Components and Space Standards'!C13+'Components and Space Standards'!C14+'Components and Space Standards'!C15),L43&" and "&L48&" and "&L49,IF(H43=('Components and Space Standards'!C13+'Components and Space Standards'!C14),L43&" and "&L48,IF(H43='Components and Space Standards'!C14*2,L48,IF(H43='Components and Space Standards'!C14*3,L48,)))) -> 0 | S45: =IF(H43='Components and Space Standards'!C13,1,IF(H43='Components and Space Standards'!C14,2,IF(H43='Components and Space Standards'!C15,2,IF(H43=('Components and Space Standards'!C13+'Components and Space Standards'!C15),3,IF(H43=('Components and Space Standards'!C14+'Components and Space Standards'!C15),4,IF(H43=('Components and Space Standards'!C13+'Components and Space Standards'!C14+'Components and Space Standards'!C15),T45,T45)))))) -> 0 | T45: =IF(H43=('Components and Space Standards'!C13+'Components and Space Standards'!C14+'Components and Space Standards'!C15),5,IF(H43=('Components and Space Standards'!C13+'Components and Space Standards'!C14),3,IF(H43='Components and Space Standards'!C14*2,4,IF(H43='Components and Space Standards'!C14*3,6,)))) -> 0
K46: Arena-style | L46: ="1 "&'Components and Space Standards'!D15 -> 1 Arena-style Two-Court Module(s) | P46: ='Components and Space Standards'!C15 -> 18392
K47: Four Courts | L47: ="2 "&'Components and Space Standards'!D14 -> 2 Two-court/200-seat Module(s) | P47: =2*'Components and Space Standards'!C14 -> 35112 | T47: =IF(H43=('Components and Space Standards'!C13+'Components and Space Standards'!C14+'Components and Space Standards'!C15),(200+200+1200),IF(H43=('Components and Space Standards'!C13+'Components and Space Standards'!C14),400,IF(H43='Components and Space Standards'!C14*2,400,IF(H43='Components and Space Standards'!C14*3,600,)))) -> 0
A48: =IF(OR($D$26<>"Yes",$D$26=0,$K$26<>"Yes"),,'Components and Space Standards'!A14) -> 0 | E48: =IF(OR($D$26<>"Yes",$D$26=0,$K$26<>"Yes"),,IF($D$5=$K$5,$M48&" "&'Components and Space Standards'!$D14&".",IF($D$5=$K$6,$O48&" "&'Components and Space Standards'!$D14&".",IF($D$5=$K$7,$Q48&" "&'Components and Space Standards'!$D14&".",IF($D$5=$K$8,$S48&" "&'Components and Space Standards'!$D14&".",))))) -> 0 | G48: =ROUND(H48*$K$33,2) -> 0 | K48: =IF(OR($D$26<>"Yes",$D$26=0,$K$26<>"Yes"),,IF($D$5=$K$5,N48,IF($D$5=$K$6,P48,IF($D$5=$K$7,R48,IF($D$5=$K$8,T48,))))) -> 0 | L48: =IF(OR($D$26<>"Yes",$D$26=0,$K$26<>"Yes"),,IF($D$5=$K$5,$M48&" "&'Components and Space Standards'!D14&".",IF($D$5=$K$6,$O48&" "&'Components and Space Standards'!D14&".",IF($D$5=$K$7,$Q48&" "&'Components and Space Standards'!D14&".",IF($D$5=$K$8,$S48&" "&'Components and Space Standards'!D14&".",))))) -> 0 | M48: =IF($D$21=$M$9,Army!$F14,IF($D$21=$M$10,Army!$I14,IF($D$21='Interactive Worksheet'!$M$11,Army!$L14,IF($D$21='Interactive Worksheet'!$M$12,Army!$O14,IF($D$21='Interactive Worksheet'!$M$13,Army!$R14,))))) ->  | N48: =IF($D$21=$M$9,Army!$H14,IF($D$21=$M$10,Army!$K14,IF($D$21='Interactive Worksheet'!$M$11,Army!$N14,IF($D$21='Interactive Worksheet'!$M$12,Army!$Q14,IF($D$21='Interactive Worksheet'!$M$13,Army!$T14,))))) ->  | O48: =IF($D$21=$M$9,Navy!$F14,IF($D$21=$M$10,Navy!$I14,IF($D$21='Interactive Worksheet'!$M$11,Navy!$L14,IF($D$21='Interactive Worksheet'!$M$12,Navy!$O14,IF($D$21='Interactive Worksheet'!$M$13,Navy!$R14,IF($O$18>0,Navy!U14,)))))) ->  | P48: =IF($D$21=$M$9,Navy!$H14,IF($D$21=$M$10,Navy!$K14,IF($D$21='Interactive Worksheet'!$M$11,Navy!$N14,IF($D$21='Interactive Worksheet'!$M$12,Navy!$Q14,IF($D$21='Interactive Worksheet'!$M$13,Navy!$T14,IF($O$18>0,Navy!W14,)))))) ->  | Q48: =IF($D$43<>0,"See E45",IF($D$21=$M$10,AF!F14,IF($D$21=$M$11,AF!I14,IF($D$21='Interactive Worksheet'!$M$12,AF!L14,)))) ->  | R48: =IF($D$43<>0,"See E45",IF($D$21=$M$10,AF!H14,IF($D$21=$M$11,AF!K14,IF($D$21='Interactive Worksheet'!$M$12,AF!N14,)))) -> 
A49: =IF(OR($D$26<>"Yes",$D$26=0,$K$26<>"Yes"),,'Components and Space Standards'!A15) -> 0 | E49: =IF(OR($D$26<>"Yes",$D$26=0,$K$26<>"Yes"),,IF($D$5=$K$5,$M49&" "&'Components and Space Standards'!$D15&".",IF($D$5=$K$6,$O49&" "&'Components and Space Standards'!$D15&".",IF($D$5=$K$7,$Q49&" "&'Components and Space Standards'!$D15&".",IF($D$5=$K$8,$S49&" "&'Components and Space Standards'!$D15&".",))))) -> 0 | G49: =ROUND(H49*$K$33,2) -> 0 | K49: =IF(OR($D$26<>"Yes",$D$26=0,$K$26<>"Yes"),,IF($D$5=$K$5,N49,IF($D$5=$K$6,P49,IF($D$5=$K$7,R49,IF($D$5=$K$8,T49,))))) -> 0 | L49: =IF(OR($D$26<>"Yes",$D$26=0,$K$26<>"Yes"),,IF($D$5=$K$5,$M49&" "&'Components and Space Standards'!D15&".",IF($D$5=$K$6,$O49&" "&'Components and Space Standards'!D15&".",IF($D$5=$K$7,$Q49&" "&'Components and Space Standards'!D15&".",IF($D$5=$K$8,$S49&" "&'Components and Space Standards'!D15&".",))))) -> 0 | M49: =IF($D$21=$M$9,Army!$F15,IF($D$21=$M$10,Army!$I15,IF($D$21='Interactive Worksheet'!$M$11,Army!$L15,IF($D$21='Interactive Worksheet'!$M$12,Army!$O15,IF($D$21='Interactive Worksheet'!$M$13,Army!$R15,))))) ->  | N49: =IF($D$21=$M$9,Army!$H15,IF($D$21=$M$10,Army!$K15,IF($D$21='Interactive Worksheet'!$M$11,Army!$N15,IF($D$21='Interactive Worksheet'!$M$12,Army!$Q15,IF($D$21='Interactive Worksheet'!$M$13,Army!$T15,))))) ->  | O49: =IF($D$21=$M$9,Navy!$F15,IF($D$21=$M$10,Navy!$I15,IF($D$21='Interactive Worksheet'!$M$11,Navy!$L15,IF($D$21='Interactive Worksheet'!$M$12,Navy!$O15,IF($D$21='Interactive Worksheet'!$M$13,Navy!$R15,IF($O$18>0,Navy!U15,)))))) ->  | P49: =IF($D$21=$M$9,Navy!$H15,IF($D$21=$M$10,Navy!$K15,IF($D$21='Interactive Worksheet'!$M$11,Navy!$N15,IF($D$21='Interactive Worksheet'!$M$12,Navy!$Q15,IF($D$21='Interactive Worksheet'!$M$13,Navy!$T15,IF($O$18>0,Navy!W15,)))))) ->  | Q49: =IF($D$43<>0,"See E45",IF($D$21=$M$10,AF!F15,IF($D$21=$M$11,AF!I15,IF($D$21='Interactive Worksheet'!$M$12,AF!L15,)))) ->  | R49: =IF($D$43<>0,"See E45",IF($D$21=$M$10,AF!H15,IF($D$21=$M$11,AF!K15,IF($D$21='Interactive Worksheet'!$M$12,AF!N15,)))) -> 
A50: =IF(OR($D$26<>"Yes",$D$26=0,$K$26<>"Yes"),,'Components and Space Standards'!A16) -> 0 | C50: =IF(OR($D$26<>"Yes",$D$26=0,$K$26<>"Yes"),,"To change default, enter new quantity:") -> 0 | D50: 0 | E50: =IF(OR($D$26<>"Yes",$D$26=0,$K$26<>"Yes"),,IF(AND(D5=K5,N17>15000),"For populations over 30K, use the Army Quantity Questionnaire.",IF($D$5=$K$5,$M50&" "&'Components and Space Standards'!$D16&". "&K50+L50&" total seats.",IF($D$5=$K$6,$O50&" "&'Components and Space Standards'!$D16&". "&K50+L50&" total seats.",IF($D$5=$K$7,$Q50&" "&'Components and Space Standards'!$D16&". "&K50+L50&" total seats.",IF($D$5=$K$8,$S50&" "&'Components and Space Standards'!$D16&". "&K50+L50&" total seats.",)))))) -> 0 | G50: =ROUND(H50*$K$33,2) -> 0 | H50: =IF(OR($D$26<>"Yes",$D$26=0,$K$26<>"Yes"),,IF($D$5=$K$5,N50,IF($D$5=$K$6,P50,IF($D$5=$K$7,R50,IF($D$5=$K$8,T50,))))) -> 0 | J50: =IF(D50<>0,"D",) -> 0 | K50: =IF(AND(D5=K5,N17>15000),0,IF(H43='Components and Space Standards'!C13,200,IF(H43='Components and Space Standards'!C14,200,IF(H43='Components and Space Standards'!C15,1200,IF(H43=('Components and Space Standards'!C13+'Components and Space Standards'!C15),(200+1200),IF(H43=('Components and Space Standards'!C14+'Components and Space Standards'!C15),(200+1200),IF(H43=('Components and Space Standards'!C13+'Components and Space Standards'!C14+'Components and Space Standards'!C15),T47,T47))))))) -> 0 | L50: =ROUND((H50/912)*200,0) -> 0 | M50: =IF($D50<>0,"Error",IF($D$21=$M$9,Army!$F16,IF($D$21=$M$10,Army!$I16,IF($D$21='Interactive Worksheet'!$M$11,Army!$L16,IF($D$21='Interactive Worksheet'!$M$12,Army!$O16,IF($D$21='Interactive Worksheet'!$M$13,IF($M$17=0,Army!$R16,($M$17*Army!U16)+Army!R16))))))) ->  | N50: =IF($D50<>0,"Error",IF($D$21=$M$9,Army!$H16,IF($D$21=$M$10,Army!$K16,IF($D$21='Interactive Worksheet'!$M$11,Army!$N16,IF($D$21='Interactive Worksheet'!$M$12,Army!$Q16,IF($D$21='Interactive Worksheet'!$M$13,IF($M$17=0,Army!$T16,($M$17*Army!W16)+Army!T16))))))) ->  | O50: =IF(D50<>0,D50,IF($D$21=$M$9,Navy!F16,IF($D$21=$M$10,Navy!I16,IF($D$21='Interactive Worksheet'!$M$11,Navy!L16,IF($D$21='Interactive Worksheet'!$M$12,Navy!O16,IF($D$21='Interactive Worksheet'!$M$13,Navy!R16,IF($O$18>0,Navy!U16,))))))) ->  | P50: =IF(D50<>0,D50*'Components and Space Standards'!C16,IF($D$21=$M$9,Navy!H16,IF($D$21=$M$10,Navy!K16,IF($D$21='Interactive Worksheet'!$M$11,Navy!N16,IF($D$21='Interactive Worksheet'!$M$12,Navy!Q16,IF($D$21='Interactive Worksheet'!$M$13,Navy!T16,IF($O$18>0,Navy!W16,))))))) ->  | Q50: =IF(D50<>0,D50,IF($D$21=$M$10,AF!F16,IF($D$21=$M$11,AF!I16,IF($D$21='Interactive Worksheet'!$M$12,AF!L16,)))) ->  | R50: =IF(D50<>0,D50*'Components and Space Standards'!C16,IF($D$21=$M$10,AF!H16,IF($D$21=$M$11,AF!K16,IF($D$21='Interactive Worksheet'!$M$12,AF!N16,)))) ->  | S50: =IF($D50<>0,IF($D$50>3,3,$D$50),IF($D$21=$M$9,MC!F16,IF($D$21=$M$10,MC!I16,IF($D$21='Interactive Worksheet'!$M$11,MC!L16,IF($D$21='Interactive Worksheet'!$M$12,MC!O16,IF($D$21='Interactive Worksheet'!$M$13,MC!R16,)))))) ->  | T50: =IF($D50<>0,(IF($D$50>3,3,$D$50)*'Components and Space Standards'!C16),IF($D$21=$M$9,MC!H16,IF($D$21=$M$10,MC!K16,IF($D$21='Interactive Worksheet'!$M$11,MC!N16,IF($D$21='Interactive Worksheet'!$M$12,MC!Q16,IF($D$21='Interactive Worksheet'!$M$13,MC!T16,)))))) -> 
A51: =IF(OR($D$26<>"Yes",$D$26=0,$K$26<>"Yes"),,'Components and Space Standards'!A17) -> 0 | E51: =IF(OR($D$26<>"Yes",$D$26=0,$K$26<>"Yes"),,IF($D$5=$K$5,$M51&" "&'Components and Space Standards'!$D17&".",IF($D$5=$K$6,$O51&" "&'Components and Space Standards'!$D17&".",IF($D$5=$K$7,$Q51&" "&'Components and Space Standards'!$D17&".",IF($D$5=$K$8,ROUND(H51/700,0)&" "&'Components and Space Standards'!$D17&".",))))) -> 0 | G51: =ROUND(H51*$K$33,2) -> 0 | H51: =IF(OR($D$26<>"Yes",$D$26=0,$K$26<>"Yes"),,IF($D$5=$K$5,N51,IF($D$5=$K$6,P51,IF($D$5=$K$7,R51,IF($D$5=$K$8,0.08*H43,))))) -> 0 | M51: =IF($D51<>0,$D51,IF($D$21=$M$9,Army!$F17,IF($D$21=$M$10,Army!$I17,IF($D$21='Interactive Worksheet'!$M$11,Army!$L17,IF($D$21='Interactive Worksheet'!$M$12,Army!$O17,IF($D$21='Interactive Worksheet'!$M$13,IF($M$17=0,Army!$R17,($M$17*Army!U17)+Army!R17))))))) ->  | N51: =IF($D51<>0,$D51*'Components and Space Standards'!$C17,IF($D$21=$M$9,Army!$H17,IF($D$21=$M$10,Army!$K17,IF($D$21='Interactive Worksheet'!$M$11,Army!$N17,IF($D$21='Interactive Worksheet'!$M$12,Army!$Q17,IF($D$21='Interactive Worksheet'!$M$13,IF($M$17=0,Army!$T17,($M$17*Army!W17)+Army!T17))))))) ->  | O51: =IF(D51<>0,D51,IF($D$21=$M$9,Navy!F17,IF($D$21=$M$10,Navy!I17,IF($D$21='Interactive Worksheet'!$M$11,Navy!L17,IF($D$21='Interactive Worksheet'!$M$12,Navy!O17,IF($D$21='Interactive Worksheet'!$M$13,Navy!R17,IF($O$18>0,Navy!U17,))))))) ->  | P51: =IF(D51<>0,D51*'Components and Space Standards'!C17,IF($D$21=$M$9,Navy!H17,IF($D$21=$M$10,Navy!K17,IF($D$21='Interactive Worksheet'!$M$11,Navy!N17,IF($D$21='Interactive Worksheet'!$M$12,Navy!Q17,IF($D$21='Interactive Worksheet'!$M$13,Navy!T17,IF($O$18>0,Navy!W17,))))))) ->  | Q51: =IF(D51<>0,D51,IF($D$21=$M$10,AF!F17,IF($D$21=$M$11,AF!I17,IF($D$21='Interactive Worksheet'!$M$12,AF!L17,)))) ->  | R51: =IF(D51<>0,D51*'Components and Space Standards'!C17,IF($D$21=$M$10,AF!H17,IF($D$21=$M$11,AF!K17,IF($D$21='Interactive Worksheet'!$M$12,AF!N17,)))) ->  | S51: =IF($D51<>0,$D51,IF($D$21=$M$9,MC!F17,IF($D$21=$M$10,MC!I17,IF($D$21='Interactive Worksheet'!$M$11,MC!L17,IF($D$21='Interactive Worksheet'!$M$12,MC!O17,IF($D$21='Interactive Worksheet'!$M$13,MC!R17,)))))) ->  | T51: =IF($D51<>0,$D51*'Components and Space Standards'!C17,IF($D$21=$M$9,MC!H17,IF($D$21=$M$10,MC!K17,IF($D$21='Interactive Worksheet'!$M$11,MC!N17,IF($D$21='Interactive Worksheet'!$M$12,MC!Q17,IF($D$21='Interactive Worksheet'!$M$13,MC!T17,)))))) -> 
A52: =IF(OR($D$26<>"Yes",$D$26=0,$K$26<>"Yes"),,'Components and Space Standards'!A18) -> 0 | E52: =IF(OR($D$26<>"Yes",$D$26=0,$K$26<>"Yes"),,IF($D$5=$K$5,$M52&" "&'Components and Space Standards'!$D18&".",IF($D$5=$K$6,$O52&" "&'Components and Space Standards'!$D18&".",IF($D$5=$K$7,$Q52&" "&'Components and Space Standards'!$D18&".",IF($D$5=$K$8,$S52&" "&'Components and Space Standards'!$D18&".",))))) -> 0 | G52: =ROUND(H52*$K$33,2) -> 0 | H52: =IF(OR($D$26<>"Yes",$D$26=0,$K$26<>"Yes"),,IF($D$5=$K$5,N52,IF($D$5=$K$6,P52,IF($D$5=$K$7,R52,IF($D$5=$K$8,T52,))))) -> 0 | M52: =IF($D52<>0,$D52,IF($D$21=$M$9,Army!$F18,IF($D$21=$M$10,Army!$I18,IF($D$21='Interactive Worksheet'!$M$11,Army!$L18,IF($D$21='Interactive Worksheet'!$M$12,Army!$O18,IF($D$21='Interactive Worksheet'!$M$13,IF($M$17=0,Army!$R18,($M$17*Army!U18)+Army!R18))))))) ->  | N52: =IF($D52<>0,$D52*'Components and Space Standards'!$C18,IF($D$21=$M$9,Army!$H18,IF($D$21=$M$10,Army!$K18,IF($D$21='Interactive Worksheet'!$M$11,Army!$N18,IF($D$21='Interactive Worksheet'!$M$12,Army!$Q18,IF($D$21='Interactive Worksheet'!$M$13,IF($M$17=0,Army!$T18,($M$17*Army!W18)+Army!T18))))))) ->  | O52: =IF(D52<>0,D52,IF($D$21=$M$9,Navy!F18,IF($D$21=$M$10,Navy!I18,IF($D$21='Interactive Worksheet'!$M$11,Navy!L18,IF($D$21='Interactive Worksheet'!$M$12,Navy!O18,IF($D$21='Interactive Worksheet'!$M$13,Navy!R18,IF($O$18>0,Navy!U18,))))))) ->  | P52: =IF(D52<>0,D52*'Components and Space Standards'!C18,IF($D$21=$M$9,Navy!H18,IF($D$21=$M$10,Navy!K18,IF($D$21='Interactive Worksheet'!$M$11,Navy!N18,IF($D$21='Interactive Worksheet'!$M$12,Navy!Q18,IF($D$21='Interactive Worksheet'!$M$13,Navy!T18,IF($O$18>0,Navy!W18,))))))) ->  | Q52: =IF(D52<>0,D52,IF($D$21=$M$10,AF!F18,IF($D$21=$M$11,AF!I18,IF($D$21='Interactive Worksheet'!$M$12,AF!L18,)))) ->  | R52: =IF(D52<>0,D52*'Components and Space Standards'!C18,IF($D$21=$M$10,AF!H18,IF($D$21=$M$11,AF!K18,IF($D$21='Interactive Worksheet'!$M$12,AF!N18,)))) ->  | S52: =IF($D52<>0,$D52,IF($D$21=$M$9,MC!F18,IF($D$21=$M$10,MC!I18,IF($D$21='Interactive Worksheet'!$M$11,MC!L18,IF($D$21='Interactive Worksheet'!$M$12,MC!O18,IF($D$21='Interactive Worksheet'!$M$13,MC!R18,)))))) ->  | T52: =IF($D52<>0,$D52*'Components and Space Standards'!C18,IF($D$21=$M$9,MC!H18,IF($D$21=$M$10,MC!K18,IF($D$21='Interactive Worksheet'!$M$11,MC!N18,IF($D$21='Interactive Worksheet'!$M$12,MC!Q18,IF($D$21='Interactive Worksheet'!$M$13,MC!T18,)))))) -> 
A53: =IF(OR($D$26<>"Yes",$D$26=0,$K$26<>"Yes"),,'Components and Space Standards'!A19) -> 0 | G53: =ROUND(H53*$K$33,2) -> 0 | H53: =IF(OR($D$26<>"Yes",$D$26=0,$K$26<>"Yes"),,IF($D$5=$K$5,N53,IF($D$5=$K$6,P53,IF($D$5=$K$7,R53,IF($D$5=$K$8,T53,))))) -> 0 | O53: =IF(D53<>0,D53,IF($D$21=$M$9,Navy!F19,IF($D$21=$M$10,Navy!I19,IF($D$21='Interactive Worksheet'!$M$11,Navy!L19,IF($D$21='Interactive Worksheet'!$M$12,Navy!O19,IF($D$21='Interactive Worksheet'!$M$13,Navy!R19,)))))) ->  | P53: =IF(D53<>0,D53*'Components and Space Standards'!C19,IF($D$21=$M$9,Navy!H19,IF($D$21=$M$10,Navy!K19,IF($D$21='Interactive Worksheet'!$M$11,Navy!N19,IF($D$21='Interactive Worksheet'!$M$12,Navy!Q19,IF($D$21='Interactive Worksheet'!$M$13,Navy!T19,)))))) ->  | Q53: =IF(D53<>0,D53,IF($D$21=$M$10,AF!F19,IF($D$21=$M$11,AF!I19,IF($D$21='Interactive Worksheet'!$M$12,AF!L19,)))) ->  | R53: =IF(D53<>0,D53*'Components and Space Standards'!C19,IF($D$21=$M$10,AF!H19,IF($D$21=$M$11,AF!K19,IF($D$21='Interactive Worksheet'!$M$12,AF!N19,)))) ->  | S53: =IF($D53<>0,$D53,IF($D$21=$M$9,MC!F19,IF($D$21=$M$10,MC!I19,IF($D$21='Interactive Worksheet'!$M$11,MC!L19,IF($D$21='Interactive Worksheet'!$M$12,MC!O19,IF($D$21='Interactive Worksheet'!$M$13,MC!R19,)))))) ->  | T53: =IF($D53<>0,$D53*'Components and Space Standards'!C19,IF($D$21=$M$9,MC!H19,IF($D$21=$M$10,MC!K19,IF($D$21='Interactive Worksheet'!$M$11,MC!N19,IF($D$21='Interactive Worksheet'!$M$12,MC!Q19,IF($D$21='Interactive Worksheet'!$M$13,MC!T19,)))))) -> 
A54: =IF(OR($D$26<>"Yes",$D$26=0,$K$26<>"Yes"),,'Components and Space Standards'!A20) -> 0 | C54: =IF(OR($D$26<>"Yes",$D$26=0,$K$26<>"Yes"),,"To change default, enter new quantity of ppl:") -> 0 | E54: =IF(OR($D$26<>"Yes",$D$26=0,$K$26<>"Yes"),,IF($D$5=$K$5,$M54&" "&'Components and Space Standards'!$D20&".",IF($D$5=$K$6,$O54&" "&'Components and Space Standards'!$D20&".",IF($D$5=$K$7,$Q54&" "&'Components and Space Standards'!$D20&".",IF($D$5=$K$8,$S54&" "&'Components and Space Standards'!$D20&".",))))) -> 0 | G54: 0 | H54: =IF($D$54<>0,$D$54*50,IF(OR($D$26<>"Yes",$D$26=0,$K$26<>"Yes"),,IF($D$5=$K$5,N54,IF($D$5=$K$6,P54,IF($D$5=$K$7,R54,IF($D$5=$K$8,T54,)))))) -> 0 | J54: =IF(D54<>0,"D",) -> 0 | M54: =IF($D54<>0,$D54,IF($D$21=$M$9,Army!$F20,IF($D$21=$M$10,Army!$I20,IF($D$21='Interactive Worksheet'!$M$11,Army!$L20,IF($D$21='Interactive Worksheet'!$M$12,Army!$O20,IF($D$21='Interactive Worksheet'!$M$13,IF($M$17=0,Army!$R20,($M$17*Army!U20)+Army!R20))))))) ->  | N54: =IF($D54<>0,$D54*'Components and Space Standards'!C20,IF($D$21=$M$9,Army!$H20,IF($D$21=$M$10,Army!$K20,IF($D$21=$M$11,Army!$N20,IF($D$21=$M$12,Army!$Q20,IF($D$21=$M$13,IF($M$17=0,Army!$T20,($M$17*Army!W20)+Army!T20))))))) ->  | O54: =IF($D54<>0,$D54,IF($D$21=$M$9,Navy!$F20,IF($D$21=$M$10,Navy!$I20,IF($D$21=$M$11,Navy!$L20,IF($D$21=$M$12,Navy!$O20,IF($D$21=$M$13,Navy!$R20,IF($O$18>0,Navy!U20,))))))) ->  | P54: =IF($D54<>0,$D54*'Components and Space Standards'!C20,IF($D$21=$M$9,Navy!$H20,IF($D$21=$M$10,Navy!$K20,IF($D$21=$M$11,Navy!$N20,IF($D$21=$M$12,Navy!$Q20,IF($D$21=$M$13,Navy!$T20,IF($O$18>0,Navy!W20,))))))) ->  | Q54: =IF(D54<>0,D54,IF($D$21=$M$10,AF!F20,IF($D$21=$M$11,AF!I20,IF($D$21=$M$12,AF!L20,)))) ->  | R54: =IF(D54<>0,$D54*'Components and Space Standards'!C20,IF($D$21=$M$10,AF!H20,IF($D$21=$M$11,AF!K20,IF($D$21=$M$12,AF!N20,)))) ->  | S54: =IF($D54<>0,$D54,IF($D$21=$M$9,MC!F20,IF($D$21=$M$10,MC!I20,IF($D$21=$M$11,MC!L20,IF($D$21=$M$12,MC!O20,IF($D$21=$M$13,MC!R20,)))))) ->  | T54: =IF($D54<>0,$D54*'Components and Space Standards'!C20,IF($D$21=$M$9,MC!H20,IF($D$21=$M$10,MC!K20,IF($D$21=$M$11,MC!N20,IF($D$21=$M$12,MC!Q20,IF($D$21=$M$13,MC!T20,)))))) ->  | U54: =(H54/50)*1 -> 0
A55: =IF(OR($D$26<>"Yes",$D$26=0,$K$26<>"Yes"),,'Components and Space Standards'!A21) -> 0 | E55: =IF(OR($D$26<>"Yes",$D$26=0,$K$26<>"Yes"),,IF($D$5=$K$5,$M55&" "&'Components and Space Standards'!$D21&".",IF($D$5=$K$6,$O55&" "&'Components and Space Standards'!$D21&".",IF($D$5=$K$7,$Q55&" "&'Components and Space Standards'!$D21&".",IF($D$5=$K$8,$S55&" "&'Components and Space Standards'!$D21&".",))))) -> 0 | G55: 0 | H55: 0 | N55: =IF($H$54=0,0,N54*0.1) -> 0 | P55: =IF($H$54=0,0,P54*0.1) -> 0 | R55: =IF($H$54=0,0,R54*0.1) -> 0 | T55: =IF($H$54=0,0,T54*0.1) -> 0
A56: =IF(OR($D$26<>"Yes",$D$26=0,$K$26<>"Yes"),,'Components and Space Standards'!A22) -> 0 | N56: =SUM(N57:N60) ->  | P56: =SUM(P57:P60) ->  | R56: =SUM(R57:R60) ->  | T56: =SUM(T57:T60) ->  | V56: (Fitness spaces summed minus Fitness Assessment.)
A57: =IF(OR($D$26<>"Yes",$D$26=0,$K$26<>"Yes"),,'Components and Space Standards'!A23) -> 0 | E57: =IF(OR($D$26<>"Yes",$D$26=0,$K$26<>"Yes"),,IF($D$5=$K$5,$M57&" "&'Components and Space Standards'!$D23&".",IF($D$5=$K$6,$O57&" "&'Components and Space Standards'!$D23&".",IF($D$5=$K$7,$Q57&" "&'Components and Space Standards'!$D23&".",IF($D$5=$K$8,$S57&" "&'Components and Space Standards'!$D23&".",))))) -> 0 | G57: 0 | H57: 0 | M57: =IF($D57<>0,$D57,IF($D$21=$M$9,Army!$F23,IF($D$21=$M$10,Army!$I23,IF($D$21='Interactive Worksheet'!$M$11,Army!$L23,IF($D$21='Interactive Worksheet'!$M$12,Army!$O23,IF($D$21='Interactive Worksheet'!$M$13,IF($M$17=0,Army!$R23,($M$17*Army!U23)+Army!R23))))))) ->  | N57: =IF($D57<>0,$D57*'Components and Space Standards'!$C23,IF($D$21=$M$9,Army!$H23,IF($D$21=$M$10,Army!$K23,IF($D$21='Interactive Worksheet'!$M$11,Army!$N23,IF($D$21='Interactive Worksheet'!$M$12,Army!$Q23,IF($D$21='Interactive Worksheet'!$M$13,IF($M$17=0,Army!$T23,($M$17*Army!W23)+Army!T23))))))) ->  | O57: =IF(D57<>0,D57,IF($D$21=$M$9,Navy!F23,IF($D$21=$M$10,Navy!I23,IF($D$21='Interactive Worksheet'!$M$11,Navy!L23,IF($D$21='Interactive Worksheet'!$M$12,Navy!O23,IF($D$21='Interactive Worksheet'!$M$13,Navy!R23,IF($O$18>0,Navy!U23,))))))) ->  | P57: =IF(D57<>0,D57*'Components and Space Standards'!C23,IF($D$21=$M$9,Navy!H23,IF($D$21=$M$10,Navy!K23,IF($D$21='Interactive Worksheet'!$M$11,Navy!N23,IF($D$21='Interactive Worksheet'!$M$12,Navy!Q23,IF($D$21='Interactive Worksheet'!$M$13,Navy!T23,IF($O$18>0,Navy!W23,))))))) ->  | Q57: =IF(D57<>0,D57,IF($D$21=$M$10,AF!F23,IF($D$21=$M$11,AF!I23,IF($D$21='Interactive Worksheet'!$M$12,AF!L23,)))) ->  | R57: =IF(D57<>0,D57*'Components and Space Standards'!C23,IF($D$21=$M$10,AF!H23,IF($D$21=$M$11,AF!K23,IF($D$21='Interactive Worksheet'!$M$12,AF!N23,)))) ->  | S57: =IF($D57<>0,$D57,IF($D$21=$M$9,MC!F23,IF($D$21=$M$10,MC!I23,IF($D$21='Interactive Worksheet'!$M$11,MC!L23,IF($D$21='Interactive Worksheet'!$M$12,MC!O23,IF($D$21='Interactive Worksheet'!$M$13,MC!R23,)))))) ->  | T57: =IF($D57<>0,$D57*'Components and Space Standards'!C23,IF($D$21=$M$9,MC!H23,IF($D$21=$M$10,MC!K23,IF($D$21='Interactive Worksheet'!$M$11,MC!N23,IF($D$21='Interactive Worksheet'!$M$12,MC!Q23,IF($D$21='Interactive Worksheet'!$M$13,MC!T23,)))))) -> 
A58: =IF(OR($D$26<>"Yes",$D$26=0,$K$26<>"Yes"),,'Components and Space Standards'!A24) -> 0 | E58: =IF(OR($D$26<>"Yes",$D$26=0,$K$26<>"Yes"),,IF($D$5=$K$5,$M58&" "&'Components and Space Standards'!$D24&".",IF($D$5=$K$6,$O58&" "&'Components and Space Standards'!$D24&".",IF($D$5=$K$7,$Q58&" "&'Components and Space Standards'!$D24&".",IF(AND($D$5=$K$8,L9=0,L10=0),K58,$S58&" "&'Components and Space Standards'!$D24&"."))))) -> 0 | G58: 0 | H58: 0 | K58: For Medium and larger facilities, this number includes area for cardio, selectorized, and free weights. | M58: =IF($D58<>0,$D58,IF($D$21=$M$9,Army!$F24,IF($D$21=$M$10,Army!$I24,IF($D$21='Interactive Worksheet'!$M$11,Army!$L24,IF($D$21='Interactive Worksheet'!$M$12,Army!$O24,IF($D$21='Interactive Worksheet'!$M$13,IF($M$17=0,Army!$R24,($M$17*Army!U24)+Army!R24))))))) ->  | N58: =IF($D58<>0,$D58*'Components and Space Standards'!$C24,IF($D$21=$M$9,Army!$H24,IF($D$21=$M$10,Army!$K24,IF($D$21='Interactive Worksheet'!$M$11,Army!$N24,IF($D$21='Interactive Worksheet'!$M$12,Army!$Q24,IF($D$21='Interactive Worksheet'!$M$13,IF($M$17=0,Army!$T24,($M$17*Army!W24)+Army!T24))))))) ->  | O58: =IF(D58<>0,D58,IF($D$21=$M$9,Navy!F24,IF($D$21=$M$10,Navy!I24,IF($D$21='Interactive Worksheet'!$M$11,Navy!L24,IF($D$21='Interactive Worksheet'!$M$12,Navy!O24,IF($D$21='Interactive Worksheet'!$M$13,Navy!R24,IF($O$18>0,Navy!U24,))))))) ->  | P58: =IF(D58<>0,D58*'Components and Space Standards'!C24,IF($D$21=$M$9,Navy!H24,IF($D$21=$M$10,Navy!K24,IF($D$21='Interactive Worksheet'!$M$11,Navy!N24,IF($D$21='Interactive Worksheet'!$M$12,Navy!Q24,IF($D$21='Interactive Worksheet'!$M$13,Navy!T24,IF($O$18>0,Navy!W24,))))))) ->  | Q58: =IF(D58<>0,D58,IF($D$21=$M$10,AF!F24,IF($D$21=$M$11,AF!I24,IF($D$21='Interactive Worksheet'!$M$12,AF!L24,)))) ->  | R58: =IF(D58<>0,D58*'Components and Space Standards'!C24,IF($D$21=$M$10,AF!H24,IF($D$21=$M$11,AF!K24,IF($D$21='Interactive Worksheet'!$M$12,AF!N24,)))) ->  | S58: =IF($D58<>0,$D58,IF($D$21=$M$9,MC!F24,IF($D$21=$M$10,MC!I24,IF($D$21='Interactive Worksheet'!$M$11,MC!L24,IF($D$21='Interactive Worksheet'!$M$12,MC!O24,IF($D$21='Interactive Worksheet'!$M$13,MC!R24,)))))) ->  | T58: =IF($D58<>0,$D58*'Components and Space Standards'!C24,IF($D$21=$M$9,MC!H24,IF($D$21=$M$10,MC!K24,(0.035*G23*38.5)))) ->  | U58: =IF(AND(D5=K8,L9=0,L10=0),(0.035*G23),(H58/50)*1) -> 0
A59: =IF(OR($D$26<>"Yes",$D$26=0,$K$26<>"Yes"),,'Components and Space Standards'!A25) -> 0 | E59: =IF(OR($D$26<>"Yes",$D$26=0,$K$26<>"Yes"),,IF($D$5=$K$5,$M59&" "&'Components and Space Standards'!$D25&".",IF($D$5=$K$6,$O59&" "&'Components and Space Standards'!$D25&".",IF($D$5=$K$7,$Q59&" "&'Components and Space Standards'!$D25&".",IF(AND($D$5=$K$8,$G$16>3000),"See above.",$S59&" "&'Components and Space Standards'!$D25&"."))))) -> 0 | G59: 0 | H59: 0 | M59: =IF($D59<>0,$D59,IF($D$21=$M$9,Army!$F25,IF($D$21=$M$10,Army!$I25,IF($D$21='Interactive Worksheet'!$M$11,Army!$L25,IF($D$21='Interactive Worksheet'!$M$12,Army!$O25,IF($D$21='Interactive Worksheet'!$M$13,IF($M$17=0,Army!$R25,($M$17*Army!U25)+Army!R25))))))) ->  | N59: =IF($D59<>0,$D59*'Components and Space Standards'!$C25,IF($D$21=$M$9,Army!$H25,IF($D$21=$M$10,Army!$K25,IF($D$21='Interactive Worksheet'!$M$11,Army!$N25,IF($D$21='Interactive Worksheet'!$M$12,Army!$Q25,IF($D$21='Interactive Worksheet'!$M$13,IF($M$17=0,Army!$T25,($M$17*Army!W25)+Army!T25))))))) ->  | O59: =IF(D59<>0,D59,IF($D$21=$M$9,Navy!F25,IF($D$21=$M$10,Navy!I25,IF($D$21='Interactive Worksheet'!$M$11,Navy!L25,IF($D$21='Interactive Worksheet'!$M$12,Navy!O25,IF($D$21='Interactive Worksheet'!$M$13,Navy!R25,IF($O$18>0,Navy!U25,))))))) ->  | P59: =IF(D59<>0,D59*'Components and Space Standards'!C25,IF($D$21=$M$9,Navy!H25,IF($D$21=$M$10,Navy!K25,IF($D$21='Interactive Worksheet'!$M$11,Navy!N25,IF($D$21='Interactive Worksheet'!$M$12,Navy!Q25,IF($D$21='Interactive Worksheet'!$M$13,Navy!T25,IF($O$18>0,Navy!W25,))))))) ->  | Q59: =IF(D59<>0,D59,IF($D$21=$M$10,AF!F25,IF($D$21=$M$11,AF!I25,IF($D$21='Interactive Worksheet'!$M$12,AF!L25,)))) ->  | R59: =IF(D59<>0,D59*'Components and Space Standards'!C25,IF($D$21=$M$10,AF!H25,IF($D$21=$M$11,AF!K25,IF($D$21='Interactive Worksheet'!$M$12,AF!N25,)))) ->  | S59: =IF($D59<>0,$D59,IF($D$21=$M$9,MC!F25,IF($D$21=$M$10,MC!I25,IF($D$21='Interactive Worksheet'!$M$11,MC!L25,IF($D$21='Interactive Worksheet'!$M$12,MC!O25,IF($D$21='Interactive Worksheet'!$M$13,MC!R25,)))))) ->  | T59: =IF($D59<>0,$D59*'Components and Space Standards'!C25,IF($D$21=$M$9,MC!H25,IF($D$21=$M$10,MC!K25,IF($D$21='Interactive Worksheet'!$M$11,MC!N25,IF($D$21='Interactive Worksheet'!$M$12,MC!Q25,IF($D$21='Interactive Worksheet'!$M$13,MC!T25,)))))) ->  | U59: =(H59/50)*2 -> 0
A60: =IF(OR($D$26<>"Yes",$D$26=0,$K$26<>"Yes"),,'Components and Space Standards'!A26) -> 0 | E60: =IF(OR($D$26<>"Yes",$D$26=0,$K$26<>"Yes"),,IF($D$5=$K$5,$M60&" "&'Components and Space Standards'!$D26&".",IF($D$5=$K$6,$O60&" "&'Components and Space Standards'!$D26&".",IF($D$5=$K$7,$Q60&" "&'Components and Space Standards'!$D26&".",IF(AND($D$5=$K$8,$G$16>3000),"See above.",$S60&" "&'Components and Space Standards'!$D26&"."))))) -> 0 | G60: 0 | H60: 0 | M60: =IF($D60<>0,$D60,IF($D$21=$M$9,Army!$F26,IF($D$21=$M$10,Army!$I26,IF($D$21='Interactive Worksheet'!$M$11,Army!$L26,IF($D$21='Interactive Worksheet'!$M$12,Army!$O26,IF($D$21='Interactive Worksheet'!$M$13,IF($M$17=0,Army!$R26,($M$17*Army!U26)+Army!R26))))))) ->  | N60: =IF($D60<>0,$D60*'Components and Space Standards'!$C26,IF($D$21=$M$9,Army!$H26,IF($D$21=$M$10,Army!$K26,IF($D$21='Interactive Worksheet'!$M$11,Army!$N26,IF($D$21='Interactive Worksheet'!$M$12,Army!$Q26,IF($D$21='Interactive Worksheet'!$M$13,IF($M$17=0,Army!$T26,($M$17*Army!W26)+Army!T26))))))) ->  | O60: =IF(D60<>0,D60,IF($D$21=$M$9,Navy!F26,IF($D$21=$M$10,Navy!I26,IF($D$21='Interactive Worksheet'!$M$11,Navy!L26,IF($D$21='Interactive Worksheet'!$M$12,Navy!O26,IF($D$21='Interactive Worksheet'!$M$13,Navy!R26,IF($O$18>0,Navy!U26,))))))) ->  | P60: =IF(D60<>0,D60*'Components and Space Standards'!C26,IF($D$21=$M$9,Navy!H26,IF($D$21=$M$10,Navy!K26,IF($D$21='Interactive Worksheet'!$M$11,Navy!N26,IF($D$21='Interactive Worksheet'!$M$12,Navy!Q26,IF($D$21='Interactive Worksheet'!$M$13,Navy!T26,IF($O$18>0,Navy!W26,))))))) ->  | Q60: =IF(D60<>0,D60,IF($D$21=$M$10,AF!F26,IF($D$21=$M$11,AF!I26,IF($D$21='Interactive Worksheet'!$M$12,AF!L26,)))) ->  | R60: =IF(D60<>0,D60*'Components and Space Standards'!C26,IF($D$21=$M$10,AF!H26,IF($D$21=$M$11,AF!K26,IF($D$21='Interactive Worksheet'!$M$12,AF!N26,)))) ->  | S60: =IF($D60<>0,$D60,IF($D$21=$M$9,MC!F26,IF($D$21=$M$10,MC!I26,IF($D$21='Interactive Worksheet'!$M$11,MC!L26,IF($D$21='Interactive Worksheet'!$M$12,MC!O26,IF($D$21='Interactive Worksheet'!$M$13,MC!R26,)))))) ->  | T60: =IF($D60<>0,$D60*'Components and Space Standards'!C26,IF($D$21=$M$9,MC!H26,IF($D$21=$M$10,MC!K26,IF($D$21='Interactive Worksheet'!$M$11,MC!N26,IF($D$21='Interactive Worksheet'!$M$12,MC!Q26,IF($D$21='Interactive Worksheet'!$M$13,MC!T26,)))))) ->  | U60: =(H60/65)*2 -> 0
A61: =IF(OR($D$26<>"Yes",$D$26=0,$K$26<>"Yes"),,'Components and Space Standards'!A27) -> 0 | E61: =IF(OR($D$26<>"Yes",$D$26=0,$K$26<>"Yes"),,IF($D$5=$K$5,$M61&" "&'Components and Space Standards'!$D27&".",IF($D$5=$K$6,$O61&" "&'Components and Space Standards'!$D27&".",IF($D$5=$K$7,$Q61&" "&'Components and Space Standards'!$D27&".",IF($D$5=$K$8,$S61&" "&'Components and Space Standards'!$D27&".",))))) -> 0 | G61: =ROUND(H61*$K$33,2) -> 0 | H61: =IF(OR($D$26<>"Yes",$D$26=0,$K$26<>"Yes"),,IF($D$5=$K$5,N61,IF($D$5=$K$6,P61,IF($D$5=$K$7,R61,IF($D$5=$K$8,T61,))))) -> 0 | M61: =IF($D61<>0,$D61,IF($D$21=$M$9,Army!$F27,IF($D$21=$M$10,Army!$I27,IF($D$21='Interactive Worksheet'!$M$11,Army!$L27,IF($D$21='Interactive Worksheet'!$M$12,Army!$O27,IF($D$21='Interactive Worksheet'!$M$13,IF($M$17=0,Army!$R27,($M$17*Army!U27)+Army!R27))))))) ->  | N61: =IF($D61<>0,$D61*'Components and Space Standards'!$C27,IF($D$21=$M$9,Army!$H27,IF($D$21=$M$10,Army!$K27,IF($D$21='Interactive Worksheet'!$M$11,Army!$N27,IF($D$21='Interactive Worksheet'!$M$12,Army!$Q27,IF($D$21='Interactive Worksheet'!$M$13,IF($M$17=0,Army!$T27,($M$17*Army!W27)+Army!T27))))))) ->  | O61: =IF(D61<>0,D61,IF($D$21=$M$9,Navy!F27,IF($D$21=$M$10,Navy!I27,IF($D$21='Interactive Worksheet'!$M$11,Navy!L27,IF($D$21='Interactive Worksheet'!$M$12,Navy!O27,IF($D$21='Interactive Worksheet'!$M$13,Navy!R27,IF($O$18>0,Navy!U27,))))))) ->  | P61: =IF(D61<>0,D61*'Components and Space Standards'!C27,IF($D$21=$M$9,Navy!H27,IF($D$21=$M$10,Navy!K27,IF($D$21='Interactive Worksheet'!$M$11,Navy!N27,IF($D$21='Interactive Worksheet'!$M$12,Navy!Q27,IF($D$21='Interactive Worksheet'!$M$13,Navy!T27,IF($O$18>0,Navy!W27,))))))) ->  | Q61: =IF(D61<>0,D61,IF($D$21=$M$10,AF!F27,IF($D$21=$M$11,AF!I27,IF($D$21='Interactive Worksheet'!$M$12,AF!L27,)))) ->  | R61: =IF(D61<>0,D61*'Components and Space Standards'!C27,IF($D$21=$M$10,AF!H27,IF($D$21=$M$11,AF!K27,IF($D$21='Interactive Worksheet'!$M$12,AF!N27,)))) ->  | S61: =IF($D61<>0,$D61,IF($D$21=$M$9,MC!F27,IF($D$21=$M$10,MC!I27,IF($D$21='Interactive Worksheet'!$M$11,MC!L27,IF($D$21='Interactive Worksheet'!$M$12,MC!O27,IF($D$21='Interactive Worksheet'!$M$13,MC!R27,)))))) ->  | T61: =IF($D61<>0,$D61*'Components and Space Standards'!C27,IF($D$21=$M$9,MC!H27,IF($D$21=$M$10,MC!K27,IF($D$21='Interactive Worksheet'!$M$11,MC!N27,IF($D$21='Interactive Worksheet'!$M$12,MC!Q27,IF($D$21='Interactive Worksheet'!$M$13,MC!T27,)))))) ->  | U61: =(H61/125)*1 -> 0
A62: =IF(OR($D$26<>"Yes",$D$26=0,$K$26<>"Yes"),,'Components and Space Standards'!A28) -> 0 | E62: =IF(OR($D$26<>"Yes",$D$26=0,$K$26<>"Yes"),,IF($D$5=$K$5,$M62&" "&'Components and Space Standards'!$D28&".",IF($D$5=$K$6,$O62&" "&'Components and Space Standards'!$D28&".",IF($D$5=$K$7,$Q62&" "&'Components and Space Standards'!$D28&".",IF($D$5=$K$8,$S62&" "&'Components and Space Standards'!$D28&".",))))) -> 0 | G62: 0 | H62: 0 | M62: =IF($D62<>0,$D62,IF($D$21=$M$9,Army!$F28,IF($D$21=$M$10,Army!$I28,IF($D$21='Interactive Worksheet'!$M$11,Army!$L28,IF($D$21='Interactive Worksheet'!$M$12,Army!$O28,IF($D$21='Interactive Worksheet'!$M$13,IF($M$17=0,Army!$R28,($M$17*Army!U28)+Army!R28))))))) ->  | N62: =IF($D62<>0,$D62*'Components and Space Standards'!$C28,IF($D$21=$M$9,Army!$H28,IF($D$21=$M$10,Army!$K28,IF($D$21='Interactive Worksheet'!$M$11,Army!$N28,IF($D$21='Interactive Worksheet'!$M$12,Army!$Q28,IF($D$21='Interactive Worksheet'!$M$13,IF($M$17=0,Army!$T28,($M$17*Army!W28)+Army!T28))))))) ->  | O62: =IF(D62<>0,D62,IF($D$21=$M$9,Navy!F28,IF($D$21=$M$10,Navy!I28,IF($D$21='Interactive Worksheet'!$M$11,Navy!L28,IF($D$21='Interactive Worksheet'!$M$12,Navy!O28,IF($D$21='Interactive Worksheet'!$M$13,Navy!R28,IF($O$18>0,Navy!U28,))))))) ->  | P62: =IF(D62<>0,D62*'Components and Space Standards'!C28,IF($D$21=$M$9,Navy!H28,IF($D$21=$M$10,Navy!K28,IF($D$21='Interactive Worksheet'!$M$11,Navy!N28,IF($D$21='Interactive Worksheet'!$M$12,Navy!Q28,IF($D$21='Interactive Worksheet'!$M$13,Navy!T28,IF($O$18>0,Navy!W28,))))))) ->  | Q62: =IF(D62<>0,D62,IF($D$21=$M$10,AF!F28,IF($D$21=$M$11,AF!I28,IF($D$21='Interactive Worksheet'!$M$12,AF!L28,)))) ->  | R62: =IF(D62<>0,D62*'Components and Space Standards'!C28,IF($D$21=$M$10,AF!H28,IF($D$21=$M$11,AF!K28,IF($D$21='Interactive Worksheet'!$M$12,AF!N28,)))) ->  | S62: =IF($D62<>0,$D62,IF($D$21=$M$9,MC!F28,IF($D$21=$M$10,MC!I28,IF($D$21='Interactive Worksheet'!$M$11,MC!L28,IF($D$21='Interactive Worksheet'!$M$12,MC!O28,IF($D$21='Interactive Worksheet'!$M$13,MC!R28,)))))) ->  | T62: =IF($D62<>0,$D62*'Components and Space Standards'!C28,IF($D$21=$M$9,MC!H28,IF($D$21=$M$10,MC!K28,IF($D$21='Interactive Worksheet'!$M$11,MC!N28,IF($D$21='Interactive Worksheet'!$M$12,MC!Q28,IF($D$21='Interactive Worksheet'!$M$13,MC!T28,)))))) -> 
A63: =IF(OR($D$26<>"Yes",$D$26=0,$K$26<>"Yes"),,'Components and Space Standards'!A29) -> 0 | G63: 0 | H63: =IF(OR($D$26<>"Yes",$D$26=0,$K$26<>"Yes"),,IF($D$5=$K$5,N63,IF($D$5=$K$6,P63,IF($D$5=$K$7,R63,IF($D$5=$K$8,T63,))))) -> 0 | M63: =IF($D63<>0,$D63,IF($D$21=$M$9,Army!$F29,IF($D$21=$M$10,Army!$I29,IF($D$21='Interactive Worksheet'!$M$11,Army!$L29,IF($D$21='Interactive Worksheet'!$M$12,Army!$O29,IF($D$21='Interactive Worksheet'!$M$13,IF($M$17=0,Army!$R29,($M$17*Army!U29)+Army!R29))))))) ->  | N63: =IF($D63<>0,$D63*'Components and Space Standards'!$C29,IF($D$21=$M$9,Army!$H29,IF($D$21=$M$10,Army!$K29,IF($D$21='Interactive Worksheet'!$M$11,Army!$N29,IF($D$21='Interactive Worksheet'!$M$12,Army!$Q29,IF($D$21='Interactive Worksheet'!$M$13,IF($M$17=0,Army!$T29,($M$17*Army!W29)+Army!T29))))))) ->  | O63: =IF(D63<>0,D63,IF($D$21=$M$9,Navy!F29,IF($D$21=$M$10,Navy!I29,IF($D$21='Interactive Worksheet'!$M$11,Navy!L29,IF($D$21='Interactive Worksheet'!$M$12,Navy!O29,IF($D$21='Interactive Worksheet'!$M$13,Navy!R29,IF($O$18>0,Navy!U29,))))))) ->  | P63: =IF(D63<>0,D63*'Components and Space Standards'!C29,IF($D$21=$M$9,Navy!H29,IF($D$21=$M$10,Navy!K29,IF($D$21='Interactive Worksheet'!$M$11,Navy!N29,IF($D$21='Interactive Worksheet'!$M$12,Navy!Q29,IF($D$21='Interactive Worksheet'!$M$13,Navy!T29,IF($O$18>0,Navy!W29,))))))) ->  | Q63: =IF(D63<>0,D63,IF($D$21=$M$10,AF!F29,IF($D$21=$M$11,AF!I29,IF($D$21='Interactive Worksheet'!$M$12,AF!L29,)))) ->  | R63: =IF(D63<>0,D63*'Components and Space Standards'!C29,IF($D$21=$M$10,AF!H29,IF($D$21=$M$11,AF!K29,IF($D$21='Interactive Worksheet'!$M$12,AF!N29,)))) ->  | S63: =IF($D63<>0,$D63,IF($D$21=$M$9,MC!F29,IF($D$21=$M$10,MC!I29,IF($D$21='Interactive Worksheet'!$M$11,MC!L29,IF($D$21='Interactive Worksheet'!$M$12,MC!O29,IF($D$21='Interactive Worksheet'!$M$13,MC!R29,)))))) ->  | T63: =IF($D63<>0,$D63*'Components and Space Standards'!$C$5,IF($D$21=$M$9,MC!H29,IF($D$21=$M$10,MC!K29,IF($D$21='Interactive Worksheet'!$M$11,MC!N29,IF($D$21='Interactive Worksheet'!$M$12,MC!Q29,IF($D$21='Interactive Worksheet'!$M$13,MC!T29,)))))) -> 
A64: =IF(OR($D$26<>"Yes",$D$26=0,$K$26<>"Yes"),,'Components and Space Standards'!A30) -> 0 | C64: =IF(D5=K8,"MC may incl cycling, climbing wall",IF(D5=K6,"Navy may incl cycling,climbing wall, FF",)) -> 0 | E64: =IF(OR($D$26<>"Yes",$D$26=0,$K$26<>"Yes"),,IF($D$5=$K$5,$M64&" "&'Components and Space Standards'!$D30&".",IF($D$5=$K$6,$O64&" "&'Components and Space Standards'!$D30&".",IF($D$5=$K$7,$Q64&" "&'Components and Space Standards'!$D30&".",IF($D$5=$K$8,$S64&" "&'Components and Space Standards'!$D30&".",))))) -> 0 | G64: 0 | H64: =IF(OR($D$26<>"Yes",$D$26=0,$K$26<>"Yes"),,IF($D$5=$K$5,N64,IF($D$5=$K$6,P64,IF($D$5=$K$7,R64,IF($D$5=$K$8,T64,))))) -> 0 | M64: =IF($D64<>0,$D64,IF($D$21=$M$9,Army!$F30,IF($D$21=$M$10,Army!$I30,IF($D$21='Interactive Worksheet'!$M$11,Army!$L30,IF($D$21='Interactive Worksheet'!$M$12,Army!$O30,IF($D$21='Interactive Worksheet'!$M$13,IF($M$17=0,Army!$R30,($M$17*Army!U30)+Army!R30))))))) ->  | N64: =IF($D64<>0,$D64*'Components and Space Standards'!$C30,IF($D$21=$M$9,Army!$H30,IF($D$21=$M$10,Army!$K30,IF($D$21='Interactive Worksheet'!$M$11,Army!$N30,IF($D$21='Interactive Worksheet'!$M$12,Army!$Q30,IF($D$21='Interactive Worksheet'!$M$13,IF($M$17=0,Army!$T30,($M$17*Army!W30)+Army!T30))))))) ->  | O64: =IF(D64<>0,D64,IF($D$21=$M$9,Navy!F30,IF($D$21=$M$10,Navy!I30,IF($D$21='Interactive Worksheet'!$M$11,Navy!L30,IF($D$21='Interactive Worksheet'!$M$12,Navy!O30,IF($D$21='Interactive Worksheet'!$M$13,Navy!R30,IF($O$18>0,Navy!U30,))))))) ->  | P64: =IF(D64<>0,D64*'Components and Space Standards'!C30,IF($D$21=$M$9,Navy!H30,IF($D$21=$M$10,Navy!K30,IF($D$21='Interactive Worksheet'!$M$11,Navy!N30,IF($D$21='Interactive Worksheet'!$M$12,Navy!Q30,IF($D$21='Interactive Worksheet'!$M$13,Navy!T30,IF($O$18>0,Navy!W30,))))))) ->  | Q64: =IF(D64<>0,D64,IF($D$21=$M$10,AF!F30,IF($D$21=$M$11,AF!I30,IF($D$21='Interactive Worksheet'!$M$12,AF!L30,)))) ->  | R64: =IF(D64<>0,D64*'Components and Space Standards'!C30,IF($D$21=$M$10,AF!H30,IF($D$21=$M$11,AF!K30,IF($D$21='Interactive Worksheet'!$M$12,AF!N30,)))) ->  | S64: =IF($D64<>0,$D64,IF($D$21=$M$9,MC!F30,IF($D$21=$M$10,MC!I30,IF($D$21='Interactive Worksheet'!$M$11,MC!L30,IF($D$21='Interactive Worksheet'!$M$12,MC!O30,IF($D$21='Interactive Worksheet'!$M$13,MC!R30,)))))) ->  | T64: =IF($D64<>0,$D64*'Components and Space Standards'!C30,IF($D$21=$M$9,MC!H30,IF($D$21=$M$10,MC!K30,IF($D$21='Interactive Worksheet'!$M$11,MC!N30,IF($D$21='Interactive Worksheet'!$M$12,MC!Q30,IF($D$21='Interactive Worksheet'!$M$13,MC!T30,)))))) ->  | U64: =(H64/50)*1 -> 0
A65: =IF(OR($D$26<>"Yes",$D$26=0,$K$26<>"Yes"),,'Components and Space Standards'!A31) -> 0 | E65: =IF(OR($D$26<>"Yes",$D$26=0,$K$26<>"Yes"),,IF($D$5=$K$5,$M65&" "&'Components and Space Standards'!$D31&".",IF($D$5=$K$6,$O65&" "&'Components and Space Standards'!$D31&".",IF($D$5=$K$7,$Q65&" "&'Components and Space Standards'!$D31&".",IF($D$5=$K$8,$S65&" "&'Components and Space Standards'!$D31&".",))))) -> 0 | G65: 0 | H65: =IF(OR($D$26<>"Yes",$D$26=0,$K$26<>"Yes"),,IF($D$5=$K$5,N65,IF($D$5=$K$6,P65,IF($D$5=$K$7,R65,IF($D$5=$K$8,T65,))))) -> 0 | K65: 0 | M65: =IF($D65<>0,$D65,IF($D$21=$M$9,Army!$F31,IF($D$21=$M$10,Army!$I31,IF($D$21='Interactive Worksheet'!$M$11,Army!$L31,IF($D$21='Interactive Worksheet'!$M$12,Army!$O31,IF($D$21='Interactive Worksheet'!$M$13,IF($M$17=0,Army!$R31,($M$17*Army!U31)+Army!R31))))))) ->  | N65: =IF($D65<>0,$D65*'Components and Space Standards'!$C31,IF($D$21=$M$9,Army!$H31,IF($D$21=$M$10,Army!$K31,IF($D$21='Interactive Worksheet'!$M$11,Army!$N31,IF($D$21='Interactive Worksheet'!$M$12,Army!$Q31,IF($D$21='Interactive Worksheet'!$M$13,IF($M$17=0,Army!$T31,($M$17*Army!W31)+Army!T31))))))) ->  | O65: =IF(D65<>0,D65,IF($D$21=$M$9,Navy!F31,IF($D$21=$M$10,Navy!I31,IF($D$21='Interactive Worksheet'!$M$11,Navy!L31,IF($D$21='Interactive Worksheet'!$M$12,Navy!O31,IF($D$21='Interactive Worksheet'!$M$13,Navy!R31,IF($O$18>0,Navy!U31,))))))) ->  | P65: =IF(D65<>0,D65*'Components and Space Standards'!C31,IF($D$21=$M$9,Navy!H31,IF($D$21=$M$10,Navy!K31,IF($D$21='Interactive Worksheet'!$M$11,Navy!N31,IF($D$21='Interactive Worksheet'!$M$12,Navy!Q31,IF($D$21='Interactive Worksheet'!$M$13,Navy!T31,IF($O$18>0,Navy!W31,))))))) ->  | Q65: =IF(D65<>0,D65,IF($D$21=$M$10,AF!F31,IF($D$21=$M$11,AF!I31,IF($D$21='Interactive Worksheet'!$M$12,AF!L31,)))) ->  | R65: =IF(D65<>0,D65*'Components and Space Standards'!C31,IF($D$21=$M$10,AF!H31,IF($D$21=$M$11,AF!K31,IF($D$21='Interactive Worksheet'!$M$12,AF!N31,)))) ->  | S65: =IF($D65<>0,$D65,IF($D$21=$M$9,MC!F31,IF($D$21=$M$10,MC!I31,IF($D$21='Interactive Worksheet'!$M$11,MC!L31,IF($D$21='Interactive Worksheet'!$M$12,MC!O31,IF($D$21='Interactive Worksheet'!$M$13,MC!R31,)))))) ->  | T65: =IF($D65<>0,$D65*'Components and Space Standards'!C31,IF($D$21=$M$9,MC!H31,IF($D$21=$M$10,MC!K31,IF($D$21='Interactive Worksheet'!$M$11,MC!N31,IF($D$21='Interactive Worksheet'!$M$12,MC!Q31,IF($D$21='Interactive Worksheet'!$M$13,MC!T31,)))))) ->  | U65: =(H65/800)*4 -> 0
A66: =IF(OR($D$26<>"Yes",$D$26=0,$K$26<>"Yes",D5=K6),,'Components and Space Standards'!A32) -> 0 | E66: =IF(OR($D$26<>"Yes",$D$26=0,$K$26<>"Yes"),,IF($D$5=$K$5,$M66&" "&'Components and Space Standards'!$D32&".",IF($D$5=$K$6,$O66&" "&'Components and Space Standards'!$D32&".",IF($D$5=$K$7,$Q66&" "&'Components and Space Standards'!$D32&".",IF($D$5=$K$8,$S66&" "&'Components and Space Standards'!$D32&".",))))) -> 0 | G66: =ROUND(H66*$K$33,2) -> 0 | H66: =IF(OR($D$26<>"Yes",$D$26=0,$K$26<>"Yes"),,IF($D$5=$K$5,N66,IF($D$5=$K$6,P66,IF($D$5=$K$7,R66,IF($D$5=$K$8,T66,))))) -> 0 | K66: =IF($D$5=$K$8,2000,) -> 0 | T66: ='Components and Space Standards'!C32 -> 8892 | U66: =(H66/800)*4 -> 0
A67: =IF(OR($D$26<>"Yes",$D$26=0,$K$26<>"Yes",D5=K6),,'Components and Space Standards'!A33) -> 0 | C67: =IF(OR($D$26<>"Yes",$D$26=0,$K$26<>"Yes"),,IF(D5=K8,"Select size of HITT Center",)) -> 0 | E67: =IF(OR($D$26<>"Yes",$D$26=0,$K$26<>"Yes",D5=K6),,IF($D$5=$K$5,$M67&" "&'Components and Space Standards'!$D33&".",IF($D$5=$K$6,$O67&" "&'Components and Space Standards'!$D33&".",IF($D$5=$K$7,$Q67&" "&'Components and Space Standards'!$D33&".",IF($D$5=$K$8," "&'Components and Space Standards'!$D33&".",))))) -> 0 | G67: =ROUND(H67*$K$33,2) -> 0 | H67: =IF(OR($D$26<>"Yes",$D$26=0,$K$26<>"Yes",D5=K6),,IF($D$5=$K$8,D67)) -> 0 | K67: =IF($D$5=$K$8,4000,) -> 0 | M67: =IF($D67<>0,$D67,IF($D$21=$M$9,Army!$F33,IF($D$21=$M$10,Army!$I33,IF($D$21='Interactive Worksheet'!$M$11,Army!$L33,IF($D$21='Interactive Worksheet'!$M$12,Army!$O33,IF($D$21='Interactive Worksheet'!$M$13,IF($M$17=0,Army!$R33,($M$17*Army!U33)+Army!R33))))))) ->  | N67: =IF($D67<>0,$D67*'Components and Space Standards'!$C33,IF($D$21=$M$9,Army!$H33,IF($D$21=$M$10,Army!$K33,IF($D$21='Interactive Worksheet'!$M$11,Army!$N33,IF($D$21='Interactive Worksheet'!$M$12,Army!$Q33,IF($D$21='Interactive Worksheet'!$M$13,IF($M$17=0,Army!$T33,($M$17*Army!W33)+Army!T33))))))) ->  | O67: =IF(D67<>0,D67,IF($D$21=$M$9,Navy!F33,IF($D$21=$M$10,Navy!I33,IF($D$21='Interactive Worksheet'!$M$11,Navy!L33,IF($D$21='Interactive Worksheet'!$M$12,Navy!O33,IF($D$21='Interactive Worksheet'!$M$13,Navy!R33,IF($O$18>0,Navy!U33,))))))) ->  | P67: =IF(D67<>0,D67*'Components and Space Standards'!C33,IF($D$21=$M$9,Navy!H33,IF($D$21=$M$10,Navy!K33,IF($D$21='Interactive Worksheet'!$M$11,Navy!N33,IF($D$21='Interactive Worksheet'!$M$12,Navy!Q33,IF($D$21='Interactive Worksheet'!$M$13,Navy!T33,IF($O$18>0,Navy!W33,))))))) ->  | Q67: =IF(D67<>0,D67,IF($D$21=$M$10,AF!F33,IF($D$21=$M$11,AF!I33,IF($D$21='Interactive Worksheet'!$M$12,AF!L33,)))) ->  | R67: =IF(D67<>0,D67*'Components and Space Standards'!C33,IF($D$21=$M$10,AF!H33,IF($D$21=$M$11,AF!K33,IF($D$21='Interactive Worksheet'!$M$12,AF!N33,)))) ->  | S67: =IF($D67<>0,$D67,IF($D$21=$M$9,MC!F33,IF($D$21=$M$10,MC!I33,IF($D$21='Interactive Worksheet'!$M$11,MC!L33,IF($D$21='Interactive Worksheet'!$M$12,MC!O33,IF($D$21='Interactive Worksheet'!$M$13,MC!R33,)))))) ->  | T67: =IF($D67<>0,$D67*'Components and Space Standards'!C33,IF($D$21=$M$9,MC!H33,IF($D$21=$M$10,MC!K33,IF($D$21='Interactive Worksheet'!$M$11,MC!N33,IF($D$21='Interactive Worksheet'!$M$12,MC!Q33,IF($D$21='Interactive Worksheet'!$M$13,MC!T33,)))))) ->  | U67: =(H67/800)*4 -> 0
A68: =IF(OR($D$26<>"Yes",$D$26=0,$K$26<>"Yes",D5=K6),,'Components and Space Standards'!A34) -> 0 | C68: =IF(OR($D$26<>"Yes",$D$26=0,$K$26<>"Yes",D5=K6),,"Select # of court modules, max. 2") -> 0 | E68: =IF(OR($D$26<>"Yes",$D$26=0,$K$26<>"Yes",$D$5=$K$6),,IF($D$5=$K$5,$M68&" "&'Components and Space Standards'!$D34&".",IF($D$5=$K$6,$O68&" "&'Components and Space Standards'!$D34&".",IF($D$5=$K$7,$Q68&" "&'Components and Space Standards'!$D34&".",IF($D$5=$K$8,$S68&" "&'Components and Space Standards'!$D34&".",))))) -> 0 | G68: 0 | H68: =IF(OR($D$26<>"Yes",$D$26=0,$K$26<>"Yes",$D$5=$K$6),,IF($D$5=$K$5,N68,IF($D$5=$K$6,P68,IF($D$5=$K$7,R68,IF($D$5=$K$8,T68,))))) -> 0 | K68: =IF($D$5=$K$8,1,) -> 0 | M68: =IF($D68<>0,$D68,IF($D$21=$M$9,Army!$F32,IF($D$21=$M$10,Army!$I32,IF($D$21='Interactive Worksheet'!$M$11,Army!$L32,IF($D$21='Interactive Worksheet'!$M$12,Army!$O32,IF($D$21='Interactive Worksheet'!$M$13,IF($M$17=0,Army!$R32,($M$17*Army!U32)+Army!R32))))))) ->  | N68: =IF($D68<>0,$D68*'Components and Space Standards'!$C34,IF($D$21=$M$9,Army!$H32,IF($D$21=$M$10,Army!$K32,IF($D$21='Interactive Worksheet'!$M$11,Army!$N32,IF($D$21='Interactive Worksheet'!$M$12,Army!$Q32,IF($D$21='Interactive Worksheet'!$M$13,IF($M$17=0,Army!$T32,($M$17*Army!W32)+Army!T32))))))) ->  | O68: =IF(D68<>0,D68,IF($D$21=$M$9,Navy!F32,IF($D$21=$M$10,Navy!I32,IF($D$21='Interactive Worksheet'!$M$11,Navy!L32,IF($D$21='Interactive Worksheet'!$M$12,Navy!O32,IF($D$21='Interactive Worksheet'!$M$13,Navy!R32,IF($O$18>0,Navy!U32,))))))) ->  | P68: =IF(D68<>0,D68*'Components and Space Standards'!C34,IF($D$21=$M$9,Navy!H32,IF($D$21=$M$10,Navy!K32,IF($D$21='Interactive Worksheet'!$M$11,Navy!N32,IF($D$21='Interactive Worksheet'!$M$12,Navy!Q32,IF($D$21='Interactive Worksheet'!$M$13,Navy!T32,IF($O$18>0,Navy!W32,))))))) ->  | Q68: =IF(D68<>0,D68,IF($D$21=$M$10,AF!F32,IF($D$21=$M$11,AF!I32,IF($D$21='Interactive Worksheet'!$M$12,AF!L32,)))) ->  | R68: =IF(D68<>0,D68*'Components and Space Standards'!C34,IF($D$21=$M$10,AF!H32,IF($D$21=$M$11,AF!K32,IF($D$21='Interactive Worksheet'!$M$12,AF!N32,)))) ->  | S68: =D68 -> 0 | T68: =S68*200 -> 0
A69: =IF(OR($D$26<>"Yes",$D$26=0,$K$26<>"Yes"),,'Components and Space Standards'!A35) -> 0 | E69: =IF(OR($D$26<>"Yes",$D$26=0,$K$26<>"Yes"),,IF($D$5=$K$5,$M69&" "&'Components and Space Standards'!$D35&".",IF($D$5=$K$6,$O69&" "&'Components and Space Standards'!$D35&".",IF($D$5=$K$7,$Q69&" "&'Components and Space Standards'!$D35&".",IF($D$5=$K$8,$S69&" "&'Components and Space Standards'!$D35&".",))))) -> 0 | G69: =ROUND(H69*$K$33,2) -> 0 | H69: =IF(OR($D$26<>"Yes",$D$26=0,$K$26<>"Yes"),,IF($D$5=$K$5,N69,IF($D$5=$K$6,P69,IF($D$5=$K$7,R69,IF($D$5=$K$8,T69,))))) -> 0 | K69: =IF($D$5=$K$8,2,) -> 0 | N69: =0.1*N64 ->  | P69: =0.1*P64 ->  | R69: =0.1*R64 ->  | T69: =0.1*T64 -> 
A70: =IF(OR($D$26<>"Yes",$D$26=0,$K$26<>"Yes"),,'Components and Space Standards'!A36) -> 0 | M70: Break in sequence - Rows 68 to 70. Refs to Space sheet for rows 35 to 42 are below.
A71: =IF(OR($D$26<>"Yes",$D$26=0,$K$26<>"Yes"),,"Space criteria for men's and women's locker, shower, and toilet areas are provided at the end of the spreadsheet because they are determined by selections made throughout.") -> 0
K73: None
A74: =IF(OR($D$26<>"Yes",$D$26=0,$K$26<>"Yes"),,'Components and Space Standards'!A45) -> 0 | C74: =IF(OR($D$26<>"Yes",$D$26=0,$K$26<>"Yes",D5=K6),,"To change default, select new:") -> 0 | D74: None | E74: =IF(OR($D$26<>"Yes",$D$26=0,$K$26<>"Yes",D5=K6),,IF($D$5=$K$5,$M74&" "&'Components and Space Standards'!$D45&".",IF($D$5=$K$6,$O74&" "&'Components and Space Standards'!$D45&".",IF($D$5=$K$7,$Q74&" "&'Components and Space Standards'!$D45&".",IF($D$5=$K$8,$S74&" "&'Components and Space Standards'!$D45&".",))))) -> 0 | G74: =ROUND(H74*$K$33,2) -> 0 | H74: =IF(OR($D$26<>"Yes",$D$26=0,$K$26<>"Yes"),,IF($D$5=$K$5,N74,IF($D$5=$K$6,P74,IF($D$5=$K$7,R74,IF($D$5=$K$8,T74,))))) -> 0 | J74: =IF(D74<>0,"D",) -> D | K74: Small | M74: =IF($D74<>0,"Error",IF($D$21=$M$9,Army!$F43,IF($D$21=$M$10,Army!$I43,IF($D$21='Interactive Worksheet'!$M$11,Army!$L43,IF($D$21='Interactive Worksheet'!$M$12,Army!$O43,IF($D$21='Interactive Worksheet'!$M$13,IF($M$17=0,Army!$R43,$M$17&" "&Army!U43&" & 1 "&Army!R43))))))) -> Error | N74: =IF(M74="Small",(80*2),IF(M74="Medium",(120*2),IF(M74="Large",(144*2),(M17*(80*2))+(144*2)))) -> 288 | O74: =IF($D74<>0,$D74,IF($D$21=$M$9,MC!B43,IF($D$21=$M$10,MC!E43,IF($D$21='Interactive Worksheet'!$M$11,MC!H43,IF($D$21='Interactive Worksheet'!$M$12,MC!K43,IF($D$21='Interactive Worksheet'!$M$13,MC!N43,)))))) -> None | P74: =IF(O74="None",,IF(O74="Small",(80*2),IF(O74="Medium",(120*2),IF(O74="Large",(144*2),)))) -> 0 | Q74: =IF($D74<>0,$D74,IF($D$21=$M$10,AF!F43,IF($D$21=$M$11,AF!I43,IF($D$21=$M$12,AF!L43,)))) -> None | R74: =IF(Q74="Small",(80*2),IF(Q74="Medium",(120*2),IF(Q74="Large",(144*2),))) -> 0 | S74: =IF($D74<>0,$D74,IF($D$21=$M$9,MC!F43,IF($D$21=$M$10,MC!I43,IF($D$21='Interactive Worksheet'!$M$11,MC!L43,IF($D$21='Interactive Worksheet'!$M$12,MC!O43,IF($D$21='Interactive Worksheet'!$M$13,MC!R43,)))))) -> None | T74: =IF(S74="Small",(80*2),IF(S74="Medium",(120*2),IF(S74="Large",(144*2),))) -> 0 | U74: =IF(H74=160,6,IF(H74=240,9,IF(H74=288,12,0))) -> 0
G75: =ROUND(H75*$K$33,2) -> 0 | H75: =IF(OR($D$26<>"Yes",$D$26=0,$K$26<>"Yes"),,IF($D$5=$K$5,N75,IF($D$5=$K$6,P75,IF($D$5=$K$7,R75,IF($D$5=$K$8,T75,))))) -> 0 | J75: =IF(D75<>0,"D",) -> 0 | K75: Medium | M75: =IF($D75<>0,"Error",IF($D$21=$M$9,Army!$F44,IF($D$21=$M$10,Army!$I44,IF($D$21='Interactive Worksheet'!$M$11,Army!$L44,IF($D$21='Interactive Worksheet'!$M$12,Army!$O44,IF($D$21='Interactive Worksheet'!$M$13,IF($M$17=0,Army!$R44,($M$17*Army!U44)+Army!R44))))))) ->  | O75: =IF($D75<>0,$D75,IF($D$21=$M$9,Navy!F44,IF($D$21=$M$10,Navy!I44,IF($D$21='Interactive Worksheet'!$M$11,Navy!L44,IF($D$21='Interactive Worksheet'!$M$12,Navy!O44,IF($D$21='Interactive Worksheet'!$M$13,Navy!R44,IF($O$18>0,Navy!U44,))))))) ->  | Q75: =IF($D75<>0,$D75,IF($D$21=$M$10,AF!F44,IF($D$21=$M$11,AF!I44,IF($D$21=$M$12,AF!L44,)))) ->  | S75: =IF($D75<>0,"Error",IF($D$21=$M$9,MC!F44,IF($D$21=$M$10,MC!I44,IF($D$21='Interactive Worksheet'!$M$11,MC!L44,IF($D$21='Interactive Worksheet'!$M$12,MC!O44,IF($D$21='Interactive Worksheet'!$M$13,MC!R44,)))))) ->  | U75: =IF(H75=184,7,IF(H75=268,9,IF(H75=330,14,0))) -> 0
G76: =ROUND(H76*$K$33,2) -> 0 | H76: =IF(OR($D$26<>"Yes",$D$26=0,$K$26<>"Yes"),,IF($D$5=$K$5,N76,IF($D$5=$K$6,P76,IF($D$5=$K$7,R76,IF($D$5=$K$8,T76,))))) -> 0 | J76: =IF(D76<>0,"D",) -> 0 | K76: Large | M76: =IF($D76<>0,"Error",IF($D$21=$M$9,Army!$F45,IF($D$21=$M$10,Army!$I45,IF($D$21='Interactive Worksheet'!$M$11,Army!$L45,IF($D$21='Interactive Worksheet'!$M$12,Army!$O45,IF($D$21='Interactive Worksheet'!$M$13,IF($M$17=0,Army!$R45,($M$17*Army!U45)+Army!R45))))))) ->  | O76: =IF($D76<>0,$D76,IF($D$21=$M$9,Navy!F45,IF($D$21=$M$10,Navy!I45,IF($D$21='Interactive Worksheet'!$M$11,Navy!L45,IF($D$21='Interactive Worksheet'!$M$12,Navy!O45,IF($D$21='Interactive Worksheet'!$M$13,Navy!R45,IF($O$18>0,Navy!U45,))))))) ->  | Q76: =IF($D76<>0,$D76,IF($D$21=$M$10,AF!F45,IF($D$21=$M$11,AF!I45,IF($D$21=$M$12,AF!L45,)))) ->  | S76: =IF($D76<>0,$D76,IF($D$21=$M$9,MC!F45,IF($D$21=$M$10,MC!I45,IF($D$21='Interactive Worksheet'!$M$11,MC!L45,IF($D$21='Interactive Worksheet'!$M$12,MC!O45,IF($D$21='Interactive Worksheet'!$M$13,MC!R45,)))))) ->  | U76: =IF(H76=90,5,IF(H76=126,8,IF(H76=160,14,0))) -> 0
A78: =IF(OR($D$26<>"Yes",$D$26=0,$K$26<>"Yes"),,'Components and Space Standards'!A3&" (continued)") -> 0 | E78: Default quantities | G78: m2 | H78: ft.2
A79: =IF(OR($D$26<>"Yes",$D$26=0,$K$26<>"Yes"),,'Components and Space Standards'!A48) -> 0
A80: =IF(OR($D$26<>"Yes",$D$26=0,$K$26<>"Yes"),,'Components and Space Standards'!A49) -> 0 | C80: =IF(OR($D$26<>"Yes",$D$26=0,$K$26<>"Yes"),,"To change default, select new:") -> 0 | E80: =IF(OR($D$26<>"Yes",$D$26=0,$K$26<>"Yes"),,IF($D$5=$K$5,$M80&" "&'Components and Space Standards'!$D49&".",IF($D$5=$K$6,$O80&" "&'Components and Space Standards'!$D49&".",IF($D$5=$K$7,$Q80&" "&'Components and Space Standards'!$D49&".",IF($D$5=$K$8,$S80&" "&'Components and Space Standards'!$D49&".",))))) -> 0 | G80: 0 | H80: =IF(OR($D$26<>"Yes",$D$26=0,$K$26<>"Yes"),,IF($D$5=$K$5,N80,IF($D$5=$K$6,P80,IF($D$5=$K$7,R80,IF($D$5=$K$8,T80,))))) -> 0 | J80: =IF(D80<>0,"D",) -> 0 | K80: 1/2 machine combo | M80: =IF($D80<>0,"Error",IF($D$21=$M$9,Army!$F47,IF($D$21=$M$10,Army!$I47,IF($D$21='Interactive Worksheet'!$M$11,Army!$L47,IF($D$21='Interactive Worksheet'!$M$12,Army!$O47,IF($D$21='Interactive Worksheet'!$M$13,IF($M$17=0,Army!$R47,K84))))))) ->  | N80: =IF(M80=$K$80,180,IF(M80=$K$81,230,IF(M80=$K$82,315,IF(M80=$K$83,385,IF(M80=$K$84,480,))))) ->  | O80: =IF(D80<>0,D80,IF($D$21=$M$9,Navy!F47,IF($D$21=$M$10,Navy!I47,IF($D$21='Interactive Worksheet'!$M$11,Navy!L47,IF($D$21='Interactive Worksheet'!$M$12,Navy!O47,IF($D$21='Interactive Worksheet'!$M$13,Navy!R47,IF($D$21='Interactive Worksheet'!$M$14,Navy!U47,))))))) ->  | P80: =IF(O80=$K$80,180,IF(O80=$K$81,230,IF(O80=$K$82,315,IF(O80=$K$83,385,IF(O80=$K$84,480,))))) ->  | Q80: =IF($D80<>0,$D80,IF($D$21=$M$10,AF!F47,IF($D$21=$M$11,AF!I47,IF($D$21=$M$12,AF!L47,)))) ->  | R80: =IF(Q80=$K$80,180,IF(Q80=$K$81,230,IF(Q80=$K$82,315,IF(Q80=$K$83,385,IF(Q80=$K$84,480,))))) ->  | S80: =IF($D80<>0,$D80,IF($D$21=$M$9,Navy!F47,IF($D$21=$M$10,Navy!I47,IF($D$21='Interactive Worksheet'!$M$11,Navy!L47,IF($D$21='Interactive Worksheet'!$M$12,Navy!O47,IF($D$21='Interactive Worksheet'!$M$13,Navy!R47,IF($D$21='Interactive Worksheet'!$M$14,Navy!U47,))))))) ->  | T80: =IF(S80=$K$80,180,IF(S80=$K$81,230,IF(S80=$K$82,315,IF(S80=$K$83,385,IF(S80=$K$84,480,))))) -> 
A81: =IF(OR($D$26<>"Yes",$D$26=0,$K$26<>"Yes"),,'Components and Space Standards'!A50) -> 0 | E81: =IF(OR($D$26<>"Yes",$D$26=0,$K$26<>"Yes"),,IF($D$5=$K$5,$M81&" "&'Components and Space Standards'!$D50&".",IF($D$5=$K$6,$O81&" "&'Components and Space Standards'!$D50&".",IF($D$5=$K$7,$Q81&" "&'Components and Space Standards'!$D50&".",IF($D$5=$K$8,$S81&" "&'Components and Space Standards'!$D50&".",))))) -> 0 | G81: 0 | H81: =IF(OR($D$26<>"Yes",$D$26=0,$K$26<>"Yes"),,IF($D$5=$K$5,N81,IF($D$5=$K$6,P81,IF($D$5=$K$7,R81,IF($D$5=$K$8,T81,))))) -> 0 | K81: 2/4 machine combo | N81: =(15*10)+(0.1*N56) ->  | P81: =(15*10)+(0.1*P56) ->  | R81: =(15*10)+(0.1*R56) ->  | T81: =(15*10)+(0.1*T56) -> 
A82: =IF(OR($D$26<>"Yes",$D$26=0,$K$26<>"Yes"),,'Components and Space Standards'!A51) -> 0 | E82: =IF(OR($D$26<>"Yes",$D$26=0,$K$26<>"Yes"),,IF($D$5=$K$5,$M82&" "&'Components and Space Standards'!$D51&".",IF($D$5=$K$6,$O82&" "&'Components and Space Standards'!$D51&".",IF($D$5=$K$7,$Q82&" "&'Components and Space Standards'!$D51&".",IF($D$5=$K$8,$S82&" "&'Components and Space Standards'!$D51&".",))))) -> 0 | G82: 0 | H82: =IF(OR($D$26<>"Yes",$D$26=0,$K$26<>"Yes"),,IF($D$5=$K$5,N82,IF($D$5=$K$6,P82,IF($D$5=$K$7,R82,IF($D$5=$K$8,T82,))))) -> 0 | K82: 3/6 machine combo | N82: =0.05*N56 ->  | P82: =0.05*P56 ->  | R82: =0.05*R56 ->  | T82: =0.05*T56 -> 
A83: =IF(OR($D$26<>"Yes",$D$26=0,$K$26<>"Yes"),,'Components and Space Standards'!A52) -> 0 | C83: =IF(OR($D$26<>"Yes",$D$26=0,$K$26<>"Yes"),,"For this option, enter required sf:") -> 0 | E83: =IF(OR($D$26<>"Yes",$D$26=0,$K$26<>"Yes"),,H83&" "&'Components and Space Standards'!$D52&".") -> 0 | G83: =ROUND(H83*$K$33,2) -> 0 | H83: =IF(OR($D$26<>"Yes",$D$26=0,$K$26<>"Yes"),,IF($D$5=$K$5,N83,IF($D$5=$K$6,P83,IF($D$5=$K$7,R83,IF($D$5=$K$8,T83,))))) -> 0 | J83: =IF(D83<>0,"D",) -> 0 | K83: 4/8 machine combo | N83: =IF($D$21=$M$9,Army!$H50,IF($D$21=$M$10,Army!$K50,IF($D$21='Interactive Worksheet'!$M$11,Army!$N50,IF($D$21='Interactive Worksheet'!$M$12,Army!$Q50,IF($D$21='Interactive Worksheet'!$M$13,IF($M$17=0,Army!$T50,($M$17*Army!W50)+Army!T50)))))) ->  | O83: =IF(D83<>0,D83,IF($D$21=$M$9,Navy!F50,IF($D$21=$M$10,Navy!I50,IF($D$21='Interactive Worksheet'!$M$11,Navy!L50,IF($D$21='Interactive Worksheet'!$M$12,Navy!O50,IF($D$21='Interactive Worksheet'!$M$13,Navy!R50,IF($O$18>0,Navy!U50,))))))) ->  | P83: =IF($D83<>0,$D83,IF($D$21=$M$9,Navy!$H50,IF($D$21=$M$10,Navy!$K50,IF($D$21='Interactive Worksheet'!$M$11,Navy!$N50,IF($D$21='Interactive Worksheet'!$M$12,Navy!$Q50,IF($D$21='Interactive Worksheet'!$M$13,Navy!$T50,)))))) ->  | Q83: =IF(D83<>0,D83,IF($D$21=$M$10,AF!F50,IF($D$21=$M$11,AF!I50,IF($D$21='Interactive Worksheet'!$M$12,AF!L50,)))) ->  | R83: =IF(D83<>0,D83,IF($D$21=$M$10,AF!H50,IF($D$21=$M$11,AF!K50,IF($D$21='Interactive Worksheet'!$M$12,AF!N50,)))) ->  | S83: =IF($D83<>0,$D83,IF($D$21=$M$9,MC!F50,IF($D$21=$M$10,MC!I50,IF($D$21='Interactive Worksheet'!$M$11,MC!L50,IF($D$21='Interactive Worksheet'!$M$12,MC!O50,IF($D$21='Interactive Worksheet'!$M$13,MC!R50,)))))) ->  | T83: =IF($D83<>0,$D83,IF($D$21=$M$9,MC!H50,IF($D$21=$M$10,MC!K50,IF($D$21='Interactive Worksheet'!$M$11,MC!N50,IF($D$21='Interactive Worksheet'!$M$12,MC!Q50,IF($D$21='Interactive Worksheet'!$M$13,MC!T50,)))))) -> 
A84: =IF(OR($D$26<>"Yes",$D$26=0,$K$26<>"Yes"),,'Components and Space Standards'!A53) -> 0 | G84: =ROUND(H84*$K$33,2) -> 0 | H84: =IF(OR($D$26<>"Yes",$D$26=0,$K$26<>"Yes"),,IF($D$5=$K$5,N84,IF($D$5=$K$6,P84,IF($D$5=$K$7,R84,IF($D$5=$K$8,T84,))))) -> 0 | K84: 5/10 machine combo | P84: =IF(D84<>0,D84*'Components and Space Standards'!C53,IF($D$21=$M$9,Navy!H51,IF($D$21=$M$10,Navy!K51,IF($D$21='Interactive Worksheet'!$M$11,Navy!N51,IF($D$21='Interactive Worksheet'!$M$12,Navy!Q51,IF($D$21='Interactive Worksheet'!$M$13,Navy!T51,IF($O$18>0,Navy!W51,))))))) ->  | S84: =IF($D84<>0,$D84,IF($D$21=$M$9,MC!F48,IF($D$21=$M$10,MC!I48,IF($D$21='Interactive Worksheet'!$M$11,MC!L48,IF($D$21='Interactive Worksheet'!$M$12,MC!O48,IF($D$21='Interactive Worksheet'!$M$13,MC!R48,)))))) ->  | T84: =IF($D84<>0,$D84*'Components and Space Standards'!C53,IF($D$21=$M$9,MC!H51,IF($D$21=$M$10,MC!K51,IF($D$21='Interactive Worksheet'!$M$11,MC!N51,IF($D$21='Interactive Worksheet'!$M$12,MC!Q51,IF($D$21='Interactive Worksheet'!$M$13,MC!T51,)))))) -> 
A85: =IF(OR($D$26<>"Yes",$D$26=0,$K$26<>"Yes"),,'Components and Space Standards'!A54) -> 0
A86: =IF(OR($D$26<>"Yes",$D$26=0,$K$26<>"Yes"),,'Components and Space Standards'!A55) -> 0 | E86: =IF(OR($D$26<>"Yes",$D$26=0,$K$26<>"Yes"),,IF($D$5=$K$5,$M86&" "&'Components and Space Standards'!$D55&".",IF($D$5=$K$6,$O86&" "&'Components and Space Standards'!$D55&".",IF($D$5=$K$7,$Q86&" "&'Components and Space Standards'!$D55&".",IF($D$5=$K$8,$S86&" "&'Components and Space Standards'!$D55&".",))))) -> 0 | G86: 0 | H86: =IF(OR($D$26<>"Yes",$D$26=0,$K$26<>"Yes"),,IF($D$5=$K$5,N86,IF($D$5=$K$6,P86,IF($D$5=$K$7,R86,IF($D$5=$K$8,T86,))))) -> 0 | M86: =IF($D86<>0,$D86,IF($D$21=$M$9,Army!$F52,IF($D$21=$M$10,Army!$I52,IF($D$21='Interactive Worksheet'!$M$11,Army!$L52,IF($D$21='Interactive Worksheet'!$M$12,Army!$O52,IF($D$21='Interactive Worksheet'!$M$13,IF($M$17=0,Army!$R52,($M$17*Army!U52)+Army!R52))))))) ->  | N86: =IF($D86<>0,$D86*'Components and Space Standards'!$C55,IF($D$21=$M$9,Army!$H52,IF($D$21=$M$10,Army!$K52,IF($D$21='Interactive Worksheet'!$M$11,Army!$N52,IF($D$21='Interactive Worksheet'!$M$12,Army!$Q52,IF($D$21='Interactive Worksheet'!$M$13,IF($M$17=0,Army!$T52,($M$17*Army!W52)+Army!T52))))))) ->  | O86: =IF(D86<>0,D86,IF($D$21=$M$9,Navy!F53,IF($D$21=$M$10,Navy!I53,IF($D$21='Interactive Worksheet'!$M$11,Navy!L53,IF($D$21='Interactive Worksheet'!$M$12,Navy!O53,IF($D$21='Interactive Worksheet'!$M$13,Navy!R53,IF($O$18>0,Navy!U53,))))))) ->  | P86: =IF(D86<>0,D86*'Components and Space Standards'!C55,IF($D$21=$M$9,Navy!H53,IF($D$21=$M$10,Navy!K53,IF($D$21='Interactive Worksheet'!$M$11,Navy!N53,IF($D$21='Interactive Worksheet'!$M$12,Navy!Q53,IF($D$21='Interactive Worksheet'!$M$13,Navy!T53,IF($O$18>0,Navy!W53,))))))) ->  | Q86: =IF(D86<>0,D86,IF($D$21=$M$10,AF!F52,IF($D$21=$M$11,AF!I52,IF($D$21='Interactive Worksheet'!$M$12,AF!L52,)))) ->  | R86: =IF(D86<>0,D86*'Components and Space Standards'!C55,IF($D$21=$M$10,AF!H52,IF($D$21=$M$11,AF!K52,IF($D$21='Interactive Worksheet'!$M$12,AF!N52,)))) ->  | S86: =IF($D86<>0,$D86,IF($D$21=$M$9,MC!F53,IF($D$21=$M$10,MC!I53,IF($D$21='Interactive Worksheet'!$M$11,MC!L53,IF($D$21='Interactive Worksheet'!$M$12,MC!O53,IF($D$21='Interactive Worksheet'!$M$13,MC!R53,)))))) ->  | T86: =IF($D86<>0,$D86*'Components and Space Standards'!C55,IF($D$21=$M$9,MC!H53,IF($D$21=$M$10,MC!K53,IF($D$21='Interactive Worksheet'!$M$11,MC!N53,IF($D$21='Interactive Worksheet'!$M$12,MC!Q53,IF($D$21='Interactive Worksheet'!$M$13,MC!T53,)))))) -> 
A87: =IF(OR($D$26<>"Yes",$D$26=0,$K$26<>"Yes"),,'Components and Space Standards'!A56) -> 0 | E87: =IF(OR($D$26<>"Yes",$D$26=0,$K$26<>"Yes"),,IF($D$5=$K$5,$M87&" "&'Components and Space Standards'!$D56&".",IF($D$5=$K$6,$O87&" "&'Components and Space Standards'!$D56&".",IF($D$5=$K$7,$Q87&" "&'Components and Space Standards'!$D56&".",IF($D$5=$K$8,$S87&" "&'Components and Space Standards'!$D56&".",))))) -> 0 | G87: 0 | H87: =IF(OR($D$26<>"Yes",$D$26=0,$K$26<>"Yes"),,IF($D$5=$K$5,N87,IF($D$5=$K$6,P87,IF($D$5=$K$7,R87,IF($D$5=$K$8,T87,))))) -> 0 | M87: =IF($D87<>0,$D87,IF($D$21=$M$9,Army!$F53,IF($D$21=$M$10,Army!$I53,IF($D$21='Interactive Worksheet'!$M$11,Army!$L53,IF($D$21='Interactive Worksheet'!$M$12,Army!$O53,IF($D$21='Interactive Worksheet'!$M$13,IF($M$17=0,Army!$R53,($M$17*Army!U53)+Army!R53))))))) ->  | N87: =IF($D87<>0,$D87*'Components and Space Standards'!$C56,IF($D$21=$M$9,Army!$H53,IF($D$21=$M$10,Army!$K53,IF($D$21='Interactive Worksheet'!$M$11,Army!$N53,IF($D$21='Interactive Worksheet'!$M$12,Army!$Q53,IF($D$21='Interactive Worksheet'!$M$13,IF($M$17=0,Army!$T53,($M$17*Army!W53)+Army!T53))))))) ->  | O87: =IF(D87<>0,D87,IF($D$21=$M$9,Navy!F54,IF($D$21=$M$10,Navy!I54,IF($D$21='Interactive Worksheet'!$M$11,Navy!L54,IF($D$21='Interactive Worksheet'!$M$12,Navy!O54,IF($D$21='Interactive Worksheet'!$M$13,Navy!R54,IF($O$18>0,Navy!U54,))))))) ->  | P87: =IF(D87<>0,D87*'Components and Space Standards'!C56,IF($D$21=$M$9,Navy!H54,IF($D$21=$M$10,Navy!K54,IF($D$21='Interactive Worksheet'!$M$11,Navy!N54,IF($D$21='Interactive Worksheet'!$M$12,Navy!Q54,IF($D$21='Interactive Worksheet'!$M$13,Navy!T54,IF($O$18>0,Navy!W54,))))))) ->  | Q87: =IF(D87<>0,D87,IF($D$21=$M$10,AF!F53,IF($D$21=$M$11,AF!I53,IF($D$21='Interactive Worksheet'!$M$12,AF!L53,)))) ->  | R87: =IF(D87<>0,D87*'Components and Space Standards'!C56,IF($D$21=$M$10,AF!H53,IF($D$21=$M$11,AF!K53,IF($D$21='Interactive Worksheet'!$M$12,AF!N53,)))) ->  | S87: =IF($D87<>0,$D87,IF($D$21=$M$9,MC!F54,IF($D$21=$M$10,MC!I54,IF($D$21='Interactive Worksheet'!$M$11,MC!L54,IF($D$21='Interactive Worksheet'!$M$12,MC!O54,IF($D$21='Interactive Worksheet'!$M$13,MC!R54,)))))) ->  | T87: =IF($D87<>0,$D87*'Components and Space Standards'!C56,IF($D$21=$M$9,MC!H54,IF($D$21=$M$10,MC!K54,IF($D$21='Interactive Worksheet'!$M$11,MC!N54,IF($D$21='Interactive Worksheet'!$M$12,MC!Q54,IF($D$21='Interactive Worksheet'!$M$13,MC!T54,)))))) -> 
A88: =IF(OR($D$26<>"Yes",$D$26=0,$K$26<>"Yes"),,'Components and Space Standards'!A57) -> 0 | E88: =IF(OR($D$26<>"Yes",$D$26=0,$K$26<>"Yes"),,IF($D$5=$K$5,$M88&" "&'Components and Space Standards'!$D57&".",IF($D$5=$K$6,$O88&" "&'Components and Space Standards'!$D57&".",IF($D$5=$K$7,$Q88&" "&'Components and Space Standards'!$D57&".",IF($D$5=$K$8,$S88&" "&'Components and Space Standards'!$D57&".",))))) -> 0 | G88: 0 | H88: 0 | M88: =IF($D88<>0,$D88,IF($D$21=$M$9,Army!$F54,IF($D$21=$M$10,Army!$I54,IF($D$21='Interactive Worksheet'!$M$11,Army!$L54,IF($D$21='Interactive Worksheet'!$M$12,Army!$O54,IF($D$21='Interactive Worksheet'!$M$13,IF($M$17=0,Army!$R54,($M$17*Army!U54)+Army!R54))))))) ->  | N88: =IF($D88<>0,$D88*'Components and Space Standards'!$C57,IF($D$21=$M$9,Army!$H54,IF($D$21=$M$10,Army!$K54,IF($D$21='Interactive Worksheet'!$M$11,Army!$N54,IF($D$21='Interactive Worksheet'!$M$12,Army!$Q54,IF($D$21='Interactive Worksheet'!$M$13,IF($M$17=0,Army!$T54,($M$17*Army!W54)+Army!T54))))))) ->  | O88: =IF(D88<>0,D88,IF($D$21=$M$9,Navy!F55,IF($D$21=$M$10,Navy!I55,IF($D$21='Interactive Worksheet'!$M$11,Navy!L55,IF($D$21='Interactive Worksheet'!$M$12,Navy!O55,IF($D$21='Interactive Worksheet'!$M$13,Navy!R55,IF($O$18>0,Navy!U55,))))))) ->  | P88: =IF(D88<>0,D88*'Components and Space Standards'!C57,IF($D$21=$M$9,Navy!H55,IF($D$21=$M$10,Navy!K55,IF($D$21='Interactive Worksheet'!$M$11,Navy!N55,IF($D$21='Interactive Worksheet'!$M$12,Navy!Q55,IF($D$21='Interactive Worksheet'!$M$13,Navy!T55,IF($O$18>0,Navy!W55,))))))) ->  | Q88: =IF(D88<>0,D88,IF($D$21=$M$10,AF!F54,IF($D$21=$M$11,AF!I54,IF($D$21='Interactive Worksheet'!$M$12,AF!L54,)))) ->  | R88: =IF(D88<>0,D88*'Components and Space Standards'!C57,IF($D$21=$M$10,AF!H54,IF($D$21=$M$11,AF!K54,IF($D$21='Interactive Worksheet'!$M$12,AF!N54,)))) ->  | S88: =IF($D88<>0,$D88,IF($D$21=$M$9,MC!F55,IF($D$21=$M$10,MC!I55,IF($D$21='Interactive Worksheet'!$M$11,MC!L55,IF($D$21='Interactive Worksheet'!$M$12,MC!O55,IF($D$21='Interactive Worksheet'!$M$13,MC!R55,)))))) ->  | T88: =IF($D88<>0,$D88*'Components and Space Standards'!C57,IF($D$21=$M$9,MC!H55,IF($D$21=$M$10,MC!K55,IF($D$21='Interactive Worksheet'!$M$11,MC!N55,IF($D$21='Interactive Worksheet'!$M$12,MC!Q55,IF($D$21='Interactive Worksheet'!$M$13,MC!T55,)))))) -> 
A89: =IF(OR($D$26<>"Yes",$D$26=0,$K$26<>"Yes"),,'Components and Space Standards'!A58) -> 0 | C89: =IF(OR($D$26<>"Yes",$D$26=0,$K$26<>"Yes"),,IF(D5=K8,"For this option, enter # of workstations",)) -> 0 | E89: =IF(OR($D$26<>"Yes",$D$26=0,$K$26<>"Yes"),,IF($D$5=$K$5,$M89&" "&'Components and Space Standards'!$D58&".",IF($D$5=$K$6,$O89&" "&'Components and Space Standards'!$D58&".",IF($D$5=$K$7,$Q89&" "&'Components and Space Standards'!$D58&".",IF($D$5=$K$8,$S89&" "&'Components and Space Standards'!$D58&".",))))) -> 0 | G89: 0 | H89: 0 | M89: =IF($D89<>0,$D89,IF($D$21=$M$9,Army!$F55,IF($D$21=$M$10,Army!$I55,IF($D$21='Interactive Worksheet'!$M$11,Army!$L55,IF($D$21='Interactive Worksheet'!$M$12,Army!$O55,IF($D$21='Interactive Worksheet'!$M$13,IF($M$17=0,Army!$R55,($M$17*Army!U55)+Army!R55))))))) ->  | N89: =IF($D89<>0,$D89*'Components and Space Standards'!$C58,IF($D$21=$M$9,Army!$H55,IF($D$21=$M$10,Army!$K55,IF($D$21='Interactive Worksheet'!$M$11,Army!$N55,IF($D$21='Interactive Worksheet'!$M$12,Army!$Q55,IF($D$21='Interactive Worksheet'!$M$13,IF($M$17=0,Army!$T55,($M$17*Army!W55)+Army!T55))))))) ->  | O89: =IF($D89=$K$26,1,0) -> 0 | Q89: =IF(D89<>0,D89,IF($D$21=$M$10,AF!F55,IF($D$21=$M$11,AF!I55,IF($D$21='Interactive Worksheet'!$M$12,AF!L55,)))) ->  | R89: =IF(D89<>0,D89*'Components and Space Standards'!C58,IF($D$21=$M$10,AF!H55,IF($D$21=$M$11,AF!K55,IF($D$21='Interactive Worksheet'!$M$12,AF!N55,)))) ->  | S89: =D89 -> 0 | T89: =S89*'Components and Space Standards'!C68 -> 0
A90: =IF(OR($D$26<>"Yes",$D$26=0,$K$26<>"Yes"),,'Components and Space Standards'!A59) -> 0 | E90: =IF(OR($D$26<>"Yes",$D$26=0,$K$26<>"Yes"),,IF($D$5=$K$5,$M90&" "&'Components and Space Standards'!$D59&".",IF($D$5=$K$6,$O90&" "&'Components and Space Standards'!$D59&".",IF($D$5=$K$7,$Q90&" "&'Components and Space Standards'!$D59&".",IF($D$5=$K$8,$S90&" "&'Components and Space Standards'!$D59&".",))))) -> 0 | G90: 0 | H90: 0 | M90: =IF($D90<>0,$D90,IF($D$21=$M$9,Army!$F56,IF($D$21=$M$10,Army!$I56,IF($D$21='Interactive Worksheet'!$M$11,Army!$L56,IF($D$21='Interactive Worksheet'!$M$12,Army!$O56,IF($D$21='Interactive Worksheet'!$M$13,IF($M$17=0,Army!$R56,($M$17*Army!U56)+Army!R56))))))) ->  | N90: =IF($D90<>0,$D90*'Components and Space Standards'!$C59,IF($D$21=$M$9,Army!$H56,IF($D$21=$M$10,Army!$K56,IF($D$21='Interactive Worksheet'!$M$11,Army!$N56,IF($D$21='Interactive Worksheet'!$M$12,Army!$Q56,IF($D$21='Interactive Worksheet'!$M$13,IF($M$17=0,Army!$T56,($M$17*Army!W56)+Army!T56))))))) ->  | O90: =IF(D90<>0,D90,IF($D$21=$M$9,Navy!F57,IF($D$21=$M$10,Navy!I57,IF($D$21='Interactive Worksheet'!$M$11,Navy!L57,IF($D$21='Interactive Worksheet'!$M$12,Navy!O57,IF($D$21='Interactive Worksheet'!$M$13,Navy!R57,IF($O$18>0,Navy!U57,))))))) ->  | P90: =IF(D90<>0,D90*'Components and Space Standards'!C59,IF($D$21=$M$9,Navy!H57,IF($D$21=$M$10,Navy!K57,IF($D$21='Interactive Worksheet'!$M$11,Navy!N57,IF($D$21='Interactive Worksheet'!$M$12,Navy!Q57,IF($D$21='Interactive Worksheet'!$M$13,Navy!T57,IF($O$18>0,Navy!W57,))))))) ->  | Q90: =IF(D90<>0,D90,IF($D$21=$M$10,AF!F56,IF($D$21=$M$11,AF!I56,IF($D$21='Interactive Worksheet'!$M$12,AF!L56,)))) ->  | R90: =IF(D90<>0,D90*'Components and Space Standards'!C59,IF($D$21=$M$10,AF!H56,IF($D$21=$M$11,AF!K56,IF($D$21='Interactive Worksheet'!$M$12,AF!N56,)))) ->  | S90: =IF($D90<>0,$D90,IF($D$21=$M$9,MC!F57,IF($D$21=$M$10,MC!I57,IF($D$21='Interactive Worksheet'!$M$11,MC!L57,IF($D$21='Interactive Worksheet'!$M$12,MC!O57,IF($D$21='Interactive Worksheet'!$M$13,MC!R57,)))))) ->  | T90: =IF($D90<>0,$D90*'Components and Space Standards'!C59,IF($D$21=$M$9,MC!H57,IF($D$21=$M$10,MC!K57,IF($D$21='Interactive Worksheet'!$M$11,MC!N57,IF($D$21='Interactive Worksheet'!$M$12,MC!Q57,IF($D$21='Interactive Worksheet'!$M$13,MC!T57,)))))) -> 
A91: =IF(OR($D$26<>"Yes",$D$26=0,$K$26<>"Yes"),,'Components and Space Standards'!A60) -> 0 | E91: =IF(OR($D$26<>"Yes",$D$26=0,$K$26<>"Yes"),,IF($D$5=$K$5,$M91&" "&'Components and Space Standards'!$D60&".",IF($D$5=$K$6,$O91&" "&'Components and Space Standards'!$D60&".",IF($D$5=$K$7,$Q91&" "&'Components and Space Standards'!$D60&".",IF($D$5=$K$8,$S91&" "&'Components and Space Standards'!$D60&".",))))) -> 0 | G91: 0 | H91: 0 | M91: =IF($D91<>0,$D91,IF($D$21=$M$9,Army!$F57,IF($D$21=$M$10,Army!$I57,IF($D$21='Interactive Worksheet'!$M$11,Army!$L57,IF($D$21='Interactive Worksheet'!$M$12,Army!$O57,IF($D$21='Interactive Worksheet'!$M$13,IF($M$17=0,Army!$R57,($M$17*Army!U57)+Army!R57))))))) ->  | N91: =IF($D91<>0,$D91*'Components and Space Standards'!$C60,IF($D$21=$M$9,Army!$H57,IF($D$21=$M$10,Army!$K57,IF($D$21='Interactive Worksheet'!$M$11,Army!$N57,IF($D$21='Interactive Worksheet'!$M$12,Army!$Q57,IF($D$21='Interactive Worksheet'!$M$13,IF($M$17=0,Army!$T57,($M$17*Army!W57)+Army!T57))))))) ->  | O91: =IF(D91<>0,D91,IF($D$21=$M$9,Navy!F58,IF($D$21=$M$10,Navy!I58,IF($D$21='Interactive Worksheet'!$M$11,Navy!L58,IF($D$21='Interactive Worksheet'!$M$12,Navy!O58,IF($D$21='Interactive Worksheet'!$M$13,Navy!R58,IF($O$18>0,Navy!U58,))))))) ->  | P91: =IF(D91<>0,D91*'Components and Space Standards'!C60,IF($D$21=$M$9,Navy!H58,IF($D$21=$M$10,Navy!K58,IF($D$21='Interactive Worksheet'!$M$11,Navy!N58,IF($D$21='Interactive Worksheet'!$M$12,Navy!Q58,IF($D$21='Interactive Worksheet'!$M$13,Navy!T58,IF($O$18>0,Navy!W58,))))))) ->  | Q91: =IF(D91<>0,D91,IF($D$21=$M$10,AF!F57,IF($D$21=$M$11,AF!I57,IF($D$21='Interactive Worksheet'!$M$12,AF!L57,)))) ->  | R91: =IF(D91<>0,D91*'Components and Space Standards'!C60,IF($D$21=$M$10,AF!H57,IF($D$21=$M$11,AF!K57,IF($D$21='Interactive Worksheet'!$M$12,AF!N57,)))) ->  | S91: =IF($D91<>0,$D91,IF($D$21=$M$9,MC!F58,IF($D$21=$M$10,MC!I58,IF($D$21='Interactive Worksheet'!$M$11,MC!L58,IF($D$21='Interactive Worksheet'!$M$12,MC!O58,IF($D$21='Interactive Worksheet'!$M$13,MC!R58,)))))) ->  | T91: =IF($D91<>0,$D91*'Components and Space Standards'!C60,IF($D$21=$M$9,MC!H58,IF($D$21=$M$10,MC!K58,IF($D$21='Interactive Worksheet'!$M$11,MC!N58,IF($D$21='Interactive Worksheet'!$M$12,MC!Q58,IF($D$21='Interactive Worksheet'!$M$13,MC!T58,)))))) -> 
A92: =IF(OR($D$26<>"Yes",$D$26=0,$K$26<>"Yes"),,'Components and Space Standards'!A61) -> 0 | E92: =IF(OR($D$26<>"Yes",$D$26=0,$K$26<>"Yes"),,IF($D$5=$K$5,$M92&" "&'Components and Space Standards'!$D61&".",IF($D$5=$K$6,$O92&" "&'Components and Space Standards'!$D61&".",IF($D$5=$K$7,$Q92&" "&'Components and Space Standards'!$D61&".",IF($D$5=$K$8,$S92&" "&'Components and Space Standards'!$D61&".",))))) -> 0 | G92: 0 | H92: 0 | M92: =IF($D92<>0,$D92,IF($D$21=$M$9,Army!$F58,IF($D$21=$M$10,Army!$I58,IF($D$21='Interactive Worksheet'!$M$11,Army!$L58,IF($D$21='Interactive Worksheet'!$M$12,Army!$O58,IF($D$21='Interactive Worksheet'!$M$13,IF($M$17=0,Army!$R58,($M$17*Army!U58)+Army!R58))))))) ->  | N92: =IF($D92<>0,$D92*'Components and Space Standards'!$C61,IF($D$21=$M$9,Army!$H58,IF($D$21=$M$10,Army!$K58,IF($D$21='Interactive Worksheet'!$M$11,Army!$N58,IF($D$21='Interactive Worksheet'!$M$12,Army!$Q58,IF($D$21='Interactive Worksheet'!$M$13,IF($M$17=0,Army!$T58,($M$17*Army!W58)+Army!T58))))))) ->  | O92: =IF(D92<>0,D92,IF($D$21=$M$9,Navy!F59,IF($D$21=$M$10,Navy!I59,IF($D$21='Interactive Worksheet'!$M$11,Navy!L59,IF($D$21='Interactive Worksheet'!$M$12,Navy!O59,IF($D$21='Interactive Worksheet'!$M$13,Navy!R59,IF($O$18>0,Navy!U59,))))))) ->  | P92: =IF(D92<>0,D92*'Components and Space Standards'!C61,IF($D$21=$M$9,Navy!H59,IF($D$21=$M$10,Navy!K59,IF($D$21='Interactive Worksheet'!$M$11,Navy!N59,IF($D$21='Interactive Worksheet'!$M$12,Navy!Q59,IF($D$21='Interactive Worksheet'!$M$13,Navy!T59,IF($O$18>0,Navy!W59,))))))) ->  | Q92: =IF(D92<>0,D92,IF($D$21=$M$10,AF!F58,IF($D$21=$M$11,AF!I58,IF($D$21='Interactive Worksheet'!$M$12,AF!L58,)))) ->  | R92: =IF(D92<>0,D92*'Components and Space Standards'!C61,IF($D$21=$M$10,AF!H58,IF($D$21=$M$11,AF!K58,IF($D$21='Interactive Worksheet'!$M$12,AF!N58,)))) ->  | S92: =IF($D92<>0,$D92,IF($D$21=$M$9,MC!F59,IF($D$21=$M$10,MC!I59,IF($D$21='Interactive Worksheet'!$M$11,MC!L59,IF($D$21='Interactive Worksheet'!$M$12,MC!O59,IF($D$21='Interactive Worksheet'!$M$13,MC!R59,)))))) ->  | T92: =IF($D92<>0,$D92*'Components and Space Standards'!C61,IF($D$21=$M$9,MC!H59,IF($D$21=$M$10,MC!K59,IF($D$21='Interactive Worksheet'!$M$11,MC!N59,IF($D$21='Interactive Worksheet'!$M$12,MC!Q59,IF($D$21='Interactive Worksheet'!$M$13,MC!T59,)))))) -> 
A94: =IF(OR($D$26<>"Yes",$D$26=0,$K$26<>"Yes"),,'Components and Space Standards'!A65) -> 0 | O94: =IF(D94<>0,D94,IF($D$21=$M$9,Navy!F62,IF($D$21=$M$10,Navy!I62,IF($D$21='Interactive Worksheet'!$M$11,Navy!L62,IF($D$21='Interactive Worksheet'!$M$12,Navy!O62,IF($D$21='Interactive Worksheet'!$M$13,Navy!R62,)))))) ->  | P94: =IF(D94<>0,D94*'Components and Space Standards'!C65,IF($D$21=$M$9,Navy!H62,IF($D$21=$M$10,Navy!K62,IF($D$21='Interactive Worksheet'!$M$11,Navy!N62,IF($D$21='Interactive Worksheet'!$M$12,Navy!Q62,IF($D$21='Interactive Worksheet'!$M$13,Navy!T62,)))))) ->  | Q94: =IF(D94<>0,D94,IF($D$21=$M$10,AF!F61,IF($D$21=$M$11,AF!I61,IF($D$21='Interactive Worksheet'!$M$12,AF!L61,)))) ->  | R94: =IF(D94<>0,D94*'Components and Space Standards'!C65,IF($D$21=$M$10,AF!H61,IF($D$21=$M$11,AF!K61,IF($D$21='Interactive Worksheet'!$M$12,AF!N61,)))) ->  | S94: =IF($D94<>0,$D94,IF($D$21=$M$9,MC!F62,IF($D$21=$M$10,MC!I62,IF($D$21='Interactive Worksheet'!$M$11,MC!L62,IF($D$21='Interactive Worksheet'!$M$12,MC!O62,IF($D$21='Interactive Worksheet'!$M$13,MC!R62,)))))) ->  | T94: =IF($D94<>0,$D94*'Components and Space Standards'!C65,IF($D$21=$M$9,MC!H62,IF($D$21=$M$10,MC!K62,IF($D$21='Interactive Worksheet'!$M$11,MC!N62,IF($D$21='Interactive Worksheet'!$M$12,MC!Q62,IF($D$21='Interactive Worksheet'!$M$13,MC!T62,)))))) -> 
A95: =IF(OR($D$26<>"Yes",$D$26=0,$K$26<>"Yes"),,'Components and Space Standards'!A66) -> 0 | E95: =IF(OR($D$26<>"Yes",$D$26=0,$K$26<>"Yes"),,IF($D$5=$K$5,$M95&" "&'Components and Space Standards'!$D66&".",IF($D$5=$K$6,$O95&" "&'Components and Space Standards'!$D66&".",IF($D$5=$K$7,$Q95&" "&'Components and Space Standards'!$D66&".",IF($D$5=$K$8,$S95&" "&'Components and Space Standards'!$D66&".",))))) -> 0 | G95: 0 | H95: =IF(OR($D$26<>"Yes",$D$26=0,$K$26<>"Yes"),,IF($D$5=$K$5,N95,IF($D$5=$K$6,P95,IF($D$5=$K$7,R95,IF($D$5=$K$8,T95,))))) -> 0 | M95: =IF($D95<>0,$D95,IF($D$21=$M$9,Army!$F62,IF($D$21=$M$10,Army!$I62,IF($D$21='Interactive Worksheet'!$M$11,Army!$L62,IF($D$21='Interactive Worksheet'!$M$12,Army!$O62,IF($D$21='Interactive Worksheet'!$M$13,IF($M$17=0,Army!$R62,($M$17*Army!U62)+Army!R62))))))) ->  | N95: =IF($D95<>0,$D95*'Components and Space Standards'!$C66,IF($D$21=$M$9,Army!$H62,IF($D$21=$M$10,Army!$K62,IF($D$21='Interactive Worksheet'!$M$11,Army!$N62,IF($D$21='Interactive Worksheet'!$M$12,Army!$Q62,IF($D$21='Interactive Worksheet'!$M$13,IF($M$17=0,Army!$T62,($M$17*Army!W62)+Army!T62))))))) ->  | O95: =IF(D95<>0,D95,IF($D$21=$M$9,Navy!F63,IF($D$21=$M$10,Navy!I63,IF($D$21='Interactive Worksheet'!$M$11,Navy!L63,IF($D$21='Interactive Worksheet'!$M$12,Navy!O63,IF($D$21='Interactive Worksheet'!$M$13,Navy!R63,IF($O$18>0,Navy!U63,))))))) ->  | P95: =IF(D95<>0,D95*'Components and Space Standards'!C66,IF($D$21=$M$9,Navy!H63,IF($D$21=$M$10,Navy!K63,IF($D$21='Interactive Worksheet'!$M$11,Navy!N63,IF($D$21='Interactive Worksheet'!$M$12,Navy!Q63,IF($D$21='Interactive Worksheet'!$M$13,Navy!T63,IF($O$18>0,Navy!W63,))))))) ->  | Q95: =IF(D95<>0,D95,IF($D$21=$M$10,AF!F62,IF($D$21=$M$11,AF!I62,IF($D$21='Interactive Worksheet'!$M$12,AF!L62,)))) ->  | R95: =IF(D95<>0,D95*'Components and Space Standards'!C66,IF($D$21=$M$10,AF!H62,IF($D$21=$M$11,AF!K62,IF($D$21='Interactive Worksheet'!$M$12,AF!N62,)))) ->  | S95: =IF($D95<>0,$D95,IF($D$21=$M$9,MC!F63,IF($D$21=$M$10,MC!I63,IF($D$21='Interactive Worksheet'!$M$11,MC!L63,IF($D$21='Interactive Worksheet'!$M$12,MC!O63,IF($D$21='Interactive Worksheet'!$M$13,MC!R63,)))))) ->  | T95: =IF($D95<>0,$D95*'Components and Space Standards'!C66,IF($D$21=$M$9,MC!H63,IF($D$21=$M$10,MC!K63,IF($D$21='Interactive Worksheet'!$M$11,MC!N63,IF($D$21='Interactive Worksheet'!$M$12,MC!Q63,IF($D$21='Interactive Worksheet'!$M$13,MC!T63,)))))) ->  | U95: =(H95/120)*1 -> 0
A96: =IF(OR($D$26<>"Yes",$D$26=0,$K$26<>"Yes"),,'Components and Space Standards'!A67) -> 0 | E96: =IF(OR($D$26<>"Yes",$D$26=0,$K$26<>"Yes"),,IF($D$5=$K$5,$M96&" "&'Components and Space Standards'!$D67&".",IF($D$5=$K$6,$O96&" "&'Components and Space Standards'!$D67&".",IF($D$5=$K$7,$Q96&" "&'Components and Space Standards'!$D67&".",IF($D$5=$K$8,$S96&" "&'Components and Space Standards'!$D67&".",))))) -> 0 | G96: 0 | H96: 0 | M96: =IF($D96<>0,$D96,IF($D$21=$M$9,Army!$F63,IF($D$21=$M$10,Army!$I63,IF($D$21='Interactive Worksheet'!$M$11,Army!$L63,IF($D$21='Interactive Worksheet'!$M$12,Army!$O63,IF($D$21='Interactive Worksheet'!$M$13,IF($M$17=0,Army!$R63,($M$17*Army!U63)+Army!R63))))))) ->  | N96: =IF($D96<>0,$D96*'Components and Space Standards'!$C67,IF($D$21=$M$9,Army!$H63,IF($D$21=$M$10,Army!$K63,IF($D$21='Interactive Worksheet'!$M$11,Army!$N63,IF($D$21='Interactive Worksheet'!$M$12,Army!$Q63,IF($D$21='Interactive Worksheet'!$M$13,IF($M$17=0,Army!$T63,($M$17*Army!W63)+Army!T63))))))) ->  | O96: =IF(D96<>0,D96,IF($D$21=$M$9,Navy!F64,IF($D$21=$M$10,Navy!I64,IF($D$21='Interactive Worksheet'!$M$11,Navy!L64,IF($D$21='Interactive Worksheet'!$M$12,Navy!O64,IF($D$21='Interactive Worksheet'!$M$13,Navy!R64,IF($O$18>0,Navy!U64,))))))) ->  | P96: =IF(D96<>0,D96*'Components and Space Standards'!C67,IF($D$21=$M$9,Navy!H64,IF($D$21=$M$10,Navy!K64,IF($D$21='Interactive Worksheet'!$M$11,Navy!N64,IF($D$21='Interactive Worksheet'!$M$12,Navy!Q64,IF($D$21='Interactive Worksheet'!$M$13,Navy!T64,IF($O$18>0,Navy!W64,))))))) ->  | Q96: =IF(D96<>0,D96,IF($D$21=$M$10,AF!F63,IF($D$21=$M$11,AF!I63,IF($D$21='Interactive Worksheet'!$M$12,AF!L63,)))) ->  | R96: =IF(D96<>0,D96*'Components and Space Standards'!C67,IF($D$21=$M$10,AF!H63,IF($D$21=$M$11,AF!K63,IF($D$21='Interactive Worksheet'!$M$12,AF!N63,)))) ->  | S96: =IF($D96<>0,$D96,IF($D$21=$M$9,MC!F64,IF($D$21=$M$10,MC!I64,IF($D$21='Interactive Worksheet'!$M$11,MC!L64,IF($D$21='Interactive Worksheet'!$M$12,MC!O64,IF($D$21='Interactive Worksheet'!$M$13,MC!R64,)))))) ->  | T96: =IF($D96<>0,$D96*'Components and Space Standards'!C67,IF($D$21=$M$9,MC!H64,IF($D$21=$M$10,MC!K64,IF($D$21='Interactive Worksheet'!$M$11,MC!N64,IF($D$21='Interactive Worksheet'!$M$12,MC!Q64,IF($D$21='Interactive Worksheet'!$M$13,MC!T64,)))))) ->  | U96: =(H96/100)*1 -> 0
A97: =IF(OR($D$26<>"Yes",$D$26=0,$K$26<>"Yes"),,'Components and Space Standards'!A68) -> 0 | E97: =IF(OR($D$26<>"Yes",$D$26=0,$K$26<>"Yes"),,IF($D$5=$K$5,$M97&" "&'Components and Space Standards'!$D68&".",IF($D$5=$K$6,$O97&" "&'Components and Space Standards'!$D68&".",IF($D$5=$K$7,$Q97&" "&'Components and Space Standards'!$D68&".",IF($D$5=$K$8,$S97&" "&'Components and Space Standards'!$D68&".",))))) -> 0 | G97: 0 | H97: 0 | M97: =IF($D97<>0,$D97,IF($D$21=$M$9,Army!$F64,IF($D$21=$M$10,Army!$I64,IF($D$21='Interactive Worksheet'!$M$11,Army!$L64,IF($D$21='Interactive Worksheet'!$M$12,Army!$O64,IF($D$21='Interactive Worksheet'!$M$13,IF($M$17=0,Army!$R64,($M$17*Army!U64)+Army!R64))))))) ->  | N97: =IF($D97<>0,$D97*'Components and Space Standards'!$C68,IF($D$21=$M$9,Army!$H64,IF($D$21=$M$10,Army!$K64,IF($D$21='Interactive Worksheet'!$M$11,Army!$N64,IF($D$21='Interactive Worksheet'!$M$12,Army!$Q64,IF($D$21='Interactive Worksheet'!$M$13,IF($M$17=0,Army!$T64,($M$17*Army!W64)+Army!T64))))))) ->  | O97: =IF(D97<>0,D97,IF($D$21=$M$9,Navy!F65,IF($D$21=$M$10,Navy!I65,IF($D$21='Interactive Worksheet'!$M$11,Navy!L65,IF($D$21='Interactive Worksheet'!$M$12,Navy!O65,IF($D$21='Interactive Worksheet'!$M$13,Navy!R65,IF($O$18>0,Navy!U65,))))))) ->  | P97: =IF(D97<>0,D97*'Components and Space Standards'!C68,IF($D$21=$M$9,Navy!H65,IF($D$21=$M$10,Navy!K65,IF($D$21='Interactive Worksheet'!$M$11,Navy!N65,IF($D$21='Interactive Worksheet'!$M$12,Navy!Q65,IF($D$21='Interactive Worksheet'!$M$13,Navy!T65,IF($O$18>0,Navy!W65,))))))) ->  | Q97: =IF(D97<>0,D97,IF($D$21=$M$10,AF!F64,IF($D$21=$M$11,AF!I64,IF($D$21='Interactive Worksheet'!$M$12,AF!L64,)))) ->  | R97: =IF(D97<>0,D97*'Components and Space Standards'!C68,IF($D$21=$M$10,AF!H64,IF($D$21=$M$11,AF!K64,IF($D$21='Interactive Worksheet'!$M$12,AF!N64,)))) ->  | S97: =IF($D97<>0,$D97,IF($D$21=$M$9,MC!F65,IF($D$21=$M$10,MC!I65,IF($D$21='Interactive Worksheet'!$M$11,MC!L65,IF($D$21='Interactive Worksheet'!$M$12,MC!O65,IF($D$21='Interactive Worksheet'!$M$13,MC!R65,)))))) ->  | T97: =IF($D97<>0,$D97*'Components and Space Standards'!C68,IF($D$21=$M$9,MC!H65,IF($D$21=$M$10,MC!K65,IF($D$21='Interactive Worksheet'!$M$11,MC!N65,IF($D$21='Interactive Worksheet'!$M$12,MC!Q65,IF($D$21='Interactive Worksheet'!$M$13,MC!T65,)))))) ->  | U97: =(H97/64)*1 -> 0
A98: =IF(OR($D$26<>"Yes",$D$26=0,$K$26<>"Yes"),,'Components and Space Standards'!A69) -> 0 | E98: =IF(OR($D$26<>"Yes",$D$26=0,$K$26<>"Yes"),,IF($D$5=$K$5,$M98&" "&'Components and Space Standards'!$D69&".",IF($D$5=$K$6,$O98&" "&'Components and Space Standards'!$D69&".",IF($D$5=$K$7,$Q98&" "&'Components and Space Standards'!$D69&".",IF($D$5=$K$8,$S98&" "&'Components and Space Standards'!$D69&".",))))) -> 0 | G98: 0 | H98: 0 | M98: =IF($D98<>0,$D98,IF($D$21=$M$9,Army!$F65,IF($D$21=$M$10,Army!$I65,IF($D$21='Interactive Worksheet'!$M$11,Army!$L65,IF($D$21='Interactive Worksheet'!$M$12,Army!$O65,IF($D$21='Interactive Worksheet'!$M$13,IF($M$17=0,Army!$R65,($M$17*Army!U65)+Army!R65))))))) ->  | N98: =IF($D98<>0,$D98*'Components and Space Standards'!$C69,IF($D$21=$M$9,Army!$H65,IF($D$21=$M$10,Army!$K65,IF($D$21='Interactive Worksheet'!$M$11,Army!$N65,IF($D$21='Interactive Worksheet'!$M$12,Army!$Q65,IF($D$21='Interactive Worksheet'!$M$13,IF($M$17=0,Army!$T65,($M$17*Army!W65)+Army!T65))))))) ->  | O98: =IF(D98<>0,D98,IF($D$21=$M$9,Navy!F66,IF($D$21=$M$10,Navy!I66,IF($D$21='Interactive Worksheet'!$M$11,Navy!L66,IF($D$21='Interactive Worksheet'!$M$12,Navy!O66,IF($D$21='Interactive Worksheet'!$M$13,Navy!R66,IF($O$18>0,Navy!U66,))))))) ->  | P98: =IF(D98<>0,D98*'Components and Space Standards'!C69,IF($D$21=$M$9,Navy!H66,IF($D$21=$M$10,Navy!K66,IF($D$21='Interactive Worksheet'!$M$11,Navy!N66,IF($D$21='Interactive Worksheet'!$M$12,Navy!Q66,IF($D$21='Interactive Worksheet'!$M$13,Navy!T66,IF($O$18>0,Navy!W66,))))))) ->  | Q98: =IF(D98<>0,D98,IF($D$21=$M$10,AF!F65,IF($D$21=$M$11,AF!I65,IF($D$21='Interactive Worksheet'!$M$12,AF!L65,)))) ->  | R98: =IF(D98<>0,D98*'Components and Space Standards'!C69,IF($D$21=$M$10,AF!H65,IF($D$21=$M$11,AF!K65,IF($D$21='Interactive Worksheet'!$M$12,AF!N65,)))) ->  | S98: =IF($D98<>0,$D98,IF($D$21=$M$9,MC!F66,IF($D$21=$M$10,MC!I66,IF($D$21='Interactive Worksheet'!$M$11,MC!L66,IF($D$21='Interactive Worksheet'!$M$12,MC!O66,IF($D$21='Interactive Worksheet'!$M$13,MC!R66,)))))) ->  | T98: =IF($D98<>0,$D98*'Components and Space Standards'!C69,IF($D$21=$M$9,MC!H66,IF($D$21=$M$10,MC!K66,IF($D$21='Interactive Worksheet'!$M$11,MC!N66,IF($D$21='Interactive Worksheet'!$M$12,MC!Q66,IF($D$21='Interactive Worksheet'!$M$13,MC!T66,)))))) -> 
A99: =IF(OR($D$26<>"Yes",$D$26=0,$K$26<>"Yes"),,'Components and Space Standards'!A70) -> 0 | E99: =IF(OR($D$26<>"Yes",$D$26=0,$K$26<>"Yes"),,IF($D$5=$K$5,$M99&" "&'Components and Space Standards'!$D70&".",IF($D$5=$K$6,$O99&" "&'Components and Space Standards'!$D70&".",IF($D$5=$K$7,$Q99&" "&'Components and Space Standards'!$D70&".",IF($D$5=$K$8,$S99&" "&'Components and Space Standards'!$D70&".",))))) -> 0 | G99: 0 | H99: 0 | M99: =IF($D99<>0,$D99,IF($D$21=$M$9,Army!$F66,IF($D$21=$M$10,Army!$I66,IF($D$21='Interactive Worksheet'!$M$11,Army!$L66,IF($D$21='Interactive Worksheet'!$M$12,Army!$O66,IF($D$21='Interactive Worksheet'!$M$13,IF($M$17=0,Army!$R66,($M$17*Army!U66)+Army!R66))))))) ->  | N99: =IF($D99<>0,$D99*'Components and Space Standards'!$C70,IF($D$21=$M$9,Army!$H66,IF($D$21=$M$10,Army!$K66,IF($D$21='Interactive Worksheet'!$M$11,Army!$N66,IF($D$21='Interactive Worksheet'!$M$12,Army!$Q66,IF($D$21='Interactive Worksheet'!$M$13,IF($M$17=0,Army!$T66,($M$17*Army!W66)+Army!T66))))))) ->  | O99: =IF(D99<>0,D99,IF($D$21=$M$9,Navy!F67,IF($D$21=$M$10,Navy!I67,IF($D$21='Interactive Worksheet'!$M$11,Navy!L67,IF($D$21='Interactive Worksheet'!$M$12,Navy!O67,IF($D$21='Interactive Worksheet'!$M$13,Navy!R67,IF($O$18>0,Navy!U67,))))))) ->  | P99: =IF(D99<>0,D99*'Components and Space Standards'!C70,IF($D$21=$M$9,Navy!H67,IF($D$21=$M$10,Navy!K67,IF($D$21='Interactive Worksheet'!$M$11,Navy!N67,IF($D$21='Interactive Worksheet'!$M$12,Navy!Q67,IF($D$21='Interactive Worksheet'!$M$13,Navy!T67,IF($O$18>0,Navy!W67,))))))) ->  | Q99: =IF(D99<>0,D99,IF($D$21=$M$10,AF!F66,IF($D$21=$M$11,AF!I66,IF($D$21='Interactive Worksheet'!$M$12,AF!L66,)))) ->  | R99: =IF(D99<>0,D99*'Components and Space Standards'!C70,IF($D$21=$M$10,AF!H66,IF($D$21=$M$11,AF!K66,IF($D$21='Interactive Worksheet'!$M$12,AF!N66,)))) ->  | S99: =IF($D99<>0,$D99,IF($D$21=$M$9,MC!F67,IF($D$21=$M$10,MC!I67,IF($D$21='Interactive Worksheet'!$M$11,MC!L67,IF($D$21='Interactive Worksheet'!$M$12,MC!O67,IF($D$21='Interactive Worksheet'!$M$13,MC!R67,)))))) ->  | T99: =IF($D99<>0,$D99*'Components and Space Standards'!C70,IF($D$21=$M$9,MC!H67,IF($D$21=$M$10,MC!K67,IF($D$21='Interactive Worksheet'!$M$11,MC!N67,IF($D$21='Interactive Worksheet'!$M$12,MC!Q67,IF($D$21='Interactive Worksheet'!$M$13,MC!T67,)))))) ->  | U99: =(H99/420)*15*0.5 -> 0
A100: =IF(OR($D$26<>"Yes",$D$26=0,$K$26<>"Yes"),,'Components and Space Standards'!A71) -> 0 | E100: =IF(OR($D$26<>"Yes",$D$26=0,$K$26<>"Yes"),,IF($D$5=$K$5,$M100&" "&'Components and Space Standards'!$D71&".",IF($D$5=$K$6,$O100&" "&'Components and Space Standards'!$D71&".",IF($D$5=$K$7,$Q100&" "&'Components and Space Standards'!$D71&".",IF($D$5=$K$8,$S100&" "&'Components and Space Standards'!$D71&".",))))) -> 0 | G100: 0 | H100: 0 | M100: =IF($D100<>0,$D100,IF($D$21=$M$9,Army!$F67,IF($D$21=$M$10,Army!$I67,IF($D$21='Interactive Worksheet'!$M$11,Army!$L67,IF($D$21='Interactive Worksheet'!$M$12,Army!$O67,IF($D$21='Interactive Worksheet'!$M$13,IF($M$17=0,Army!$R67,($M$17*Army!U67)+Army!R67))))))) ->  | N100: =IF($D100<>0,$D100*'Components and Space Standards'!$C71,IF($D$21=$M$9,Army!$H67,IF($D$21=$M$10,Army!$K67,IF($D$21='Interactive Worksheet'!$M$11,Army!$N67,IF($D$21='Interactive Worksheet'!$M$12,Army!$Q67,IF($D$21='Interactive Worksheet'!$M$13,IF($M$17=0,Army!$T67,($M$17*Army!W67)+Army!T67))))))) ->  | O100: =IF(D100<>0,D100,IF($D$21=$M$9,Navy!F68,IF($D$21=$M$10,Navy!I68,IF($D$21='Interactive Worksheet'!$M$11,Navy!L68,IF($D$21='Interactive Worksheet'!$M$12,Navy!O68,IF($D$21='Interactive Worksheet'!$M$13,Navy!R68,IF($O$18>0,Navy!U68,))))))) ->  | P100: =IF(D100<>0,D100*'Components and Space Standards'!C71,IF($D$21=$M$9,Navy!H68,IF($D$21=$M$10,Navy!K68,IF($D$21='Interactive Worksheet'!$M$11,Navy!N68,IF($D$21='Interactive Worksheet'!$M$12,Navy!Q68,IF($D$21='Interactive Worksheet'!$M$13,Navy!T68,IF($O$18>0,Navy!W68,))))))) ->  | Q100: =IF(D100<>0,D100,IF($D$21=$M$10,AF!F67,IF($D$21=$M$11,AF!I67,IF($D$21='Interactive Worksheet'!$M$12,AF!L67,)))) ->  | R100: =IF(D100<>0,D100*'Components and Space Standards'!C71,IF($D$21=$M$10,AF!H67,IF($D$21=$M$11,AF!K67,IF($D$21='Interactive Worksheet'!$M$12,AF!N67,)))) ->  | S100: =IF($D100<>0,$D100,IF($D$21=$M$9,MC!F68,IF($D$21=$M$10,MC!I68,IF($D$21='Interactive Worksheet'!$M$11,MC!L68,IF($D$21='Interactive Worksheet'!$M$12,MC!O68,IF($D$21='Interactive Worksheet'!$M$13,MC!R68,)))))) ->  | T100: =IF($D100<>0,$D100*'Components and Space Standards'!C71,IF($D$21=$M$9,MC!H68,IF($D$21=$M$10,MC!K68,IF($D$21='Interactive Worksheet'!$M$11,MC!N68,IF($D$21='Interactive Worksheet'!$M$12,MC!Q68,IF($D$21='Interactive Worksheet'!$M$13,MC!T68,)))))) -> 
